Workbook

Sheet Contents
C3: Contents | F3: Colour Codes | K3: File Name: | M3: =IFERROR(File_name(),"") -> 
G4: Colour of Input Cells | I4: 1234567890
C5: Key | K5: Last Save Date | M5: =IFERROR(lastsaved(),"") -> 
G6: Section Titles | I6: TITLE ROW
C7: InputC | G7: Column Letter of Title | I7: B | K7: Last Save By | M7: =IFERROR(last_save_by(),"") -> 
D8: Model setup
D9: Technical Assumptions | G9: Colour for Sum Column | I9: 1000000000
D10: Capital Expenditure and Operating Cost | G10: Column Letter for Sum | I10: A
D11: Working capital, Depreciation and Tax
D12: Financing | G12: True or 1 Colour | I12: TRUE
D13: Valuation Assumptions | G13: False or 0 Colour | I13: FALSE
C15: InputS | G15: Links from Other Sheets | I15: 999999999
D16: S-Curve | G16: Start Column for Link Colour | I16: E
D17: Margin
D18: Inflation Rate | G18: This menu is created from the Green Button in Generic Macros
C20: Calculations
D21: Energy output
D22: Macro Ecoomic
D23: Operating Cash Flow
D24: Working Capital and Free Cash Flow
D25: Valuation and Proof of Growth Rate =IRR
D26: Project Value
D27: Operating Taxes and Project Return After Tax
D28: Debt Sizing/Structuring
D29: Sources and Uses -- Cash Flow Pre-COD
D30: Income Tax
D31: Cash Flow Waterfall and CFADS
D32: Equity Cash Flow, Equity IRR and DSCR
D33: Circular Reference Copy and Paste Block
D34: Financial Statements
C36: Cash Flow and Debt Service
C38: Audit
C40: Value Chart
C42: Summary
C44: Checks
D45: Checks
C47: Timing
D48: Model timeline
D49: Milestones and durations
D50: Indexation
D51: Major maintenance costs
D52: Debt financing flags
C54: Template
D55: Heading
C57: CHANGE LOG
D58: Tab

Sheet Key
Q3: FALSE
B4: 100 | D4: Hardcoded inputs | I4: Generic Macros: CNTL, ALT, C
B7: 100 | D7: Calculated inputs
B10: 100 | D10: Call-ups from other sheets | I10: Generic Macros: CNTL, ALT, C
B13: 100 | D13: Calculations which result in positive number
B16: -100 | D16: Calculations which result in negative number | I16: Generic Macros: Shift, CNTL, W; Shift, CNTL, Q
B19: 100 | D19: Subtotal
B21: 100 | D21: Grand total

Sheet InputC
A1: =InputC!$G$182 -> 0 | G1: Project IRR | H1: =Calculations!H139 -> 0.08055939972
A2: Inputs(Static)
A3: ="Scenario in use: " & $F$4 -> Scenario in use: | E3: 2 | L3: Scenarios
K5: =_xlfn.SEQUENCE(,13) -> 1 | L5: 2 | M5: 3 | N5: 4 | O5: 5 | P5: 6 | Q5: 7 | R5: 8 | S5: 9 | T5: 10 | U5: 11 | V5: 12 | W5: 13
F6: =INDEX(K6:XFD6,E3) -> Annual | K6: Base | L6: Annual | M6: Monthly | N6: Short-Constr | O6: Long Life | P6: Low CF | Q6: High O&M | R6: Spare 3 | S6: Spare 4 | T6: Spare 5 | U6: Spare 6 | V6: Spare 7 | W6: Spare 8
B8: Model setup
C10: Model timeline
D11: Financial Close | F11: date | G11: =INDEX(K11:XFD11,$E$3) -> 2019-01-01 | K11: 2019-01-01 | L11: 2019-01-01 | M11: 2019-01-01 | N11: 2019-01-01 | O11: 2019-01-01 | P11: 2019-01-01 | Q11: 2019-01-01 | R11: 2019-01-01 | S11: 2019-01-01 | T11: 2019-01-01 | U11: 2019-01-01 | V11: 2019-01-01 | W11: 2019-01-01
D12: Months in Period - Construction | F12: months | G12: =INDEX(K12:XFD12,$E$3) -> 12 | K12: 1 | L12: 12 | M12: 1 | N12: 1 | O12: 1 | P12: 1 | Q12: 12 | R12: 12 | S12: 12 | T12: 12 | U12: 12 | V12: 12 | W12: 12
D13: Months in Period - Operation | F13: months | G13: =INDEX(K13:XFD13,$E$3) -> 12 | K13: 6 | L13: 12 | M13: 1 | N13: 12 | O13: 12 | P13: 12 | Q13: 12 | R13: 12 | S13: 12 | T13: 12 | U13: 12 | V13: 12 | W13: 12
D14: Periods in Year - Construction | F14: Periods | G14: =INDEX(K14:XFD14,$E$3) -> 1 | K14: =Months_in_year/K12 -> 12 | L14: 1 | M14: 12 | N14: 12 | O14: 12 | P14: 12 | Q14: 1 | R14: 1 | S14: 1 | T14: 1 | U14: 1 | V14: 1 | W14: 1
D15: Periods in Year - Operation | F15: Periods | G15: =INDEX(K15:XFD15,$E$3) -> 1 | K15: =Months_in_year/K13 -> 2 | L15: 1 | M15: 12 | N15: 1 | O15: 1 | P15: 1 | Q15: 1 | R15: 1 | S15: 1 | T15: 1 | U15: 1 | V15: 1 | W15: 1
C17: Construction
D18: Construction start | F18: date | G18: =INDEX(K18:XFD18,$E$3) -> 2019-01-01 | K18: =K11 -> 2019-01-01 | L18: 2019-01-01 | M18: 2019-01-01 | N18: 2019-01-01 | O18: 2019-01-01 | P18: 2019-01-01 | Q18: 2019-01-01 | R18: 2019-01-01 | S18: 2019-01-01 | T18: 2019-01-01 | U18: 2019-01-01 | V18: 2019-01-01 | W18: 2019-01-01
D19: Construction duration | F19: months | G19: =INDEX(K19:XFD19,$E$3) -> 24 | K19: 24 | L19: 24 | M19: 24 | N19: 12 | O19: 24 | P19: 24 | Q19: 24 | R19: 24 | S19: 24 | T19: 24 | U19: 24 | V19: 24 | W19: 24
D20: Construction end | F20: date | G20: =INDEX(K20:XFD20,$E$3) -> 2020-12-31 | K20: =EOMONTH(K18,K19-1) -> 2020-12-31 | L20: =EOMONTH(L18,L19-1) -> 2020-12-31 | M20: 2020-12-31 | N20: 2019-12-31 | O20: 2020-12-31 | P20: 2020-12-31 | Q20: 2020-12-31 | R20: 2020-12-31 | S20: 2020-12-31 | T20: 2020-12-31 | U20: 2020-12-31 | V20: 2020-12-31 | W20: 2020-12-31
D21: Total Construction Periods | F21: Periods | G21: =INDEX(K21:XFD21,$E$3) -> 2 | K21: =K19/12 * K14 -> 24 | L21: =L19/12 * L14 -> 2 | M21: 24 | N21: 12 | O21: 24 | P21: 24 | Q21: 2 | R21: 2 | S21: 2 | T21: 2 | U21: 2 | V21: 2 | W21: 2
C23: Operations
D24: Operations start | F24: date | G24: =INDEX(K24:XFD24,$E$3) -> 2021-01-01 | K24: =K20+1 -> 2021-01-01 | L24: =L20+1 -> 2021-01-01 | M24: 2021-01-01 | N24: 2020-01-01 | O24: 2021-01-01 | P24: 2021-01-01 | Q24: 2021-01-01 | R24: 2021-01-01 | S24: 2021-01-01 | T24: 2021-01-01 | U24: 2021-01-01 | V24: 2021-01-01 | W24: 2021-01-01
D25: Operations duration | F25: years | G25: =INDEX(K25:XFD25,$E$3) -> 30 | K25: 30 | L25: 30 | M25: 30 | N25: 30 | O25: 50 | P25: 30 | Q25: 30 | R25: 30 | S25: 30 | T25: 30 | U25: 30 | V25: 30 | W25: 30
D26: Operations end | F26: date | G26: =INDEX(K26:XFD26,$E$3) -> 2050-12-31 | K26: =EOMONTH(K24,K25*Months_in_year-1) -> 2050-12-31 | L26: 2050-12-31 | M26: 2050-12-31 | N26: 2049-12-31 | O26: 2070-12-31 | P26: 2050-12-31 | Q26: 2050-12-31 | R26: 2050-12-31 | S26: 2050-12-31 | T26: 2050-12-31 | U26: 2050-12-31 | V26: 2050-12-31 | W26: 2050-12-31
B28: Technical Assumptions
B30: =MAX($A$1:B29)+0.1 -> 0.1 | C30: Technical
D31: Availability % | F31: % | G31: =INDEX(K31:XFD31,$E$3) -> 0.95 | K31: 0.95 | L31: 0.95 | M31: 0.95 | N31: 0.95 | O31: 0.95 | P31: 0.95 | Q31: 0.95 | R31: 0.95 | S31: 0.95 | T31: 0.95 | U31: 0.95 | V31: 0.95 | W31: 0.95
D32: Capacity Factor % | F32: % | G32: =INDEX(K32:XFD32,$E$3) -> 0.6 | K32: 0.6 | L32: 0.6 | M32: 0.6 | N32: 0.6 | O32: 0.6 | P32: 0.6 | Q32: 0.6 | R32: 0.6 | S32: 0.6 | T32: 0.6 | U32: 0.6 | V32: 0.6 | W32: 0.6
D33: Turbine power rating | F33: MW | G33: =INDEX(K33:XFD33,$E$3) -> 5 | K33: 5 | L33: 5 | M33: 5 | N33: 5 | O33: 5 | P33: 5 | Q33: 5 | R33: 5 | S33: 5 | T33: 5 | U33: 5 | V33: 5 | W33: 5
D34: Number of turbines | F34: no | G34: =INDEX(K34:XFD34,$E$3) -> 40 | K34: 40 | L34: 40 | M34: 40 | N34: 40 | O34: 40 | P34: 40 | Q34: 40 | R34: 40 | S34: 40 | T34: 40 | U34: 40 | V34: 40 | W34: 40
D35: Total Capacity | F35: MW | G35: =INDEX(K35:XFD35,$E$3) -> 200 | K35: =K33*K34 -> 200 | L35: =L33*L34 -> 200 | M35: 200 | N35: 200 | O35: 200 | P35: 200 | Q35: 200 | R35: 200 | S35: 200 | T35: 200 | U35: 200 | V35: 200 | W35: 200
D36: Total Capacity | F36: kW | G36: =INDEX(K36:XFD36,$E$3) -> 200000 | K36: =K35*1000 -> 200000 | L36: =L35*1000 -> 200000 | M36: 200000 | N36: 200000 | O36: 200000 | P36: 200000 | Q36: 200000 | R36: 200000 | S36: 200000 | T36: 200000 | U36: 200000 | V36: 200000 | W36: 200000
B39: Capital Expenditure and Operating Cost
B41: =MAX($A$1:B38)+0.1 -> 0.2 | C41: Construction costs
C43: Cost per turbine
D44: Construction | F44: =Currency -> € | G44: =INDEX(K44:XFD44,$E$3) -> 5000000 | K44: 5000000 | L44: 5000000 | M44: 5000000 | N44: 5000000 | O44: 5000000 | P44: 5000000 | Q44: 5000000 | R44: 5000000 | S44: 5000000 | T44: 5000000 | U44: 5000000 | V44: 5000000 | W44: 5000000
D45: Installation | F45: € | G45: =INDEX(K45:XFD45,$E$3) -> 3500000 | K45: 3500000 | L45: 3500000 | M45: 3500000 | N45: 3500000 | O45: 3500000 | P45: 3500000 | Q45: 3500000 | R45: 3500000 | S45: 3500000 | T45: 3500000 | U45: 3500000 | V45: 3500000 | W45: 3500000
D46: Connection to grid | F46: € | G46: =INDEX(K46:XFD46,$E$3) -> 700000 | K46: 700000 | L46: 700000 | M46: 700000 | N46: 700000 | O46: 700000 | P46: 700000 | Q46: 700000 | R46: 700000 | S46: 700000 | T46: 700000 | U46: 700000 | V46: 700000 | W46: 700000
D47: Manpower | F47: € | G47: =INDEX(K47:XFD47,$E$3) -> 300000 | K47: 300000 | L47: 300000 | M47: 300000 | N47: 300000 | O47: 300000 | P47: 300000 | Q47: 300000 | R47: 300000 | S47: 300000 | T47: 300000 | U47: 300000 | V47: 300000 | W47: 300000
D48: Total Cost per Turbine | F48: € | G48: =INDEX(K48:XFD48,$E$3) -> 9500000 | K48: =SUM(K44:K47) -> 9500000 | L48: 9500000 | M48: 9500000 | N48: 9500000 | O48: 9500000 | P48: 9500000 | Q48: 9500000 | R48: 9500000 | S48: 9500000 | T48: 9500000 | U48: 9500000 | V48: 9500000 | W48: 9500000
D49: Total Capital Expenditures | F49: € | G49: =INDEX(K49:XFD49,$E$3) -> 380000000 | K49: =K48*K34 -> 380000000 | L49: =L48*L34 -> 380000000 | M49: 380000000 | N49: 380000000 | O49: 380000000 | P49: 380000000 | Q49: 380000000 | R49: 380000000 | S49: 380000000 | T49: 380000000 | U49: 380000000 | V49: 380000000 | W49: 380000000
D51: Cost per kW | F51: Euro/kW | G51: =INDEX(K51:XFD51,$E$3) -> 1900 | K51: =K49/K36 -> 1900 | L51: =L49/L36 -> 1900 | M51: 1900 | N51: 1900 | O51: 1900 | P51: 1900 | Q51: 1900 | R51: 1900 | S51: 1900 | T51: 1900 | U51: 1900 | V51: 1900 | W51: 1900
D53: S-curve Code | F53: Code | G53: =INDEX(K53:XFD53,$E$3) -> 1 | K53: 1 | L53: 1 | M53: 1 | N53: 1 | O53: 1 | P53: 2 | Q53: 2 | R53: 1 | S53: 1 | T53: 1 | U53: 1 | V53: 1 | W53: 1
D54: S-curve Description | F54: Description | G54: =INDEX(InputS!$D$9:$D$11,InputC!G53) -> Flat Curve
B56: =MAX($A$1:B49)+0.1 -> 0.3 | C56: Operating costs
C58: Annual costs
D59: Administration costs | F59: =Currency -> € | G59: =INDEX(K59:XFD59,$E$3) -> 800000 | K59: 800000 | L59: 800000 | M59: 800000 | N59: 800000 | O59: 800000 | P59: 800000 | Q59: 800000 | R59: 800000 | S59: 800000 | T59: 800000 | U59: 800000 | V59: 800000 | W59: 800000
D60: Management costs | F60: € | G60: =INDEX(K60:XFD60,$E$3) -> 750000 | K60: 750000 | L60: 750000 | M60: 750000 | N60: 750000 | O60: 750000 | P60: 750000 | Q60: 750000 | R60: 750000 | S60: 750000 | T60: 750000 | U60: 750000 | V60: 750000 | W60: 750000
D61: Insurance | F61: € | G61: =INDEX(K61:XFD61,$E$3) -> 1000000 | K61: 1000000 | L61: 1000000 | M61: 1000000 | N61: 1000000 | O61: 1000000 | P61: 1000000 | Q61: 1000000 | R61: 1000000 | S61: 1000000 | T61: 1000000 | U61: 1000000 | V61: 1000000 | W61: 1000000
D62: Salaries | F62: € | G62: =INDEX(K62:XFD62,$E$3) -> 700000 | K62: 700000 | L62: 700000 | M62: 700000 | N62: 700000 | O62: 700000 | P62: 700000 | Q62: 700000 | R62: 700000 | S62: 700000 | T62: 700000 | U62: 700000 | V62: 700000 | W62: 700000
D63: [Spare] | F63: € | G63: =INDEX(K63:XFD63,$E$3) -> 0 | K63: 0 | L63: 0 | M63: 0 | N63: 0 | O63: 0 | P63: 0 | Q63: 0 | R63: 0 | S63: 0 | T63: 0 | U63: 0 | V63: 0 | W63: 0
D64: Total | F64: € | G64: =INDEX(K64:XFD64,$E$3) -> 3250000 | K64: =SUM(K59:K63) -> 3250000 | L64: 3250000 | M64: 3250000 | N64: 3250000 | O64: 3250000 | P64: 3250000 | Q64: 3250000 | R64: 3250000 | S64: 3250000 | T64: 3250000 | U64: 3250000 | V64: 3250000 | W64: 3250000
D66: Total Capacity | F66: Euro/kW | G66: =INDEX(K66:XFD66,$E$3) -> 16.25 | K66: =K64/K36 -> 16.25 | L66: =L64/L36 -> 16.25 | M66: 16.25 | N66: 16.25 | O66: 16.25 | P66: 16.25 | Q66: 16.25 | R66: 16.25 | S66: 16.25 | T66: 16.25 | U66: 16.25 | V66: 16.25 | W66: 16.25
D68: Methodology
D69: Annual cost inputs (1) / Time based (0) | F69: switch | J69: 1 | K69: 1 | L69: 1 | M69: 1 | N69: 1 | O69: 1 | P69: 1 | Q69: 1 | R69: 1 | S69: 1 | T69: 1 | U69: 1 | V69: 1 | W69: 1
B71: =MAX($A$1:B70)+0.1 -> 0.4 | C71: Major maintenance costs
C73: Cost per turbine
D74: Annual maintenance | F74: =Currency -> € | G74: =INDEX(K74:XFD74,$E$3) -> 80000 | K74: 80000 | L74: 80000 | M74: 80000 | N74: 80000 | O74: 80000 | P74: 80000 | Q74: 80000 | R74: 80000 | S74: 80000 | T74: 80000 | U74: 80000 | V74: 80000 | W74: 80000
D75: Major turbine maintenance | F75: =Currency -> € | G75: =INDEX(K75:XFD75,$E$3) -> 100000 | K75: 100000 | L75: 100000 | M75: 100000 | N75: 100000 | O75: 100000 | P75: 100000 | Q75: 100000 | R75: 100000 | S75: 100000 | T75: 100000 | U75: 100000 | V75: 100000 | W75: 100000
D76: Blade maintenance | F76: =Currency -> € | G76: =INDEX(K76:XFD76,$E$3) -> 120000 | K76: 120000 | L76: 120000 | M76: 120000 | N76: 120000 | O76: 120000 | P76: 120000 | Q76: 120000 | R76: 120000 | S76: 120000 | T76: 120000 | U76: 120000 | V76: 120000 | W76: 120000
D77: [Spare] | F77: =Currency -> € | G77: =INDEX(K77:XFD77,$E$3) -> 0 | K77: 0 | L77: 0 | M77: 0 | N77: 0 | O77: 0 | P77: 0 | Q77: 0 | R77: 0 | S77: 0 | T77: 0 | U77: 0 | V77: 0 | W77: 0
C79: Total Costs
D80: Annual maintenance | F80: =Currency -> € | G80: =INDEX(K80:XFD80,$E$3) -> 3200000 | K80: =K74*K$34 -> 3200000 | L80: =L74*L$34 -> 3200000 | M80: 3200000 | N80: 3200000 | O80: 3200000 | P80: 3200000 | Q80: 3200000 | R80: 3200000 | S80: 3200000 | T80: 3200000 | U80: 3200000 | V80: 3200000 | W80: 3200000
D81: Major turbine maintenance | F81: =Currency -> € | G81: =INDEX(K81:XFD81,$E$3) -> 4000000 | K81: =K75*K$34 -> 4000000 | L81: 4000000 | M81: 4000000 | N81: 4000000 | O81: 4000000 | P81: 4000000 | Q81: 4000000 | R81: 4000000 | S81: 4000000 | T81: 4000000 | U81: 4000000 | V81: 4000000 | W81: 4000000
D82: Blade maintenance | F82: =Currency -> € | G82: =INDEX(K82:XFD82,$E$3) -> 4800000 | K82: 4800000 | L82: 4800000 | M82: 4800000 | N82: 4800000 | O82: 4800000 | P82: 4800000 | Q82: 4800000 | R82: 4800000 | S82: 4800000 | T82: 4800000 | U82: 4800000 | V82: 4800000 | W82: 4800000
D83: [Spare] | F83: =Currency -> € | G83: =INDEX(K83:XFD83,$E$3) -> 0 | K83: 0 | L83: 0 | M83: 0 | N83: 0 | O83: 0 | P83: 0 | Q83: 0 | R83: 0 | S83: 0 | T83: 0 | U83: 0 | V83: 0 | W83: 0
C85: Incurred every
D86: =D80 -> Annual maintenance | F86: years | G86: =INDEX(K86:XFD86,$E$3) -> 1 | K86: 1 | L86: 1 | M86: 1 | N86: 1 | O86: 1 | P86: 1 | Q86: 1 | R86: 1 | S86: 1 | T86: 1 | U86: 1 | V86: 1 | W86: 1
D87: =D81 -> Major turbine maintenance | F87: years | G87: =INDEX(K87:XFD87,$E$3) -> 5 | K87: 5 | L87: 5 | M87: 5 | N87: 5 | O87: 5 | P87: 5 | Q87: 5 | R87: 5 | S87: 5 | T87: 5 | U87: 5 | V87: 5 | W87: 5
D88: =D82 -> Blade maintenance | F88: years | G88: =INDEX(K88:XFD88,$E$3) -> 7 | K88: 7 | L88: 7 | M88: 7 | N88: 7 | O88: 7 | P88: 7 | Q88: 7 | R88: 7 | S88: 7 | T88: 7 | U88: 7 | V88: 7 | W88: 7
D89: =D83 -> [Spare] | F89: years | G89: =INDEX(K89:XFD89,$E$3) -> 0 | K89: 0 | L89: 0 | M89: 0 | N89: 0 | O89: 0 | P89: 0 | Q89: 0 | R89: 0 | S89: 0 | T89: 0 | U89: 0 | V89: 0 | W89: 0
D91: Switch for Including Maintenance Reserve | G91: TRUE | K91: TRUE | L91: TRUE | M91: TRUE | N91: TRUE | O91: TRUE | P91: TRUE | Q91: TRUE | R91: TRUE | S91: TRUE | T91: TRUE | U91: TRUE | V91: TRUE | W91: TRUE
B93: =MAX($A$1:B90)+0.1 -> 0.5 | C93: Indexation of costs
C95: Base dates for Start of Inflation (for costs the year in which the real costs are measurred)
D96: Revenues | F96: date | G96: =INDEX(K96:XFD96,$E$3) -> 2021-01-01 | K96: =K24 -> 2021-01-01 | L96: =L24 -> 2021-01-01 | M96: 2021-01-01 | N96: 2020-01-01 | O96: 2021-01-01 | P96: 2021-01-01 | Q96: 2021-01-01 | R96: 2021-01-01 | S96: 2021-01-01 | T96: 2021-01-01 | U96: 2021-01-01 | V96: 2021-01-01 | W96: 2021-01-01
D97: Operating Expenses | F97: date | G97: =INDEX(K97:XFD97,$E$3) -> 2019-01-01 | K97: =K11 -> 2019-01-01 | L97: 2019-01-01 | M97: 2019-01-01 | N97: 2019-01-01 | O97: 2019-01-01 | P97: 2019-01-01 | Q97: 2019-01-01 | R97: 2019-01-01 | S97: 2019-01-01 | T97: 2019-01-01 | U97: 2019-01-01 | V97: 2019-01-01 | W97: 2019-01-01
D99: Infation Code Number | F99: Code | G99: =INDEX(K99:XFD99,$E$3) -> 1 | K99: 1 | L99: 1 | M99: 1 | N99: 1 | O99: 1 | P99: 1 | Q99: 1 | R99: 1 | S99: 1 | T99: 1 | U99: 1 | V99: 1 | W99: 1
D101: Methodology
D102: Year end uplift (1) / Mid year uplift (0) | F102: switch | G102: =INDEX(K102:XFD102,$E$3) -> 1 | K102: 1 | L102: 1 | M102: 1 | N102: 1 | O102: 1 | P102: 1 | Q102: 1 | R102: 1 | S102: 1 | T102: 1 | U102: 1 | V102: 1 | W102: 1
C104: Revenues
D105: Electricity price per MWh | F105: Euro/MWH | G105: =INDEX(K105:XFD105,$E$3) -> 37.24401832 | K105: 36.69895083 | L105: 37.24401832 | M105: 35.61436221 | N105: 35.33301627 | O105: 35.33301627 | P105: 35.33301627 | Q105: 35.33301627 | R105: 35.33301627 | S105: 35.33301627 | T105: 35.33301627 | U105: 35.33301627 | V105: 35.33301627 | W105: 35.33301627
D106: Indexation of electricity price | F106: Flag | G106: =INDEX(K106:XFD106,$E$3) -> TRUE | K106: TRUE | L106: TRUE | M106: TRUE | N106: TRUE | O106: TRUE | P106: TRUE | Q106: TRUE | R106: TRUE | S106: TRUE | T106: TRUE | U106: TRUE | V106: TRUE | W106: TRUE
D107: Target Project IRR for Price | F107: % | G107: =INDEX(K107:XFD107,$E$3) -> 0.08 | K107: 0.08 | L107: 0.08 | M107: 0.08 | N107: 0.08 | O107: 0.08 | P107: 0.08 | Q107: 0.08 | R107: 0.08 | S107: 0.08 | T107: 0.08 | U107: 0.08 | V107: 0.08 | W107: 0.08
B110: Working capital, Depreciation and Tax
B112: =MAX($A$1:B111)+0.1 -> 0.6 | C112: Days assumptions
D113: Debtor days - on revenue | F113: days | G113: =INDEX(K113:XFD113,$E$3) -> 60 | K113: 60 | L113: 60 | M113: 60 | N113: 60 | O113: 60 | P113: 60 | Q113: 60 | R113: 60 | S113: 60 | T113: 60 | U113: 60 | V113: 60 | W113: 60
D114: Creditor days - on operating costs | F114: days | G114: =INDEX(K114:XFD114,$E$3) -> 60 | K114: 60 | L114: 60 | M114: 60 | N114: 60 | O114: 60 | P114: 60 | Q114: 60 | R114: 60 | S114: 60 | T114: 60 | U114: 60 | V114: 60 | W114: 60
D115: Creditor days - on major maintenance costs | F115: days | G115: =INDEX(K115:XFD115,$E$3) -> 0 | K115: 0 | L115: 0 | M115: 0 | N115: 0 | O115: 0 | P115: 0 | Q115: 0 | R115: 0 | S115: 0 | T115: 0 | U115: 0 | V115: 0 | W115: 0
C117: Depreciation and Taxes
D118: Depreciation Life | F118: Years | G118: =INDEX(K118:XFD118,$E$3) -> 30 | K118: =K25 -> 30 | L118: =L25 -> 30 | M118: 30 | N118: 30 | O118: 50 | P118: 30 | Q118: 30 | R118: 30 | S118: 30 | T118: 30 | U118: 30 | V118: 30 | W118: 30
D119: Income Tax Rate | F119: % | G119: =INDEX(K119:XFD119,$E$3) -> 0.25 | K119: 0.25 | L119: 0.25 | M119: 0.25 | N119: 0.25 | O119: 0.25 | P119: 0.25 | Q119: 0.25 | R119: 0.25 | S119: 0.25 | T119: 0.25 | U119: 0.25 | V119: 0.25 | W119: 0.25
B122: Financing
B124: =MAX($A$1:B123)+0.1 -> 0.7 | C124: Debt Size
D125: Minimum DSCR | F125: x | G125: =INDEX(K125:XFD125,$E$3) -> 1.4 | K125: 1.2 | L125: 1.4 | M125: 1.4 | N125: 1.4 | O125: 1.4 | P125: 1.4 | Q125: 1.4 | R125: 1.4 | S125: 1.4 | T125: 1.4 | U125: 1.4 | V125: 1.4 | W125: 1.4
D126: Max Debt to Capital | F126: % | G126: =INDEX(K126:XFD126,$E$3) -> 0.85 | K126: 0.85 | L126: 0.85 | M126: 0.85 | N126: 0.85 | O126: 0.85 | P126: 0.85 | Q126: 0.85 | R126: 0.85 | S126: 0.85 | T126: 0.85 | U126: 0.85 | V126: 0.85 | W126: 0.85
D128: Debt split between loan tranches
D129: Senior debt | F129: % | G129: =INDEX(K129:XFD129,$E$3) -> 0.7 | K129: 0.7 | L129: 0.7 | M129: 0.7 | N129: 0.7 | O129: 0.7 | P129: 0.7 | Q129: 0.7 | R129: 0.7 | S129: 0.7 | T129: 0.7 | U129: 0.7 | V129: 0.7 | W129: 0.7
D130: Sub debt | F130: % | G130: =INDEX(K130:XFD130,$E$3) -> 0.3 | K130: =1-K129 -> 0.3 | L130: =1-L129 -> 0.3 | M130: =1-M129 -> 0.3 | N130: =1-N129 -> 0.3 | O130: =1-O129 -> 0.3 | P130: 0.3 | Q130: 0.3 | R130: 0.3 | S130: 0.3 | T130: 0.3 | U130: 0.3 | V130: 0.3 | W130: 0.3
D131: Total | F131: % | G131: =INDEX(K131:XFD131,$E$3) -> 1 | K131: =SUM(K129:K130) -> 1 | L131: =SUM(L129:L130) -> 1 | M131: =SUM(M129:M130) -> 1 | N131: =SUM(N129:N130) -> 1 | O131: =SUM(O129:O130) -> 1 | P131: 1 | Q131: 1 | R131: 1 | S131: 1 | T131: 1 | U131: 1 | V131: 1 | W131: 1
C133: Debt Tenure and Mini-perm
D134: Amortisation Period | F134: Year | G134: =INDEX(K134:XFD134,$E$3) -> 25 | K134: 25 | L134: 25 | M134: 25 | N134: 25 | O134: 25 | P134: 25 | Q134: 25 | R134: 25 | S134: 25 | T134: 25 | U134: 25 | V134: 25 | W134: 25
D135: End of Repayment | F135: Date | G135: =INDEX(K135:XFD135,$E$3) -> 2046-01-31 | K135: =EOMONTH(K24, K134*12) -> 2046-01-31 | L135: =EOMONTH(L24, L134*12) -> 2046-01-31 | M135: 2046-01-31 | N135: 2045-01-31 | O135: 2046-01-31 | P135: 2046-01-31 | Q135: 2046-01-31 | R135: 2046-01-31 | S135: 2046-01-31 | T135: 2046-01-31 | U135: 2046-01-31 | V135: 2046-01-31 | W135: 2046-01-31
C138: Interest rates and Fees
D139: Senior debt
D140: Base rate | F140: % p.a | G140: =INDEX(K140:XFD140,$E$3) -> 0.05 | K140: 0.05 | L140: 0.05 | M140: 0.05 | N140: 0.05 | O140: 0.05 | P140: 0.05 | Q140: 0.05 | R140: 0.05 | S140: 0.05 | T140: 0.05 | U140: 0.05 | V140: 0.05 | W140: 0.05
D141: Margin code | F141: Code | G141: =INDEX(K141:XFD141,$E$3) -> 1 | K141: 1 | L141: 1 | M141: 1 | N141: 1 | O141: 1 | P141: 1 | Q141: 1 | R141: 1 | S141: 1 | T141: 1 | U141: 1 | V141: 1 | W141: 1
D143: Up-Front Fee | F143: % | G143: =INDEX(K143:XFD143,$E$3) -> 0.015 | K143: 0.015 | L143: 0.015 | M143: 0.015 | N143: 0.015 | O143: 0.015 | P143: 0.015 | Q143: 0.015 | R143: 0.015 | S143: 0.015 | T143: 0.015 | U143: 0.015 | V143: 0.015 | W143: 0.015
D144: Commitment Fee | F144: % p.a. | G144: =INDEX(K144:XFD144,$E$3) -> 0.01 | K144: 0.01 | L144: 0.01 | M144: 0.01 | N144: 0.01 | O144: 0.01 | P144: 0.01 | Q144: 0.01 | R144: 0.01 | S144: 0.01 | T144: 0.01 | U144: 0.01 | V144: 0.01 | W144: 0.01
C147: Credit Protections
D148: Start of Cash Sweep | F148: Date | G148: =INDEX(K148:XFD148,$E$3) -> 2021-01-01 | K148: =K24 -> 2021-01-01 | L148: =L24 -> 2021-01-01 | M148: 2021-01-01 | N148: 2020-01-01 | O148: 2021-01-01 | P148: 2021-01-01 | Q148: 2021-01-01 | R148: 2021-01-01 | S148: 2021-01-01 | T148: 2021-01-01 | U148: 2021-01-01 | V148: 2021-01-01 | W148: 2021-01-01
D149: Cash Sweep Percent | F149: % | G149: =INDEX(K149:XFD149,$E$3) -> 0.5 | K149: 0.5 | L149: 0.5 | M149: 0.5 | N149: 0.5 | O149: 0.5 | P149: 0.5 | Q149: 0.5 | R149: 0.5 | S149: 0.5 | T149: 0.5 | U149: 0.5 | V149: 0.5 | W149: 0.5
D151: Lock-up Convenant | F151: x | G151: =INDEX(K151:XFD151,$E$3) -> 1.1 | K151: 1.1 | L151: 1.1 | M151: 1.1 | N151: 1.1 | O151: 1.1 | P151: 1.1 | Q151: 1.1 | R151: 1.1 | S151: 1.1 | T151: 1.1 | U151: 1.1 | V151: 1.1 | W151: 1.1
D153: DSRA Months | F153: Months | G153: =INDEX(K153:XFD153,$E$3) -> 6 | K153: 6 | L153: 6 | M153: 6 | N153: 6 | O153: 6 | P153: 6 | Q153: 6 | R153: 6 | S153: 6 | T153: 6 | U153: 6 | V153: 6 | W153: 6
D154: DSRA LC Flag | F154: Flag | G154: =INDEX(K154:XFD154,$E$3) -> FALSE | K154: FALSE | L154: FALSE | M154: FALSE | N154: FALSE | O154: FALSE | P154: FALSE | Q154: FALSE | R154: FALSE | S154: FALSE | T154: FALSE | U154: FALSE | V154: FALSE | W154: FALSE
D156: Sub debt
D157: Coupon | F157: % | G157: =INDEX(K157:XFD157,$E$3) -> 0.09 | K157: 0.09 | L157: 0.09 | M157: 0.09 | N157: 0.09 | O157: 0.09 | P157: 0.09 | Q157: 0.09 | R157: 0.09 | S157: 0.09 | T157: 0.09 | U157: 0.09 | V157: 0.09 | W157: 0.09
B159: =MAX($A$1:B158)+0.1 -> 0.8 | C159: Cash balance interest rates
D161: Cash deposits | F161: % | G161: =INDEX(K161:XFD161,$E$3) -> 0 | K161: 0 | L161: 0 | M161: 0 | N161: 0 | O161: 0 | P161: 0 | Q161: 0 | R161: 0 | S161: 0 | T161: 0 | U161: 0 | V161: 0 | W161: 0
D162: Overdraft | F162: % | G162: =INDEX(K162:XFD162,$E$3) -> 0 | K162: 0 | L162: 0 | M162: 0 | N162: 0 | O162: 0 | P162: 0 | Q162: 0 | R162: 0 | S162: 0 | T162: 0 | U162: 0 | V162: 0 | W162: 0
B164: Valuation Assumptions
D165: Buyer Discount Rate | F165: % | G165: =INDEX(K165:XFD165,$E$3) -> 0.0725 | K165: 0.0725 | L165: 0.0725 | M165: 0.0725 | N165: 0.0725 | O165: 0.0725 | P165: 0.0725 | Q165: 0.0725 | R165: 0.0725 | S165: 0.0725 | T165: 0.0725 | U165: 0.0725 | V165: 0.0725 | W165: 0.0725
D166: Sale Year after COD | F166: Year | G166: =INDEX(K166:XFD166,$E$3) -> 3 | K166: 3 | L166: 3 | M166: 3 | N166: 3 | O166: 3 | P166: 3 | Q166: 3 | R166: 3 | S166: 3 | T166: 3 | U166: 3 | V166: 3 | W166: 3
D167: Sale Date | F167: Date | G167: =INDEX(K167:XFD167,$E$3) -> 2024-01-01 | K167: =EDATE(K24,K166*Months_in_year) -> 2024-01-01 | L167: 2024-01-01 | M167: 2024-01-01 | N167: 2023-01-01 | O167: 2024-01-01 | P167: 2024-01-01 | Q167: 2024-01-01 | R167: 2024-01-01 | S167: 2024-01-01 | T167: 2024-01-01 | U167: 2024-01-01 | V167: 2024-01-01 | W167: 2024-01-01
D170: Timing constants
D171: Hours in a day | F171: hours | G171: 24
D172: Months in year | F172: months | G172: 12
D173: Days in year | F173: days | G173: 365
D174: One | F174: One | G174: 1
B180: =MAX($A$1:B8)+0.1 -> 0.1 | C180: General
D182: Model name
D183: Project
D184: Version
D185: Tolerance
D186: Currency | G186: €
B188: =MAX($A$1:B174)+0.1 -> 0.9 | C188: Scenario titles
D190: =+TRANSPOSE(K6:W6) -> Base
D191: Annual
D192: Monthly
D193: Short-Constr
D194: Long Life
D195: Low CF
D196: High O&M
D197: Spare 3
D198: Spare 4
D199: Spare 5
D200: Spare 6
D201: Spare 7
D202: Spare 8

Sheet InputS
B3: S-Curve
D5: Construction Month | K5: =_xlfn.SEQUENCE(,48) -> 1 | L5: 2 | M5: 3 | N5: 4 | O5: 5 | P5: 6 | Q5: 7 | R5: 8 | S5: 9 | T5: 10 | U5: 11 | V5: 12 | W5: 13 | X5: 14 | Y5: 15 | Z5: 16 | AA5: 17 | AB5: 18 | AC5: 19 | AD5: 20 | AE5: 21 | AF5: 22 | AG5: 23 | AH5: 24 | AI5: 25 | AJ5: 26 | AK5: 27 | AL5: 28 | AM5: 29 | AN5: 30 | AO5: 31 | AP5: 32 | AQ5: 33 | AR5: 34 | AS5: 35 | AT5: 36 | AU5: 37 | AV5: 38 | AW5: 39 | AX5: 40 | AY5: 41 | AZ5: 42 | BA5: 43 | BB5: 44 | BC5: 45 | BD5: 46 | BE5: 47 | BF5: 48
D7: S-curve Code | F7: =InputC!G53 -> 1
C9: 1 | D9: Flat Curve | G9: =InputC!G21 -> 2 | H9: =SUM(K9:XFD9) -> 1 | K9: =(K5<=$G$9)*1/$G$9 -> 0.5 | L9: =(L5<=$G$9)*1/$G$9 -> 0.5 | M9: 0 | N9: 0 | O9: 0 | P9: 0 | Q9: 0 | R9: 0 | S9: 0 | T9: 0 | U9: 0 | V9: 0 | W9: 0 | X9: 0 | Y9: 0 | Z9: 0 | AA9: 0 | AB9: 0 | AC9: 0 | AD9: 0 | AE9: 0 | AF9: 0 | AG9: 0 | AH9: 0 | AI9: 0 | AJ9: 0 | AK9: 0 | AL9: 0 | AM9: 0 | AN9: 0 | AO9: 0 | AP9: 0 | AQ9: 0 | AR9: 0 | AS9: 0 | AT9: 0 | AU9: 0 | AV9: 0 | AW9: 0 | AX9: 0 | AY9: 0 | AZ9: 0 | BA9: 0 | BB9: 0 | BC9: 0 | BD9: 0 | BE9: 0 | BF9: 0
C10: 2 | D10: Start Weighting | H10: =SUM(K10:XFD10) -> 1 | K10: 1 | L10: 0 | M10: 0 | N10: 0 | O10: 0 | P10: 0 | Q10: 0 | R10: 0 | S10: 0 | T10: 0 | U10: 0 | V10: 0 | W10: 0 | X10: 0 | Y10: 0 | Z10: 0 | AA10: 0 | AB10: 0 | AC10: 0 | AD10: 0 | AE10: 0 | AF10: 0 | AG10: 0 | AH10: 0 | AI10: 0 | AJ10: 0 | AK10: 0 | AL10: 0 | AM10: 0 | AN10: 0 | AO10: 0 | AP10: 0 | AQ10: 0 | AR10: 0 | AS10: 0 | AT10: 0 | AU10: 0 | AV10: 0 | AW10: 0 | AX10: 0 | AY10: 0 | AZ10: 0 | BA10: 0 | BB10: 0 | BC10: 0 | BD10: 0 | BE10: 0 | BF10: 0
C11: 3 | D11: End Weigthing | G11: =InputC!G21 -> 2 | K11: =((K5=$G$11))*1 -> 0 | L11: =((L5=$G$11))*1 -> 1 | M11: 0 | N11: 0 | O11: 0 | P11: 0 | Q11: 0 | R11: 0 | S11: 0 | T11: 0 | U11: 0 | V11: 0 | W11: 0 | X11: 0 | Y11: 0 | Z11: 0 | AA11: 0 | AB11: 0 | AC11: 0 | AD11: 0 | AE11: 0 | AF11: 0 | AG11: 0 | AH11: 0 | AI11: 0 | AJ11: 0 | AK11: 0 | AL11: 0 | AM11: 0 | AN11: 0 | AO11: 0 | AP11: 0 | AQ11: 0 | AR11: 0 | AS11: 0 | AT11: 0 | AU11: 0 | AV11: 0 | AW11: 0 | AX11: 0 | AY11: 0 | AZ11: 0 | BA11: 0 | BB11: 0 | BC11: 0 | BD11: 0 | BE11: 0 | BF11: 0
D13: =INDEX(D9:D12,$F$7) -> Flat Curve | K13: =INDEX(K9:K12,$F$7) -> 0.5 | L13: =INDEX(L9:L12,$F$7) -> 0.5 | M13: =INDEX(M9:M12,$F$7) -> 0 | N13: =INDEX(N9:N12,$F$7) -> 0 | O13: =INDEX(O9:O12,$F$7) -> 0 | P13: =INDEX(P9:P12,$F$7) -> 0 | Q13: =INDEX(Q9:Q12,$F$7) -> 0 | R13: =INDEX(R9:R12,$F$7) -> 0 | S13: =INDEX(S9:S12,$F$7) -> 0 | T13: =INDEX(T9:T12,$F$7) -> 0 | U13: =INDEX(U9:U12,$F$7) -> 0 | V13: =INDEX(V9:V12,$F$7) -> 0 | W13: =INDEX(W9:W12,$F$7) -> 0 | X13: =INDEX(X9:X12,$F$7) -> 0 | Y13: =INDEX(Y9:Y12,$F$7) -> 0 | Z13: =INDEX(Z9:Z12,$F$7) -> 0 | AA13: =INDEX(AA9:AA12,$F$7) -> 0 | AB13: =INDEX(AB9:AB12,$F$7) -> 0 | AC13: =INDEX(AC9:AC12,$F$7) -> 0 | AD13: =INDEX(AD9:AD12,$F$7) -> 0 | AE13: =INDEX(AE9:AE12,$F$7) -> 0 | AF13: =INDEX(AF9:AF12,$F$7) -> 0 | AG13: =INDEX(AG9:AG12,$F$7) -> 0 | AH13: =INDEX(AH9:AH12,$F$7) -> 0 | AI13: =INDEX(AI9:AI12,$F$7) -> 0 | AJ13: =INDEX(AJ9:AJ12,$F$7) -> 0 | AK13: =INDEX(AK9:AK12,$F$7) -> 0 | AL13: =INDEX(AL9:AL12,$F$7) -> 0 | AM13: =INDEX(AM9:AM12,$F$7) -> 0 | AN13: =INDEX(AN9:AN12,$F$7) -> 0 | AO13: =INDEX(AO9:AO12,$F$7) -> 0 | AP13: =INDEX(AP9:AP12,$F$7) -> 0 | AQ13: =INDEX(AQ9:AQ12,$F$7) -> 0 | AR13: =INDEX(AR9:AR12,$F$7) -> 0 | AS13: =INDEX(AS9:AS12,$F$7) -> 0 | AT13: =INDEX(AT9:AT12,$F$7) -> 0 | AU13: =INDEX(AU9:AU12,$F$7) -> 0 | AV13: =INDEX(AV9:AV12,$F$7) -> 0 | AW13: =INDEX(AW9:AW12,$F$7) -> 0 | AX13: =INDEX(AX9:AX12,$F$7) -> 0 | AY13: =INDEX(AY9:AY12,$F$7) -> 0 | AZ13: =INDEX(AZ9:AZ12,$F$7) -> 0 | BA13: =INDEX(BA9:BA12,$F$7) -> 0 | BB13: =INDEX(BB9:BB12,$F$7) -> 0 | BC13: =INDEX(BC9:BC12,$F$7) -> 0 | BD13: =INDEX(BD9:BD12,$F$7) -> 0 | BE13: =INDEX(BE9:BE12,$F$7) -> 0 | BF13: =INDEX(BF9:BF12,$F$7) -> 0
B16: Margin
D17: Margin code number | F17: =InputC!G141 -> 1
D19: Year of the Repayment | K19: =_xlfn.SEQUENCE(,20,0) -> 0 | L19: 1 | M19: 2 | N19: 3 | O19: 4 | P19: 5 | Q19: 6 | R19: 7 | S19: 8 | T19: 9 | U19: 10 | V19: 11 | W19: 12 | X19: 13 | Y19: 14 | Z19: 15 | AA19: 16 | AB19: 17 | AC19: 18 | AD19: 19
D21: Mini perm margin | K21: 0.018 | L21: 0.018 | M21: 0.018 | N21: 0.018 | O21: 0.018 | P21: 0.018 | Q21: 0.018 | R21: 0.018 | S21: 0.018 | T21: 0.018 | U21: 0.018 | V21: 0.018 | W21: 0.018 | X21: 0.018 | Y21: 0.025 | Z21: 0.025 | AA21: 0.025 | AB21: 0.025 | AC21: 0.025 | AD21: 0.025
D22: Flat margin | K22: 0.012 | L22: 0.012 | M22: 0.012 | N22: 0.012 | O22: 0.012 | P22: 0.012 | Q22: 0.012 | R22: 0.012 | S22: 0.012 | T22: 0.012 | U22: 0.012 | V22: 0.012 | W22: 0.012 | X22: 0.012 | Y22: 0.012 | Z22: 0.012 | AA22: 0.012 | AB22: 0.012 | AC22: 0.012 | AD22: 0.012
D24: =INDEX(D21:D22,$F$17) -> Mini perm margin | K24: =INDEX(K21:K22,$F$17) -> 0.018 | L24: =INDEX(L21:L22,$F$17) -> 0.018 | M24: =INDEX(M21:M22,$F$17) -> 0.018 | N24: =INDEX(N21:N22,$F$17) -> 0.018 | O24: =INDEX(O21:O22,$F$17) -> 0.018 | P24: =INDEX(P21:P22,$F$17) -> 0.018 | Q24: =INDEX(Q21:Q22,$F$17) -> 0.018 | R24: =INDEX(R21:R22,$F$17) -> 0.018 | S24: =INDEX(S21:S22,$F$17) -> 0.018 | T24: =INDEX(T21:T22,$F$17) -> 0.018 | U24: =INDEX(U21:U22,$F$17) -> 0.018 | V24: =INDEX(V21:V22,$F$17) -> 0.018 | W24: =INDEX(W21:W22,$F$17) -> 0.018 | X24: =INDEX(X21:X22,$F$17) -> 0.018 | Y24: =INDEX(Y21:Y22,$F$17) -> 0.025 | Z24: =INDEX(Z21:Z22,$F$17) -> 0.025 | AA24: =INDEX(AA21:AA22,$F$17) -> 0.025 | AB24: =INDEX(AB21:AB22,$F$17) -> 0.025 | AC24: =INDEX(AC21:AC22,$F$17) -> 0.025 | AD24: =INDEX(AD21:AD22,$F$17) -> 0.025
B26: Inflation Rate
D28: Code for Inflation | F28: =InputC!G99 -> 1
D30: Year | K30: =_xlfn.SEQUENCE(,20,2019) -> 2019 | L30: 2020 | M30: 2021 | N30: 2022 | O30: 2023 | P30: 2024 | Q30: 2025 | R30: 2026 | S30: 2027 | T30: 2028 | U30: 2029 | V30: 2030 | W30: 2031 | X30: 2032 | Y30: 2033 | Z30: 2034 | AA30: 2035 | AB30: 2036 | AC30: 2037 | AD30: 2038
D32: Inflation Base | K32: 0.02 | L32: 0.025 | M32: 0.022 | N32: 0.02 | O32: 0.02 | P32: 0.02 | Q32: 0.02 | R32: 0.02 | S32: 0.02 | T32: 0.02 | U32: 0.02 | V32: 0.02 | W32: 0.02 | X32: 0.02 | Y32: 0.02 | Z32: 0.02 | AA32: 0.02 | AB32: 0.02 | AC32: 0.02 | AD32: 0.02
D33: Inflation Low | K33: 0.02 | L33: 0.02 | M33: 0.02 | N33: 0.015 | O33: 0.015 | P33: 0.015 | Q33: 0.015 | R33: 0.015 | S33: 0.015 | T33: 0.015 | U33: 0.015 | V33: 0.015 | W33: 0.015 | X33: 0.015 | Y33: 0.015 | Z33: 0.015 | AA33: 0.015 | AB33: 0.015 | AC33: 0.015 | AD33: 0.015
D34: Inflation High | K34: 0.02 | L34: 0.022 | M34: 0.025 | N34: 0.03 | O34: 0.03 | P34: 0.03 | Q34: 0.03 | R34: 0.03 | S34: 0.03 | T34: 0.03 | U34: 0.03 | V34: 0.03 | W34: 0.03 | X34: 0.03 | Y34: 0.03 | Z34: 0.03 | AA34: 0.03 | AB34: 0.03 | AC34: 0.03 | AD34: 0.03
D36: =INDEX(D32:D34,$F$28) -> Inflation Base | K36: =INDEX(K32:K34,$F$28) -> 0.02 | L36: =INDEX(L32:L34,$F$28) -> 0.025 | M36: =INDEX(M32:M34,$F$28) -> 0.022 | N36: =INDEX(N32:N34,$F$28) -> 0.02 | O36: =INDEX(O32:O34,$F$28) -> 0.02 | P36: =INDEX(P32:P34,$F$28) -> 0.02 | Q36: =INDEX(Q32:Q34,$F$28) -> 0.02 | R36: =INDEX(R32:R34,$F$28) -> 0.02 | S36: =INDEX(S32:S34,$F$28) -> 0.02 | T36: =INDEX(T32:T34,$F$28) -> 0.02 | U36: =INDEX(U32:U34,$F$28) -> 0.02 | V36: =INDEX(V32:V34,$F$28) -> 0.02 | W36: =INDEX(W32:W34,$F$28) -> 0.02 | X36: =INDEX(X32:X34,$F$28) -> 0.02 | Y36: =INDEX(Y32:Y34,$F$28) -> 0.02 | Z36: =INDEX(Z32:Z34,$F$28) -> 0.02 | AA36: =INDEX(AA32:AA34,$F$28) -> 0.02 | AB36: =INDEX(AB32:AB34,$F$28) -> 0.02 | AC36: =INDEX(AC32:AC34,$F$28) -> 0.02 | AD36: =INDEX(AD32:AD34,$F$28) -> 0.02

Sheet Calculations
F1: Project IRR | G1: =H139 -> 0.08055939972 | K1: =Audit!H11 -> Run Circular Reference
F3: Input Unit | G3: Constant | H3: Constant | I3: Sum | J3: Output Unit
D4: Period Counter | J4: Counter | L4: =_xlfn.SEQUENCE(,500) -> 1 | M4: 2 | N4: 3 | O4: 4 | P4: 5 | Q4: 6 | R4: 7 | S4: 8 | T4: 9 | U4: 10 | V4: 11 | W4: 12 | X4: 13 | Y4: 14 | Z4: 15 | AA4: 16 | AB4: 17 | AC4: 18 | AD4: 19 | AE4: 20 | AF4: 21 | AG4: 22 | AH4: 23 | AI4: 24 | AJ4: 25 | AK4: 26 | AL4: 27 | AM4: 28 | AN4: 29 | AO4: 30 | AP4: 31 | AQ4: 32 | AR4: 33 | AS4: 34 | AT4: 35 | AU4: 36 | AV4: 37 | AW4: 38 | AX4: 39 | AY4: 40 | AZ4: 41 | BA4: 42 | BB4: 43 | BC4: 44 | BD4: 45 | BE4: 46 | BF4: 47 | BG4: 48 | BH4: 49 | BI4: 50 | BJ4: 51 | BK4: 52 | BL4: 53 | BM4: 54 | BN4: 55 | BO4: 56 | BP4: 57 | BQ4: 58 | BR4: 59 | BS4: 60 | BT4: 61 | BU4: 62 | BV4: 63 | BW4: 64 | BX4: 65 | BY4: 66 | BZ4: 67 | CA4: 68 | CB4: 69 | CC4: 70 | CD4: 71 | CE4: 72 | CF4: 73 | CG4: 74 | CH4: 75 | CI4: 76 | CJ4: 77 | CK4: 78 | CL4: 79 | CM4: 80 | CN4: 81 | CO4: 82 | CP4: 83 | CQ4: 84 | CR4: 85 | CS4: 86 | CT4: 87 | CU4: 88 | CV4: 89 | CW4: 90 | CX4: 91 | CY4: 92 | CZ4: 93 | DA4: 94 | DB4: 95 | DC4: 96 | DD4: 97 | DE4: 98 | DF4: 99 | DG4: 100 | DH4: 101 | DI4: 102 | DJ4: 103 | DK4: 104 | DL4: 105 | DM4: 106 | DN4: 107 | DO4: 108 | DP4: 109 | DQ4: 110 | DR4: 111 | DS4: 112 | DT4: 113 | DU4: 114 | DV4: 115 | DW4: 116 | DX4: 117 | DY4: 118 | DZ4: 119 | EA4: 120 | EB4: 121 | EC4: 122 | ED4: 123 | EE4: 124 | EF4: 125 | EG4: 126 | EH4: 127 | EI4: 128 | EJ4: 129 | EK4: 130 | EL4: 131 | EM4: 132 | EN4: 133 | EO4: 134 | EP4: 135 | EQ4: 136 | ER4: 137 | ES4: 138 | ET4: 139 | EU4: 140 | EV4: 141 | EW4: 142 | EX4: 143 | EY4: 144 | EZ4: 145 | FA4: 146 | FB4: 147 | FC4: 148 | FD4: 149 | FE4: 150 | FF4: 151 | FG4: 152 | FH4: 153 | FI4: 154 | FJ4: 155 | FK4: 156 | FL4: 157 | FM4: 158 | FN4: 159 | FO4: 160 | FP4: 161 | FQ4: 162 | FR4: 163 | FS4: 164 | FT4: 165 | FU4: 166 | FV4: 167 | FW4: 168 | FX4: 169 | FY4: 170 | FZ4: 171 | GA4: 172 | GB4: 173 | GC4: 174 | GD4: 175 | GE4: 176 | GF4: 177 | GG4: 178 | GH4: 179 | GI4: 180 | GJ4: 181 | GK4: 182 | GL4: 183 | GM4: 184 | GN4: 185 | GO4: 186 | GP4: 187 | GQ4: 188 | GR4: 189 | GS4: 190 | GT4: 191 | GU4: 192 | GV4: 193 | GW4: 194 | GX4: 195 | GY4: 196 | GZ4: 197 | HA4: 198 | HB4: 199 | HC4: 200 | HD4: 201 | HE4: 202 | HF4: 203 | HG4: 204 | HH4: 205 | HI4: 206 | HJ4: 207 | HK4: 208 | HL4: 209 | HM4: 210 | HN4: 211 | HO4: 212 | HP4: 213 | HQ4: 214 | HR4: 215 | HS4: 216 | HT4: 217 | HU4: 218 | HV4: 219 | HW4: 220 | HX4: 221 | HY4: 222 | HZ4: 223 | IA4: 224 | IB4: 225 | IC4: 226 | ID4: 227 | IE4: 228 | IF4: 229 | IG4: 230 | IH4: 231 | II4: 232 | IJ4: 233 | IK4: 234 | IL4: 235 | IM4: 236 | IN4: 237 | IO4: 238 | IP4: 239 | IQ4: 240 | IR4: 241 | IS4: 242 | IT4: 243 | IU4: 244 | IV4: 245 | IW4: 246 | IX4: 247 | IY4: 248 | IZ4: 249 | JA4: 250 | JB4: 251 | JC4: 252 | JD4: 253 | JE4: 254 | JF4: 255 | JG4: 256 | JH4: 257 | JI4: 258 | JJ4: 259 | JK4: 260 | JL4: 261 | JM4: 262 | JN4: 263 | JO4: 264 | JP4: 265 | JQ4: 266 | JR4: 267 | JS4: 268 | JT4: 269 | JU4: 270 | JV4: 271 | JW4: 272 | JX4: 273 | JY4: 274 | JZ4: 275 | KA4: 276 | KB4: 277 | KC4: 278 | KD4: 279 | KE4: 280 | KF4: 281 | KG4: 282 | KH4: 283 | KI4: 284 | KJ4: 285 | KK4: 286 | KL4: 287 | KM4: 288 | KN4: 289 | KO4: 290 | KP4: 291 | KQ4: 292 | KR4: 293 | KS4: 294 | KT4: 295 | KU4: 296 | KV4: 297 | KW4: 298 | KX4: 299 | KY4: 300 | KZ4: 301 | LA4: 302 | LB4: 303 | LC4: 304 | LD4: 305 | LE4: 306 | LF4: 307 | LG4: 308 | LH4: 309 | LI4: 310 | LJ4: 311 | LK4: 312 | LL4: 313 | LM4: 314 | LN4: 315 | LO4: 316 | LP4: 317 | LQ4: 318 | LR4: 319 | LS4: 320 | LT4: 321 | LU4: 322 | LV4: 323 | LW4: 324 | LX4: 325 | LY4: 326 | LZ4: 327 | MA4: 328 | MB4: 329 | MC4: 330 | MD4: 331 | ME4: 332 | MF4: 333 | MG4: 334 | MH4: 335 | MI4: 336 | MJ4: 337 | MK4: 338 | ML4: 339 | MM4: 340 | MN4: 341 | MO4: 342 | MP4: 343 | MQ4: 344 | MR4: 345 | MS4: 346 | MT4: 347 | MU4: 348 | MV4: 349 | MW4: 350 | MX4: 351 | MY4: 352 | MZ4: 353 | NA4: 354 | NB4: 355 | NC4: 356 | ND4: 357 | NE4: 358 | NF4: 359 | NG4: 360 | NH4: 361 | NI4: 362 | NJ4: 363 | NK4: 364 | NL4: 365 | NM4: 366 | NN4: 367 | NO4: 368 | NP4: 369 | NQ4: 370 | NR4: 371 | NS4: 372 | NT4: 373 | NU4: 374 | NV4: 375 | NW4: 376 | NX4: 377 | NY4: 378 | NZ4: 379 | OA4: 380 | OB4: 381 | OC4: 382 | OD4: 383 | OE4: 384 | OF4: 385 | OG4: 386 | OH4: 387 | OI4: 388 | OJ4: 389 | OK4: 390 | OL4: 391 | OM4: 392 | ON4: 393 | OO4: 394 | OP4: 395 | OQ4: 396 | OR4: 397 | OS4: 398 | OT4: 399 | OU4: 400 | OV4: 401 | OW4: 402 | OX4: 403 | OY4: 404 | OZ4: 405 | PA4: 406 | PB4: 407 | PC4: 408 | PD4: 409 | PE4: 410 | PF4: 411 | PG4: 412 | PH4: 413 | PI4: 414 | PJ4: 415 | PK4: 416 | PL4: 417 | PM4: 418 | PN4: 419 | PO4: 420 | PP4: 421 | PQ4: 422 | PR4: 423 | PS4: 424 | PT4: 425 | PU4: 426 | PV4: 427 | PW4: 428 | PX4: 429 | PY4: 430 | PZ4: 431 | QA4: 432 | QB4: 433 | QC4: 434 | QD4: 435 | QE4: 436 | QF4: 437 | QG4: 438 | QH4: 439 | QI4: 440 | QJ4: 441 | QK4: 442 | QL4: 443 | QM4: 444 | QN4: 445 | QO4: 446 | QP4: 447 | QQ4: 448 | QR4: 449 | QS4: 450 | QT4: 451 | QU4: 452 | QV4: 453 | QW4: 454 | QX4: 455 | QY4: 456 | QZ4: 457 | RA4: 458 | RB4: 459 | RC4: 460 | RD4: 461 | RE4: 462 | RF4: 463 | RG4: 464 | RH4: 465 | RI4: 466 | RJ4: 467 | RK4: 468 | RL4: 469 | RM4: 470 | RN4: 471 | RO4: 472 | RP4: 473 | RQ4: 474 | RR4: 475 | RS4: 476 | RT4: 477 | RU4: 478 | RV4: 479 | RW4: 480 | RX4: 481 | RY4: 482 | RZ4: 483 | SA4: 484 | SB4: 485 | SC4: 486 | SD4: 487 | SE4: 488 | SF4: 489 | SG4: 490 | SH4: 491 | SI4: 492 | SJ4: 493 | SK4: 494 | SL4: 495 | SM4: 496 | SN4: 497 | SO4: 498 | SP4: 499 | SQ4: 500
D5: Pre-COD Period | F5: Period | G5: =InputC!G21 -> 2 | I5: =SUM(L5:XFD5) -> 2 | J5: Flag | L5: =(L4<=$G$5)*1 -> 1 | M5: =(M4<=$G$5)*1 -> 1 | N5: 0 | O5: 0 | P5: 0 | Q5: 0 | R5: 0 | S5: 0 | T5: 0 | U5: 0 | V5: 0 | W5: 0 | X5: 0 | Y5: 0 | Z5: 0 | AA5: 0 | AB5: 0 | AC5: 0 | AD5: 0 | AE5: 0 | AF5: 0 | AG5: 0 | AH5: 0 | AI5: 0 | AJ5: 0 | AK5: 0 | AL5: 0 | AM5: 0 | AN5: 0 | AO5: 0 | AP5: 0 | AQ5: 0 | AR5: 0 | AS5: 0 | AT5: 0 | AU5: 0 | AV5: 0 | AW5: 0 | AX5: 0 | AY5: 0 | AZ5: 0 | BA5: 0 | BB5: 0 | BC5: 0 | BD5: 0 | BE5: 0 | BF5: 0 | BG5: 0 | BH5: 0 | BI5: 0 | BJ5: 0 | BK5: 0 | BL5: 0 | BM5: 0 | BN5: 0 | BO5: 0 | BP5: 0 | BQ5: 0 | BR5: 0 | BS5: 0 | BT5: 0 | BU5: 0 | BV5: 0 | BW5: 0 | BX5: 0 | BY5: =(BY4<=$G$5)*1 -> 0 | BZ5: 0 | CA5: 0 | CB5: 0 | CC5: 0 | CD5: 0 | CE5: 0 | CF5: 0 | CG5: 0 | CH5: 0 | CI5: 0 | CJ5: 0 | CK5: 0 | CL5: 0 | CM5: 0 | CN5: 0 | CO5: 0 | CP5: 0 | CQ5: 0 | CR5: 0 | CS5: 0 | CT5: 0 | CU5: 0 | CV5: 0 | CW5: 0 | CX5: 0 | CY5: 0 | CZ5: 0 | DA5: 0 | DB5: 0 | DC5: 0 | DD5: 0 | DE5: 0 | DF5: 0 | DG5: 0 | DH5: 0 | DI5: 0 | DJ5: 0 | DK5: 0 | DL5: 0 | DM5: 0 | DN5: 0 | DO5: 0 | DP5: 0 | DQ5: 0 | DR5: 0 | DS5: 0 | DT5: 0 | DU5: 0 | DV5: 0 | DW5: 0 | DX5: 0 | DY5: 0 | DZ5: 0 | EA5: 0 | EB5: 0 | EC5: 0 | ED5: 0 | EE5: 0 | EF5: 0 | EG5: 0 | EH5: 0 | EI5: 0 | EJ5: 0 | EK5: =(EK4<=$G$5)*1 -> 0 | EL5: 0 | EM5: 0 | EN5: 0 | EO5: 0 | EP5: 0 | EQ5: 0 | ER5: 0 | ES5: 0 | ET5: 0 | EU5: 0 | EV5: 0 | EW5: 0 | EX5: 0 | EY5: 0 | EZ5: 0 | FA5: 0 | FB5: 0 | FC5: 0 | FD5: 0 | FE5: 0 | FF5: 0 | FG5: 0 | FH5: 0 | FI5: 0 | FJ5: 0 | FK5: 0 | FL5: 0 | FM5: 0 | FN5: 0 | FO5: 0 | FP5: 0 | FQ5: 0 | FR5: 0 | FS5: 0 | FT5: 0 | FU5: 0 | FV5: 0 | FW5: 0 | FX5: 0 | FY5: 0 | FZ5: 0 | GA5: 0 | GB5: 0 | GC5: 0 | GD5: 0 | GE5: 0 | GF5: 0 | GG5: 0 | GH5: 0 | GI5: 0 | GJ5: 0 | GK5: 0 | GL5: 0 | GM5: 0 | GN5: 0 | GO5: 0 | GP5: 0 | GQ5: 0 | GR5: 0 | GS5: 0 | GT5: 0 | GU5: 0 | GV5: 0 | GW5: =(GW4<=$G$5)*1 -> 0 | GX5: 0 | GY5: 0 | GZ5: 0 | HA5: 0 | HB5: 0 | HC5: 0 | HD5: 0 | HE5: 0 | HF5: 0 | HG5: 0 | HH5: 0 | HI5: 0 | HJ5: 0 | HK5: 0 | HL5: 0 | HM5: 0 | HN5: 0 | HO5: 0 | HP5: 0 | HQ5: 0 | HR5: 0 | HS5: 0 | HT5: 0 | HU5: 0 | HV5: 0 | HW5: 0 | HX5: 0 | HY5: 0 | HZ5: 0 | IA5: 0 | IB5: 0 | IC5: 0 | ID5: 0 | IE5: 0 | IF5: 0 | IG5: 0 | IH5: 0 | II5: 0 | IJ5: 0 | IK5: 0 | IL5: 0 | IM5: 0 | IN5: 0 | IO5: 0 | IP5: 0 | IQ5: 0 | IR5: 0 | IS5: 0 | IT5: 0 | IU5: 0 | IV5: 0 | IW5: 0 | IX5: 0 | IY5: 0 | IZ5: 0 | JA5: 0 | JB5: 0 | JC5: 0 | JD5: 0 | JE5: 0 | JF5: 0 | JG5: 0 | JH5: 0 | JI5: =(JI4<=$G$5)*1 -> 0 | JJ5: 0 | JK5: 0 | JL5: 0 | JM5: 0 | JN5: 0 | JO5: 0 | JP5: 0 | JQ5: 0 | JR5: 0 | JS5: 0 | JT5: 0 | JU5: 0 | JV5: 0 | JW5: 0 | JX5: 0 | JY5: 0 | JZ5: 0 | KA5: 0 | KB5: 0 | KC5: 0 | KD5: 0 | KE5: 0 | KF5: 0 | KG5: 0 | KH5: 0 | KI5: 0 | KJ5: 0 | KK5: 0 | KL5: 0 | KM5: 0 | KN5: 0 | KO5: 0 | KP5: 0 | KQ5: 0 | KR5: 0 | KS5: 0 | KT5: 0 | KU5: 0 | KV5: 0 | KW5: 0 | KX5: 0 | KY5: 0 | KZ5: 0 | LA5: 0 | LB5: 0 | LC5: 0 | LD5: 0 | LE5: 0 | LF5: 0 | LG5: 0 | LH5: 0 | LI5: 0 | LJ5: 0 | LK5: 0 | LL5: 0 | LM5: 0 | LN5: 0 | LO5: 0 | LP5: 0 | LQ5: 0 | LR5: 0 | LS5: 0 | LT5: 0 | LU5: =(LU4<=$G$5)*1 -> 0 | LV5: 0 | LW5: 0 | LX5: 0 | LY5: 0 | LZ5: 0 | MA5: 0 | MB5: 0 | MC5: 0 | MD5: 0 | ME5: 0 | MF5: 0 | MG5: 0 | MH5: 0 | MI5: 0 | MJ5: 0 | MK5: 0 | ML5: 0 | MM5: 0 | MN5: 0 | MO5: 0 | MP5: 0 | MQ5: 0 | MR5: 0 | MS5: 0 | MT5: 0 | MU5: 0 | MV5: 0 | MW5: 0 | MX5: 0 | MY5: 0 | MZ5: 0 | NA5: 0 | NB5: 0 | NC5: 0 | ND5: 0 | NE5: 0 | NF5: 0 | NG5: 0 | NH5: 0 | NI5: 0 | NJ5: 0 | NK5: 0 | NL5: 0 | NM5: 0 | NN5: 0 | NO5: 0 | NP5: 0 | NQ5: 0 | NR5: 0 | NS5: 0 | NT5: 0 | NU5: 0 | NV5: 0 | NW5: 0 | NX5: 0 | NY5: 0 | NZ5: 0 | OA5: 0 | OB5: 0 | OC5: 0 | OD5: 0 | OE5: 0 | OF5: 0 | OG5: =(OG4<=$G$5)*1 -> 0 | OH5: 0 | OI5: 0 | OJ5: 0 | OK5: 0 | OL5: 0 | OM5: 0 | ON5: 0 | OO5: 0 | OP5: 0 | OQ5: 0 | OR5: 0 | OS5: 0 | OT5: 0 | OU5: 0 | OV5: 0 | OW5: 0 | OX5: 0 | OY5: 0 | OZ5: 0 | PA5: 0 | PB5: 0 | PC5: 0 | PD5: 0 | PE5: 0 | PF5: 0 | PG5: 0 | PH5: 0 | PI5: 0 | PJ5: 0 | PK5: 0 | PL5: 0 | PM5: 0 | PN5: 0 | PO5: 0 | PP5: 0 | PQ5: 0 | PR5: 0 | PS5: 0 | PT5: 0 | PU5: 0 | PV5: 0 | PW5: 0 | PX5: 0 | PY5: 0 | PZ5: 0 | QA5: 0 | QB5: 0 | QC5: 0 | QD5: 0 | QE5: 0 | QF5: 0 | QG5: 0 | QH5: 0 | QI5: 0 | QJ5: 0 | QK5: 0 | QL5: 0 | QM5: 0 | QN5: 0 | QO5: 0 | QP5: 0 | QQ5: 0 | QR5: 0 | QS5: =(QS4<=$G$5)*1 -> 0 | QT5: 0 | QU5: 0 | QV5: 0 | QW5: 0 | QX5: 0 | QY5: 0 | QZ5: 0 | RA5: 0 | RB5: 0 | RC5: 0 | RD5: 0 | RE5: 0 | RF5: 0 | RG5: 0 | RH5: 0 | RI5: 0 | RJ5: 0 | RK5: 0 | RL5: 0 | RM5: 0 | RN5: 0 | RO5: 0 | RP5: 0 | RQ5: 0 | RR5: 0 | RS5: 0 | RT5: 0 | RU5: 0 | RV5: 0 | RW5: 0 | RX5: 0 | RY5: 0 | RZ5: 0 | SA5: 0 | SB5: 0 | SC5: 0 | SD5: 0 | SE5: 0 | SF5: 0 | SG5: 0 | SH5: 0 | SI5: 0 | SJ5: 0 | SK5: 0 | SL5: 0 | SM5: 0 | SN5: 0 | SO5: 0 | SP5: 0 | SQ5: 0
D6: Months in Period | F6: Months constr/oper | G6: =InputC!G12 -> 12 | H6: =InputC!G13 -> 12 | J6: Months | L6: =IF(L5,$G$6,$H$6) -> 12 | M6: =IF(M5,$G$6,$H$6) -> 12 | N6: 12 | O6: 12 | P6: 12 | Q6: 12 | R6: 12 | S6: 12 | T6: 12 | U6: 12 | V6: 12 | W6: 12 | X6: 12 | Y6: 12 | Z6: 12 | AA6: 12 | AB6: 12 | AC6: 12 | AD6: 12 | AE6: 12 | AF6: 12 | AG6: 12 | AH6: 12 | AI6: 12 | AJ6: 12 | AK6: 12 | AL6: 12 | AM6: 12 | AN6: 12 | AO6: 12 | AP6: 12 | AQ6: 12 | AR6: 12 | AS6: 12 | AT6: 12 | AU6: 12 | AV6: 12 | AW6: 12 | AX6: 12 | AY6: 12 | AZ6: 12 | BA6: 12 | BB6: 12 | BC6: 12 | BD6: 12 | BE6: 12 | BF6: 12 | BG6: 12 | BH6: 12 | BI6: 12 | BJ6: 12 | BK6: 12 | BL6: 12 | BM6: 12 | BN6: 12 | BO6: 12 | BP6: 12 | BQ6: 12 | BR6: 12 | BS6: 12 | BT6: 12 | BU6: 12 | BV6: 12 | BW6: 12 | BX6: 12 | BY6: =IF(BY5,$G$6,$H$6) -> 12 | BZ6: 12 | CA6: 12 | CB6: 12 | CC6: 12 | CD6: 12 | CE6: 12 | CF6: 12 | CG6: 12 | CH6: 12 | CI6: 12 | CJ6: 12 | CK6: 12 | CL6: 12 | CM6: 12 | CN6: 12 | CO6: 12 | CP6: 12 | CQ6: 12 | CR6: 12 | CS6: 12 | CT6: 12 | CU6: 12 | CV6: 12 | CW6: 12 | CX6: 12 | CY6: 12 | CZ6: 12 | DA6: 12 | DB6: 12 | DC6: 12 | DD6: 12 | DE6: 12 | DF6: 12 | DG6: 12 | DH6: 12 | DI6: 12 | DJ6: 12 | DK6: 12 | DL6: 12 | DM6: 12 | DN6: 12 | DO6: 12 | DP6: 12 | DQ6: 12 | DR6: 12 | DS6: 12 | DT6: 12 | DU6: 12 | DV6: 12 | DW6: 12 | DX6: 12 | DY6: 12 | DZ6: 12 | EA6: 12 | EB6: 12 | EC6: 12 | ED6: 12 | EE6: 12 | EF6: 12 | EG6: 12 | EH6: 12 | EI6: 12 | EJ6: 12 | EK6: =IF(EK5,$G$6,$H$6) -> 12 | EL6: 12 | EM6: 12 | EN6: 12 | EO6: 12 | EP6: 12 | EQ6: 12 | ER6: 12 | ES6: 12 | ET6: 12 | EU6: 12 | EV6: 12 | EW6: 12 | EX6: 12 | EY6: 12 | EZ6: 12 | FA6: 12 | FB6: 12 | FC6: 12 | FD6: 12 | FE6: 12 | FF6: 12 | FG6: 12 | FH6: 12 | FI6: 12 | FJ6: 12 | FK6: 12 | FL6: 12 | FM6: 12 | FN6: 12 | FO6: 12 | FP6: 12 | FQ6: 12 | FR6: 12 | FS6: 12 | FT6: 12 | FU6: 12 | FV6: 12 | FW6: 12 | FX6: 12 | FY6: 12 | FZ6: 12 | GA6: 12 | GB6: 12 | GC6: 12 | GD6: 12 | GE6: 12 | GF6: 12 | GG6: 12 | GH6: 12 | GI6: 12 | GJ6: 12 | GK6: 12 | GL6: 12 | GM6: 12 | GN6: 12 | GO6: 12 | GP6: 12 | GQ6: 12 | GR6: 12 | GS6: 12 | GT6: 12 | GU6: 12 | GV6: 12 | GW6: =IF(GW5,$G$6,$H$6) -> 12 | GX6: 12 | GY6: 12 | GZ6: 12 | HA6: 12 | HB6: 12 | HC6: 12 | HD6: 12 | HE6: 12 | HF6: 12 | HG6: 12 | HH6: 12 | HI6: 12 | HJ6: 12 | HK6: 12 | HL6: 12 | HM6: 12 | HN6: 12 | HO6: 12 | HP6: 12 | HQ6: 12 | HR6: 12 | HS6: 12 | HT6: 12 | HU6: 12 | HV6: 12 | HW6: 12 | HX6: 12 | HY6: 12 | HZ6: 12 | IA6: 12 | IB6: 12 | IC6: 12 | ID6: 12 | IE6: 12 | IF6: 12 | IG6: 12 | IH6: 12 | II6: 12 | IJ6: 12 | IK6: 12 | IL6: 12 | IM6: 12 | IN6: 12 | IO6: 12 | IP6: 12 | IQ6: 12 | IR6: 12 | IS6: 12 | IT6: 12 | IU6: 12 | IV6: 12 | IW6: 12 | IX6: 12 | IY6: 12 | IZ6: 12 | JA6: 12 | JB6: 12 | JC6: 12 | JD6: 12 | JE6: 12 | JF6: 12 | JG6: 12 | JH6: 12 | JI6: =IF(JI5,$G$6,$H$6) -> 12 | JJ6: 12 | JK6: 12 | JL6: 12 | JM6: 12 | JN6: 12 | JO6: 12 | JP6: 12 | JQ6: 12 | JR6: 12 | JS6: 12 | JT6: 12 | JU6: 12 | JV6: 12 | JW6: 12 | JX6: 12 | JY6: 12 | JZ6: 12 | KA6: 12 | KB6: 12 | KC6: 12 | KD6: 12 | KE6: 12 | KF6: 12 | KG6: 12 | KH6: 12 | KI6: 12 | KJ6: 12 | KK6: 12 | KL6: 12 | KM6: 12 | KN6: 12 | KO6: 12 | KP6: 12 | KQ6: 12 | KR6: 12 | KS6: 12 | KT6: 12 | KU6: 12 | KV6: 12 | KW6: 12 | KX6: 12 | KY6: 12 | KZ6: 12 | LA6: 12 | LB6: 12 | LC6: 12 | LD6: 12 | LE6: 12 | LF6: 12 | LG6: 12 | LH6: 12 | LI6: 12 | LJ6: 12 | LK6: 12 | LL6: 12 | LM6: 12 | LN6: 12 | LO6: 12 | LP6: 12 | LQ6: 12 | LR6: 12 | LS6: 12 | LT6: 12 | LU6: =IF(LU5,$G$6,$H$6) -> 12 | LV6: 12 | LW6: 12 | LX6: 12 | LY6: 12 | LZ6: 12 | MA6: 12 | MB6: 12 | MC6: 12 | MD6: 12 | ME6: 12 | MF6: 12 | MG6: 12 | MH6: 12 | MI6: 12 | MJ6: 12 | MK6: 12 | ML6: 12 | MM6: 12 | MN6: 12 | MO6: 12 | MP6: 12 | MQ6: 12 | MR6: 12 | MS6: 12 | MT6: 12 | MU6: 12 | MV6: 12 | MW6: 12 | MX6: 12 | MY6: 12 | MZ6: 12 | NA6: 12 | NB6: 12 | NC6: 12 | ND6: 12 | NE6: 12 | NF6: 12 | NG6: 12 | NH6: 12 | NI6: 12 | NJ6: 12 | NK6: 12 | NL6: 12 | NM6: 12 | NN6: 12 | NO6: 12 | NP6: 12 | NQ6: 12 | NR6: 12 | NS6: 12 | NT6: 12 | NU6: 12 | NV6: 12 | NW6: 12 | NX6: 12 | NY6: 12 | NZ6: 12 | OA6: 12 | OB6: 12 | OC6: 12 | OD6: 12 | OE6: 12 | OF6: 12 | OG6: =IF(OG5,$G$6,$H$6) -> 12 | OH6: 12 | OI6: 12 | OJ6: 12 | OK6: 12 | OL6: 12 | OM6: 12 | ON6: 12 | OO6: 12 | OP6: 12 | OQ6: 12 | OR6: 12 | OS6: 12 | OT6: 12 | OU6: 12 | OV6: 12 | OW6: 12 | OX6: 12 | OY6: 12 | OZ6: 12 | PA6: 12 | PB6: 12 | PC6: 12 | PD6: 12 | PE6: 12 | PF6: 12 | PG6: 12 | PH6: 12 | PI6: 12 | PJ6: 12 | PK6: 12 | PL6: 12 | PM6: 12 | PN6: 12 | PO6: 12 | PP6: 12 | PQ6: 12 | PR6: 12 | PS6: 12 | PT6: 12 | PU6: 12 | PV6: 12 | PW6: 12 | PX6: 12 | PY6: 12 | PZ6: 12 | QA6: 12 | QB6: 12 | QC6: 12 | QD6: 12 | QE6: 12 | QF6: 12 | QG6: 12 | QH6: 12 | QI6: 12 | QJ6: 12 | QK6: 12 | QL6: 12 | QM6: 12 | QN6: 12 | QO6: 12 | QP6: 12 | QQ6: 12 | QR6: 12 | QS6: =IF(QS5,$G$6,$H$6) -> 12 | QT6: 12 | QU6: 12 | QV6: 12 | QW6: 12 | QX6: 12 | QY6: 12 | QZ6: 12 | RA6: 12 | RB6: 12 | RC6: 12 | RD6: 12 | RE6: 12 | RF6: 12 | RG6: 12 | RH6: 12 | RI6: 12 | RJ6: 12 | RK6: 12 | RL6: 12 | RM6: 12 | RN6: 12 | RO6: 12 | RP6: 12 | RQ6: 12 | RR6: 12 | RS6: 12 | RT6: 12 | RU6: 12 | RV6: 12 | RW6: 12 | RX6: 12 | RY6: 12 | RZ6: 12 | SA6: 12 | SB6: 12 | SC6: 12 | SD6: 12 | SE6: 12 | SF6: 12 | SG6: 12 | SH6: 12 | SI6: 12 | SJ6: 12 | SK6: 12 | SL6: 12 | SM6: 12 | SN6: 12 | SO6: 12 | SP6: 12 | SQ6: 12
D7: Start of Period | J7: Date | L7: =K8+1 -> 2019-01-01 | M7: =L8+1 -> 2020-01-01 | N7: 2021-01-01 | O7: 2022-01-01 | P7: 2023-01-01 | Q7: 2024-01-01 | R7: 2025-01-01 | S7: 2026-01-01 | T7: 2027-01-01 | U7: 2028-01-01 | V7: 2029-01-01 | W7: 2030-01-01 | X7: 2031-01-01 | Y7: 2032-01-01 | Z7: 2033-01-01 | AA7: 2034-01-01 | AB7: 2035-01-01 | AC7: 2036-01-01 | AD7: 2037-01-01 | AE7: 2038-01-01 | AF7: 2039-01-01 | AG7: 2040-01-01 | AH7: 2041-01-01 | AI7: 2042-01-01 | AJ7: 2043-01-01 | AK7: 2044-01-01 | AL7: 2045-01-01 | AM7: 2046-01-01 | AN7: 2047-01-01 | AO7: 2048-01-01 | AP7: 2049-01-01 | AQ7: 2050-01-01 | AR7: 2051-01-01 | AS7: 2052-01-01 | AT7: 2053-01-01 | AU7: 2054-01-01 | AV7: 2055-01-01 | AW7: 2056-01-01 | AX7: 2057-01-01 | AY7: 2058-01-01 | AZ7: 2059-01-01 | BA7: 2060-01-01 | BB7: 2061-01-01 | BC7: 2062-01-01 | BD7: 2063-01-01 | BE7: 2064-01-01 | BF7: 2065-01-01 | BG7: 2066-01-01 | BH7: 2067-01-01 | BI7: 2068-01-01 | BJ7: 2069-01-01 | BK7: 2070-01-01 | BL7: 2071-01-01 | BM7: 2072-01-01 | BN7: 2073-01-01 | BO7: 2074-01-01 | BP7: 2075-01-01 | BQ7: 2076-01-01 | BR7: 2077-01-01 | BS7: 2078-01-01 | BT7: 2079-01-01 | BU7: 2080-01-01 | BV7: 2081-01-01 | BW7: 2082-01-01 | BX7: 2083-01-01 | BY7: =BX8+1 -> 2084-01-01 | BZ7: 2085-01-01 | CA7: 2086-01-01 | CB7: 2087-01-01 | CC7: 2088-01-01 | CD7: 2089-01-01 | CE7: 2090-01-01 | CF7: 2091-01-01 | CG7: 2092-01-01 | CH7: 2093-01-01 | CI7: 2094-01-01 | CJ7: 2095-01-01 | CK7: 2096-01-01 | CL7: 2097-01-01 | CM7: 2098-01-01 | CN7: 2099-01-01 | CO7: 2100-01-01 | CP7: 2101-01-01 | CQ7: 2102-01-01 | CR7: 2103-01-01 | CS7: 2104-01-01 | CT7: 2105-01-01 | CU7: 2106-01-01 | CV7: 2107-01-01 | CW7: 2108-01-01 | CX7: 2109-01-01 | CY7: 2110-01-01 | CZ7: 2111-01-01 | DA7: 2112-01-01 | DB7: 2113-01-01 | DC7: 2114-01-01 | DD7: 2115-01-01 | DE7: 2116-01-01 | DF7: 2117-01-01 | DG7: 2118-01-01 | DH7: 2119-01-01 | DI7: 2120-01-01 | DJ7: 2121-01-01 | DK7: 2122-01-01 | DL7: 2123-01-01 | DM7: 2124-01-01 | DN7: 2125-01-01 | DO7: 2126-01-01 | DP7: 2127-01-01 | DQ7: 2128-01-01 | DR7: 2129-01-01 | DS7: 2130-01-01 | DT7: 2131-01-01 | DU7: 2132-01-01 | DV7: 2133-01-01 | DW7: 2134-01-01 | DX7: 2135-01-01 | DY7: 2136-01-01 | DZ7: 2137-01-01 | EA7: 2138-01-01 | EB7: 2139-01-01 | EC7: 2140-01-01 | ED7: 2141-01-01 | EE7: 2142-01-01 | EF7: 2143-01-01 | EG7: 2144-01-01 | EH7: 2145-01-01 | EI7: 2146-01-01 | EJ7: 2147-01-01 | EK7: =EJ8+1 -> 2148-01-01 | EL7: 2149-01-01 | EM7: 2150-01-01 | EN7: 2151-01-01 | EO7: 2152-01-01 | EP7: 2153-01-01 | EQ7: 2154-01-01 | ER7: 2155-01-01 | ES7: 2156-01-01 | ET7: 2157-01-01 | EU7: 2158-01-01 | EV7: 2159-01-01 | EW7: 2160-01-01 | EX7: 2161-01-01 | EY7: 2162-01-01 | EZ7: 2163-01-01 | FA7: 2164-01-01 | FB7: 2165-01-01 | FC7: 2166-01-01 | FD7: 2167-01-01 | FE7: 2168-01-01 | FF7: 2169-01-01 | FG7: 2170-01-01 | FH7: 2171-01-01 | FI7: 2172-01-01 | FJ7: 2173-01-01 | FK7: 2174-01-01 | FL7: 2175-01-01 | FM7: 2176-01-01 | FN7: 2177-01-01 | FO7: 2178-01-01 | FP7: 2179-01-01 | FQ7: 2180-01-01 | FR7: 2181-01-01 | FS7: 2182-01-01 | FT7: 2183-01-01 | FU7: 2184-01-01 | FV7: 2185-01-01 | FW7: 2186-01-01 | FX7: 2187-01-01 | FY7: 2188-01-01 | FZ7: 2189-01-01 | GA7: 2190-01-01 | GB7: 2191-01-01 | GC7: 2192-01-01 | GD7: 2193-01-01 | GE7: 2194-01-01 | GF7: 2195-01-01 | GG7: 2196-01-01 | GH7: 2197-01-01 | GI7: 2198-01-01 | GJ7: 2199-01-01 | GK7: 2200-01-01 | GL7: 2201-01-01 | GM7: 2202-01-01 | GN7: 2203-01-01 | GO7: 2204-01-01 | GP7: 2205-01-01 | GQ7: 2206-01-01 | GR7: 2207-01-01 | GS7: 2208-01-01 | GT7: 2209-01-01 | GU7: 2210-01-01 | GV7: 2211-01-01 | GW7: =GV8+1 -> 2212-01-01 | GX7: 2213-01-01 | GY7: 2214-01-01 | GZ7: 2215-01-01 | HA7: 2216-01-01 | HB7: 2217-01-01 | HC7: 2218-01-01 | HD7: 2219-01-01 | HE7: 2220-01-01 | HF7: 2221-01-01 | HG7: 2222-01-01 | HH7: 2223-01-01 | HI7: 2224-01-01 | HJ7: 2225-01-01 | HK7: 2226-01-01 | HL7: 2227-01-01 | HM7: 2228-01-01 | HN7: 2229-01-01 | HO7: 2230-01-01 | HP7: 2231-01-01 | HQ7: 2232-01-01 | HR7: 2233-01-01 | HS7: 2234-01-01 | HT7: 2235-01-01 | HU7: 2236-01-01 | HV7: 2237-01-01 | HW7: 2238-01-01 | HX7: 2239-01-01 | HY7: 2240-01-01 | HZ7: 2241-01-01 | IA7: 2242-01-01 | IB7: 2243-01-01 | IC7: 2244-01-01 | ID7: 2245-01-01 | IE7: 2246-01-01 | IF7: 2247-01-01 | IG7: 2248-01-01 | IH7: 2249-01-01 | II7: 2250-01-01 | IJ7: 2251-01-01 | IK7: 2252-01-01 | IL7: 2253-01-01 | IM7: 2254-01-01 | IN7: 2255-01-01 | IO7: 2256-01-01 | IP7: 2257-01-01 | IQ7: 2258-01-01 | IR7: 2259-01-01 | IS7: 2260-01-01 | IT7: 2261-01-01 | IU7: 2262-01-01 | IV7: 2263-01-01 | IW7: 2264-01-01 | IX7: 2265-01-01 | IY7: 2266-01-01 | IZ7: 2267-01-01 | JA7: 2268-01-01 | JB7: 2269-01-01 | JC7: 2270-01-01 | JD7: 2271-01-01 | JE7: 2272-01-01 | JF7: 2273-01-01 | JG7: 2274-01-01 | JH7: 2275-01-01 | JI7: =JH8+1 -> 2276-01-01 | JJ7: 2277-01-01 | JK7: 2278-01-01 | JL7: 2279-01-01 | JM7: 2280-01-01 | JN7: 2281-01-01 | JO7: 2282-01-01 | JP7: 2283-01-01 | JQ7: 2284-01-01 | JR7: 2285-01-01 | JS7: 2286-01-01 | JT7: 2287-01-01 | JU7: 2288-01-01 | JV7: 2289-01-01 | JW7: 2290-01-01 | JX7: 2291-01-01 | JY7: 2292-01-01 | JZ7: 2293-01-01 | KA7: 2294-01-01 | KB7: 2295-01-01 | KC7: 2296-01-01 | KD7: 2297-01-01 | KE7: 2298-01-01 | KF7: 2299-01-01 | KG7: 2300-01-01 | KH7: 2301-01-01 | KI7: 2302-01-01 | KJ7: 2303-01-01 | KK7: 2304-01-01 | KL7: 2305-01-01 | KM7: 2306-01-01 | KN7: 2307-01-01 | KO7: 2308-01-01 | KP7: 2309-01-01 | KQ7: 2310-01-01 | KR7: 2311-01-01 | KS7: 2312-01-01 | KT7: 2313-01-01 | KU7: 2314-01-01 | KV7: 2315-01-01 | KW7: 2316-01-01 | KX7: 2317-01-01 | KY7: 2318-01-01 | KZ7: 2319-01-01 | LA7: 2320-01-01 | LB7: 2321-01-01 | LC7: 2322-01-01 | LD7: 2323-01-01 | LE7: 2324-01-01 | LF7: 2325-01-01 | LG7: 2326-01-01 | LH7: 2327-01-01 | LI7: 2328-01-01 | LJ7: 2329-01-01 | LK7: 2330-01-01 | LL7: 2331-01-01 | LM7: 2332-01-01 | LN7: 2333-01-01 | LO7: 2334-01-01 | LP7: 2335-01-01 | LQ7: 2336-01-01 | LR7: 2337-01-01 | LS7: 2338-01-01 | LT7: 2339-01-01 | LU7: =LT8+1 -> 2340-01-01 | LV7: 2341-01-01 | LW7: 2342-01-01 | LX7: 2343-01-01 | LY7: 2344-01-01 | LZ7: 2345-01-01 | MA7: 2346-01-01 | MB7: 2347-01-01 | MC7: 2348-01-01 | MD7: 2349-01-01 | ME7: 2350-01-01 | MF7: 2351-01-01 | MG7: 2352-01-01 | MH7: 2353-01-01 | MI7: 2354-01-01 | MJ7: 2355-01-01 | MK7: 2356-01-01 | ML7: 2357-01-01 | MM7: 2358-01-01 | MN7: 2359-01-01 | MO7: 2360-01-01 | MP7: 2361-01-01 | MQ7: 2362-01-01 | MR7: 2363-01-01 | MS7: 2364-01-01 | MT7: 2365-01-01 | MU7: 2366-01-01 | MV7: 2367-01-01 | MW7: 2368-01-01 | MX7: 2369-01-01 | MY7: 2370-01-01 | MZ7: 2371-01-01 | NA7: 2372-01-01 | NB7: 2373-01-01 | NC7: 2374-01-01 | ND7: 2375-01-01 | NE7: 2376-01-01 | NF7: 2377-01-01 | NG7: 2378-01-01 | NH7: 2379-01-01 | NI7: 2380-01-01 | NJ7: 2381-01-01 | NK7: 2382-01-01 | NL7: 2383-01-01 | NM7: 2384-01-01 | NN7: 2385-01-01 | NO7: 2386-01-01 | NP7: 2387-01-01 | NQ7: 2388-01-01 | NR7: 2389-01-01 | NS7: 2390-01-01 | NT7: 2391-01-01 | NU7: 2392-01-01 | NV7: 2393-01-01 | NW7: 2394-01-01 | NX7: 2395-01-01 | NY7: 2396-01-01 | NZ7: 2397-01-01 | OA7: 2398-01-01 | OB7: 2399-01-01 | OC7: 2400-01-01 | OD7: 2401-01-01 | OE7: 2402-01-01 | OF7: 2403-01-01 | OG7: =OF8+1 -> 2404-01-01 | OH7: 2405-01-01 | OI7: 2406-01-01 | OJ7: 2407-01-01 | OK7: 2408-01-01 | OL7: 2409-01-01 | OM7: 2410-01-01 | ON7: 2411-01-01 | OO7: 2412-01-01 | OP7: 2413-01-01 | OQ7: 2414-01-01 | OR7: 2415-01-01 | OS7: 2416-01-01 | OT7: 2417-01-01 | OU7: 2418-01-01 | OV7: 2419-01-01 | OW7: 2420-01-01 | OX7: 2421-01-01 | OY7: 2422-01-01 | OZ7: 2423-01-01 | PA7: 2424-01-01 | PB7: 2425-01-01 | PC7: 2426-01-01 | PD7: 2427-01-01 | PE7: 2428-01-01 | PF7: 2429-01-01 | PG7: 2430-01-01 | PH7: 2431-01-01 | PI7: 2432-01-01 | PJ7: 2433-01-01 | PK7: 2434-01-01 | PL7: 2435-01-01 | PM7: 2436-01-01 | PN7: 2437-01-01 | PO7: 2438-01-01 | PP7: 2439-01-01 | PQ7: 2440-01-01 | PR7: 2441-01-01 | PS7: 2442-01-01 | PT7: 2443-01-01 | PU7: 2444-01-01 | PV7: 2445-01-01 | PW7: 2446-01-01 | PX7: 2447-01-01 | PY7: 2448-01-01 | PZ7: 2449-01-01 | QA7: 2450-01-01 | QB7: 2451-01-01 | QC7: 2452-01-01 | QD7: 2453-01-01 | QE7: 2454-01-01 | QF7: 2455-01-01 | QG7: 2456-01-01 | QH7: 2457-01-01 | QI7: 2458-01-01 | QJ7: 2459-01-01 | QK7: 2460-01-01 | QL7: 2461-01-01 | QM7: 2462-01-01 | QN7: 2463-01-01 | QO7: 2464-01-01 | QP7: 2465-01-01 | QQ7: 2466-01-01 | QR7: 2467-01-01 | QS7: =QR8+1 -> 2468-01-01 | QT7: 2469-01-01 | QU7: 2470-01-01 | QV7: 2471-01-01 | QW7: 2472-01-01 | QX7: 2473-01-01 | QY7: 2474-01-01 | QZ7: 2475-01-01 | RA7: 2476-01-01 | RB7: 2477-01-01 | RC7: 2478-01-01 | RD7: 2479-01-01 | RE7: 2480-01-01 | RF7: 2481-01-01 | RG7: 2482-01-01 | RH7: 2483-01-01 | RI7: 2484-01-01 | RJ7: 2485-01-01 | RK7: 2486-01-01 | RL7: 2487-01-01 | RM7: 2488-01-01 | RN7: 2489-01-01 | RO7: 2490-01-01 | RP7: 2491-01-01 | RQ7: 2492-01-01 | RR7: 2493-01-01 | RS7: 2494-01-01 | RT7: 2495-01-01 | RU7: 2496-01-01 | RV7: 2497-01-01 | RW7: 2498-01-01 | RX7: 2499-01-01 | RY7: 2500-01-01 | RZ7: 2501-01-01 | SA7: 2502-01-01 | SB7: 2503-01-01 | SC7: 2504-01-01 | SD7: 2505-01-01 | SE7: 2506-01-01 | SF7: 2507-01-01 | SG7: 2508-01-01 | SH7: 2509-01-01 | SI7: 2510-01-01 | SJ7: 2511-01-01 | SK7: 2512-01-01 | SL7: 2513-01-01 | SM7: 2514-01-01 | SN7: 2515-01-01 | SO7: 2516-01-01 | SP7: 2517-01-01 | SQ7: 2518-01-01
D8: End of Period | J8: Date | K8: =InputC!G11-1 -> 2018-12-31 | L8: =EDATE(L7,L6)-1 -> 2019-12-31 | M8: =EDATE(M7,M6)-1 -> 2020-12-31 | N8: 2021-12-31 | O8: 2022-12-31 | P8: 2023-12-31 | Q8: 2024-12-31 | R8: 2025-12-31 | S8: 2026-12-31 | T8: 2027-12-31 | U8: 2028-12-31 | V8: 2029-12-31 | W8: 2030-12-31 | X8: 2031-12-31 | Y8: 2032-12-31 | Z8: 2033-12-31 | AA8: 2034-12-31 | AB8: 2035-12-31 | AC8: 2036-12-31 | AD8: 2037-12-31 | AE8: 2038-12-31 | AF8: 2039-12-31 | AG8: 2040-12-31 | AH8: 2041-12-31 | AI8: 2042-12-31 | AJ8: 2043-12-31 | AK8: 2044-12-31 | AL8: 2045-12-31 | AM8: 2046-12-31 | AN8: 2047-12-31 | AO8: 2048-12-31 | AP8: 2049-12-31 | AQ8: 2050-12-31 | AR8: 2051-12-31 | AS8: 2052-12-31 | AT8: 2053-12-31 | AU8: 2054-12-31 | AV8: 2055-12-31 | AW8: 2056-12-31 | AX8: 2057-12-31 | AY8: 2058-12-31 | AZ8: 2059-12-31 | BA8: 2060-12-31 | BB8: 2061-12-31 | BC8: 2062-12-31 | BD8: 2063-12-31 | BE8: 2064-12-31 | BF8: 2065-12-31 | BG8: 2066-12-31 | BH8: 2067-12-31 | BI8: 2068-12-31 | BJ8: 2069-12-31 | BK8: 2070-12-31 | BL8: 2071-12-31 | BM8: 2072-12-31 | BN8: 2073-12-31 | BO8: 2074-12-31 | BP8: 2075-12-31 | BQ8: 2076-12-31 | BR8: 2077-12-31 | BS8: 2078-12-31 | BT8: 2079-12-31 | BU8: 2080-12-31 | BV8: 2081-12-31 | BW8: 2082-12-31 | BX8: 2083-12-31 | BY8: =EDATE(BY7,BY6)-1 -> 2084-12-31 | BZ8: 2085-12-31 | CA8: 2086-12-31 | CB8: 2087-12-31 | CC8: 2088-12-31 | CD8: 2089-12-31 | CE8: 2090-12-31 | CF8: 2091-12-31 | CG8: 2092-12-31 | CH8: 2093-12-31 | CI8: 2094-12-31 | CJ8: 2095-12-31 | CK8: 2096-12-31 | CL8: 2097-12-31 | CM8: 2098-12-31 | CN8: 2099-12-31 | CO8: 2100-12-31 | CP8: 2101-12-31 | CQ8: 2102-12-31 | CR8: 2103-12-31 | CS8: 2104-12-31 | CT8: 2105-12-31 | CU8: 2106-12-31 | CV8: 2107-12-31 | CW8: 2108-12-31 | CX8: 2109-12-31 | CY8: 2110-12-31 | CZ8: 2111-12-31 | DA8: 2112-12-31 | DB8: 2113-12-31 | DC8: 2114-12-31 | DD8: 2115-12-31 | DE8: 2116-12-31 | DF8: 2117-12-31 | DG8: 2118-12-31 | DH8: 2119-12-31 | DI8: 2120-12-31 | DJ8: 2121-12-31 | DK8: 2122-12-31 | DL8: 2123-12-31 | DM8: 2124-12-31 | DN8: 2125-12-31 | DO8: 2126-12-31 | DP8: 2127-12-31 | DQ8: 2128-12-31 | DR8: 2129-12-31 | DS8: 2130-12-31 | DT8: 2131-12-31 | DU8: 2132-12-31 | DV8: 2133-12-31 | DW8: 2134-12-31 | DX8: 2135-12-31 | DY8: 2136-12-31 | DZ8: 2137-12-31 | EA8: 2138-12-31 | EB8: 2139-12-31 | EC8: 2140-12-31 | ED8: 2141-12-31 | EE8: 2142-12-31 | EF8: 2143-12-31 | EG8: 2144-12-31 | EH8: 2145-12-31 | EI8: 2146-12-31 | EJ8: 2147-12-31 | EK8: =EDATE(EK7,EK6)-1 -> 2148-12-31 | EL8: 2149-12-31 | EM8: 2150-12-31 | EN8: 2151-12-31 | EO8: 2152-12-31 | EP8: 2153-12-31 | EQ8: 2154-12-31 | ER8: 2155-12-31 | ES8: 2156-12-31 | ET8: 2157-12-31 | EU8: 2158-12-31 | EV8: 2159-12-31 | EW8: 2160-12-31 | EX8: 2161-12-31 | EY8: 2162-12-31 | EZ8: 2163-12-31 | FA8: 2164-12-31 | FB8: 2165-12-31 | FC8: 2166-12-31 | FD8: 2167-12-31 | FE8: 2168-12-31 | FF8: 2169-12-31 | FG8: 2170-12-31 | FH8: 2171-12-31 | FI8: 2172-12-31 | FJ8: 2173-12-31 | FK8: 2174-12-31 | FL8: 2175-12-31 | FM8: 2176-12-31 | FN8: 2177-12-31 | FO8: 2178-12-31 | FP8: 2179-12-31 | FQ8: 2180-12-31 | FR8: 2181-12-31 | FS8: 2182-12-31 | FT8: 2183-12-31 | FU8: 2184-12-31 | FV8: 2185-12-31 | FW8: 2186-12-31 | FX8: 2187-12-31 | FY8: 2188-12-31 | FZ8: 2189-12-31 | GA8: 2190-12-31 | GB8: 2191-12-31 | GC8: 2192-12-31 | GD8: 2193-12-31 | GE8: 2194-12-31 | GF8: 2195-12-31 | GG8: 2196-12-31 | GH8: 2197-12-31 | GI8: 2198-12-31 | GJ8: 2199-12-31 | GK8: 2200-12-31 | GL8: 2201-12-31 | GM8: 2202-12-31 | GN8: 2203-12-31 | GO8: 2204-12-31 | GP8: 2205-12-31 | GQ8: 2206-12-31 | GR8: 2207-12-31 | GS8: 2208-12-31 | GT8: 2209-12-31 | GU8: 2210-12-31 | GV8: 2211-12-31 | GW8: =EDATE(GW7,GW6)-1 -> 2212-12-31 | GX8: 2213-12-31 | GY8: 2214-12-31 | GZ8: 2215-12-31 | HA8: 2216-12-31 | HB8: 2217-12-31 | HC8: 2218-12-31 | HD8: 2219-12-31 | HE8: 2220-12-31 | HF8: 2221-12-31 | HG8: 2222-12-31 | HH8: 2223-12-31 | HI8: 2224-12-31 | HJ8: 2225-12-31 | HK8: 2226-12-31 | HL8: 2227-12-31 | HM8: 2228-12-31 | HN8: 2229-12-31 | HO8: 2230-12-31 | HP8: 2231-12-31 | HQ8: 2232-12-31 | HR8: 2233-12-31 | HS8: 2234-12-31 | HT8: 2235-12-31 | HU8: 2236-12-31 | HV8: 2237-12-31 | HW8: 2238-12-31 | HX8: 2239-12-31 | HY8: 2240-12-31 | HZ8: 2241-12-31 | IA8: 2242-12-31 | IB8: 2243-12-31 | IC8: 2244-12-31 | ID8: 2245-12-31 | IE8: 2246-12-31 | IF8: 2247-12-31 | IG8: 2248-12-31 | IH8: 2249-12-31 | II8: 2250-12-31 | IJ8: 2251-12-31 | IK8: 2252-12-31 | IL8: 2253-12-31 | IM8: 2254-12-31 | IN8: 2255-12-31 | IO8: 2256-12-31 | IP8: 2257-12-31 | IQ8: 2258-12-31 | IR8: 2259-12-31 | IS8: 2260-12-31 | IT8: 2261-12-31 | IU8: 2262-12-31 | IV8: 2263-12-31 | IW8: 2264-12-31 | IX8: 2265-12-31 | IY8: 2266-12-31 | IZ8: 2267-12-31 | JA8: 2268-12-31 | JB8: 2269-12-31 | JC8: 2270-12-31 | JD8: 2271-12-31 | JE8: 2272-12-31 | JF8: 2273-12-31 | JG8: 2274-12-31 | JH8: 2275-12-31 | JI8: =EDATE(JI7,JI6)-1 -> 2276-12-31 | JJ8: 2277-12-31 | JK8: 2278-12-31 | JL8: 2279-12-31 | JM8: 2280-12-31 | JN8: 2281-12-31 | JO8: 2282-12-31 | JP8: 2283-12-31 | JQ8: 2284-12-31 | JR8: 2285-12-31 | JS8: 2286-12-31 | JT8: 2287-12-31 | JU8: 2288-12-31 | JV8: 2289-12-31 | JW8: 2290-12-31 | JX8: 2291-12-31 | JY8: 2292-12-31 | JZ8: 2293-12-31 | KA8: 2294-12-31 | KB8: 2295-12-31 | KC8: 2296-12-31 | KD8: 2297-12-31 | KE8: 2298-12-31 | KF8: 2299-12-31 | KG8: 2300-12-31 | KH8: 2301-12-31 | KI8: 2302-12-31 | KJ8: 2303-12-31 | KK8: 2304-12-31 | KL8: 2305-12-31 | KM8: 2306-12-31 | KN8: 2307-12-31 | KO8: 2308-12-31 | KP8: 2309-12-31 | KQ8: 2310-12-31 | KR8: 2311-12-31 | KS8: 2312-12-31 | KT8: 2313-12-31 | KU8: 2314-12-31 | KV8: 2315-12-31 | KW8: 2316-12-31 | KX8: 2317-12-31 | KY8: 2318-12-31 | KZ8: 2319-12-31 | LA8: 2320-12-31 | LB8: 2321-12-31 | LC8: 2322-12-31 | LD8: 2323-12-31 | LE8: 2324-12-31 | LF8: 2325-12-31 | LG8: 2326-12-31 | LH8: 2327-12-31 | LI8: 2328-12-31 | LJ8: 2329-12-31 | LK8: 2330-12-31 | LL8: 2331-12-31 | LM8: 2332-12-31 | LN8: 2333-12-31 | LO8: 2334-12-31 | LP8: 2335-12-31 | LQ8: 2336-12-31 | LR8: 2337-12-31 | LS8: 2338-12-31 | LT8: 2339-12-31 | LU8: =EDATE(LU7,LU6)-1 -> 2340-12-31 | LV8: 2341-12-31 | LW8: 2342-12-31 | LX8: 2343-12-31 | LY8: 2344-12-31 | LZ8: 2345-12-31 | MA8: 2346-12-31 | MB8: 2347-12-31 | MC8: 2348-12-31 | MD8: 2349-12-31 | ME8: 2350-12-31 | MF8: 2351-12-31 | MG8: 2352-12-31 | MH8: 2353-12-31 | MI8: 2354-12-31 | MJ8: 2355-12-31 | MK8: 2356-12-31 | ML8: 2357-12-31 | MM8: 2358-12-31 | MN8: 2359-12-31 | MO8: 2360-12-31 | MP8: 2361-12-31 | MQ8: 2362-12-31 | MR8: 2363-12-31 | MS8: 2364-12-31 | MT8: 2365-12-31 | MU8: 2366-12-31 | MV8: 2367-12-31 | MW8: 2368-12-31 | MX8: 2369-12-31 | MY8: 2370-12-31 | MZ8: 2371-12-31 | NA8: 2372-12-31 | NB8: 2373-12-31 | NC8: 2374-12-31 | ND8: 2375-12-31 | NE8: 2376-12-31 | NF8: 2377-12-31 | NG8: 2378-12-31 | NH8: 2379-12-31 | NI8: 2380-12-31 | NJ8: 2381-12-31 | NK8: 2382-12-31 | NL8: 2383-12-31 | NM8: 2384-12-31 | NN8: 2385-12-31 | NO8: 2386-12-31 | NP8: 2387-12-31 | NQ8: 2388-12-31 | NR8: 2389-12-31 | NS8: 2390-12-31 | NT8: 2391-12-31 | NU8: 2392-12-31 | NV8: 2393-12-31 | NW8: 2394-12-31 | NX8: 2395-12-31 | NY8: 2396-12-31 | NZ8: 2397-12-31 | OA8: 2398-12-31 | OB8: 2399-12-31 | OC8: 2400-12-31 | OD8: 2401-12-31 | OE8: 2402-12-31 | OF8: 2403-12-31 | OG8: =EDATE(OG7,OG6)-1 -> 2404-12-31 | OH8: 2405-12-31 | OI8: 2406-12-31 | OJ8: 2407-12-31 | OK8: 2408-12-31 | OL8: 2409-12-31 | OM8: 2410-12-31 | ON8: 2411-12-31 | OO8: 2412-12-31 | OP8: 2413-12-31 | OQ8: 2414-12-31 | OR8: 2415-12-31 | OS8: 2416-12-31 | OT8: 2417-12-31 | OU8: 2418-12-31 | OV8: 2419-12-31 | OW8: 2420-12-31 | OX8: 2421-12-31 | OY8: 2422-12-31 | OZ8: 2423-12-31 | PA8: 2424-12-31 | PB8: 2425-12-31 | PC8: 2426-12-31 | PD8: 2427-12-31 | PE8: 2428-12-31 | PF8: 2429-12-31 | PG8: 2430-12-31 | PH8: 2431-12-31 | PI8: 2432-12-31 | PJ8: 2433-12-31 | PK8: 2434-12-31 | PL8: 2435-12-31 | PM8: 2436-12-31 | PN8: 2437-12-31 | PO8: 2438-12-31 | PP8: 2439-12-31 | PQ8: 2440-12-31 | PR8: 2441-12-31 | PS8: 2442-12-31 | PT8: 2443-12-31 | PU8: 2444-12-31 | PV8: 2445-12-31 | PW8: 2446-12-31 | PX8: 2447-12-31 | PY8: 2448-12-31 | PZ8: 2449-12-31 | QA8: 2450-12-31 | QB8: 2451-12-31 | QC8: 2452-12-31 | QD8: 2453-12-31 | QE8: 2454-12-31 | QF8: 2455-12-31 | QG8: 2456-12-31 | QH8: 2457-12-31 | QI8: 2458-12-31 | QJ8: 2459-12-31 | QK8: 2460-12-31 | QL8: 2461-12-31 | QM8: 2462-12-31 | QN8: 2463-12-31 | QO8: 2464-12-31 | QP8: 2465-12-31 | QQ8: 2466-12-31 | QR8: 2467-12-31 | QS8: =EDATE(QS7,QS6)-1 -> 2468-12-31 | QT8: 2469-12-31 | QU8: 2470-12-31 | QV8: 2471-12-31 | QW8: 2472-12-31 | QX8: 2473-12-31 | QY8: 2474-12-31 | QZ8: 2475-12-31 | RA8: 2476-12-31 | RB8: 2477-12-31 | RC8: 2478-12-31 | RD8: 2479-12-31 | RE8: 2480-12-31 | RF8: 2481-12-31 | RG8: 2482-12-31 | RH8: 2483-12-31 | RI8: 2484-12-31 | RJ8: 2485-12-31 | RK8: 2486-12-31 | RL8: 2487-12-31 | RM8: 2488-12-31 | RN8: 2489-12-31 | RO8: 2490-12-31 | RP8: 2491-12-31 | RQ8: 2492-12-31 | RR8: 2493-12-31 | RS8: 2494-12-31 | RT8: 2495-12-31 | RU8: 2496-12-31 | RV8: 2497-12-31 | RW8: 2498-12-31 | RX8: 2499-12-31 | RY8: 2500-12-31 | RZ8: 2501-12-31 | SA8: 2502-12-31 | SB8: 2503-12-31 | SC8: 2504-12-31 | SD8: 2505-12-31 | SE8: 2506-12-31 | SF8: 2507-12-31 | SG8: 2508-12-31 | SH8: 2509-12-31 | SI8: 2510-12-31 | SJ8: 2511-12-31 | SK8: 2512-12-31 | SL8: 2513-12-31 | SM8: 2514-12-31 | SN8: 2515-12-31 | SO8: 2516-12-31 | SP8: 2517-12-31 | SQ8: 2518-12-31
D9: Post COD Period | F9: Date | G9: =InputC!G24 -> 2021-01-01 | H9: =InputC!G26 -> 2050-12-31 | I9: =SUM(L9:XFD9) -> 30 | J9: Flag | L9: =(AND(L7>=$G$9,L8<=$H$9))*1 -> 0 | M9: =(AND(M7>=$G$9,M8<=$H$9))*1 -> 0 | N9: 1 | O9: 1 | P9: 1 | Q9: 1 | R9: 1 | S9: 1 | T9: 1 | U9: 1 | V9: 1 | W9: 1 | X9: 1 | Y9: 1 | Z9: 1 | AA9: 1 | AB9: 1 | AC9: 1 | AD9: 1 | AE9: 1 | AF9: 1 | AG9: 1 | AH9: 1 | AI9: 1 | AJ9: 1 | AK9: 1 | AL9: 1 | AM9: 1 | AN9: 1 | AO9: 1 | AP9: 1 | AQ9: 1 | AR9: 0 | AS9: 0 | AT9: 0 | AU9: 0 | AV9: 0 | AW9: 0 | AX9: 0 | AY9: 0 | AZ9: 0 | BA9: 0 | BB9: 0 | BC9: 0 | BD9: 0 | BE9: 0 | BF9: 0 | BG9: 0 | BH9: 0 | BI9: 0 | BJ9: 0 | BK9: 0 | BL9: 0 | BM9: 0 | BN9: 0 | BO9: 0 | BP9: 0 | BQ9: 0 | BR9: 0 | BS9: 0 | BT9: 0 | BU9: 0 | BV9: 0 | BW9: 0 | BX9: 0 | BY9: =(AND(BY7>=$G$9,BY8<=$H$9))*1 -> 0 | BZ9: 0 | CA9: 0 | CB9: 0 | CC9: 0 | CD9: 0 | CE9: 0 | CF9: 0 | CG9: 0 | CH9: 0 | CI9: 0 | CJ9: 0 | CK9: 0 | CL9: 0 | CM9: 0 | CN9: 0 | CO9: 0 | CP9: 0 | CQ9: 0 | CR9: 0 | CS9: 0 | CT9: 0 | CU9: 0 | CV9: 0 | CW9: 0 | CX9: 0 | CY9: 0 | CZ9: 0 | DA9: 0 | DB9: 0 | DC9: 0 | DD9: 0 | DE9: 0 | DF9: 0 | DG9: 0 | DH9: 0 | DI9: 0 | DJ9: 0 | DK9: 0 | DL9: 0 | DM9: 0 | DN9: 0 | DO9: 0 | DP9: 0 | DQ9: 0 | DR9: 0 | DS9: 0 | DT9: 0 | DU9: 0 | DV9: 0 | DW9: 0 | DX9: 0 | DY9: 0 | DZ9: 0 | EA9: 0 | EB9: 0 | EC9: 0 | ED9: 0 | EE9: 0 | EF9: 0 | EG9: 0 | EH9: 0 | EI9: 0 | EJ9: 0 | EK9: =(AND(EK7>=$G$9,EK8<=$H$9))*1 -> 0 | EL9: 0 | EM9: 0 | EN9: 0 | EO9: 0 | EP9: 0 | EQ9: 0 | ER9: 0 | ES9: 0 | ET9: 0 | EU9: 0 | EV9: 0 | EW9: 0 | EX9: 0 | EY9: 0 | EZ9: 0 | FA9: 0 | FB9: 0 | FC9: 0 | FD9: 0 | FE9: 0 | FF9: 0 | FG9: 0 | FH9: 0 | FI9: 0 | FJ9: 0 | FK9: 0 | FL9: 0 | FM9: 0 | FN9: 0 | FO9: 0 | FP9: 0 | FQ9: 0 | FR9: 0 | FS9: 0 | FT9: 0 | FU9: 0 | FV9: 0 | FW9: 0 | FX9: 0 | FY9: 0 | FZ9: 0 | GA9: 0 | GB9: 0 | GC9: 0 | GD9: 0 | GE9: 0 | GF9: 0 | GG9: 0 | GH9: 0 | GI9: 0 | GJ9: 0 | GK9: 0 | GL9: 0 | GM9: 0 | GN9: 0 | GO9: 0 | GP9: 0 | GQ9: 0 | GR9: 0 | GS9: 0 | GT9: 0 | GU9: 0 | GV9: 0 | GW9: =(AND(GW7>=$G$9,GW8<=$H$9))*1 -> 0 | GX9: 0 | GY9: 0 | GZ9: 0 | HA9: 0 | HB9: 0 | HC9: 0 | HD9: 0 | HE9: 0 | HF9: 0 | HG9: 0 | HH9: 0 | HI9: 0 | HJ9: 0 | HK9: 0 | HL9: 0 | HM9: 0 | HN9: 0 | HO9: 0 | HP9: 0 | HQ9: 0 | HR9: 0 | HS9: 0 | HT9: 0 | HU9: 0 | HV9: 0 | HW9: 0 | HX9: 0 | HY9: 0 | HZ9: 0 | IA9: 0 | IB9: 0 | IC9: 0 | ID9: 0 | IE9: 0 | IF9: 0 | IG9: 0 | IH9: 0 | II9: 0 | IJ9: 0 | IK9: 0 | IL9: 0 | IM9: 0 | IN9: 0 | IO9: 0 | IP9: 0 | IQ9: 0 | IR9: 0 | IS9: 0 | IT9: 0 | IU9: 0 | IV9: 0 | IW9: 0 | IX9: 0 | IY9: 0 | IZ9: 0 | JA9: 0 | JB9: 0 | JC9: 0 | JD9: 0 | JE9: 0 | JF9: 0 | JG9: 0 | JH9: 0 | JI9: =(AND(JI7>=$G$9,JI8<=$H$9))*1 -> 0 | JJ9: 0 | JK9: 0 | JL9: 0 | JM9: 0 | JN9: 0 | JO9: 0 | JP9: 0 | JQ9: 0 | JR9: 0 | JS9: 0 | JT9: 0 | JU9: 0 | JV9: 0 | JW9: 0 | JX9: 0 | JY9: 0 | JZ9: 0 | KA9: 0 | KB9: 0 | KC9: 0 | KD9: 0 | KE9: 0 | KF9: 0 | KG9: 0 | KH9: 0 | KI9: 0 | KJ9: 0 | KK9: 0 | KL9: 0 | KM9: 0 | KN9: 0 | KO9: 0 | KP9: 0 | KQ9: 0 | KR9: 0 | KS9: 0 | KT9: 0 | KU9: 0 | KV9: 0 | KW9: 0 | KX9: 0 | KY9: 0 | KZ9: 0 | LA9: 0 | LB9: 0 | LC9: 0 | LD9: 0 | LE9: 0 | LF9: 0 | LG9: 0 | LH9: 0 | LI9: 0 | LJ9: 0 | LK9: 0 | LL9: 0 | LM9: 0 | LN9: 0 | LO9: 0 | LP9: 0 | LQ9: 0 | LR9: 0 | LS9: 0 | LT9: 0 | LU9: =(AND(LU7>=$G$9,LU8<=$H$9))*1 -> 0 | LV9: 0 | LW9: 0 | LX9: 0 | LY9: 0 | LZ9: 0 | MA9: 0 | MB9: 0 | MC9: 0 | MD9: 0 | ME9: 0 | MF9: 0 | MG9: 0 | MH9: 0 | MI9: 0 | MJ9: 0 | MK9: 0 | ML9: 0 | MM9: 0 | MN9: 0 | MO9: 0 | MP9: 0 | MQ9: 0 | MR9: 0 | MS9: 0 | MT9: 0 | MU9: 0 | MV9: 0 | MW9: 0 | MX9: 0 | MY9: 0 | MZ9: 0 | NA9: 0 | NB9: 0 | NC9: 0 | ND9: 0 | NE9: 0 | NF9: 0 | NG9: 0 | NH9: 0 | NI9: 0 | NJ9: 0 | NK9: 0 | NL9: 0 | NM9: 0 | NN9: 0 | NO9: 0 | NP9: 0 | NQ9: 0 | NR9: 0 | NS9: 0 | NT9: 0 | NU9: 0 | NV9: 0 | NW9: 0 | NX9: 0 | NY9: 0 | NZ9: 0 | OA9: 0 | OB9: 0 | OC9: 0 | OD9: 0 | OE9: 0 | OF9: 0 | OG9: =(AND(OG7>=$G$9,OG8<=$H$9))*1 -> 0 | OH9: 0 | OI9: 0 | OJ9: 0 | OK9: 0 | OL9: 0 | OM9: 0 | ON9: 0 | OO9: 0 | OP9: 0 | OQ9: 0 | OR9: 0 | OS9: 0 | OT9: 0 | OU9: 0 | OV9: 0 | OW9: 0 | OX9: 0 | OY9: 0 | OZ9: 0 | PA9: 0 | PB9: 0 | PC9: 0 | PD9: 0 | PE9: 0 | PF9: 0 | PG9: 0 | PH9: 0 | PI9: 0 | PJ9: 0 | PK9: 0 | PL9: 0 | PM9: 0 | PN9: 0 | PO9: 0 | PP9: 0 | PQ9: 0 | PR9: 0 | PS9: 0 | PT9: 0 | PU9: 0 | PV9: 0 | PW9: 0 | PX9: 0 | PY9: 0 | PZ9: 0 | QA9: 0 | QB9: 0 | QC9: 0 | QD9: 0 | QE9: 0 | QF9: 0 | QG9: 0 | QH9: 0 | QI9: 0 | QJ9: 0 | QK9: 0 | QL9: 0 | QM9: 0 | QN9: 0 | QO9: 0 | QP9: 0 | QQ9: 0 | QR9: 0 | QS9: =(AND(QS7>=$G$9,QS8<=$H$9))*1 -> 0 | QT9: 0 | QU9: 0 | QV9: 0 | QW9: 0 | QX9: 0 | QY9: 0 | QZ9: 0 | RA9: 0 | RB9: 0 | RC9: 0 | RD9: 0 | RE9: 0 | RF9: 0 | RG9: 0 | RH9: 0 | RI9: 0 | RJ9: 0 | RK9: 0 | RL9: 0 | RM9: 0 | RN9: 0 | RO9: 0 | RP9: 0 | RQ9: 0 | RR9: 0 | RS9: 0 | RT9: 0 | RU9: 0 | RV9: 0 | RW9: 0 | RX9: 0 | RY9: 0 | RZ9: 0 | SA9: 0 | SB9: 0 | SC9: 0 | SD9: 0 | SE9: 0 | SF9: 0 | SG9: 0 | SH9: 0 | SI9: 0 | SJ9: 0 | SK9: 0 | SL9: 0 | SM9: 0 | SN9: 0 | SO9: 0 | SP9: 0 | SQ9: 0
B11: Energy output
D13: Total power for site MW | F13: MW | G13: =InputC!G35 -> 200 | J13: MW | L13: =$G13*L9 -> 0 | M13: =$G13*M9 -> 0 | N13: 200 | O13: 200 | P13: 200 | Q13: 200 | R13: 200 | S13: 200 | T13: 200 | U13: 200 | V13: 200 | W13: 200 | X13: 200 | Y13: 200 | Z13: 200 | AA13: 200 | AB13: 200 | AC13: 200 | AD13: 200 | AE13: 200 | AF13: 200 | AG13: 200 | AH13: 200 | AI13: 200 | AJ13: 200 | AK13: 200 | AL13: 200 | AM13: 200 | AN13: 200 | AO13: 200 | AP13: 200 | AQ13: 200 | AR13: 0 | AS13: 0 | AT13: 0 | AU13: 0 | AV13: 0 | AW13: 0 | AX13: 0 | AY13: 0 | AZ13: 0 | BA13: 0 | BB13: 0 | BC13: 0 | BD13: 0 | BE13: 0 | BF13: 0 | BG13: 0 | BH13: 0 | BI13: 0 | BJ13: 0 | BK13: 0 | BL13: 0 | BM13: 0 | BN13: 0 | BO13: 0 | BP13: 0 | BQ13: 0 | BR13: 0 | BS13: 0 | BT13: 0 | BU13: 0 | BV13: 0 | BW13: 0 | BX13: 0 | BY13: =$G13*BY9 -> 0 | BZ13: 0 | CA13: 0 | CB13: 0 | CC13: 0 | CD13: 0 | CE13: 0 | CF13: 0 | CG13: 0 | CH13: 0 | CI13: 0 | CJ13: 0 | CK13: 0 | CL13: 0 | CM13: 0 | CN13: 0 | CO13: 0 | CP13: 0 | CQ13: 0 | CR13: 0 | CS13: 0 | CT13: 0 | CU13: 0 | CV13: 0 | CW13: 0 | CX13: 0 | CY13: 0 | CZ13: 0 | DA13: 0 | DB13: 0 | DC13: 0 | DD13: 0 | DE13: 0 | DF13: 0 | DG13: 0 | DH13: 0 | DI13: 0 | DJ13: 0 | DK13: 0 | DL13: 0 | DM13: 0 | DN13: 0 | DO13: 0 | DP13: 0 | DQ13: 0 | DR13: 0 | DS13: 0 | DT13: 0 | DU13: 0 | DV13: 0 | DW13: 0 | DX13: 0 | DY13: 0 | DZ13: 0 | EA13: 0 | EB13: 0 | EC13: 0 | ED13: 0 | EE13: 0 | EF13: 0 | EG13: 0 | EH13: 0 | EI13: 0 | EJ13: 0 | EK13: =$G13*EK9 -> 0 | EL13: 0 | EM13: 0 | EN13: 0 | EO13: 0 | EP13: 0 | EQ13: 0 | ER13: 0 | ES13: 0 | ET13: 0 | EU13: 0 | EV13: 0 | EW13: 0 | EX13: 0 | EY13: 0 | EZ13: 0 | FA13: 0 | FB13: 0 | FC13: 0 | FD13: 0 | FE13: 0 | FF13: 0 | FG13: 0 | FH13: 0 | FI13: 0 | FJ13: 0 | FK13: 0 | FL13: 0 | FM13: 0 | FN13: 0 | FO13: 0 | FP13: 0 | FQ13: 0 | FR13: 0 | FS13: 0 | FT13: 0 | FU13: 0 | FV13: 0 | FW13: 0 | FX13: 0 | FY13: 0 | FZ13: 0 | GA13: 0 | GB13: 0 | GC13: 0 | GD13: 0 | GE13: 0 | GF13: 0 | GG13: 0 | GH13: 0 | GI13: 0 | GJ13: 0 | GK13: 0 | GL13: 0 | GM13: 0 | GN13: 0 | GO13: 0 | GP13: 0 | GQ13: 0 | GR13: 0 | GS13: 0 | GT13: 0 | GU13: 0 | GV13: 0 | GW13: =$G13*GW9 -> 0 | GX13: 0 | GY13: 0 | GZ13: 0 | HA13: 0 | HB13: 0 | HC13: 0 | HD13: 0 | HE13: 0 | HF13: 0 | HG13: 0 | HH13: 0 | HI13: 0 | HJ13: 0 | HK13: 0 | HL13: 0 | HM13: 0 | HN13: 0 | HO13: 0 | HP13: 0 | HQ13: 0 | HR13: 0 | HS13: 0 | HT13: 0 | HU13: 0 | HV13: 0 | HW13: 0 | HX13: 0 | HY13: 0 | HZ13: 0 | IA13: 0 | IB13: 0 | IC13: 0 | ID13: 0 | IE13: 0 | IF13: 0 | IG13: 0 | IH13: 0 | II13: 0 | IJ13: 0 | IK13: 0 | IL13: 0 | IM13: 0 | IN13: 0 | IO13: 0 | IP13: 0 | IQ13: 0 | IR13: 0 | IS13: 0 | IT13: 0 | IU13: 0 | IV13: 0 | IW13: 0 | IX13: 0 | IY13: 0 | IZ13: 0 | JA13: 0 | JB13: 0 | JC13: 0 | JD13: 0 | JE13: 0 | JF13: 0 | JG13: 0 | JH13: 0 | JI13: =$G13*JI9 -> 0 | JJ13: 0 | JK13: 0 | JL13: 0 | JM13: 0 | JN13: 0 | JO13: 0 | JP13: 0 | JQ13: 0 | JR13: 0 | JS13: 0 | JT13: 0 | JU13: 0 | JV13: 0 | JW13: 0 | JX13: 0 | JY13: 0 | JZ13: 0 | KA13: 0 | KB13: 0 | KC13: 0 | KD13: 0 | KE13: 0 | KF13: 0 | KG13: 0 | KH13: 0 | KI13: 0 | KJ13: 0 | KK13: 0 | KL13: 0 | KM13: 0 | KN13: 0 | KO13: 0 | KP13: 0 | KQ13: 0 | KR13: 0 | KS13: 0 | KT13: 0 | KU13: 0 | KV13: 0 | KW13: 0 | KX13: 0 | KY13: 0 | KZ13: 0 | LA13: 0 | LB13: 0 | LC13: 0 | LD13: 0 | LE13: 0 | LF13: 0 | LG13: 0 | LH13: 0 | LI13: 0 | LJ13: 0 | LK13: 0 | LL13: 0 | LM13: 0 | LN13: 0 | LO13: 0 | LP13: 0 | LQ13: 0 | LR13: 0 | LS13: 0 | LT13: 0 | LU13: =$G13*LU9 -> 0 | LV13: 0 | LW13: 0 | LX13: 0 | LY13: 0 | LZ13: 0 | MA13: 0 | MB13: 0 | MC13: 0 | MD13: 0 | ME13: 0 | MF13: 0 | MG13: 0 | MH13: 0 | MI13: 0 | MJ13: 0 | MK13: 0 | ML13: 0 | MM13: 0 | MN13: 0 | MO13: 0 | MP13: 0 | MQ13: 0 | MR13: 0 | MS13: 0 | MT13: 0 | MU13: 0 | MV13: 0 | MW13: 0 | MX13: 0 | MY13: 0 | MZ13: 0 | NA13: 0 | NB13: 0 | NC13: 0 | ND13: 0 | NE13: 0 | NF13: 0 | NG13: 0 | NH13: 0 | NI13: 0 | NJ13: 0 | NK13: 0 | NL13: 0 | NM13: 0 | NN13: 0 | NO13: 0 | NP13: 0 | NQ13: 0 | NR13: 0 | NS13: 0 | NT13: 0 | NU13: 0 | NV13: 0 | NW13: 0 | NX13: 0 | NY13: 0 | NZ13: 0 | OA13: 0 | OB13: 0 | OC13: 0 | OD13: 0 | OE13: 0 | OF13: 0 | OG13: =$G13*OG9 -> 0 | OH13: 0 | OI13: 0 | OJ13: 0 | OK13: 0 | OL13: 0 | OM13: 0 | ON13: 0 | OO13: 0 | OP13: 0 | OQ13: 0 | OR13: 0 | OS13: 0 | OT13: 0 | OU13: 0 | OV13: 0 | OW13: 0 | OX13: 0 | OY13: 0 | OZ13: 0 | PA13: 0 | PB13: 0 | PC13: 0 | PD13: 0 | PE13: 0 | PF13: 0 | PG13: 0 | PH13: 0 | PI13: 0 | PJ13: 0 | PK13: 0 | PL13: 0 | PM13: 0 | PN13: 0 | PO13: 0 | PP13: 0 | PQ13: 0 | PR13: 0 | PS13: 0 | PT13: 0 | PU13: 0 | PV13: 0 | PW13: 0 | PX13: 0 | PY13: 0 | PZ13: 0 | QA13: 0 | QB13: 0 | QC13: 0 | QD13: 0 | QE13: 0 | QF13: 0 | QG13: 0 | QH13: 0 | QI13: 0 | QJ13: 0 | QK13: 0 | QL13: 0 | QM13: 0 | QN13: 0 | QO13: 0 | QP13: 0 | QQ13: 0 | QR13: 0 | QS13: =$G13*QS9 -> 0 | QT13: 0 | QU13: 0 | QV13: 0 | QW13: 0 | QX13: 0 | QY13: 0 | QZ13: 0 | RA13: 0 | RB13: 0 | RC13: 0 | RD13: 0 | RE13: 0 | RF13: 0 | RG13: 0 | RH13: 0 | RI13: 0 | RJ13: 0 | RK13: 0 | RL13: 0 | RM13: 0 | RN13: 0 | RO13: 0 | RP13: 0 | RQ13: 0 | RR13: 0 | RS13: 0 | RT13: 0 | RU13: 0 | RV13: 0 | RW13: 0 | RX13: 0 | RY13: 0 | RZ13: 0 | SA13: 0 | SB13: 0 | SC13: 0 | SD13: 0 | SE13: 0 | SF13: 0 | SG13: 0 | SH13: 0 | SI13: 0 | SJ13: 0 | SK13: 0 | SL13: 0 | SM13: 0 | SN13: 0 | SO13: 0 | SP13: 0 | SQ13: 0
D15: Availability % | F15: % | G15: =InputC!G31 -> 0.95 | J15: % | L15: =$G15*L$9 -> 0 | M15: =$G15*M$9 -> 0 | N15: 0.95 | O15: 0.95 | P15: 0.95 | Q15: 0.95 | R15: 0.95 | S15: 0.95 | T15: 0.95 | U15: 0.95 | V15: 0.95 | W15: 0.95 | X15: 0.95 | Y15: 0.95 | Z15: 0.95 | AA15: 0.95 | AB15: 0.95 | AC15: 0.95 | AD15: 0.95 | AE15: 0.95 | AF15: 0.95 | AG15: 0.95 | AH15: 0.95 | AI15: 0.95 | AJ15: 0.95 | AK15: 0.95 | AL15: 0.95 | AM15: 0.95 | AN15: 0.95 | AO15: 0.95 | AP15: 0.95 | AQ15: 0.95 | AR15: 0 | AS15: 0 | AT15: 0 | AU15: 0 | AV15: 0 | AW15: 0 | AX15: 0 | AY15: 0 | AZ15: 0 | BA15: 0 | BB15: 0 | BC15: 0 | BD15: 0 | BE15: 0 | BF15: 0 | BG15: 0 | BH15: 0 | BI15: 0 | BJ15: 0 | BK15: 0 | BL15: 0 | BM15: 0 | BN15: 0 | BO15: 0 | BP15: 0 | BQ15: 0 | BR15: 0 | BS15: 0 | BT15: 0 | BU15: 0 | BV15: 0 | BW15: 0 | BX15: 0 | BY15: =$G15*BY$9 -> 0 | BZ15: 0 | CA15: 0 | CB15: 0 | CC15: 0 | CD15: 0 | CE15: 0 | CF15: 0 | CG15: 0 | CH15: 0 | CI15: 0 | CJ15: 0 | CK15: 0 | CL15: 0 | CM15: 0 | CN15: 0 | CO15: 0 | CP15: 0 | CQ15: 0 | CR15: 0 | CS15: 0 | CT15: 0 | CU15: 0 | CV15: 0 | CW15: 0 | CX15: 0 | CY15: 0 | CZ15: 0 | DA15: 0 | DB15: 0 | DC15: 0 | DD15: 0 | DE15: 0 | DF15: 0 | DG15: 0 | DH15: 0 | DI15: 0 | DJ15: 0 | DK15: 0 | DL15: 0 | DM15: 0 | DN15: 0 | DO15: 0 | DP15: 0 | DQ15: 0 | DR15: 0 | DS15: 0 | DT15: 0 | DU15: 0 | DV15: 0 | DW15: 0 | DX15: 0 | DY15: 0 | DZ15: 0 | EA15: 0 | EB15: 0 | EC15: 0 | ED15: 0 | EE15: 0 | EF15: 0 | EG15: 0 | EH15: 0 | EI15: 0 | EJ15: 0 | EK15: =$G15*EK$9 -> 0 | EL15: 0 | EM15: 0 | EN15: 0 | EO15: 0 | EP15: 0 | EQ15: 0 | ER15: 0 | ES15: 0 | ET15: 0 | EU15: 0 | EV15: 0 | EW15: 0 | EX15: 0 | EY15: 0 | EZ15: 0 | FA15: 0 | FB15: 0 | FC15: 0 | FD15: 0 | FE15: 0 | FF15: 0 | FG15: 0 | FH15: 0 | FI15: 0 | FJ15: 0 | FK15: 0 | FL15: 0 | FM15: 0 | FN15: 0 | FO15: 0 | FP15: 0 | FQ15: 0 | FR15: 0 | FS15: 0 | FT15: 0 | FU15: 0 | FV15: 0 | FW15: 0 | FX15: 0 | FY15: 0 | FZ15: 0 | GA15: 0 | GB15: 0 | GC15: 0 | GD15: 0 | GE15: 0 | GF15: 0 | GG15: 0 | GH15: 0 | GI15: 0 | GJ15: 0 | GK15: 0 | GL15: 0 | GM15: 0 | GN15: 0 | GO15: 0 | GP15: 0 | GQ15: 0 | GR15: 0 | GS15: 0 | GT15: 0 | GU15: 0 | GV15: 0 | GW15: =$G15*GW$9 -> 0 | GX15: 0 | GY15: 0 | GZ15: 0 | HA15: 0 | HB15: 0 | HC15: 0 | HD15: 0 | HE15: 0 | HF15: 0 | HG15: 0 | HH15: 0 | HI15: 0 | HJ15: 0 | HK15: 0 | HL15: 0 | HM15: 0 | HN15: 0 | HO15: 0 | HP15: 0 | HQ15: 0 | HR15: 0 | HS15: 0 | HT15: 0 | HU15: 0 | HV15: 0 | HW15: 0 | HX15: 0 | HY15: 0 | HZ15: 0 | IA15: 0 | IB15: 0 | IC15: 0 | ID15: 0 | IE15: 0 | IF15: 0 | IG15: 0 | IH15: 0 | II15: 0 | IJ15: 0 | IK15: 0 | IL15: 0 | IM15: 0 | IN15: 0 | IO15: 0 | IP15: 0 | IQ15: 0 | IR15: 0 | IS15: 0 | IT15: 0 | IU15: 0 | IV15: 0 | IW15: 0 | IX15: 0 | IY15: 0 | IZ15: 0 | JA15: 0 | JB15: 0 | JC15: 0 | JD15: 0 | JE15: 0 | JF15: 0 | JG15: 0 | JH15: 0 | JI15: =$G15*JI$9 -> 0 | JJ15: 0 | JK15: 0 | JL15: 0 | JM15: 0 | JN15: 0 | JO15: 0 | JP15: 0 | JQ15: 0 | JR15: 0 | JS15: 0 | JT15: 0 | JU15: 0 | JV15: 0 | JW15: 0 | JX15: 0 | JY15: 0 | JZ15: 0 | KA15: 0 | KB15: 0 | KC15: 0 | KD15: 0 | KE15: 0 | KF15: 0 | KG15: 0 | KH15: 0 | KI15: 0 | KJ15: 0 | KK15: 0 | KL15: 0 | KM15: 0 | KN15: 0 | KO15: 0 | KP15: 0 | KQ15: 0 | KR15: 0 | KS15: 0 | KT15: 0 | KU15: 0 | KV15: 0 | KW15: 0 | KX15: 0 | KY15: 0 | KZ15: 0 | LA15: 0 | LB15: 0 | LC15: 0 | LD15: 0 | LE15: 0 | LF15: 0 | LG15: 0 | LH15: 0 | LI15: 0 | LJ15: 0 | LK15: 0 | LL15: 0 | LM15: 0 | LN15: 0 | LO15: 0 | LP15: 0 | LQ15: 0 | LR15: 0 | LS15: 0 | LT15: 0 | LU15: =$G15*LU$9 -> 0 | LV15: 0 | LW15: 0 | LX15: 0 | LY15: 0 | LZ15: 0 | MA15: 0 | MB15: 0 | MC15: 0 | MD15: 0 | ME15: 0 | MF15: 0 | MG15: 0 | MH15: 0 | MI15: 0 | MJ15: 0 | MK15: 0 | ML15: 0 | MM15: 0 | MN15: 0 | MO15: 0 | MP15: 0 | MQ15: 0 | MR15: 0 | MS15: 0 | MT15: 0 | MU15: 0 | MV15: 0 | MW15: 0 | MX15: 0 | MY15: 0 | MZ15: 0 | NA15: 0 | NB15: 0 | NC15: 0 | ND15: 0 | NE15: 0 | NF15: 0 | NG15: 0 | NH15: 0 | NI15: 0 | NJ15: 0 | NK15: 0 | NL15: 0 | NM15: 0 | NN15: 0 | NO15: 0 | NP15: 0 | NQ15: 0 | NR15: 0 | NS15: 0 | NT15: 0 | NU15: 0 | NV15: 0 | NW15: 0 | NX15: 0 | NY15: 0 | NZ15: 0 | OA15: 0 | OB15: 0 | OC15: 0 | OD15: 0 | OE15: 0 | OF15: 0 | OG15: =$G15*OG$9 -> 0 | OH15: 0 | OI15: 0 | OJ15: 0 | OK15: 0 | OL15: 0 | OM15: 0 | ON15: 0 | OO15: 0 | OP15: 0 | OQ15: 0 | OR15: 0 | OS15: 0 | OT15: 0 | OU15: 0 | OV15: 0 | OW15: 0 | OX15: 0 | OY15: 0 | OZ15: 0 | PA15: 0 | PB15: 0 | PC15: 0 | PD15: 0 | PE15: 0 | PF15: 0 | PG15: 0 | PH15: 0 | PI15: 0 | PJ15: 0 | PK15: 0 | PL15: 0 | PM15: 0 | PN15: 0 | PO15: 0 | PP15: 0 | PQ15: 0 | PR15: 0 | PS15: 0 | PT15: 0 | PU15: 0 | PV15: 0 | PW15: 0 | PX15: 0 | PY15: 0 | PZ15: 0 | QA15: 0 | QB15: 0 | QC15: 0 | QD15: 0 | QE15: 0 | QF15: 0 | QG15: 0 | QH15: 0 | QI15: 0 | QJ15: 0 | QK15: 0 | QL15: 0 | QM15: 0 | QN15: 0 | QO15: 0 | QP15: 0 | QQ15: 0 | QR15: 0 | QS15: =$G15*QS$9 -> 0 | QT15: 0 | QU15: 0 | QV15: 0 | QW15: 0 | QX15: 0 | QY15: 0 | QZ15: 0 | RA15: 0 | RB15: 0 | RC15: 0 | RD15: 0 | RE15: 0 | RF15: 0 | RG15: 0 | RH15: 0 | RI15: 0 | RJ15: 0 | RK15: 0 | RL15: 0 | RM15: 0 | RN15: 0 | RO15: 0 | RP15: 0 | RQ15: 0 | RR15: 0 | RS15: 0 | RT15: 0 | RU15: 0 | RV15: 0 | RW15: 0 | RX15: 0 | RY15: 0 | RZ15: 0 | SA15: 0 | SB15: 0 | SC15: 0 | SD15: 0 | SE15: 0 | SF15: 0 | SG15: 0 | SH15: 0 | SI15: 0 | SJ15: 0 | SK15: 0 | SL15: 0 | SM15: 0 | SN15: 0 | SO15: 0 | SP15: 0 | SQ15: 0
D16: Available Capacity | F16: MW | J16: MW | L16: =L13*L15 -> 0 | M16: =M13*M15 -> 0 | N16: 190 | O16: 190 | P16: 190 | Q16: 190 | R16: 190 | S16: 190 | T16: 190 | U16: 190 | V16: 190 | W16: 190 | X16: 190 | Y16: 190 | Z16: 190 | AA16: 190 | AB16: 190 | AC16: 190 | AD16: 190 | AE16: 190 | AF16: 190 | AG16: 190 | AH16: 190 | AI16: 190 | AJ16: 190 | AK16: 190 | AL16: 190 | AM16: 190 | AN16: 190 | AO16: 190 | AP16: 190 | AQ16: 190 | AR16: 0 | AS16: 0 | AT16: 0 | AU16: 0 | AV16: 0 | AW16: 0 | AX16: 0 | AY16: 0 | AZ16: 0 | BA16: 0 | BB16: 0 | BC16: 0 | BD16: 0 | BE16: 0 | BF16: 0 | BG16: 0 | BH16: 0 | BI16: 0 | BJ16: 0 | BK16: 0 | BL16: 0 | BM16: 0 | BN16: 0 | BO16: 0 | BP16: 0 | BQ16: 0 | BR16: 0 | BS16: 0 | BT16: 0 | BU16: 0 | BV16: 0 | BW16: 0 | BX16: 0 | BY16: =BY13*BY15 -> 0 | BZ16: 0 | CA16: 0 | CB16: 0 | CC16: 0 | CD16: 0 | CE16: 0 | CF16: 0 | CG16: 0 | CH16: 0 | CI16: 0 | CJ16: 0 | CK16: 0 | CL16: 0 | CM16: 0 | CN16: 0 | CO16: 0 | CP16: 0 | CQ16: 0 | CR16: 0 | CS16: 0 | CT16: 0 | CU16: 0 | CV16: 0 | CW16: 0 | CX16: 0 | CY16: 0 | CZ16: 0 | DA16: 0 | DB16: 0 | DC16: 0 | DD16: 0 | DE16: 0 | DF16: 0 | DG16: 0 | DH16: 0 | DI16: 0 | DJ16: 0 | DK16: 0 | DL16: 0 | DM16: 0 | DN16: 0 | DO16: 0 | DP16: 0 | DQ16: 0 | DR16: 0 | DS16: 0 | DT16: 0 | DU16: 0 | DV16: 0 | DW16: 0 | DX16: 0 | DY16: 0 | DZ16: 0 | EA16: 0 | EB16: 0 | EC16: 0 | ED16: 0 | EE16: 0 | EF16: 0 | EG16: 0 | EH16: 0 | EI16: 0 | EJ16: 0 | EK16: =EK13*EK15 -> 0 | EL16: 0 | EM16: 0 | EN16: 0 | EO16: 0 | EP16: 0 | EQ16: 0 | ER16: 0 | ES16: 0 | ET16: 0 | EU16: 0 | EV16: 0 | EW16: 0 | EX16: 0 | EY16: 0 | EZ16: 0 | FA16: 0 | FB16: 0 | FC16: 0 | FD16: 0 | FE16: 0 | FF16: 0 | FG16: 0 | FH16: 0 | FI16: 0 | FJ16: 0 | FK16: 0 | FL16: 0 | FM16: 0 | FN16: 0 | FO16: 0 | FP16: 0 | FQ16: 0 | FR16: 0 | FS16: 0 | FT16: 0 | FU16: 0 | FV16: 0 | FW16: 0 | FX16: 0 | FY16: 0 | FZ16: 0 | GA16: 0 | GB16: 0 | GC16: 0 | GD16: 0 | GE16: 0 | GF16: 0 | GG16: 0 | GH16: 0 | GI16: 0 | GJ16: 0 | GK16: 0 | GL16: 0 | GM16: 0 | GN16: 0 | GO16: 0 | GP16: 0 | GQ16: 0 | GR16: 0 | GS16: 0 | GT16: 0 | GU16: 0 | GV16: 0 | GW16: =GW13*GW15 -> 0 | GX16: 0 | GY16: 0 | GZ16: 0 | HA16: 0 | HB16: 0 | HC16: 0 | HD16: 0 | HE16: 0 | HF16: 0 | HG16: 0 | HH16: 0 | HI16: 0 | HJ16: 0 | HK16: 0 | HL16: 0 | HM16: 0 | HN16: 0 | HO16: 0 | HP16: 0 | HQ16: 0 | HR16: 0 | HS16: 0 | HT16: 0 | HU16: 0 | HV16: 0 | HW16: 0 | HX16: 0 | HY16: 0 | HZ16: 0 | IA16: 0 | IB16: 0 | IC16: 0 | ID16: 0 | IE16: 0 | IF16: 0 | IG16: 0 | IH16: 0 | II16: 0 | IJ16: 0 | IK16: 0 | IL16: 0 | IM16: 0 | IN16: 0 | IO16: 0 | IP16: 0 | IQ16: 0 | IR16: 0 | IS16: 0 | IT16: 0 | IU16: 0 | IV16: 0 | IW16: 0 | IX16: 0 | IY16: 0 | IZ16: 0 | JA16: 0 | JB16: 0 | JC16: 0 | JD16: 0 | JE16: 0 | JF16: 0 | JG16: 0 | JH16: 0 | JI16: =JI13*JI15 -> 0 | JJ16: 0 | JK16: 0 | JL16: 0 | JM16: 0 | JN16: 0 | JO16: 0 | JP16: 0 | JQ16: 0 | JR16: 0 | JS16: 0 | JT16: 0 | JU16: 0 | JV16: 0 | JW16: 0 | JX16: 0 | JY16: 0 | JZ16: 0 | KA16: 0 | KB16: 0 | KC16: 0 | KD16: 0 | KE16: 0 | KF16: 0 | KG16: 0 | KH16: 0 | KI16: 0 | KJ16: 0 | KK16: 0 | KL16: 0 | KM16: 0 | KN16: 0 | KO16: 0 | KP16: 0 | KQ16: 0 | KR16: 0 | KS16: 0 | KT16: 0 | KU16: 0 | KV16: 0 | KW16: 0 | KX16: 0 | KY16: 0 | KZ16: 0 | LA16: 0 | LB16: 0 | LC16: 0 | LD16: 0 | LE16: 0 | LF16: 0 | LG16: 0 | LH16: 0 | LI16: 0 | LJ16: 0 | LK16: 0 | LL16: 0 | LM16: 0 | LN16: 0 | LO16: 0 | LP16: 0 | LQ16: 0 | LR16: 0 | LS16: 0 | LT16: 0 | LU16: =LU13*LU15 -> 0 | LV16: 0 | LW16: 0 | LX16: 0 | LY16: 0 | LZ16: 0 | MA16: 0 | MB16: 0 | MC16: 0 | MD16: 0 | ME16: 0 | MF16: 0 | MG16: 0 | MH16: 0 | MI16: 0 | MJ16: 0 | MK16: 0 | ML16: 0 | MM16: 0 | MN16: 0 | MO16: 0 | MP16: 0 | MQ16: 0 | MR16: 0 | MS16: 0 | MT16: 0 | MU16: 0 | MV16: 0 | MW16: 0 | MX16: 0 | MY16: 0 | MZ16: 0 | NA16: 0 | NB16: 0 | NC16: 0 | ND16: 0 | NE16: 0 | NF16: 0 | NG16: 0 | NH16: 0 | NI16: 0 | NJ16: 0 | NK16: 0 | NL16: 0 | NM16: 0 | NN16: 0 | NO16: 0 | NP16: 0 | NQ16: 0 | NR16: 0 | NS16: 0 | NT16: 0 | NU16: 0 | NV16: 0 | NW16: 0 | NX16: 0 | NY16: 0 | NZ16: 0 | OA16: 0 | OB16: 0 | OC16: 0 | OD16: 0 | OE16: 0 | OF16: 0 | OG16: =OG13*OG15 -> 0 | OH16: 0 | OI16: 0 | OJ16: 0 | OK16: 0 | OL16: 0 | OM16: 0 | ON16: 0 | OO16: 0 | OP16: 0 | OQ16: 0 | OR16: 0 | OS16: 0 | OT16: 0 | OU16: 0 | OV16: 0 | OW16: 0 | OX16: 0 | OY16: 0 | OZ16: 0 | PA16: 0 | PB16: 0 | PC16: 0 | PD16: 0 | PE16: 0 | PF16: 0 | PG16: 0 | PH16: 0 | PI16: 0 | PJ16: 0 | PK16: 0 | PL16: 0 | PM16: 0 | PN16: 0 | PO16: 0 | PP16: 0 | PQ16: 0 | PR16: 0 | PS16: 0 | PT16: 0 | PU16: 0 | PV16: 0 | PW16: 0 | PX16: 0 | PY16: 0 | PZ16: 0 | QA16: 0 | QB16: 0 | QC16: 0 | QD16: 0 | QE16: 0 | QF16: 0 | QG16: 0 | QH16: 0 | QI16: 0 | QJ16: 0 | QK16: 0 | QL16: 0 | QM16: 0 | QN16: 0 | QO16: 0 | QP16: 0 | QQ16: 0 | QR16: 0 | QS16: =QS13*QS15 -> 0 | QT16: 0 | QU16: 0 | QV16: 0 | QW16: 0 | QX16: 0 | QY16: 0 | QZ16: 0 | RA16: 0 | RB16: 0 | RC16: 0 | RD16: 0 | RE16: 0 | RF16: 0 | RG16: 0 | RH16: 0 | RI16: 0 | RJ16: 0 | RK16: 0 | RL16: 0 | RM16: 0 | RN16: 0 | RO16: 0 | RP16: 0 | RQ16: 0 | RR16: 0 | RS16: 0 | RT16: 0 | RU16: 0 | RV16: 0 | RW16: 0 | RX16: 0 | RY16: 0 | RZ16: 0 | SA16: 0 | SB16: 0 | SC16: 0 | SD16: 0 | SE16: 0 | SF16: 0 | SG16: 0 | SH16: 0 | SI16: 0 | SJ16: 0 | SK16: 0 | SL16: 0 | SM16: 0 | SN16: 0 | SO16: 0 | SP16: 0 | SQ16: 0
D18: Capacity Factor | F18: % | G18: =InputC!G32 -> 0.6 | J18: % | L18: =$G18*L$9 -> 0 | M18: =$G18*M$9 -> 0 | N18: 0.6 | O18: 0.6 | P18: 0.6 | Q18: 0.6 | R18: 0.6 | S18: 0.6 | T18: 0.6 | U18: 0.6 | V18: 0.6 | W18: 0.6 | X18: 0.6 | Y18: 0.6 | Z18: 0.6 | AA18: 0.6 | AB18: 0.6 | AC18: 0.6 | AD18: 0.6 | AE18: 0.6 | AF18: 0.6 | AG18: 0.6 | AH18: 0.6 | AI18: 0.6 | AJ18: 0.6 | AK18: 0.6 | AL18: 0.6 | AM18: 0.6 | AN18: 0.6 | AO18: 0.6 | AP18: 0.6 | AQ18: 0.6 | AR18: 0 | AS18: 0 | AT18: 0 | AU18: 0 | AV18: 0 | AW18: 0 | AX18: 0 | AY18: 0 | AZ18: 0 | BA18: 0 | BB18: 0 | BC18: 0 | BD18: 0 | BE18: 0 | BF18: 0 | BG18: 0 | BH18: 0 | BI18: 0 | BJ18: 0 | BK18: 0 | BL18: 0 | BM18: 0 | BN18: 0 | BO18: 0 | BP18: 0 | BQ18: 0 | BR18: 0 | BS18: 0 | BT18: 0 | BU18: 0 | BV18: 0 | BW18: 0 | BX18: 0 | BY18: =$G18*BY$9 -> 0 | BZ18: 0 | CA18: 0 | CB18: 0 | CC18: 0 | CD18: 0 | CE18: 0 | CF18: 0 | CG18: 0 | CH18: 0 | CI18: 0 | CJ18: 0 | CK18: 0 | CL18: 0 | CM18: 0 | CN18: 0 | CO18: 0 | CP18: 0 | CQ18: 0 | CR18: 0 | CS18: 0 | CT18: 0 | CU18: 0 | CV18: 0 | CW18: 0 | CX18: 0 | CY18: 0 | CZ18: 0 | DA18: 0 | DB18: 0 | DC18: 0 | DD18: 0 | DE18: 0 | DF18: 0 | DG18: 0 | DH18: 0 | DI18: 0 | DJ18: 0 | DK18: 0 | DL18: 0 | DM18: 0 | DN18: 0 | DO18: 0 | DP18: 0 | DQ18: 0 | DR18: 0 | DS18: 0 | DT18: 0 | DU18: 0 | DV18: 0 | DW18: 0 | DX18: 0 | DY18: 0 | DZ18: 0 | EA18: 0 | EB18: 0 | EC18: 0 | ED18: 0 | EE18: 0 | EF18: 0 | EG18: 0 | EH18: 0 | EI18: 0 | EJ18: 0 | EK18: =$G18*EK$9 -> 0 | EL18: 0 | EM18: 0 | EN18: 0 | EO18: 0 | EP18: 0 | EQ18: 0 | ER18: 0 | ES18: 0 | ET18: 0 | EU18: 0 | EV18: 0 | EW18: 0 | EX18: 0 | EY18: 0 | EZ18: 0 | FA18: 0 | FB18: 0 | FC18: 0 | FD18: 0 | FE18: 0 | FF18: 0 | FG18: 0 | FH18: 0 | FI18: 0 | FJ18: 0 | FK18: 0 | FL18: 0 | FM18: 0 | FN18: 0 | FO18: 0 | FP18: 0 | FQ18: 0 | FR18: 0 | FS18: 0 | FT18: 0 | FU18: 0 | FV18: 0 | FW18: 0 | FX18: 0 | FY18: 0 | FZ18: 0 | GA18: 0 | GB18: 0 | GC18: 0 | GD18: 0 | GE18: 0 | GF18: 0 | GG18: 0 | GH18: 0 | GI18: 0 | GJ18: 0 | GK18: 0 | GL18: 0 | GM18: 0 | GN18: 0 | GO18: 0 | GP18: 0 | GQ18: 0 | GR18: 0 | GS18: 0 | GT18: 0 | GU18: 0 | GV18: 0 | GW18: =$G18*GW$9 -> 0 | GX18: 0 | GY18: 0 | GZ18: 0 | HA18: 0 | HB18: 0 | HC18: 0 | HD18: 0 | HE18: 0 | HF18: 0 | HG18: 0 | HH18: 0 | HI18: 0 | HJ18: 0 | HK18: 0 | HL18: 0 | HM18: 0 | HN18: 0 | HO18: 0 | HP18: 0 | HQ18: 0 | HR18: 0 | HS18: 0 | HT18: 0 | HU18: 0 | HV18: 0 | HW18: 0 | HX18: 0 | HY18: 0 | HZ18: 0 | IA18: 0 | IB18: 0 | IC18: 0 | ID18: 0 | IE18: 0 | IF18: 0 | IG18: 0 | IH18: 0 | II18: 0 | IJ18: 0 | IK18: 0 | IL18: 0 | IM18: 0 | IN18: 0 | IO18: 0 | IP18: 0 | IQ18: 0 | IR18: 0 | IS18: 0 | IT18: 0 | IU18: 0 | IV18: 0 | IW18: 0 | IX18: 0 | IY18: 0 | IZ18: 0 | JA18: 0 | JB18: 0 | JC18: 0 | JD18: 0 | JE18: 0 | JF18: 0 | JG18: 0 | JH18: 0 | JI18: =$G18*JI$9 -> 0 | JJ18: 0 | JK18: 0 | JL18: 0 | JM18: 0 | JN18: 0 | JO18: 0 | JP18: 0 | JQ18: 0 | JR18: 0 | JS18: 0 | JT18: 0 | JU18: 0 | JV18: 0 | JW18: 0 | JX18: 0 | JY18: 0 | JZ18: 0 | KA18: 0 | KB18: 0 | KC18: 0 | KD18: 0 | KE18: 0 | KF18: 0 | KG18: 0 | KH18: 0 | KI18: 0 | KJ18: 0 | KK18: 0 | KL18: 0 | KM18: 0 | KN18: 0 | KO18: 0 | KP18: 0 | KQ18: 0 | KR18: 0 | KS18: 0 | KT18: 0 | KU18: 0 | KV18: 0 | KW18: 0 | KX18: 0 | KY18: 0 | KZ18: 0 | LA18: 0 | LB18: 0 | LC18: 0 | LD18: 0 | LE18: 0 | LF18: 0 | LG18: 0 | LH18: 0 | LI18: 0 | LJ18: 0 | LK18: 0 | LL18: 0 | LM18: 0 | LN18: 0 | LO18: 0 | LP18: 0 | LQ18: 0 | LR18: 0 | LS18: 0 | LT18: 0 | LU18: =$G18*LU$9 -> 0 | LV18: 0 | LW18: 0 | LX18: 0 | LY18: 0 | LZ18: 0 | MA18: 0 | MB18: 0 | MC18: 0 | MD18: 0 | ME18: 0 | MF18: 0 | MG18: 0 | MH18: 0 | MI18: 0 | MJ18: 0 | MK18: 0 | ML18: 0 | MM18: 0 | MN18: 0 | MO18: 0 | MP18: 0 | MQ18: 0 | MR18: 0 | MS18: 0 | MT18: 0 | MU18: 0 | MV18: 0 | MW18: 0 | MX18: 0 | MY18: 0 | MZ18: 0 | NA18: 0 | NB18: 0 | NC18: 0 | ND18: 0 | NE18: 0 | NF18: 0 | NG18: 0 | NH18: 0 | NI18: 0 | NJ18: 0 | NK18: 0 | NL18: 0 | NM18: 0 | NN18: 0 | NO18: 0 | NP18: 0 | NQ18: 0 | NR18: 0 | NS18: 0 | NT18: 0 | NU18: 0 | NV18: 0 | NW18: 0 | NX18: 0 | NY18: 0 | NZ18: 0 | OA18: 0 | OB18: 0 | OC18: 0 | OD18: 0 | OE18: 0 | OF18: 0 | OG18: =$G18*OG$9 -> 0 | OH18: 0 | OI18: 0 | OJ18: 0 | OK18: 0 | OL18: 0 | OM18: 0 | ON18: 0 | OO18: 0 | OP18: 0 | OQ18: 0 | OR18: 0 | OS18: 0 | OT18: 0 | OU18: 0 | OV18: 0 | OW18: 0 | OX18: 0 | OY18: 0 | OZ18: 0 | PA18: 0 | PB18: 0 | PC18: 0 | PD18: 0 | PE18: 0 | PF18: 0 | PG18: 0 | PH18: 0 | PI18: 0 | PJ18: 0 | PK18: 0 | PL18: 0 | PM18: 0 | PN18: 0 | PO18: 0 | PP18: 0 | PQ18: 0 | PR18: 0 | PS18: 0 | PT18: 0 | PU18: 0 | PV18: 0 | PW18: 0 | PX18: 0 | PY18: 0 | PZ18: 0 | QA18: 0 | QB18: 0 | QC18: 0 | QD18: 0 | QE18: 0 | QF18: 0 | QG18: 0 | QH18: 0 | QI18: 0 | QJ18: 0 | QK18: 0 | QL18: 0 | QM18: 0 | QN18: 0 | QO18: 0 | QP18: 0 | QQ18: 0 | QR18: 0 | QS18: =$G18*QS$9 -> 0 | QT18: 0 | QU18: 0 | QV18: 0 | QW18: 0 | QX18: 0 | QY18: 0 | QZ18: 0 | RA18: 0 | RB18: 0 | RC18: 0 | RD18: 0 | RE18: 0 | RF18: 0 | RG18: 0 | RH18: 0 | RI18: 0 | RJ18: 0 | RK18: 0 | RL18: 0 | RM18: 0 | RN18: 0 | RO18: 0 | RP18: 0 | RQ18: 0 | RR18: 0 | RS18: 0 | RT18: 0 | RU18: 0 | RV18: 0 | RW18: 0 | RX18: 0 | RY18: 0 | RZ18: 0 | SA18: 0 | SB18: 0 | SC18: 0 | SD18: 0 | SE18: 0 | SF18: 0 | SG18: 0 | SH18: 0 | SI18: 0 | SJ18: 0 | SK18: 0 | SL18: 0 | SM18: 0 | SN18: 0 | SO18: 0 | SP18: 0 | SQ18: 0
D20: Hours | J20: Hours | L20: =(L8-L7+1)*Hours_in_day -> 8760 | M20: 8784 | N20: 8760 | O20: 8760 | P20: 8760 | Q20: 8784 | R20: 8760 | S20: 8760 | T20: 8760 | U20: 8784 | V20: 8760 | W20: 8760 | X20: 8760 | Y20: 8784 | Z20: 8760 | AA20: 8760 | AB20: 8760 | AC20: 8784 | AD20: 8760 | AE20: 8760 | AF20: 8760 | AG20: 8784 | AH20: 8760 | AI20: 8760 | AJ20: 8760 | AK20: 8784 | AL20: 8760 | AM20: 8760 | AN20: 8760 | AO20: 8784 | AP20: 8760 | AQ20: 8760 | AR20: 8760 | AS20: 8784 | AT20: 8760 | AU20: 8760 | AV20: 8760 | AW20: 8784 | AX20: 8760 | AY20: 8760 | AZ20: 8760 | BA20: 8784 | BB20: 8760 | BC20: 8760 | BD20: 8760 | BE20: 8784 | BF20: 8760 | BG20: 8760 | BH20: 8760 | BI20: 8784 | BJ20: 8760 | BK20: 8760 | BL20: 8760 | BM20: 8784 | BN20: 8760 | BO20: 8760 | BP20: 8760 | BQ20: 8784 | BR20: 8760 | BS20: 8760 | BT20: 8760 | BU20: 8784 | BV20: 8760 | BW20: 8760 | BX20: =(BX8-BX7+1)*Hours_in_day -> 8760 | BY20: 8784 | BZ20: 8760 | CA20: 8760 | CB20: 8760 | CC20: 8784 | CD20: 8760 | CE20: 8760 | CF20: 8760 | CG20: 8784 | CH20: 8760 | CI20: 8760 | CJ20: 8760 | CK20: 8784 | CL20: 8760 | CM20: 8760 | CN20: 8760 | CO20: 8760 | CP20: 8760 | CQ20: 8760 | CR20: 8760 | CS20: 8784 | CT20: 8760 | CU20: 8760 | CV20: 8760 | CW20: 8784 | CX20: 8760 | CY20: 8760 | CZ20: 8760 | DA20: 8784 | DB20: 8760 | DC20: 8760 | DD20: 8760 | DE20: 8784 | DF20: 8760 | DG20: 8760 | DH20: 8760 | DI20: 8784 | DJ20: 8760 | DK20: 8760 | DL20: 8760 | DM20: 8784 | DN20: 8760 | DO20: 8760 | DP20: 8760 | DQ20: 8784 | DR20: 8760 | DS20: 8760 | DT20: 8760 | DU20: 8784 | DV20: 8760 | DW20: 8760 | DX20: 8760 | DY20: 8784 | DZ20: 8760 | EA20: 8760 | EB20: 8760 | EC20: 8784 | ED20: 8760 | EE20: 8760 | EF20: 8760 | EG20: 8784 | EH20: 8760 | EI20: 8760 | EJ20: =(EJ8-EJ7+1)*Hours_in_day -> 8760 | EK20: 8784 | EL20: 8760 | EM20: 8760 | EN20: 8760 | EO20: 8784 | EP20: 8760 | EQ20: 8760 | ER20: 8760 | ES20: 8784 | ET20: 8760 | EU20: 8760 | EV20: 8760 | EW20: 8784 | EX20: 8760 | EY20: 8760 | EZ20: 8760 | FA20: 8784 | FB20: 8760 | FC20: 8760 | FD20: 8760 | FE20: 8784 | FF20: 8760 | FG20: 8760 | FH20: 8760 | FI20: 8784 | FJ20: 8760 | FK20: 8760 | FL20: 8760 | FM20: 8784 | FN20: 8760 | FO20: 8760 | FP20: 8760 | FQ20: 8784 | FR20: 8760 | FS20: 8760 | FT20: 8760 | FU20: 8784 | FV20: 8760 | FW20: 8760 | FX20: 8760 | FY20: 8784 | FZ20: 8760 | GA20: 8760 | GB20: 8760 | GC20: 8784 | GD20: 8760 | GE20: 8760 | GF20: 8760 | GG20: 8784 | GH20: 8760 | GI20: 8760 | GJ20: 8760 | GK20: 8760 | GL20: 8760 | GM20: 8760 | GN20: 8760 | GO20: 8784 | GP20: 8760 | GQ20: 8760 | GR20: 8760 | GS20: 8784 | GT20: 8760 | GU20: 8760 | GV20: =(GV8-GV7+1)*Hours_in_day -> 8760 | GW20: 8784 | GX20: 8760 | GY20: 8760 | GZ20: 8760 | HA20: 8784 | HB20: 8760 | HC20: 8760 | HD20: 8760 | HE20: 8784 | HF20: 8760 | HG20: 8760 | HH20: 8760 | HI20: 8784 | HJ20: 8760 | HK20: 8760 | HL20: 8760 | HM20: 8784 | HN20: 8760 | HO20: 8760 | HP20: 8760 | HQ20: 8784 | HR20: 8760 | HS20: 8760 | HT20: 8760 | HU20: 8784 | HV20: 8760 | HW20: 8760 | HX20: 8760 | HY20: 8784 | HZ20: 8760 | IA20: 8760 | IB20: 8760 | IC20: 8784 | ID20: 8760 | IE20: 8760 | IF20: 8760 | IG20: 8784 | IH20: 8760 | II20: 8760 | IJ20: 8760 | IK20: 8784 | IL20: 8760 | IM20: 8760 | IN20: 8760 | IO20: 8784 | IP20: 8760 | IQ20: 8760 | IR20: 8760 | IS20: 8784 | IT20: 8760 | IU20: 8760 | IV20: 8760 | IW20: 8784 | IX20: 8760 | IY20: 8760 | IZ20: 8760 | JA20: 8784 | JB20: 8760 | JC20: 8760 | JD20: 8760 | JE20: 8784 | JF20: 8760 | JG20: 8760 | JH20: =(JH8-JH7+1)*Hours_in_day -> 8760 | JI20: 8784 | JJ20: 8760 | JK20: 8760 | JL20: 8760 | JM20: 8784 | JN20: 8760 | JO20: 8760 | JP20: 8760 | JQ20: 8784 | JR20: 8760 | JS20: 8760 | JT20: 8760 | JU20: 8784 | JV20: 8760 | JW20: 8760 | JX20: 8760 | JY20: 8784 | JZ20: 8760 | KA20: 8760 | KB20: 8760 | KC20: 8784 | KD20: 8760 | KE20: 8760 | KF20: 8760 | KG20: 8760 | KH20: 8760 | KI20: 8760 | KJ20: 8760 | KK20: 8784 | KL20: 8760 | KM20: 8760 | KN20: 8760 | KO20: 8784 | KP20: 8760 | KQ20: 8760 | KR20: 8760 | KS20: 8784 | KT20: 8760 | KU20: 8760 | KV20: 8760 | KW20: 8784 | KX20: 8760 | KY20: 8760 | KZ20: 8760 | LA20: 8784 | LB20: 8760 | LC20: 8760 | LD20: 8760 | LE20: 8784 | LF20: 8760 | LG20: 8760 | LH20: 8760 | LI20: 8784 | LJ20: 8760 | LK20: 8760 | LL20: 8760 | LM20: 8784 | LN20: 8760 | LO20: 8760 | LP20: 8760 | LQ20: 8784 | LR20: 8760 | LS20: 8760 | LT20: =(LT8-LT7+1)*Hours_in_day -> 8760 | LU20: 8784 | LV20: 8760 | LW20: 8760 | LX20: 8760 | LY20: 8784 | LZ20: 8760 | MA20: 8760 | MB20: 8760 | MC20: 8784 | MD20: 8760 | ME20: 8760 | MF20: 8760 | MG20: 8784 | MH20: 8760 | MI20: 8760 | MJ20: 8760 | MK20: 8784 | ML20: 8760 | MM20: 8760 | MN20: 8760 | MO20: 8784 | MP20: 8760 | MQ20: 8760 | MR20: 8760 | MS20: 8784 | MT20: 8760 | MU20: 8760 | MV20: 8760 | MW20: 8784 | MX20: 8760 | MY20: 8760 | MZ20: 8760 | NA20: 8784 | NB20: 8760 | NC20: 8760 | ND20: 8760 | NE20: 8784 | NF20: 8760 | NG20: 8760 | NH20: 8760 | NI20: 8784 | NJ20: 8760 | NK20: 8760 | NL20: 8760 | NM20: 8784 | NN20: 8760 | NO20: 8760 | NP20: 8760 | NQ20: 8784 | NR20: 8760 | NS20: 8760 | NT20: 8760 | NU20: 8784 | NV20: 8760 | NW20: 8760 | NX20: 8760 | NY20: 8784 | NZ20: 8760 | OA20: 8760 | OB20: 8760 | OC20: 8784 | OD20: 8760 | OE20: 8760 | OF20: =(OF8-OF7+1)*Hours_in_day -> 8760 | OG20: 8784 | OH20: 8760 | OI20: 8760 | OJ20: 8760 | OK20: 8784 | OL20: 8760 | OM20: 8760 | ON20: 8760 | OO20: 8784 | OP20: 8760 | OQ20: 8760 | OR20: 8760 | OS20: 8784 | OT20: 8760 | OU20: 8760 | OV20: 8760 | OW20: 8784 | OX20: 8760 | OY20: 8760 | OZ20: 8760 | PA20: 8784 | PB20: 8760 | PC20: 8760 | PD20: 8760 | PE20: 8784 | PF20: 8760 | PG20: 8760 | PH20: 8760 | PI20: 8784 | PJ20: 8760 | PK20: 8760 | PL20: 8760 | PM20: 8784 | PN20: 8760 | PO20: 8760 | PP20: 8760 | PQ20: 8784 | PR20: 8760 | PS20: 8760 | PT20: 8760 | PU20: 8784 | PV20: 8760 | PW20: 8760 | PX20: 8760 | PY20: 8784 | PZ20: 8760 | QA20: 8760 | QB20: 8760 | QC20: 8784 | QD20: 8760 | QE20: 8760 | QF20: 8760 | QG20: 8784 | QH20: 8760 | QI20: 8760 | QJ20: 8760 | QK20: 8784 | QL20: 8760 | QM20: 8760 | QN20: 8760 | QO20: 8784 | QP20: 8760 | QQ20: 8760 | QR20: =(QR8-QR7+1)*Hours_in_day -> 8760 | QS20: 8784 | QT20: 8760 | QU20: 8760 | QV20: 8760 | QW20: 8784 | QX20: 8760 | QY20: 8760 | QZ20: 8760 | RA20: 8784 | RB20: 8760 | RC20: 8760 | RD20: 8760 | RE20: 8784 | RF20: 8760 | RG20: 8760 | RH20: 8760 | RI20: 8784 | RJ20: 8760 | RK20: 8760 | RL20: 8760 | RM20: 8784 | RN20: 8760 | RO20: 8760 | RP20: 8760 | RQ20: 8784 | RR20: 8760 | RS20: 8760 | RT20: 8760 | RU20: 8784 | RV20: 8760 | RW20: 8760 | RX20: 8760 | RY20: 8760 | RZ20: 8760 | SA20: 8760 | SB20: 8760 | SC20: 8784 | SD20: 8760 | SE20: 8760 | SF20: 8760 | SG20: 8784 | SH20: 8760 | SI20: 8760 | SJ20: 8760 | SK20: 8784 | SL20: 8760 | SM20: 8760 | SN20: 8760 | SO20: 8784 | SP20: 8760 | SQ20: 8760
D21: Total energy output | I21: =SUM(L21:XFD21) -> 31556160 | J21: MWH | L21: =L13*L18*L20 -> 0 | M21: =M13*M18*M20 -> 0 | N21: 1051200 | O21: 1051200 | P21: 1051200 | Q21: 1054080 | R21: 1051200 | S21: 1051200 | T21: 1051200 | U21: 1054080 | V21: 1051200 | W21: 1051200 | X21: 1051200 | Y21: 1054080 | Z21: 1051200 | AA21: 1051200 | AB21: 1051200 | AC21: 1054080 | AD21: 1051200 | AE21: 1051200 | AF21: 1051200 | AG21: 1054080 | AH21: 1051200 | AI21: 1051200 | AJ21: 1051200 | AK21: 1054080 | AL21: 1051200 | AM21: 1051200 | AN21: 1051200 | AO21: 1054080 | AP21: 1051200 | AQ21: 1051200 | AR21: 0 | AS21: 0 | AT21: 0 | AU21: 0 | AV21: 0 | AW21: 0 | AX21: 0 | AY21: 0 | AZ21: 0 | BA21: 0 | BB21: 0 | BC21: 0 | BD21: 0 | BE21: 0 | BF21: 0 | BG21: 0 | BH21: 0 | BI21: 0 | BJ21: 0 | BK21: 0 | BL21: 0 | BM21: 0 | BN21: 0 | BO21: 0 | BP21: 0 | BQ21: 0 | BR21: 0 | BS21: 0 | BT21: 0 | BU21: 0 | BV21: 0 | BW21: 0 | BX21: 0 | BY21: =BY13*BY18*BY20 -> 0 | BZ21: 0 | CA21: 0 | CB21: 0 | CC21: 0 | CD21: 0 | CE21: 0 | CF21: 0 | CG21: 0 | CH21: 0 | CI21: 0 | CJ21: 0 | CK21: 0 | CL21: 0 | CM21: 0 | CN21: 0 | CO21: 0 | CP21: 0 | CQ21: 0 | CR21: 0 | CS21: 0 | CT21: 0 | CU21: 0 | CV21: 0 | CW21: 0 | CX21: 0 | CY21: 0 | CZ21: 0 | DA21: 0 | DB21: 0 | DC21: 0 | DD21: 0 | DE21: 0 | DF21: 0 | DG21: 0 | DH21: 0 | DI21: 0 | DJ21: 0 | DK21: 0 | DL21: 0 | DM21: 0 | DN21: 0 | DO21: 0 | DP21: 0 | DQ21: 0 | DR21: 0 | DS21: 0 | DT21: 0 | DU21: 0 | DV21: 0 | DW21: 0 | DX21: 0 | DY21: 0 | DZ21: 0 | EA21: 0 | EB21: 0 | EC21: 0 | ED21: 0 | EE21: 0 | EF21: 0 | EG21: 0 | EH21: 0 | EI21: 0 | EJ21: 0 | EK21: =EK13*EK18*EK20 -> 0 | EL21: 0 | EM21: 0 | EN21: 0 | EO21: 0 | EP21: 0 | EQ21: 0 | ER21: 0 | ES21: 0 | ET21: 0 | EU21: 0 | EV21: 0 | EW21: 0 | EX21: 0 | EY21: 0 | EZ21: 0 | FA21: 0 | FB21: 0 | FC21: 0 | FD21: 0 | FE21: 0 | FF21: 0 | FG21: 0 | FH21: 0 | FI21: 0 | FJ21: 0 | FK21: 0 | FL21: 0 | FM21: 0 | FN21: 0 | FO21: 0 | FP21: 0 | FQ21: 0 | FR21: 0 | FS21: 0 | FT21: 0 | FU21: 0 | FV21: 0 | FW21: 0 | FX21: 0 | FY21: 0 | FZ21: 0 | GA21: 0 | GB21: 0 | GC21: 0 | GD21: 0 | GE21: 0 | GF21: 0 | GG21: 0 | GH21: 0 | GI21: 0 | GJ21: 0 | GK21: 0 | GL21: 0 | GM21: 0 | GN21: 0 | GO21: 0 | GP21: 0 | GQ21: 0 | GR21: 0 | GS21: 0 | GT21: 0 | GU21: 0 | GV21: 0 | GW21: =GW13*GW18*GW20 -> 0 | GX21: 0 | GY21: 0 | GZ21: 0 | HA21: 0 | HB21: 0 | HC21: 0 | HD21: 0 | HE21: 0 | HF21: 0 | HG21: 0 | HH21: 0 | HI21: 0 | HJ21: 0 | HK21: 0 | HL21: 0 | HM21: 0 | HN21: 0 | HO21: 0 | HP21: 0 | HQ21: 0 | HR21: 0 | HS21: 0 | HT21: 0 | HU21: 0 | HV21: 0 | HW21: 0 | HX21: 0 | HY21: 0 | HZ21: 0 | IA21: 0 | IB21: 0 | IC21: 0 | ID21: 0 | IE21: 0 | IF21: 0 | IG21: 0 | IH21: 0 | II21: 0 | IJ21: 0 | IK21: 0 | IL21: 0 | IM21: 0 | IN21: 0 | IO21: 0 | IP21: 0 | IQ21: 0 | IR21: 0 | IS21: 0 | IT21: 0 | IU21: 0 | IV21: 0 | IW21: 0 | IX21: 0 | IY21: 0 | IZ21: 0 | JA21: 0 | JB21: 0 | JC21: 0 | JD21: 0 | JE21: 0 | JF21: 0 | JG21: 0 | JH21: 0 | JI21: =JI13*JI18*JI20 -> 0 | JJ21: 0 | JK21: 0 | JL21: 0 | JM21: 0 | JN21: 0 | JO21: 0 | JP21: 0 | JQ21: 0 | JR21: 0 | JS21: 0 | JT21: 0 | JU21: 0 | JV21: 0 | JW21: 0 | JX21: 0 | JY21: 0 | JZ21: 0 | KA21: 0 | KB21: 0 | KC21: 0 | KD21: 0 | KE21: 0 | KF21: 0 | KG21: 0 | KH21: 0 | KI21: 0 | KJ21: 0 | KK21: 0 | KL21: 0 | KM21: 0 | KN21: 0 | KO21: 0 | KP21: 0 | KQ21: 0 | KR21: 0 | KS21: 0 | KT21: 0 | KU21: 0 | KV21: 0 | KW21: 0 | KX21: 0 | KY21: 0 | KZ21: 0 | LA21: 0 | LB21: 0 | LC21: 0 | LD21: 0 | LE21: 0 | LF21: 0 | LG21: 0 | LH21: 0 | LI21: 0 | LJ21: 0 | LK21: 0 | LL21: 0 | LM21: 0 | LN21: 0 | LO21: 0 | LP21: 0 | LQ21: 0 | LR21: 0 | LS21: 0 | LT21: 0 | LU21: =LU13*LU18*LU20 -> 0 | LV21: 0 | LW21: 0 | LX21: 0 | LY21: 0 | LZ21: 0 | MA21: 0 | MB21: 0 | MC21: 0 | MD21: 0 | ME21: 0 | MF21: 0 | MG21: 0 | MH21: 0 | MI21: 0 | MJ21: 0 | MK21: 0 | ML21: 0 | MM21: 0 | MN21: 0 | MO21: 0 | MP21: 0 | MQ21: 0 | MR21: 0 | MS21: 0 | MT21: 0 | MU21: 0 | MV21: 0 | MW21: 0 | MX21: 0 | MY21: 0 | MZ21: 0 | NA21: 0 | NB21: 0 | NC21: 0 | ND21: 0 | NE21: 0 | NF21: 0 | NG21: 0 | NH21: 0 | NI21: 0 | NJ21: 0 | NK21: 0 | NL21: 0 | NM21: 0 | NN21: 0 | NO21: 0 | NP21: 0 | NQ21: 0 | NR21: 0 | NS21: 0 | NT21: 0 | NU21: 0 | NV21: 0 | NW21: 0 | NX21: 0 | NY21: 0 | NZ21: 0 | OA21: 0 | OB21: 0 | OC21: 0 | OD21: 0 | OE21: 0 | OF21: 0 | OG21: =OG13*OG18*OG20 -> 0 | OH21: 0 | OI21: 0 | OJ21: 0 | OK21: 0 | OL21: 0 | OM21: 0 | ON21: 0 | OO21: 0 | OP21: 0 | OQ21: 0 | OR21: 0 | OS21: 0 | OT21: 0 | OU21: 0 | OV21: 0 | OW21: 0 | OX21: 0 | OY21: 0 | OZ21: 0 | PA21: 0 | PB21: 0 | PC21: 0 | PD21: 0 | PE21: 0 | PF21: 0 | PG21: 0 | PH21: 0 | PI21: 0 | PJ21: 0 | PK21: 0 | PL21: 0 | PM21: 0 | PN21: 0 | PO21: 0 | PP21: 0 | PQ21: 0 | PR21: 0 | PS21: 0 | PT21: 0 | PU21: 0 | PV21: 0 | PW21: 0 | PX21: 0 | PY21: 0 | PZ21: 0 | QA21: 0 | QB21: 0 | QC21: 0 | QD21: 0 | QE21: 0 | QF21: 0 | QG21: 0 | QH21: 0 | QI21: 0 | QJ21: 0 | QK21: 0 | QL21: 0 | QM21: 0 | QN21: 0 | QO21: 0 | QP21: 0 | QQ21: 0 | QR21: 0 | QS21: =QS13*QS18*QS20 -> 0 | QT21: 0 | QU21: 0 | QV21: 0 | QW21: 0 | QX21: 0 | QY21: 0 | QZ21: 0 | RA21: 0 | RB21: 0 | RC21: 0 | RD21: 0 | RE21: 0 | RF21: 0 | RG21: 0 | RH21: 0 | RI21: 0 | RJ21: 0 | RK21: 0 | RL21: 0 | RM21: 0 | RN21: 0 | RO21: 0 | RP21: 0 | RQ21: 0 | RR21: 0 | RS21: 0 | RT21: 0 | RU21: 0 | RV21: 0 | RW21: 0 | RX21: 0 | RY21: 0 | RZ21: 0 | SA21: 0 | SB21: 0 | SC21: 0 | SD21: 0 | SE21: 0 | SF21: 0 | SG21: 0 | SH21: 0 | SI21: 0 | SJ21: 0 | SK21: 0 | SL21: 0 | SM21: 0 | SN21: 0 | SO21: 0 | SP21: 0 | SQ21: 0
B23: Macro Ecoomic
C25: Revenue Inflation | G25: =InputC!G96 -> 2021-01-01 | L25: =(L7>=$G$25)*1 -> 0 | M25: 0 | N25: 1 | O25: 1 | P25: 1 | Q25: 1 | R25: 1 | S25: 1 | T25: 1 | U25: 1 | V25: 1 | W25: 1 | X25: 1 | Y25: 1 | Z25: 1 | AA25: 1 | AB25: 1 | AC25: 1 | AD25: 1 | AE25: 1 | AF25: 1 | AG25: 1 | AH25: 1 | AI25: 1 | AJ25: 1 | AK25: 1 | AL25: 1 | AM25: 1 | AN25: 1 | AO25: 1 | AP25: 1 | AQ25: 1 | AR25: 1 | AS25: 1 | AT25: 1 | AU25: 1 | AV25: 1 | AW25: 1 | AX25: 1 | AY25: 1 | AZ25: 1 | BA25: 1 | BB25: 1 | BC25: 1 | BD25: 1 | BE25: 1 | BF25: 1 | BG25: 1 | BH25: 1 | BI25: 1 | BJ25: 1 | BK25: 1 | BL25: 1 | BM25: 1 | BN25: 1 | BO25: 1 | BP25: 1 | BQ25: 1 | BR25: 1 | BS25: 1 | BT25: 1 | BU25: 1 | BV25: 1 | BW25: 1 | BX25: =(BX7>=$G$25)*1 -> 1 | BY25: 1 | BZ25: 1 | CA25: 1 | CB25: 1 | CC25: 1 | CD25: 1 | CE25: 1 | CF25: 1 | CG25: 1 | CH25: 1 | CI25: 1 | CJ25: 1 | CK25: 1 | CL25: 1 | CM25: 1 | CN25: 1 | CO25: 1 | CP25: 1 | CQ25: 1 | CR25: 1 | CS25: 1 | CT25: 1 | CU25: 1 | CV25: 1 | CW25: 1 | CX25: 1 | CY25: 1 | CZ25: 1 | DA25: 1 | DB25: 1 | DC25: 1 | DD25: 1 | DE25: 1 | DF25: 1 | DG25: 1 | DH25: 1 | DI25: 1 | DJ25: 1 | DK25: 1 | DL25: 1 | DM25: 1 | DN25: 1 | DO25: 1 | DP25: 1 | DQ25: 1 | DR25: 1 | DS25: 1 | DT25: 1 | DU25: 1 | DV25: 1 | DW25: 1 | DX25: 1 | DY25: 1 | DZ25: 1 | EA25: 1 | EB25: 1 | EC25: 1 | ED25: 1 | EE25: 1 | EF25: 1 | EG25: 1 | EH25: 1 | EI25: 1 | EJ25: =(EJ7>=$G$25)*1 -> 1 | EK25: 1 | EL25: 1 | EM25: 1 | EN25: 1 | EO25: 1 | EP25: 1 | EQ25: 1 | ER25: 1 | ES25: 1 | ET25: 1 | EU25: 1 | EV25: 1 | EW25: 1 | EX25: 1 | EY25: 1 | EZ25: 1 | FA25: 1 | FB25: 1 | FC25: 1 | FD25: 1 | FE25: 1 | FF25: 1 | FG25: 1 | FH25: 1 | FI25: 1 | FJ25: 1 | FK25: 1 | FL25: 1 | FM25: 1 | FN25: 1 | FO25: 1 | FP25: 1 | FQ25: 1 | FR25: 1 | FS25: 1 | FT25: 1 | FU25: 1 | FV25: 1 | FW25: 1 | FX25: 1 | FY25: 1 | FZ25: 1 | GA25: 1 | GB25: 1 | GC25: 1 | GD25: 1 | GE25: 1 | GF25: 1 | GG25: 1 | GH25: 1 | GI25: 1 | GJ25: 1 | GK25: 1 | GL25: 1 | GM25: 1 | GN25: 1 | GO25: 1 | GP25: 1 | GQ25: 1 | GR25: 1 | GS25: 1 | GT25: 1 | GU25: 1 | GV25: =(GV7>=$G$25)*1 -> 1 | GW25: 1 | GX25: 1 | GY25: 1 | GZ25: 1 | HA25: 1 | HB25: 1 | HC25: 1 | HD25: 1 | HE25: 1 | HF25: 1 | HG25: 1 | HH25: 1 | HI25: 1 | HJ25: 1 | HK25: 1 | HL25: 1 | HM25: 1 | HN25: 1 | HO25: 1 | HP25: 1 | HQ25: 1 | HR25: 1 | HS25: 1 | HT25: 1 | HU25: 1 | HV25: 1 | HW25: 1 | HX25: 1 | HY25: 1 | HZ25: 1 | IA25: 1 | IB25: 1 | IC25: 1 | ID25: 1 | IE25: 1 | IF25: 1 | IG25: 1 | IH25: 1 | II25: 1 | IJ25: 1 | IK25: 1 | IL25: 1 | IM25: 1 | IN25: 1 | IO25: 1 | IP25: 1 | IQ25: 1 | IR25: 1 | IS25: 1 | IT25: 1 | IU25: 1 | IV25: 1 | IW25: 1 | IX25: 1 | IY25: 1 | IZ25: 1 | JA25: 1 | JB25: 1 | JC25: 1 | JD25: 1 | JE25: 1 | JF25: 1 | JG25: 1 | JH25: =(JH7>=$G$25)*1 -> 1 | JI25: 1 | JJ25: 1 | JK25: 1 | JL25: 1 | JM25: 1 | JN25: 1 | JO25: 1 | JP25: 1 | JQ25: 1 | JR25: 1 | JS25: 1 | JT25: 1 | JU25: 1 | JV25: 1 | JW25: 1 | JX25: 1 | JY25: 1 | JZ25: 1 | KA25: 1 | KB25: 1 | KC25: 1 | KD25: 1 | KE25: 1 | KF25: 1 | KG25: 1 | KH25: 1 | KI25: 1 | KJ25: 1 | KK25: 1 | KL25: 1 | KM25: 1 | KN25: 1 | KO25: 1 | KP25: 1 | KQ25: 1 | KR25: 1 | KS25: 1 | KT25: 1 | KU25: 1 | KV25: 1 | KW25: 1 | KX25: 1 | KY25: 1 | KZ25: 1 | LA25: 1 | LB25: 1 | LC25: 1 | LD25: 1 | LE25: 1 | LF25: 1 | LG25: 1 | LH25: 1 | LI25: 1 | LJ25: 1 | LK25: 1 | LL25: 1 | LM25: 1 | LN25: 1 | LO25: 1 | LP25: 1 | LQ25: 1 | LR25: 1 | LS25: 1 | LT25: =(LT7>=$G$25)*1 -> 1 | LU25: 1 | LV25: 1 | LW25: 1 | LX25: 1 | LY25: 1 | LZ25: 1 | MA25: 1 | MB25: 1 | MC25: 1 | MD25: 1 | ME25: 1 | MF25: 1 | MG25: 1 | MH25: 1 | MI25: 1 | MJ25: 1 | MK25: 1 | ML25: 1 | MM25: 1 | MN25: 1 | MO25: 1 | MP25: 1 | MQ25: 1 | MR25: 1 | MS25: 1 | MT25: 1 | MU25: 1 | MV25: 1 | MW25: 1 | MX25: 1 | MY25: 1 | MZ25: 1 | NA25: 1 | NB25: 1 | NC25: 1 | ND25: 1 | NE25: 1 | NF25: 1 | NG25: 1 | NH25: 1 | NI25: 1 | NJ25: 1 | NK25: 1 | NL25: 1 | NM25: 1 | NN25: 1 | NO25: 1 | NP25: 1 | NQ25: 1 | NR25: 1 | NS25: 1 | NT25: 1 | NU25: 1 | NV25: 1 | NW25: 1 | NX25: 1 | NY25: 1 | NZ25: 1 | OA25: 1 | OB25: 1 | OC25: 1 | OD25: 1 | OE25: 1 | OF25: =(OF7>=$G$25)*1 -> 1 | OG25: 1 | OH25: 1 | OI25: 1 | OJ25: 1 | OK25: 1 | OL25: 1 | OM25: 1 | ON25: 1 | OO25: 1 | OP25: 1 | OQ25: 1 | OR25: 1 | OS25: 1 | OT25: 1 | OU25: 1 | OV25: 1 | OW25: 1 | OX25: 1 | OY25: 1 | OZ25: 1 | PA25: 1 | PB25: 1 | PC25: 1 | PD25: 1 | PE25: 1 | PF25: 1 | PG25: 1 | PH25: 1 | PI25: 1 | PJ25: 1 | PK25: 1 | PL25: 1 | PM25: 1 | PN25: 1 | PO25: 1 | PP25: 1 | PQ25: 1 | PR25: 1 | PS25: 1 | PT25: 1 | PU25: 1 | PV25: 1 | PW25: 1 | PX25: 1 | PY25: 1 | PZ25: 1 | QA25: 1 | QB25: 1 | QC25: 1 | QD25: 1 | QE25: 1 | QF25: 1 | QG25: 1 | QH25: 1 | QI25: 1 | QJ25: 1 | QK25: 1 | QL25: 1 | QM25: 1 | QN25: 1 | QO25: 1 | QP25: 1 | QQ25: 1 | QR25: =(QR7>=$G$25)*1 -> 1 | QS25: 1 | QT25: 1 | QU25: 1 | QV25: 1 | QW25: 1 | QX25: 1 | QY25: 1 | QZ25: 1 | RA25: 1 | RB25: 1 | RC25: 1 | RD25: 1 | RE25: 1 | RF25: 1 | RG25: 1 | RH25: 1 | RI25: 1 | RJ25: 1 | RK25: 1 | RL25: 1 | RM25: 1 | RN25: 1 | RO25: 1 | RP25: 1 | RQ25: 1 | RR25: 1 | RS25: 1 | RT25: 1 | RU25: 1 | RV25: 1 | RW25: 1 | RX25: 1 | RY25: 1 | RZ25: 1 | SA25: 1 | SB25: 1 | SC25: 1 | SD25: 1 | SE25: 1 | SF25: 1 | SG25: 1 | SH25: 1 | SI25: 1 | SJ25: 1 | SK25: 1 | SL25: 1 | SM25: 1 | SN25: 1 | SO25: 1 | SP25: 1 | SQ25: 1
D26: Year | J26: Year | L26: =YEAR(L8) -> 2019 | M26: =YEAR(M8) -> 2020 | N26: 2021 | O26: 2022 | P26: 2023 | Q26: 2024 | R26: 2025 | S26: 2026 | T26: 2027 | U26: 2028 | V26: 2029 | W26: 2030 | X26: 2031 | Y26: 2032 | Z26: 2033 | AA26: 2034 | AB26: 2035 | AC26: 2036 | AD26: 2037 | AE26: 2038 | AF26: 2039 | AG26: 2040 | AH26: 2041 | AI26: 2042 | AJ26: 2043 | AK26: 2044 | AL26: 2045 | AM26: 2046 | AN26: 2047 | AO26: 2048 | AP26: 2049 | AQ26: 2050 | AR26: 2051 | AS26: 2052 | AT26: 2053 | AU26: 2054 | AV26: 2055 | AW26: 2056 | AX26: 2057 | AY26: 2058 | AZ26: 2059 | BA26: 2060 | BB26: 2061 | BC26: 2062 | BD26: 2063 | BE26: 2064 | BF26: 2065 | BG26: 2066 | BH26: 2067 | BI26: 2068 | BJ26: 2069 | BK26: 2070 | BL26: 2071 | BM26: 2072 | BN26: 2073 | BO26: 2074 | BP26: 2075 | BQ26: 2076 | BR26: 2077 | BS26: 2078 | BT26: 2079 | BU26: 2080 | BV26: 2081 | BW26: 2082 | BX26: 2083 | BY26: =YEAR(BY8) -> 2084 | BZ26: 2085 | CA26: 2086 | CB26: 2087 | CC26: 2088 | CD26: 2089 | CE26: 2090 | CF26: 2091 | CG26: 2092 | CH26: 2093 | CI26: 2094 | CJ26: 2095 | CK26: 2096 | CL26: 2097 | CM26: 2098 | CN26: 2099 | CO26: 2100 | CP26: 2101 | CQ26: 2102 | CR26: 2103 | CS26: 2104 | CT26: 2105 | CU26: 2106 | CV26: 2107 | CW26: 2108 | CX26: 2109 | CY26: 2110 | CZ26: 2111 | DA26: 2112 | DB26: 2113 | DC26: 2114 | DD26: 2115 | DE26: 2116 | DF26: 2117 | DG26: 2118 | DH26: 2119 | DI26: 2120 | DJ26: 2121 | DK26: 2122 | DL26: 2123 | DM26: 2124 | DN26: 2125 | DO26: 2126 | DP26: 2127 | DQ26: 2128 | DR26: 2129 | DS26: 2130 | DT26: 2131 | DU26: 2132 | DV26: 2133 | DW26: 2134 | DX26: 2135 | DY26: 2136 | DZ26: 2137 | EA26: 2138 | EB26: 2139 | EC26: 2140 | ED26: 2141 | EE26: 2142 | EF26: 2143 | EG26: 2144 | EH26: 2145 | EI26: 2146 | EJ26: 2147 | EK26: =YEAR(EK8) -> 2148 | EL26: 2149 | EM26: 2150 | EN26: 2151 | EO26: 2152 | EP26: 2153 | EQ26: 2154 | ER26: 2155 | ES26: 2156 | ET26: 2157 | EU26: 2158 | EV26: 2159 | EW26: 2160 | EX26: 2161 | EY26: 2162 | EZ26: 2163 | FA26: 2164 | FB26: 2165 | FC26: 2166 | FD26: 2167 | FE26: 2168 | FF26: 2169 | FG26: 2170 | FH26: 2171 | FI26: 2172 | FJ26: 2173 | FK26: 2174 | FL26: 2175 | FM26: 2176 | FN26: 2177 | FO26: 2178 | FP26: 2179 | FQ26: 2180 | FR26: 2181 | FS26: 2182 | FT26: 2183 | FU26: 2184 | FV26: 2185 | FW26: 2186 | FX26: 2187 | FY26: 2188 | FZ26: 2189 | GA26: 2190 | GB26: 2191 | GC26: 2192 | GD26: 2193 | GE26: 2194 | GF26: 2195 | GG26: 2196 | GH26: 2197 | GI26: 2198 | GJ26: 2199 | GK26: 2200 | GL26: 2201 | GM26: 2202 | GN26: 2203 | GO26: 2204 | GP26: 2205 | GQ26: 2206 | GR26: 2207 | GS26: 2208 | GT26: 2209 | GU26: 2210 | GV26: 2211 | GW26: =YEAR(GW8) -> 2212 | GX26: 2213 | GY26: 2214 | GZ26: 2215 | HA26: 2216 | HB26: 2217 | HC26: 2218 | HD26: 2219 | HE26: 2220 | HF26: 2221 | HG26: 2222 | HH26: 2223 | HI26: 2224 | HJ26: 2225 | HK26: 2226 | HL26: 2227 | HM26: 2228 | HN26: 2229 | HO26: 2230 | HP26: 2231 | HQ26: 2232 | HR26: 2233 | HS26: 2234 | HT26: 2235 | HU26: 2236 | HV26: 2237 | HW26: 2238 | HX26: 2239 | HY26: 2240 | HZ26: 2241 | IA26: 2242 | IB26: 2243 | IC26: 2244 | ID26: 2245 | IE26: 2246 | IF26: 2247 | IG26: 2248 | IH26: 2249 | II26: 2250 | IJ26: 2251 | IK26: 2252 | IL26: 2253 | IM26: 2254 | IN26: 2255 | IO26: 2256 | IP26: 2257 | IQ26: 2258 | IR26: 2259 | IS26: 2260 | IT26: 2261 | IU26: 2262 | IV26: 2263 | IW26: 2264 | IX26: 2265 | IY26: 2266 | IZ26: 2267 | JA26: 2268 | JB26: 2269 | JC26: 2270 | JD26: 2271 | JE26: 2272 | JF26: 2273 | JG26: 2274 | JH26: 2275 | JI26: =YEAR(JI8) -> 2276 | JJ26: 2277 | JK26: 2278 | JL26: 2279 | JM26: 2280 | JN26: 2281 | JO26: 2282 | JP26: 2283 | JQ26: 2284 | JR26: 2285 | JS26: 2286 | JT26: 2287 | JU26: 2288 | JV26: 2289 | JW26: 2290 | JX26: 2291 | JY26: 2292 | JZ26: 2293 | KA26: 2294 | KB26: 2295 | KC26: 2296 | KD26: 2297 | KE26: 2298 | KF26: 2299 | KG26: 2300 | KH26: 2301 | KI26: 2302 | KJ26: 2303 | KK26: 2304 | KL26: 2305 | KM26: 2306 | KN26: 2307 | KO26: 2308 | KP26: 2309 | KQ26: 2310 | KR26: 2311 | KS26: 2312 | KT26: 2313 | KU26: 2314 | KV26: 2315 | KW26: 2316 | KX26: 2317 | KY26: 2318 | KZ26: 2319 | LA26: 2320 | LB26: 2321 | LC26: 2322 | LD26: 2323 | LE26: 2324 | LF26: 2325 | LG26: 2326 | LH26: 2327 | LI26: 2328 | LJ26: 2329 | LK26: 2330 | LL26: 2331 | LM26: 2332 | LN26: 2333 | LO26: 2334 | LP26: 2335 | LQ26: 2336 | LR26: 2337 | LS26: 2338 | LT26: 2339 | LU26: =YEAR(LU8) -> 2340 | LV26: 2341 | LW26: 2342 | LX26: 2343 | LY26: 2344 | LZ26: 2345 | MA26: 2346 | MB26: 2347 | MC26: 2348 | MD26: 2349 | ME26: 2350 | MF26: 2351 | MG26: 2352 | MH26: 2353 | MI26: 2354 | MJ26: 2355 | MK26: 2356 | ML26: 2357 | MM26: 2358 | MN26: 2359 | MO26: 2360 | MP26: 2361 | MQ26: 2362 | MR26: 2363 | MS26: 2364 | MT26: 2365 | MU26: 2366 | MV26: 2367 | MW26: 2368 | MX26: 2369 | MY26: 2370 | MZ26: 2371 | NA26: 2372 | NB26: 2373 | NC26: 2374 | ND26: 2375 | NE26: 2376 | NF26: 2377 | NG26: 2378 | NH26: 2379 | NI26: 2380 | NJ26: 2381 | NK26: 2382 | NL26: 2383 | NM26: 2384 | NN26: 2385 | NO26: 2386 | NP26: 2387 | NQ26: 2388 | NR26: 2389 | NS26: 2390 | NT26: 2391 | NU26: 2392 | NV26: 2393 | NW26: 2394 | NX26: 2395 | NY26: 2396 | NZ26: 2397 | OA26: 2398 | OB26: 2399 | OC26: 2400 | OD26: 2401 | OE26: 2402 | OF26: 2403 | OG26: =YEAR(OG8) -> 2404 | OH26: 2405 | OI26: 2406 | OJ26: 2407 | OK26: 2408 | OL26: 2409 | OM26: 2410 | ON26: 2411 | OO26: 2412 | OP26: 2413 | OQ26: 2414 | OR26: 2415 | OS26: 2416 | OT26: 2417 | OU26: 2418 | OV26: 2419 | OW26: 2420 | OX26: 2421 | OY26: 2422 | OZ26: 2423 | PA26: 2424 | PB26: 2425 | PC26: 2426 | PD26: 2427 | PE26: 2428 | PF26: 2429 | PG26: 2430 | PH26: 2431 | PI26: 2432 | PJ26: 2433 | PK26: 2434 | PL26: 2435 | PM26: 2436 | PN26: 2437 | PO26: 2438 | PP26: 2439 | PQ26: 2440 | PR26: 2441 | PS26: 2442 | PT26: 2443 | PU26: 2444 | PV26: 2445 | PW26: 2446 | PX26: 2447 | PY26: 2448 | PZ26: 2449 | QA26: 2450 | QB26: 2451 | QC26: 2452 | QD26: 2453 | QE26: 2454 | QF26: 2455 | QG26: 2456 | QH26: 2457 | QI26: 2458 | QJ26: 2459 | QK26: 2460 | QL26: 2461 | QM26: 2462 | QN26: 2463 | QO26: 2464 | QP26: 2465 | QQ26: 2466 | QR26: 2467 | QS26: =YEAR(QS8) -> 2468 | QT26: 2469 | QU26: 2470 | QV26: 2471 | QW26: 2472 | QX26: 2473 | QY26: 2474 | QZ26: 2475 | RA26: 2476 | RB26: 2477 | RC26: 2478 | RD26: 2479 | RE26: 2480 | RF26: 2481 | RG26: 2482 | RH26: 2483 | RI26: 2484 | RJ26: 2485 | RK26: 2486 | RL26: 2487 | RM26: 2488 | RN26: 2489 | RO26: 2490 | RP26: 2491 | RQ26: 2492 | RR26: 2493 | RS26: 2494 | RT26: 2495 | RU26: 2496 | RV26: 2497 | RW26: 2498 | RX26: 2499 | RY26: 2500 | RZ26: 2501 | SA26: 2502 | SB26: 2503 | SC26: 2504 | SD26: 2505 | SE26: 2506 | SF26: 2507 | SG26: 2508 | SH26: 2509 | SI26: 2510 | SJ26: 2511 | SK26: 2512 | SL26: 2513 | SM26: 2514 | SN26: 2515 | SO26: 2516 | SP26: 2517 | SQ26: 2518
D27: Change in Year | J27: Flag | L27: =(L26<>K26)*1 -> 1 | M27: =(M26<>L26)*1 -> 1 | N27: 1 | O27: 1 | P27: 1 | Q27: 1 | R27: 1 | S27: 1 | T27: 1 | U27: 1 | V27: 1 | W27: 1 | X27: 1 | Y27: 1 | Z27: 1 | AA27: 1 | AB27: 1 | AC27: 1 | AD27: 1 | AE27: 1 | AF27: 1 | AG27: 1 | AH27: 1 | AI27: 1 | AJ27: 1 | AK27: 1 | AL27: 1 | AM27: 1 | AN27: 1 | AO27: 1 | AP27: 1 | AQ27: 1 | AR27: 1 | AS27: 1 | AT27: 1 | AU27: 1 | AV27: 1 | AW27: 1 | AX27: 1 | AY27: 1 | AZ27: 1 | BA27: 1 | BB27: 1 | BC27: 1 | BD27: 1 | BE27: 1 | BF27: 1 | BG27: 1 | BH27: 1 | BI27: 1 | BJ27: 1 | BK27: 1 | BL27: 1 | BM27: 1 | BN27: 1 | BO27: 1 | BP27: 1 | BQ27: 1 | BR27: 1 | BS27: 1 | BT27: 1 | BU27: 1 | BV27: 1 | BW27: 1 | BX27: 1 | BY27: =(BY26<>BX26)*1 -> 1 | BZ27: 1 | CA27: 1 | CB27: 1 | CC27: 1 | CD27: 1 | CE27: 1 | CF27: 1 | CG27: 1 | CH27: 1 | CI27: 1 | CJ27: 1 | CK27: 1 | CL27: 1 | CM27: 1 | CN27: 1 | CO27: 1 | CP27: 1 | CQ27: 1 | CR27: 1 | CS27: 1 | CT27: 1 | CU27: 1 | CV27: 1 | CW27: 1 | CX27: 1 | CY27: 1 | CZ27: 1 | DA27: 1 | DB27: 1 | DC27: 1 | DD27: 1 | DE27: 1 | DF27: 1 | DG27: 1 | DH27: 1 | DI27: 1 | DJ27: 1 | DK27: 1 | DL27: 1 | DM27: 1 | DN27: 1 | DO27: 1 | DP27: 1 | DQ27: 1 | DR27: 1 | DS27: 1 | DT27: 1 | DU27: 1 | DV27: 1 | DW27: 1 | DX27: 1 | DY27: 1 | DZ27: 1 | EA27: 1 | EB27: 1 | EC27: 1 | ED27: 1 | EE27: 1 | EF27: 1 | EG27: 1 | EH27: 1 | EI27: 1 | EJ27: 1 | EK27: =(EK26<>EJ26)*1 -> 1 | EL27: 1 | EM27: 1 | EN27: 1 | EO27: 1 | EP27: 1 | EQ27: 1 | ER27: 1 | ES27: 1 | ET27: 1 | EU27: 1 | EV27: 1 | EW27: 1 | EX27: 1 | EY27: 1 | EZ27: 1 | FA27: 1 | FB27: 1 | FC27: 1 | FD27: 1 | FE27: 1 | FF27: 1 | FG27: 1 | FH27: 1 | FI27: 1 | FJ27: 1 | FK27: 1 | FL27: 1 | FM27: 1 | FN27: 1 | FO27: 1 | FP27: 1 | FQ27: 1 | FR27: 1 | FS27: 1 | FT27: 1 | FU27: 1 | FV27: 1 | FW27: 1 | FX27: 1 | FY27: 1 | FZ27: 1 | GA27: 1 | GB27: 1 | GC27: 1 | GD27: 1 | GE27: 1 | GF27: 1 | GG27: 1 | GH27: 1 | GI27: 1 | GJ27: 1 | GK27: 1 | GL27: 1 | GM27: 1 | GN27: 1 | GO27: 1 | GP27: 1 | GQ27: 1 | GR27: 1 | GS27: 1 | GT27: 1 | GU27: 1 | GV27: 1 | GW27: =(GW26<>GV26)*1 -> 1 | GX27: 1 | GY27: 1 | GZ27: 1 | HA27: 1 | HB27: 1 | HC27: 1 | HD27: 1 | HE27: 1 | HF27: 1 | HG27: 1 | HH27: 1 | HI27: 1 | HJ27: 1 | HK27: 1 | HL27: 1 | HM27: 1 | HN27: 1 | HO27: 1 | HP27: 1 | HQ27: 1 | HR27: 1 | HS27: 1 | HT27: 1 | HU27: 1 | HV27: 1 | HW27: 1 | HX27: 1 | HY27: 1 | HZ27: 1 | IA27: 1 | IB27: 1 | IC27: 1 | ID27: 1 | IE27: 1 | IF27: 1 | IG27: 1 | IH27: 1 | II27: 1 | IJ27: 1 | IK27: 1 | IL27: 1 | IM27: 1 | IN27: 1 | IO27: 1 | IP27: 1 | IQ27: 1 | IR27: 1 | IS27: 1 | IT27: 1 | IU27: 1 | IV27: 1 | IW27: 1 | IX27: 1 | IY27: 1 | IZ27: 1 | JA27: 1 | JB27: 1 | JC27: 1 | JD27: 1 | JE27: 1 | JF27: 1 | JG27: 1 | JH27: 1 | JI27: =(JI26<>JH26)*1 -> 1 | JJ27: 1 | JK27: 1 | JL27: 1 | JM27: 1 | JN27: 1 | JO27: 1 | JP27: 1 | JQ27: 1 | JR27: 1 | JS27: 1 | JT27: 1 | JU27: 1 | JV27: 1 | JW27: 1 | JX27: 1 | JY27: 1 | JZ27: 1 | KA27: 1 | KB27: 1 | KC27: 1 | KD27: 1 | KE27: 1 | KF27: 1 | KG27: 1 | KH27: 1 | KI27: 1 | KJ27: 1 | KK27: 1 | KL27: 1 | KM27: 1 | KN27: 1 | KO27: 1 | KP27: 1 | KQ27: 1 | KR27: 1 | KS27: 1 | KT27: 1 | KU27: 1 | KV27: 1 | KW27: 1 | KX27: 1 | KY27: 1 | KZ27: 1 | LA27: 1 | LB27: 1 | LC27: 1 | LD27: 1 | LE27: 1 | LF27: 1 | LG27: 1 | LH27: 1 | LI27: 1 | LJ27: 1 | LK27: 1 | LL27: 1 | LM27: 1 | LN27: 1 | LO27: 1 | LP27: 1 | LQ27: 1 | LR27: 1 | LS27: 1 | LT27: 1 | LU27: =(LU26<>LT26)*1 -> 1 | LV27: 1 | LW27: 1 | LX27: 1 | LY27: 1 | LZ27: 1 | MA27: 1 | MB27: 1 | MC27: 1 | MD27: 1 | ME27: 1 | MF27: 1 | MG27: 1 | MH27: 1 | MI27: 1 | MJ27: 1 | MK27: 1 | ML27: 1 | MM27: 1 | MN27: 1 | MO27: 1 | MP27: 1 | MQ27: 1 | MR27: 1 | MS27: 1 | MT27: 1 | MU27: 1 | MV27: 1 | MW27: 1 | MX27: 1 | MY27: 1 | MZ27: 1 | NA27: 1 | NB27: 1 | NC27: 1 | ND27: 1 | NE27: 1 | NF27: 1 | NG27: 1 | NH27: 1 | NI27: 1 | NJ27: 1 | NK27: 1 | NL27: 1 | NM27: 1 | NN27: 1 | NO27: 1 | NP27: 1 | NQ27: 1 | NR27: 1 | NS27: 1 | NT27: 1 | NU27: 1 | NV27: 1 | NW27: 1 | NX27: 1 | NY27: 1 | NZ27: 1 | OA27: 1 | OB27: 1 | OC27: 1 | OD27: 1 | OE27: 1 | OF27: 1 | OG27: =(OG26<>OF26)*1 -> 1 | OH27: 1 | OI27: 1 | OJ27: 1 | OK27: 1 | OL27: 1 | OM27: 1 | ON27: 1 | OO27: 1 | OP27: 1 | OQ27: 1 | OR27: 1 | OS27: 1 | OT27: 1 | OU27: 1 | OV27: 1 | OW27: 1 | OX27: 1 | OY27: 1 | OZ27: 1 | PA27: 1 | PB27: 1 | PC27: 1 | PD27: 1 | PE27: 1 | PF27: 1 | PG27: 1 | PH27: 1 | PI27: 1 | PJ27: 1 | PK27: 1 | PL27: 1 | PM27: 1 | PN27: 1 | PO27: 1 | PP27: 1 | PQ27: 1 | PR27: 1 | PS27: 1 | PT27: 1 | PU27: 1 | PV27: 1 | PW27: 1 | PX27: 1 | PY27: 1 | PZ27: 1 | QA27: 1 | QB27: 1 | QC27: 1 | QD27: 1 | QE27: 1 | QF27: 1 | QG27: 1 | QH27: 1 | QI27: 1 | QJ27: 1 | QK27: 1 | QL27: 1 | QM27: 1 | QN27: 1 | QO27: 1 | QP27: 1 | QQ27: 1 | QR27: 1 | QS27: =(QS26<>QR26)*1 -> 1 | QT27: 1 | QU27: 1 | QV27: 1 | QW27: 1 | QX27: 1 | QY27: 1 | QZ27: 1 | RA27: 1 | RB27: 1 | RC27: 1 | RD27: 1 | RE27: 1 | RF27: 1 | RG27: 1 | RH27: 1 | RI27: 1 | RJ27: 1 | RK27: 1 | RL27: 1 | RM27: 1 | RN27: 1 | RO27: 1 | RP27: 1 | RQ27: 1 | RR27: 1 | RS27: 1 | RT27: 1 | RU27: 1 | RV27: 1 | RW27: 1 | RX27: 1 | RY27: 1 | RZ27: 1 | SA27: 1 | SB27: 1 | SC27: 1 | SD27: 1 | SE27: 1 | SF27: 1 | SG27: 1 | SH27: 1 | SI27: 1 | SJ27: 1 | SK27: 1 | SL27: 1 | SM27: 1 | SN27: 1 | SO27: 1 | SP27: 1 | SQ27: 1
D28: Annual Inflation Rate | J28: % p.a. | L28: =LOOKUP(L26,InputS!30:30,InputS!36:36) -> 0.02 | M28: =LOOKUP(M26,InputS!30:30,InputS!36:36) -> 0.025 | N28: =LOOKUP(N26,InputS!30:30,InputS!36:36) -> 0.022 | O28: =LOOKUP(O26,InputS!30:30,InputS!36:36) -> 0.02 | P28: =LOOKUP(P26,InputS!30:30,InputS!36:36) -> 0.02 | Q28: =LOOKUP(Q26,InputS!30:30,InputS!36:36) -> 0.02 | R28: =LOOKUP(R26,InputS!30:30,InputS!36:36) -> 0.02 | S28: =LOOKUP(S26,InputS!30:30,InputS!36:36) -> 0.02 | T28: =LOOKUP(T26,InputS!30:30,InputS!36:36) -> 0.02 | U28: =LOOKUP(U26,InputS!30:30,InputS!36:36) -> 0.02 | V28: =LOOKUP(V26,InputS!30:30,InputS!36:36) -> 0.02 | W28: =LOOKUP(W26,InputS!30:30,InputS!36:36) -> 0.02 | X28: =LOOKUP(X26,InputS!30:30,InputS!36:36) -> 0.02 | Y28: =LOOKUP(Y26,InputS!30:30,InputS!36:36) -> 0.02 | Z28: =LOOKUP(Z26,InputS!30:30,InputS!36:36) -> 0.02 | AA28: =LOOKUP(AA26,InputS!30:30,InputS!36:36) -> 0.02 | AB28: =LOOKUP(AB26,InputS!30:30,InputS!36:36) -> 0.02 | AC28: =LOOKUP(AC26,InputS!30:30,InputS!36:36) -> 0.02 | AD28: =LOOKUP(AD26,InputS!30:30,InputS!36:36) -> 0.02 | AE28: =LOOKUP(AE26,InputS!30:30,InputS!36:36) -> 0.02 | AF28: =LOOKUP(AF26,InputS!30:30,InputS!36:36) -> 0.02 | AG28: =LOOKUP(AG26,InputS!30:30,InputS!36:36) -> 0.02 | AH28: =LOOKUP(AH26,InputS!30:30,InputS!36:36) -> 0.02 | AI28: =LOOKUP(AI26,InputS!30:30,InputS!36:36) -> 0.02 | AJ28: =LOOKUP(AJ26,InputS!30:30,InputS!36:36) -> 0.02 | AK28: =LOOKUP(AK26,InputS!30:30,InputS!36:36) -> 0.02 | AL28: =LOOKUP(AL26,InputS!30:30,InputS!36:36) -> 0.02 | AM28: =LOOKUP(AM26,InputS!30:30,InputS!36:36) -> 0.02 | AN28: =LOOKUP(AN26,InputS!30:30,InputS!36:36) -> 0.02 | AO28: =LOOKUP(AO26,InputS!30:30,InputS!36:36) -> 0.02 | AP28: =LOOKUP(AP26,InputS!30:30,InputS!36:36) -> 0.02 | AQ28: =LOOKUP(AQ26,InputS!30:30,InputS!36:36) -> 0.02 | AR28: =LOOKUP(AR26,InputS!30:30,InputS!36:36) -> 0.02 | AS28: =LOOKUP(AS26,InputS!30:30,InputS!36:36) -> 0.02 | AT28: =LOOKUP(AT26,InputS!30:30,InputS!36:36) -> 0.02 | AU28: =LOOKUP(AU26,InputS!30:30,InputS!36:36) -> 0.02 | AV28: =LOOKUP(AV26,InputS!30:30,InputS!36:36) -> 0.02 | AW28: =LOOKUP(AW26,InputS!30:30,InputS!36:36) -> 0.02 | AX28: =LOOKUP(AX26,InputS!30:30,InputS!36:36) -> 0.02 | AY28: =LOOKUP(AY26,InputS!30:30,InputS!36:36) -> 0.02 | AZ28: =LOOKUP(AZ26,InputS!30:30,InputS!36:36) -> 0.02 | BA28: =LOOKUP(BA26,InputS!30:30,InputS!36:36) -> 0.02 | BB28: =LOOKUP(BB26,InputS!30:30,InputS!36:36) -> 0.02 | BC28: =LOOKUP(BC26,InputS!30:30,InputS!36:36) -> 0.02 | BD28: =LOOKUP(BD26,InputS!30:30,InputS!36:36) -> 0.02 | BE28: =LOOKUP(BE26,InputS!30:30,InputS!36:36) -> 0.02 | BF28: =LOOKUP(BF26,InputS!30:30,InputS!36:36) -> 0.02 | BG28: =LOOKUP(BG26,InputS!30:30,InputS!36:36) -> 0.02 | BH28: =LOOKUP(BH26,InputS!30:30,InputS!36:36) -> 0.02 | BI28: =LOOKUP(BI26,InputS!30:30,InputS!36:36) -> 0.02 | BJ28: =LOOKUP(BJ26,InputS!30:30,InputS!36:36) -> 0.02 | BK28: =LOOKUP(BK26,InputS!30:30,InputS!36:36) -> 0.02 | BL28: =LOOKUP(BL26,InputS!30:30,InputS!36:36) -> 0.02 | BM28: =LOOKUP(BM26,InputS!30:30,InputS!36:36) -> 0.02 | BN28: =LOOKUP(BN26,InputS!30:30,InputS!36:36) -> 0.02 | BO28: =LOOKUP(BO26,InputS!30:30,InputS!36:36) -> 0.02 | BP28: =LOOKUP(BP26,InputS!30:30,InputS!36:36) -> 0.02 | BQ28: =LOOKUP(BQ26,InputS!30:30,InputS!36:36) -> 0.02 | BR28: =LOOKUP(BR26,InputS!30:30,InputS!36:36) -> 0.02 | BS28: =LOOKUP(BS26,InputS!30:30,InputS!36:36) -> 0.02 | BT28: =LOOKUP(BT26,InputS!30:30,InputS!36:36) -> 0.02 | BU28: =LOOKUP(BU26,InputS!30:30,InputS!36:36) -> 0.02 | BV28: =LOOKUP(BV26,InputS!30:30,InputS!36:36) -> 0.02 | BW28: =LOOKUP(BW26,InputS!30:30,InputS!36:36) -> 0.02 | BX28: =LOOKUP(BX26,InputS!30:30,InputS!36:36) -> 0.02 | BY28: =LOOKUP(BY26,InputS!30:30,InputS!36:36) -> 0.02 | BZ28: =LOOKUP(BZ26,InputS!30:30,InputS!36:36) -> 0.02 | CA28: =LOOKUP(CA26,InputS!30:30,InputS!36:36) -> 0.02 | CB28: =LOOKUP(CB26,InputS!30:30,InputS!36:36) -> 0.02 | CC28: =LOOKUP(CC26,InputS!30:30,InputS!36:36) -> 0.02 | CD28: =LOOKUP(CD26,InputS!30:30,InputS!36:36) -> 0.02 | CE28: =LOOKUP(CE26,InputS!30:30,InputS!36:36) -> 0.02 | CF28: =LOOKUP(CF26,InputS!30:30,InputS!36:36) -> 0.02 | CG28: =LOOKUP(CG26,InputS!30:30,InputS!36:36) -> 0.02 | CH28: =LOOKUP(CH26,InputS!30:30,InputS!36:36) -> 0.02 | CI28: =LOOKUP(CI26,InputS!30:30,InputS!36:36) -> 0.02 | CJ28: =LOOKUP(CJ26,InputS!30:30,InputS!36:36) -> 0.02 | CK28: =LOOKUP(CK26,InputS!30:30,InputS!36:36) -> 0.02 | CL28: =LOOKUP(CL26,InputS!30:30,InputS!36:36) -> 0.02 | CM28: =LOOKUP(CM26,InputS!30:30,InputS!36:36) -> 0.02 | CN28: =LOOKUP(CN26,InputS!30:30,InputS!36:36) -> 0.02 | CO28: =LOOKUP(CO26,InputS!30:30,InputS!36:36) -> 0.02 | CP28: =LOOKUP(CP26,InputS!30:30,InputS!36:36) -> 0.02 | CQ28: =LOOKUP(CQ26,InputS!30:30,InputS!36:36) -> 0.02 | CR28: =LOOKUP(CR26,InputS!30:30,InputS!36:36) -> 0.02 | CS28: =LOOKUP(CS26,InputS!30:30,InputS!36:36) -> 0.02 | CT28: =LOOKUP(CT26,InputS!30:30,InputS!36:36) -> 0.02 | CU28: =LOOKUP(CU26,InputS!30:30,InputS!36:36) -> 0.02 | CV28: =LOOKUP(CV26,InputS!30:30,InputS!36:36) -> 0.02 | CW28: =LOOKUP(CW26,InputS!30:30,InputS!36:36) -> 0.02 | CX28: =LOOKUP(CX26,InputS!30:30,InputS!36:36) -> 0.02 | CY28: =LOOKUP(CY26,InputS!30:30,InputS!36:36) -> 0.02 | CZ28: =LOOKUP(CZ26,InputS!30:30,InputS!36:36) -> 0.02 | DA28: =LOOKUP(DA26,InputS!30:30,InputS!36:36) -> 0.02 | DB28: =LOOKUP(DB26,InputS!30:30,InputS!36:36) -> 0.02 | DC28: =LOOKUP(DC26,InputS!30:30,InputS!36:36) -> 0.02 | DD28: =LOOKUP(DD26,InputS!30:30,InputS!36:36) -> 0.02 | DE28: =LOOKUP(DE26,InputS!30:30,InputS!36:36) -> 0.02 | DF28: =LOOKUP(DF26,InputS!30:30,InputS!36:36) -> 0.02 | DG28: =LOOKUP(DG26,InputS!30:30,InputS!36:36) -> 0.02 | DH28: =LOOKUP(DH26,InputS!30:30,InputS!36:36) -> 0.02 | DI28: =LOOKUP(DI26,InputS!30:30,InputS!36:36) -> 0.02 | DJ28: =LOOKUP(DJ26,InputS!30:30,InputS!36:36) -> 0.02 | DK28: =LOOKUP(DK26,InputS!30:30,InputS!36:36) -> 0.02 | DL28: =LOOKUP(DL26,InputS!30:30,InputS!36:36) -> 0.02 | DM28: =LOOKUP(DM26,InputS!30:30,InputS!36:36) -> 0.02 | DN28: =LOOKUP(DN26,InputS!30:30,InputS!36:36) -> 0.02 | DO28: =LOOKUP(DO26,InputS!30:30,InputS!36:36) -> 0.02 | DP28: =LOOKUP(DP26,InputS!30:30,InputS!36:36) -> 0.02 | DQ28: =LOOKUP(DQ26,InputS!30:30,InputS!36:36) -> 0.02 | DR28: =LOOKUP(DR26,InputS!30:30,InputS!36:36) -> 0.02 | DS28: =LOOKUP(DS26,InputS!30:30,InputS!36:36) -> 0.02 | DT28: =LOOKUP(DT26,InputS!30:30,InputS!36:36) -> 0.02 | DU28: =LOOKUP(DU26,InputS!30:30,InputS!36:36) -> 0.02 | DV28: =LOOKUP(DV26,InputS!30:30,InputS!36:36) -> 0.02 | DW28: =LOOKUP(DW26,InputS!30:30,InputS!36:36) -> 0.02 | DX28: =LOOKUP(DX26,InputS!30:30,InputS!36:36) -> 0.02 | DY28: =LOOKUP(DY26,InputS!30:30,InputS!36:36) -> 0.02 | DZ28: =LOOKUP(DZ26,InputS!30:30,InputS!36:36) -> 0.02 | EA28: =LOOKUP(EA26,InputS!30:30,InputS!36:36) -> 0.02 | EB28: =LOOKUP(EB26,InputS!30:30,InputS!36:36) -> 0.02 | EC28: =LOOKUP(EC26,InputS!30:30,InputS!36:36) -> 0.02 | ED28: =LOOKUP(ED26,InputS!30:30,InputS!36:36) -> 0.02 | EE28: =LOOKUP(EE26,InputS!30:30,InputS!36:36) -> 0.02 | EF28: =LOOKUP(EF26,InputS!30:30,InputS!36:36) -> 0.02 | EG28: =LOOKUP(EG26,InputS!30:30,InputS!36:36) -> 0.02 | EH28: =LOOKUP(EH26,InputS!30:30,InputS!36:36) -> 0.02 | EI28: =LOOKUP(EI26,InputS!30:30,InputS!36:36) -> 0.02 | EJ28: =LOOKUP(EJ26,InputS!30:30,InputS!36:36) -> 0.02 | EK28: =LOOKUP(EK26,InputS!30:30,InputS!36:36) -> 0.02 | EL28: =LOOKUP(EL26,InputS!30:30,InputS!36:36) -> 0.02 | EM28: =LOOKUP(EM26,InputS!30:30,InputS!36:36) -> 0.02 | EN28: =LOOKUP(EN26,InputS!30:30,InputS!36:36) -> 0.02 | EO28: =LOOKUP(EO26,InputS!30:30,InputS!36:36) -> 0.02 | EP28: =LOOKUP(EP26,InputS!30:30,InputS!36:36) -> 0.02 | EQ28: =LOOKUP(EQ26,InputS!30:30,InputS!36:36) -> 0.02 | ER28: =LOOKUP(ER26,InputS!30:30,InputS!36:36) -> 0.02 | ES28: =LOOKUP(ES26,InputS!30:30,InputS!36:36) -> 0.02 | ET28: =LOOKUP(ET26,InputS!30:30,InputS!36:36) -> 0.02 | EU28: =LOOKUP(EU26,InputS!30:30,InputS!36:36) -> 0.02 | EV28: =LOOKUP(EV26,InputS!30:30,InputS!36:36) -> 0.02 | EW28: =LOOKUP(EW26,InputS!30:30,InputS!36:36) -> 0.02 | EX28: =LOOKUP(EX26,InputS!30:30,InputS!36:36) -> 0.02 | EY28: =LOOKUP(EY26,InputS!30:30,InputS!36:36) -> 0.02 | EZ28: =LOOKUP(EZ26,InputS!30:30,InputS!36:36) -> 0.02 | FA28: =LOOKUP(FA26,InputS!30:30,InputS!36:36) -> 0.02 | FB28: =LOOKUP(FB26,InputS!30:30,InputS!36:36) -> 0.02 | FC28: =LOOKUP(FC26,InputS!30:30,InputS!36:36) -> 0.02 | FD28: =LOOKUP(FD26,InputS!30:30,InputS!36:36) -> 0.02 | FE28: =LOOKUP(FE26,InputS!30:30,InputS!36:36) -> 0.02 | FF28: =LOOKUP(FF26,InputS!30:30,InputS!36:36) -> 0.02 | FG28: =LOOKUP(FG26,InputS!30:30,InputS!36:36) -> 0.02 | FH28: =LOOKUP(FH26,InputS!30:30,InputS!36:36) -> 0.02 | FI28: =LOOKUP(FI26,InputS!30:30,InputS!36:36) -> 0.02 | FJ28: =LOOKUP(FJ26,InputS!30:30,InputS!36:36) -> 0.02 | FK28: =LOOKUP(FK26,InputS!30:30,InputS!36:36) -> 0.02 | FL28: =LOOKUP(FL26,InputS!30:30,InputS!36:36) -> 0.02 | FM28: =LOOKUP(FM26,InputS!30:30,InputS!36:36) -> 0.02 | FN28: =LOOKUP(FN26,InputS!30:30,InputS!36:36) -> 0.02 | FO28: =LOOKUP(FO26,InputS!30:30,InputS!36:36) -> 0.02 | FP28: =LOOKUP(FP26,InputS!30:30,InputS!36:36) -> 0.02 | FQ28: =LOOKUP(FQ26,InputS!30:30,InputS!36:36) -> 0.02 | FR28: =LOOKUP(FR26,InputS!30:30,InputS!36:36) -> 0.02 | FS28: =LOOKUP(FS26,InputS!30:30,InputS!36:36) -> 0.02 | FT28: =LOOKUP(FT26,InputS!30:30,InputS!36:36) -> 0.02 | FU28: =LOOKUP(FU26,InputS!30:30,InputS!36:36) -> 0.02 | FV28: =LOOKUP(FV26,InputS!30:30,InputS!36:36) -> 0.02 | FW28: =LOOKUP(FW26,InputS!30:30,InputS!36:36) -> 0.02 | FX28: =LOOKUP(FX26,InputS!30:30,InputS!36:36) -> 0.02 | FY28: =LOOKUP(FY26,InputS!30:30,InputS!36:36) -> 0.02 | FZ28: =LOOKUP(FZ26,InputS!30:30,InputS!36:36) -> 0.02 | GA28: =LOOKUP(GA26,InputS!30:30,InputS!36:36) -> 0.02 | GB28: =LOOKUP(GB26,InputS!30:30,InputS!36:36) -> 0.02 | GC28: =LOOKUP(GC26,InputS!30:30,InputS!36:36) -> 0.02 | GD28: =LOOKUP(GD26,InputS!30:30,InputS!36:36) -> 0.02 | GE28: =LOOKUP(GE26,InputS!30:30,InputS!36:36) -> 0.02 | GF28: =LOOKUP(GF26,InputS!30:30,InputS!36:36) -> 0.02 | GG28: =LOOKUP(GG26,InputS!30:30,InputS!36:36) -> 0.02 | GH28: =LOOKUP(GH26,InputS!30:30,InputS!36:36) -> 0.02 | GI28: =LOOKUP(GI26,InputS!30:30,InputS!36:36) -> 0.02 | GJ28: =LOOKUP(GJ26,InputS!30:30,InputS!36:36) -> 0.02 | GK28: =LOOKUP(GK26,InputS!30:30,InputS!36:36) -> 0.02 | GL28: =LOOKUP(GL26,InputS!30:30,InputS!36:36) -> 0.02 | GM28: =LOOKUP(GM26,InputS!30:30,InputS!36:36) -> 0.02 | GN28: =LOOKUP(GN26,InputS!30:30,InputS!36:36) -> 0.02 | GO28: =LOOKUP(GO26,InputS!30:30,InputS!36:36) -> 0.02 | GP28: =LOOKUP(GP26,InputS!30:30,InputS!36:36) -> 0.02 | GQ28: =LOOKUP(GQ26,InputS!30:30,InputS!36:36) -> 0.02 | GR28: =LOOKUP(GR26,InputS!30:30,InputS!36:36) -> 0.02 | GS28: =LOOKUP(GS26,InputS!30:30,InputS!36:36) -> 0.02 | GT28: =LOOKUP(GT26,InputS!30:30,InputS!36:36) -> 0.02 | GU28: =LOOKUP(GU26,InputS!30:30,InputS!36:36) -> 0.02 | GV28: =LOOKUP(GV26,InputS!30:30,InputS!36:36) -> 0.02 | GW28: =LOOKUP(GW26,InputS!30:30,InputS!36:36) -> 0.02 | GX28: =LOOKUP(GX26,InputS!30:30,InputS!36:36) -> 0.02 | GY28: =LOOKUP(GY26,InputS!30:30,InputS!36:36) -> 0.02 | GZ28: =LOOKUP(GZ26,InputS!30:30,InputS!36:36) -> 0.02 | HA28: =LOOKUP(HA26,InputS!30:30,InputS!36:36) -> 0.02 | HB28: =LOOKUP(HB26,InputS!30:30,InputS!36:36) -> 0.02 | HC28: =LOOKUP(HC26,InputS!30:30,InputS!36:36) -> 0.02 | HD28: =LOOKUP(HD26,InputS!30:30,InputS!36:36) -> 0.02 | HE28: =LOOKUP(HE26,InputS!30:30,InputS!36:36) -> 0.02 | HF28: =LOOKUP(HF26,InputS!30:30,InputS!36:36) -> 0.02 | HG28: =LOOKUP(HG26,InputS!30:30,InputS!36:36) -> 0.02 | HH28: =LOOKUP(HH26,InputS!30:30,InputS!36:36) -> 0.02 | HI28: =LOOKUP(HI26,InputS!30:30,InputS!36:36) -> 0.02 | HJ28: =LOOKUP(HJ26,InputS!30:30,InputS!36:36) -> 0.02 | HK28: =LOOKUP(HK26,InputS!30:30,InputS!36:36) -> 0.02 | HL28: =LOOKUP(HL26,InputS!30:30,InputS!36:36) -> 0.02 | HM28: =LOOKUP(HM26,InputS!30:30,InputS!36:36) -> 0.02 | HN28: =LOOKUP(HN26,InputS!30:30,InputS!36:36) -> 0.02 | HO28: =LOOKUP(HO26,InputS!30:30,InputS!36:36) -> 0.02 | HP28: =LOOKUP(HP26,InputS!30:30,InputS!36:36) -> 0.02 | HQ28: =LOOKUP(HQ26,InputS!30:30,InputS!36:36) -> 0.02 | HR28: =LOOKUP(HR26,InputS!30:30,InputS!36:36) -> 0.02 | HS28: =LOOKUP(HS26,InputS!30:30,InputS!36:36) -> 0.02 | HT28: =LOOKUP(HT26,InputS!30:30,InputS!36:36) -> 0.02 | HU28: =LOOKUP(HU26,InputS!30:30,InputS!36:36) -> 0.02 | HV28: =LOOKUP(HV26,InputS!30:30,InputS!36:36) -> 0.02 | HW28: =LOOKUP(HW26,InputS!30:30,InputS!36:36) -> 0.02 | HX28: =LOOKUP(HX26,InputS!30:30,InputS!36:36) -> 0.02 | HY28: =LOOKUP(HY26,InputS!30:30,InputS!36:36) -> 0.02 | HZ28: =LOOKUP(HZ26,InputS!30:30,InputS!36:36) -> 0.02 | IA28: =LOOKUP(IA26,InputS!30:30,InputS!36:36) -> 0.02 | IB28: =LOOKUP(IB26,InputS!30:30,InputS!36:36) -> 0.02 | IC28: =LOOKUP(IC26,InputS!30:30,InputS!36:36) -> 0.02 | ID28: =LOOKUP(ID26,InputS!30:30,InputS!36:36) -> 0.02 | IE28: =LOOKUP(IE26,InputS!30:30,InputS!36:36) -> 0.02 | IF28: =LOOKUP(IF26,InputS!30:30,InputS!36:36) -> 0.02 | IG28: =LOOKUP(IG26,InputS!30:30,InputS!36:36) -> 0.02 | IH28: =LOOKUP(IH26,InputS!30:30,InputS!36:36) -> 0.02 | II28: =LOOKUP(II26,InputS!30:30,InputS!36:36) -> 0.02 | IJ28: =LOOKUP(IJ26,InputS!30:30,InputS!36:36) -> 0.02 | IK28: =LOOKUP(IK26,InputS!30:30,InputS!36:36) -> 0.02 | IL28: =LOOKUP(IL26,InputS!30:30,InputS!36:36) -> 0.02 | IM28: =LOOKUP(IM26,InputS!30:30,InputS!36:36) -> 0.02 | IN28: =LOOKUP(IN26,InputS!30:30,InputS!36:36) -> 0.02 | IO28: =LOOKUP(IO26,InputS!30:30,InputS!36:36) -> 0.02 | IP28: =LOOKUP(IP26,InputS!30:30,InputS!36:36) -> 0.02 | IQ28: =LOOKUP(IQ26,InputS!30:30,InputS!36:36) -> 0.02 | IR28: =LOOKUP(IR26,InputS!30:30,InputS!36:36) -> 0.02 | IS28: =LOOKUP(IS26,InputS!30:30,InputS!36:36) -> 0.02 | IT28: =LOOKUP(IT26,InputS!30:30,InputS!36:36) -> 0.02 | IU28: =LOOKUP(IU26,InputS!30:30,InputS!36:36) -> 0.02 | IV28: =LOOKUP(IV26,InputS!30:30,InputS!36:36) -> 0.02 | IW28: =LOOKUP(IW26,InputS!30:30,InputS!36:36) -> 0.02 | IX28: =LOOKUP(IX26,InputS!30:30,InputS!36:36) -> 0.02 | IY28: =LOOKUP(IY26,InputS!30:30,InputS!36:36) -> 0.02 | IZ28: =LOOKUP(IZ26,InputS!30:30,InputS!36:36) -> 0.02 | JA28: =LOOKUP(JA26,InputS!30:30,InputS!36:36) -> 0.02 | JB28: =LOOKUP(JB26,InputS!30:30,InputS!36:36) -> 0.02 | JC28: =LOOKUP(JC26,InputS!30:30,InputS!36:36) -> 0.02 | JD28: =LOOKUP(JD26,InputS!30:30,InputS!36:36) -> 0.02 | JE28: =LOOKUP(JE26,InputS!30:30,InputS!36:36) -> 0.02 | JF28: =LOOKUP(JF26,InputS!30:30,InputS!36:36) -> 0.02 | JG28: =LOOKUP(JG26,InputS!30:30,InputS!36:36) -> 0.02 | JH28: =LOOKUP(JH26,InputS!30:30,InputS!36:36) -> 0.02 | JI28: =LOOKUP(JI26,InputS!30:30,InputS!36:36) -> 0.02 | JJ28: =LOOKUP(JJ26,InputS!30:30,InputS!36:36) -> 0.02 | JK28: =LOOKUP(JK26,InputS!30:30,InputS!36:36) -> 0.02 | JL28: =LOOKUP(JL26,InputS!30:30,InputS!36:36) -> 0.02 | JM28: =LOOKUP(JM26,InputS!30:30,InputS!36:36) -> 0.02 | JN28: =LOOKUP(JN26,InputS!30:30,InputS!36:36) -> 0.02 | JO28: =LOOKUP(JO26,InputS!30:30,InputS!36:36) -> 0.02 | JP28: =LOOKUP(JP26,InputS!30:30,InputS!36:36) -> 0.02 | JQ28: =LOOKUP(JQ26,InputS!30:30,InputS!36:36) -> 0.02 | JR28: =LOOKUP(JR26,InputS!30:30,InputS!36:36) -> 0.02 | JS28: =LOOKUP(JS26,InputS!30:30,InputS!36:36) -> 0.02 | JT28: =LOOKUP(JT26,InputS!30:30,InputS!36:36) -> 0.02 | JU28: =LOOKUP(JU26,InputS!30:30,InputS!36:36) -> 0.02 | JV28: =LOOKUP(JV26,InputS!30:30,InputS!36:36) -> 0.02 | JW28: =LOOKUP(JW26,InputS!30:30,InputS!36:36) -> 0.02 | JX28: =LOOKUP(JX26,InputS!30:30,InputS!36:36) -> 0.02 | JY28: =LOOKUP(JY26,InputS!30:30,InputS!36:36) -> 0.02 | JZ28: =LOOKUP(JZ26,InputS!30:30,InputS!36:36) -> 0.02 | KA28: =LOOKUP(KA26,InputS!30:30,InputS!36:36) -> 0.02 | KB28: =LOOKUP(KB26,InputS!30:30,InputS!36:36) -> 0.02 | KC28: =LOOKUP(KC26,InputS!30:30,InputS!36:36) -> 0.02 | KD28: =LOOKUP(KD26,InputS!30:30,InputS!36:36) -> 0.02 | KE28: =LOOKUP(KE26,InputS!30:30,InputS!36:36) -> 0.02 | KF28: =LOOKUP(KF26,InputS!30:30,InputS!36:36) -> 0.02 | KG28: =LOOKUP(KG26,InputS!30:30,InputS!36:36) -> 0.02 | KH28: =LOOKUP(KH26,InputS!30:30,InputS!36:36) -> 0.02 | KI28: =LOOKUP(KI26,InputS!30:30,InputS!36:36) -> 0.02 | KJ28: =LOOKUP(KJ26,InputS!30:30,InputS!36:36) -> 0.02 | KK28: =LOOKUP(KK26,InputS!30:30,InputS!36:36) -> 0.02 | KL28: =LOOKUP(KL26,InputS!30:30,InputS!36:36) -> 0.02 | KM28: =LOOKUP(KM26,InputS!30:30,InputS!36:36) -> 0.02 | KN28: =LOOKUP(KN26,InputS!30:30,InputS!36:36) -> 0.02 | KO28: =LOOKUP(KO26,InputS!30:30,InputS!36:36) -> 0.02 | KP28: =LOOKUP(KP26,InputS!30:30,InputS!36:36) -> 0.02 | KQ28: =LOOKUP(KQ26,InputS!30:30,InputS!36:36) -> 0.02 | KR28: =LOOKUP(KR26,InputS!30:30,InputS!36:36) -> 0.02 | KS28: =LOOKUP(KS26,InputS!30:30,InputS!36:36) -> 0.02 | KT28: =LOOKUP(KT26,InputS!30:30,InputS!36:36) -> 0.02 | KU28: =LOOKUP(KU26,InputS!30:30,InputS!36:36) -> 0.02 | KV28: =LOOKUP(KV26,InputS!30:30,InputS!36:36) -> 0.02 | KW28: =LOOKUP(KW26,InputS!30:30,InputS!36:36) -> 0.02 | KX28: =LOOKUP(KX26,InputS!30:30,InputS!36:36) -> 0.02 | KY28: =LOOKUP(KY26,InputS!30:30,InputS!36:36) -> 0.02 | KZ28: =LOOKUP(KZ26,InputS!30:30,InputS!36:36) -> 0.02 | LA28: =LOOKUP(LA26,InputS!30:30,InputS!36:36) -> 0.02 | LB28: =LOOKUP(LB26,InputS!30:30,InputS!36:36) -> 0.02 | LC28: =LOOKUP(LC26,InputS!30:30,InputS!36:36) -> 0.02 | LD28: =LOOKUP(LD26,InputS!30:30,InputS!36:36) -> 0.02 | LE28: =LOOKUP(LE26,InputS!30:30,InputS!36:36) -> 0.02 | LF28: =LOOKUP(LF26,InputS!30:30,InputS!36:36) -> 0.02 | LG28: =LOOKUP(LG26,InputS!30:30,InputS!36:36) -> 0.02 | LH28: =LOOKUP(LH26,InputS!30:30,InputS!36:36) -> 0.02 | LI28: =LOOKUP(LI26,InputS!30:30,InputS!36:36) -> 0.02 | LJ28: =LOOKUP(LJ26,InputS!30:30,InputS!36:36) -> 0.02 | LK28: =LOOKUP(LK26,InputS!30:30,InputS!36:36) -> 0.02 | LL28: =LOOKUP(LL26,InputS!30:30,InputS!36:36) -> 0.02 | LM28: =LOOKUP(LM26,InputS!30:30,InputS!36:36) -> 0.02 | LN28: =LOOKUP(LN26,InputS!30:30,InputS!36:36) -> 0.02 | LO28: =LOOKUP(LO26,InputS!30:30,InputS!36:36) -> 0.02 | LP28: =LOOKUP(LP26,InputS!30:30,InputS!36:36) -> 0.02 | LQ28: =LOOKUP(LQ26,InputS!30:30,InputS!36:36) -> 0.02 | LR28: =LOOKUP(LR26,InputS!30:30,InputS!36:36) -> 0.02 | LS28: =LOOKUP(LS26,InputS!30:30,InputS!36:36) -> 0.02 | LT28: =LOOKUP(LT26,InputS!30:30,InputS!36:36) -> 0.02 | LU28: =LOOKUP(LU26,InputS!30:30,InputS!36:36) -> 0.02 | LV28: =LOOKUP(LV26,InputS!30:30,InputS!36:36) -> 0.02 | LW28: =LOOKUP(LW26,InputS!30:30,InputS!36:36) -> 0.02 | LX28: =LOOKUP(LX26,InputS!30:30,InputS!36:36) -> 0.02 | LY28: =LOOKUP(LY26,InputS!30:30,InputS!36:36) -> 0.02 | LZ28: =LOOKUP(LZ26,InputS!30:30,InputS!36:36) -> 0.02 | MA28: =LOOKUP(MA26,InputS!30:30,InputS!36:36) -> 0.02 | MB28: =LOOKUP(MB26,InputS!30:30,InputS!36:36) -> 0.02 | MC28: =LOOKUP(MC26,InputS!30:30,InputS!36:36) -> 0.02 | MD28: =LOOKUP(MD26,InputS!30:30,InputS!36:36) -> 0.02 | ME28: =LOOKUP(ME26,InputS!30:30,InputS!36:36) -> 0.02 | MF28: =LOOKUP(MF26,InputS!30:30,InputS!36:36) -> 0.02 | MG28: =LOOKUP(MG26,InputS!30:30,InputS!36:36) -> 0.02 | MH28: =LOOKUP(MH26,InputS!30:30,InputS!36:36) -> 0.02 | MI28: =LOOKUP(MI26,InputS!30:30,InputS!36:36) -> 0.02 | MJ28: =LOOKUP(MJ26,InputS!30:30,InputS!36:36) -> 0.02 | MK28: =LOOKUP(MK26,InputS!30:30,InputS!36:36) -> 0.02 | ML28: =LOOKUP(ML26,InputS!30:30,InputS!36:36) -> 0.02 | MM28: =LOOKUP(MM26,InputS!30:30,InputS!36:36) -> 0.02 | MN28: =LOOKUP(MN26,InputS!30:30,InputS!36:36) -> 0.02 | MO28: =LOOKUP(MO26,InputS!30:30,InputS!36:36) -> 0.02 | MP28: =LOOKUP(MP26,InputS!30:30,InputS!36:36) -> 0.02 | MQ28: =LOOKUP(MQ26,InputS!30:30,InputS!36:36) -> 0.02 | MR28: =LOOKUP(MR26,InputS!30:30,InputS!36:36) -> 0.02 | MS28: =LOOKUP(MS26,InputS!30:30,InputS!36:36) -> 0.02 | MT28: =LOOKUP(MT26,InputS!30:30,InputS!36:36) -> 0.02 | MU28: =LOOKUP(MU26,InputS!30:30,InputS!36:36) -> 0.02 | MV28: =LOOKUP(MV26,InputS!30:30,InputS!36:36) -> 0.02 | MW28: =LOOKUP(MW26,InputS!30:30,InputS!36:36) -> 0.02 | MX28: =LOOKUP(MX26,InputS!30:30,InputS!36:36) -> 0.02 | MY28: =LOOKUP(MY26,InputS!30:30,InputS!36:36) -> 0.02 | MZ28: =LOOKUP(MZ26,InputS!30:30,InputS!36:36) -> 0.02 | NA28: =LOOKUP(NA26,InputS!30:30,InputS!36:36) -> 0.02 | NB28: =LOOKUP(NB26,InputS!30:30,InputS!36:36) -> 0.02 | NC28: =LOOKUP(NC26,InputS!30:30,InputS!36:36) -> 0.02 | ND28: =LOOKUP(ND26,InputS!30:30,InputS!36:36) -> 0.02 | NE28: =LOOKUP(NE26,InputS!30:30,InputS!36:36) -> 0.02 | NF28: =LOOKUP(NF26,InputS!30:30,InputS!36:36) -> 0.02 | NG28: =LOOKUP(NG26,InputS!30:30,InputS!36:36) -> 0.02 | NH28: =LOOKUP(NH26,InputS!30:30,InputS!36:36) -> 0.02 | NI28: =LOOKUP(NI26,InputS!30:30,InputS!36:36) -> 0.02 | NJ28: =LOOKUP(NJ26,InputS!30:30,InputS!36:36) -> 0.02 | NK28: =LOOKUP(NK26,InputS!30:30,InputS!36:36) -> 0.02 | NL28: =LOOKUP(NL26,InputS!30:30,InputS!36:36) -> 0.02 | NM28: =LOOKUP(NM26,InputS!30:30,InputS!36:36) -> 0.02 | NN28: =LOOKUP(NN26,InputS!30:30,InputS!36:36) -> 0.02 | NO28: =LOOKUP(NO26,InputS!30:30,InputS!36:36) -> 0.02 | NP28: =LOOKUP(NP26,InputS!30:30,InputS!36:36) -> 0.02 | NQ28: =LOOKUP(NQ26,InputS!30:30,InputS!36:36) -> 0.02 | NR28: =LOOKUP(NR26,InputS!30:30,InputS!36:36) -> 0.02 | NS28: =LOOKUP(NS26,InputS!30:30,InputS!36:36) -> 0.02 | NT28: =LOOKUP(NT26,InputS!30:30,InputS!36:36) -> 0.02 | NU28: =LOOKUP(NU26,InputS!30:30,InputS!36:36) -> 0.02 | NV28: =LOOKUP(NV26,InputS!30:30,InputS!36:36) -> 0.02 | NW28: =LOOKUP(NW26,InputS!30:30,InputS!36:36) -> 0.02 | NX28: =LOOKUP(NX26,InputS!30:30,InputS!36:36) -> 0.02 | NY28: =LOOKUP(NY26,InputS!30:30,InputS!36:36) -> 0.02 | NZ28: =LOOKUP(NZ26,InputS!30:30,InputS!36:36) -> 0.02 | OA28: =LOOKUP(OA26,InputS!30:30,InputS!36:36) -> 0.02 | OB28: =LOOKUP(OB26,InputS!30:30,InputS!36:36) -> 0.02 | OC28: =LOOKUP(OC26,InputS!30:30,InputS!36:36) -> 0.02 | OD28: =LOOKUP(OD26,InputS!30:30,InputS!36:36) -> 0.02 | OE28: =LOOKUP(OE26,InputS!30:30,InputS!36:36) -> 0.02 | OF28: =LOOKUP(OF26,InputS!30:30,InputS!36:36) -> 0.02 | OG28: =LOOKUP(OG26,InputS!30:30,InputS!36:36) -> 0.02 | OH28: =LOOKUP(OH26,InputS!30:30,InputS!36:36) -> 0.02 | OI28: =LOOKUP(OI26,InputS!30:30,InputS!36:36) -> 0.02 | OJ28: =LOOKUP(OJ26,InputS!30:30,InputS!36:36) -> 0.02 | OK28: =LOOKUP(OK26,InputS!30:30,InputS!36:36) -> 0.02 | OL28: =LOOKUP(OL26,InputS!30:30,InputS!36:36) -> 0.02 | OM28: =LOOKUP(OM26,InputS!30:30,InputS!36:36) -> 0.02 | ON28: =LOOKUP(ON26,InputS!30:30,InputS!36:36) -> 0.02 | OO28: =LOOKUP(OO26,InputS!30:30,InputS!36:36) -> 0.02 | OP28: =LOOKUP(OP26,InputS!30:30,InputS!36:36) -> 0.02 | OQ28: =LOOKUP(OQ26,InputS!30:30,InputS!36:36) -> 0.02 | OR28: =LOOKUP(OR26,InputS!30:30,InputS!36:36) -> 0.02 | OS28: =LOOKUP(OS26,InputS!30:30,InputS!36:36) -> 0.02 | OT28: =LOOKUP(OT26,InputS!30:30,InputS!36:36) -> 0.02 | OU28: =LOOKUP(OU26,InputS!30:30,InputS!36:36) -> 0.02 | OV28: =LOOKUP(OV26,InputS!30:30,InputS!36:36) -> 0.02 | OW28: =LOOKUP(OW26,InputS!30:30,InputS!36:36) -> 0.02 | OX28: =LOOKUP(OX26,InputS!30:30,InputS!36:36) -> 0.02 | OY28: =LOOKUP(OY26,InputS!30:30,InputS!36:36) -> 0.02 | OZ28: =LOOKUP(OZ26,InputS!30:30,InputS!36:36) -> 0.02 | PA28: =LOOKUP(PA26,InputS!30:30,InputS!36:36) -> 0.02 | PB28: =LOOKUP(PB26,InputS!30:30,InputS!36:36) -> 0.02 | PC28: =LOOKUP(PC26,InputS!30:30,InputS!36:36) -> 0.02 | PD28: =LOOKUP(PD26,InputS!30:30,InputS!36:36) -> 0.02 | PE28: =LOOKUP(PE26,InputS!30:30,InputS!36:36) -> 0.02 | PF28: =LOOKUP(PF26,InputS!30:30,InputS!36:36) -> 0.02 | PG28: =LOOKUP(PG26,InputS!30:30,InputS!36:36) -> 0.02 | PH28: =LOOKUP(PH26,InputS!30:30,InputS!36:36) -> 0.02 | PI28: =LOOKUP(PI26,InputS!30:30,InputS!36:36) -> 0.02 | PJ28: =LOOKUP(PJ26,InputS!30:30,InputS!36:36) -> 0.02 | PK28: =LOOKUP(PK26,InputS!30:30,InputS!36:36) -> 0.02 | PL28: =LOOKUP(PL26,InputS!30:30,InputS!36:36) -> 0.02 | PM28: =LOOKUP(PM26,InputS!30:30,InputS!36:36) -> 0.02 | PN28: =LOOKUP(PN26,InputS!30:30,InputS!36:36) -> 0.02 | PO28: =LOOKUP(PO26,InputS!30:30,InputS!36:36) -> 0.02 | PP28: =LOOKUP(PP26,InputS!30:30,InputS!36:36) -> 0.02 | PQ28: =LOOKUP(PQ26,InputS!30:30,InputS!36:36) -> 0.02 | PR28: =LOOKUP(PR26,InputS!30:30,InputS!36:36) -> 0.02 | PS28: =LOOKUP(PS26,InputS!30:30,InputS!36:36) -> 0.02 | PT28: =LOOKUP(PT26,InputS!30:30,InputS!36:36) -> 0.02 | PU28: =LOOKUP(PU26,InputS!30:30,InputS!36:36) -> 0.02 | PV28: =LOOKUP(PV26,InputS!30:30,InputS!36:36) -> 0.02 | PW28: =LOOKUP(PW26,InputS!30:30,InputS!36:36) -> 0.02 | PX28: =LOOKUP(PX26,InputS!30:30,InputS!36:36) -> 0.02 | PY28: =LOOKUP(PY26,InputS!30:30,InputS!36:36) -> 0.02 | PZ28: =LOOKUP(PZ26,InputS!30:30,InputS!36:36) -> 0.02 | QA28: =LOOKUP(QA26,InputS!30:30,InputS!36:36) -> 0.02 | QB28: =LOOKUP(QB26,InputS!30:30,InputS!36:36) -> 0.02 | QC28: =LOOKUP(QC26,InputS!30:30,InputS!36:36) -> 0.02 | QD28: =LOOKUP(QD26,InputS!30:30,InputS!36:36) -> 0.02 | QE28: =LOOKUP(QE26,InputS!30:30,InputS!36:36) -> 0.02 | QF28: =LOOKUP(QF26,InputS!30:30,InputS!36:36) -> 0.02 | QG28: =LOOKUP(QG26,InputS!30:30,InputS!36:36) -> 0.02 | QH28: =LOOKUP(QH26,InputS!30:30,InputS!36:36) -> 0.02 | QI28: =LOOKUP(QI26,InputS!30:30,InputS!36:36) -> 0.02 | QJ28: =LOOKUP(QJ26,InputS!30:30,InputS!36:36) -> 0.02 | QK28: =LOOKUP(QK26,InputS!30:30,InputS!36:36) -> 0.02 | QL28: =LOOKUP(QL26,InputS!30:30,InputS!36:36) -> 0.02 | QM28: =LOOKUP(QM26,InputS!30:30,InputS!36:36) -> 0.02 | QN28: =LOOKUP(QN26,InputS!30:30,InputS!36:36) -> 0.02 | QO28: =LOOKUP(QO26,InputS!30:30,InputS!36:36) -> 0.02 | QP28: =LOOKUP(QP26,InputS!30:30,InputS!36:36) -> 0.02 | QQ28: =LOOKUP(QQ26,InputS!30:30,InputS!36:36) -> 0.02 | QR28: =LOOKUP(QR26,InputS!30:30,InputS!36:36) -> 0.02 | QS28: =LOOKUP(QS26,InputS!30:30,InputS!36:36) -> 0.02 | QT28: =LOOKUP(QT26,InputS!30:30,InputS!36:36) -> 0.02 | QU28: =LOOKUP(QU26,InputS!30:30,InputS!36:36) -> 0.02 | QV28: =LOOKUP(QV26,InputS!30:30,InputS!36:36) -> 0.02 | QW28: =LOOKUP(QW26,InputS!30:30,InputS!36:36) -> 0.02 | QX28: =LOOKUP(QX26,InputS!30:30,InputS!36:36) -> 0.02 | QY28: =LOOKUP(QY26,InputS!30:30,InputS!36:36) -> 0.02 | QZ28: =LOOKUP(QZ26,InputS!30:30,InputS!36:36) -> 0.02 | RA28: =LOOKUP(RA26,InputS!30:30,InputS!36:36) -> 0.02 | RB28: =LOOKUP(RB26,InputS!30:30,InputS!36:36) -> 0.02 | RC28: =LOOKUP(RC26,InputS!30:30,InputS!36:36) -> 0.02 | RD28: =LOOKUP(RD26,InputS!30:30,InputS!36:36) -> 0.02 | RE28: =LOOKUP(RE26,InputS!30:30,InputS!36:36) -> 0.02 | RF28: =LOOKUP(RF26,InputS!30:30,InputS!36:36) -> 0.02 | RG28: =LOOKUP(RG26,InputS!30:30,InputS!36:36) -> 0.02 | RH28: =LOOKUP(RH26,InputS!30:30,InputS!36:36) -> 0.02 | RI28: =LOOKUP(RI26,InputS!30:30,InputS!36:36) -> 0.02 | RJ28: =LOOKUP(RJ26,InputS!30:30,InputS!36:36) -> 0.02 | RK28: =LOOKUP(RK26,InputS!30:30,InputS!36:36) -> 0.02 | RL28: =LOOKUP(RL26,InputS!30:30,InputS!36:36) -> 0.02 | RM28: =LOOKUP(RM26,InputS!30:30,InputS!36:36) -> 0.02 | RN28: =LOOKUP(RN26,InputS!30:30,InputS!36:36) -> 0.02 | RO28: =LOOKUP(RO26,InputS!30:30,InputS!36:36) -> 0.02 | RP28: =LOOKUP(RP26,InputS!30:30,InputS!36:36) -> 0.02 | RQ28: =LOOKUP(RQ26,InputS!30:30,InputS!36:36) -> 0.02 | RR28: =LOOKUP(RR26,InputS!30:30,InputS!36:36) -> 0.02 | RS28: =LOOKUP(RS26,InputS!30:30,InputS!36:36) -> 0.02 | RT28: =LOOKUP(RT26,InputS!30:30,InputS!36:36) -> 0.02 | RU28: =LOOKUP(RU26,InputS!30:30,InputS!36:36) -> 0.02 | RV28: =LOOKUP(RV26,InputS!30:30,InputS!36:36) -> 0.02 | RW28: =LOOKUP(RW26,InputS!30:30,InputS!36:36) -> 0.02 | RX28: =LOOKUP(RX26,InputS!30:30,InputS!36:36) -> 0.02 | RY28: =LOOKUP(RY26,InputS!30:30,InputS!36:36) -> 0.02 | RZ28: =LOOKUP(RZ26,InputS!30:30,InputS!36:36) -> 0.02 | SA28: =LOOKUP(SA26,InputS!30:30,InputS!36:36) -> 0.02 | SB28: =LOOKUP(SB26,InputS!30:30,InputS!36:36) -> 0.02 | SC28: =LOOKUP(SC26,InputS!30:30,InputS!36:36) -> 0.02 | SD28: =LOOKUP(SD26,InputS!30:30,InputS!36:36) -> 0.02 | SE28: =LOOKUP(SE26,InputS!30:30,InputS!36:36) -> 0.02 | SF28: =LOOKUP(SF26,InputS!30:30,InputS!36:36) -> 0.02 | SG28: =LOOKUP(SG26,InputS!30:30,InputS!36:36) -> 0.02 | SH28: =LOOKUP(SH26,InputS!30:30,InputS!36:36) -> 0.02 | SI28: =LOOKUP(SI26,InputS!30:30,InputS!36:36) -> 0.02 | SJ28: =LOOKUP(SJ26,InputS!30:30,InputS!36:36) -> 0.02 | SK28: =LOOKUP(SK26,InputS!30:30,InputS!36:36) -> 0.02 | SL28: =LOOKUP(SL26,InputS!30:30,InputS!36:36) -> 0.02 | SM28: =LOOKUP(SM26,InputS!30:30,InputS!36:36) -> 0.02 | SN28: =LOOKUP(SN26,InputS!30:30,InputS!36:36) -> 0.02 | SO28: =LOOKUP(SO26,InputS!30:30,InputS!36:36) -> 0.02 | SP28: =LOOKUP(SP26,InputS!30:30,InputS!36:36) -> 0.02 | SQ28: =LOOKUP(SQ26,InputS!30:30,InputS!36:36) -> 0.02
D29: Period Inflation Rate | J29: % p.p | L29: =(1+L28)^(1/Months_in_year*L6)-1 -> 0.02 | M29: 0.025 | N29: 0.022 | O29: 0.02 | P29: 0.02 | Q29: 0.02 | R29: 0.02 | S29: 0.02 | T29: 0.02 | U29: 0.02 | V29: 0.02 | W29: 0.02 | X29: 0.02 | Y29: 0.02 | Z29: 0.02 | AA29: 0.02 | AB29: 0.02 | AC29: 0.02 | AD29: 0.02 | AE29: 0.02 | AF29: 0.02 | AG29: 0.02 | AH29: 0.02 | AI29: 0.02 | AJ29: 0.02 | AK29: 0.02 | AL29: 0.02 | AM29: 0.02 | AN29: 0.02 | AO29: 0.02 | AP29: 0.02 | AQ29: 0.02 | AR29: 0.02 | AS29: 0.02 | AT29: 0.02 | AU29: 0.02 | AV29: 0.02 | AW29: 0.02 | AX29: 0.02 | AY29: 0.02 | AZ29: 0.02 | BA29: 0.02 | BB29: 0.02 | BC29: 0.02 | BD29: 0.02 | BE29: 0.02 | BF29: 0.02 | BG29: 0.02 | BH29: 0.02 | BI29: 0.02 | BJ29: 0.02 | BK29: 0.02 | BL29: 0.02 | BM29: 0.02 | BN29: 0.02 | BO29: 0.02 | BP29: 0.02 | BQ29: 0.02 | BR29: 0.02 | BS29: 0.02 | BT29: 0.02 | BU29: 0.02 | BV29: 0.02 | BW29: 0.02 | BX29: =(1+BX28)^(1/Months_in_year*BX6)-1 -> 0.02 | BY29: 0.02 | BZ29: 0.02 | CA29: 0.02 | CB29: 0.02 | CC29: 0.02 | CD29: 0.02 | CE29: 0.02 | CF29: 0.02 | CG29: 0.02 | CH29: 0.02 | CI29: 0.02 | CJ29: 0.02 | CK29: 0.02 | CL29: 0.02 | CM29: 0.02 | CN29: 0.02 | CO29: 0.02 | CP29: 0.02 | CQ29: 0.02 | CR29: 0.02 | CS29: 0.02 | CT29: 0.02 | CU29: 0.02 | CV29: 0.02 | CW29: 0.02 | CX29: 0.02 | CY29: 0.02 | CZ29: 0.02 | DA29: 0.02 | DB29: 0.02 | DC29: 0.02 | DD29: 0.02 | DE29: 0.02 | DF29: 0.02 | DG29: 0.02 | DH29: 0.02 | DI29: 0.02 | DJ29: 0.02 | DK29: 0.02 | DL29: 0.02 | DM29: 0.02 | DN29: 0.02 | DO29: 0.02 | DP29: 0.02 | DQ29: 0.02 | DR29: 0.02 | DS29: 0.02 | DT29: 0.02 | DU29: 0.02 | DV29: 0.02 | DW29: 0.02 | DX29: 0.02 | DY29: 0.02 | DZ29: 0.02 | EA29: 0.02 | EB29: 0.02 | EC29: 0.02 | ED29: 0.02 | EE29: 0.02 | EF29: 0.02 | EG29: 0.02 | EH29: 0.02 | EI29: 0.02 | EJ29: =(1+EJ28)^(1/Months_in_year*EJ6)-1 -> 0.02 | EK29: 0.02 | EL29: 0.02 | EM29: 0.02 | EN29: 0.02 | EO29: 0.02 | EP29: 0.02 | EQ29: 0.02 | ER29: 0.02 | ES29: 0.02 | ET29: 0.02 | EU29: 0.02 | EV29: 0.02 | EW29: 0.02 | EX29: 0.02 | EY29: 0.02 | EZ29: 0.02 | FA29: 0.02 | FB29: 0.02 | FC29: 0.02 | FD29: 0.02 | FE29: 0.02 | FF29: 0.02 | FG29: 0.02 | FH29: 0.02 | FI29: 0.02 | FJ29: 0.02 | FK29: 0.02 | FL29: 0.02 | FM29: 0.02 | FN29: 0.02 | FO29: 0.02 | FP29: 0.02 | FQ29: 0.02 | FR29: 0.02 | FS29: 0.02 | FT29: 0.02 | FU29: 0.02 | FV29: 0.02 | FW29: 0.02 | FX29: 0.02 | FY29: 0.02 | FZ29: 0.02 | GA29: 0.02 | GB29: 0.02 | GC29: 0.02 | GD29: 0.02 | GE29: 0.02 | GF29: 0.02 | GG29: 0.02 | GH29: 0.02 | GI29: 0.02 | GJ29: 0.02 | GK29: 0.02 | GL29: 0.02 | GM29: 0.02 | GN29: 0.02 | GO29: 0.02 | GP29: 0.02 | GQ29: 0.02 | GR29: 0.02 | GS29: 0.02 | GT29: 0.02 | GU29: 0.02 | GV29: =(1+GV28)^(1/Months_in_year*GV6)-1 -> 0.02 | GW29: 0.02 | GX29: 0.02 | GY29: 0.02 | GZ29: 0.02 | HA29: 0.02 | HB29: 0.02 | HC29: 0.02 | HD29: 0.02 | HE29: 0.02 | HF29: 0.02 | HG29: 0.02 | HH29: 0.02 | HI29: 0.02 | HJ29: 0.02 | HK29: 0.02 | HL29: 0.02 | HM29: 0.02 | HN29: 0.02 | HO29: 0.02 | HP29: 0.02 | HQ29: 0.02 | HR29: 0.02 | HS29: 0.02 | HT29: 0.02 | HU29: 0.02 | HV29: 0.02 | HW29: 0.02 | HX29: 0.02 | HY29: 0.02 | HZ29: 0.02 | IA29: 0.02 | IB29: 0.02 | IC29: 0.02 | ID29: 0.02 | IE29: 0.02 | IF29: 0.02 | IG29: 0.02 | IH29: 0.02 | II29: 0.02 | IJ29: 0.02 | IK29: 0.02 | IL29: 0.02 | IM29: 0.02 | IN29: 0.02 | IO29: 0.02 | IP29: 0.02 | IQ29: 0.02 | IR29: 0.02 | IS29: 0.02 | IT29: 0.02 | IU29: 0.02 | IV29: 0.02 | IW29: 0.02 | IX29: 0.02 | IY29: 0.02 | IZ29: 0.02 | JA29: 0.02 | JB29: 0.02 | JC29: 0.02 | JD29: 0.02 | JE29: 0.02 | JF29: 0.02 | JG29: 0.02 | JH29: =(1+JH28)^(1/Months_in_year*JH6)-1 -> 0.02 | JI29: 0.02 | JJ29: 0.02 | JK29: 0.02 | JL29: 0.02 | JM29: 0.02 | JN29: 0.02 | JO29: 0.02 | JP29: 0.02 | JQ29: 0.02 | JR29: 0.02 | JS29: 0.02 | JT29: 0.02 | JU29: 0.02 | JV29: 0.02 | JW29: 0.02 | JX29: 0.02 | JY29: 0.02 | JZ29: 0.02 | KA29: 0.02 | KB29: 0.02 | KC29: 0.02 | KD29: 0.02 | KE29: 0.02 | KF29: 0.02 | KG29: 0.02 | KH29: 0.02 | KI29: 0.02 | KJ29: 0.02 | KK29: 0.02 | KL29: 0.02 | KM29: 0.02 | KN29: 0.02 | KO29: 0.02 | KP29: 0.02 | KQ29: 0.02 | KR29: 0.02 | KS29: 0.02 | KT29: 0.02 | KU29: 0.02 | KV29: 0.02 | KW29: 0.02 | KX29: 0.02 | KY29: 0.02 | KZ29: 0.02 | LA29: 0.02 | LB29: 0.02 | LC29: 0.02 | LD29: 0.02 | LE29: 0.02 | LF29: 0.02 | LG29: 0.02 | LH29: 0.02 | LI29: 0.02 | LJ29: 0.02 | LK29: 0.02 | LL29: 0.02 | LM29: 0.02 | LN29: 0.02 | LO29: 0.02 | LP29: 0.02 | LQ29: 0.02 | LR29: 0.02 | LS29: 0.02 | LT29: =(1+LT28)^(1/Months_in_year*LT6)-1 -> 0.02 | LU29: 0.02 | LV29: 0.02 | LW29: 0.02 | LX29: 0.02 | LY29: 0.02 | LZ29: 0.02 | MA29: 0.02 | MB29: 0.02 | MC29: 0.02 | MD29: 0.02 | ME29: 0.02 | MF29: 0.02 | MG29: 0.02 | MH29: 0.02 | MI29: 0.02 | MJ29: 0.02 | MK29: 0.02 | ML29: 0.02 | MM29: 0.02 | MN29: 0.02 | MO29: 0.02 | MP29: 0.02 | MQ29: 0.02 | MR29: 0.02 | MS29: 0.02 | MT29: 0.02 | MU29: 0.02 | MV29: 0.02 | MW29: 0.02 | MX29: 0.02 | MY29: 0.02 | MZ29: 0.02 | NA29: 0.02 | NB29: 0.02 | NC29: 0.02 | ND29: 0.02 | NE29: 0.02 | NF29: 0.02 | NG29: 0.02 | NH29: 0.02 | NI29: 0.02 | NJ29: 0.02 | NK29: 0.02 | NL29: 0.02 | NM29: 0.02 | NN29: 0.02 | NO29: 0.02 | NP29: 0.02 | NQ29: 0.02 | NR29: 0.02 | NS29: 0.02 | NT29: 0.02 | NU29: 0.02 | NV29: 0.02 | NW29: 0.02 | NX29: 0.02 | NY29: 0.02 | NZ29: 0.02 | OA29: 0.02 | OB29: 0.02 | OC29: 0.02 | OD29: 0.02 | OE29: 0.02 | OF29: =(1+OF28)^(1/Months_in_year*OF6)-1 -> 0.02 | OG29: 0.02 | OH29: 0.02 | OI29: 0.02 | OJ29: 0.02 | OK29: 0.02 | OL29: 0.02 | OM29: 0.02 | ON29: 0.02 | OO29: 0.02 | OP29: 0.02 | OQ29: 0.02 | OR29: 0.02 | OS29: 0.02 | OT29: 0.02 | OU29: 0.02 | OV29: 0.02 | OW29: 0.02 | OX29: 0.02 | OY29: 0.02 | OZ29: 0.02 | PA29: 0.02 | PB29: 0.02 | PC29: 0.02 | PD29: 0.02 | PE29: 0.02 | PF29: 0.02 | PG29: 0.02 | PH29: 0.02 | PI29: 0.02 | PJ29: 0.02 | PK29: 0.02 | PL29: 0.02 | PM29: 0.02 | PN29: 0.02 | PO29: 0.02 | PP29: 0.02 | PQ29: 0.02 | PR29: 0.02 | PS29: 0.02 | PT29: 0.02 | PU29: 0.02 | PV29: 0.02 | PW29: 0.02 | PX29: 0.02 | PY29: 0.02 | PZ29: 0.02 | QA29: 0.02 | QB29: 0.02 | QC29: 0.02 | QD29: 0.02 | QE29: 0.02 | QF29: 0.02 | QG29: 0.02 | QH29: 0.02 | QI29: 0.02 | QJ29: 0.02 | QK29: 0.02 | QL29: 0.02 | QM29: 0.02 | QN29: 0.02 | QO29: 0.02 | QP29: 0.02 | QQ29: 0.02 | QR29: =(1+QR28)^(1/Months_in_year*QR6)-1 -> 0.02 | QS29: 0.02 | QT29: 0.02 | QU29: 0.02 | QV29: 0.02 | QW29: 0.02 | QX29: 0.02 | QY29: 0.02 | QZ29: 0.02 | RA29: 0.02 | RB29: 0.02 | RC29: 0.02 | RD29: 0.02 | RE29: 0.02 | RF29: 0.02 | RG29: 0.02 | RH29: 0.02 | RI29: 0.02 | RJ29: 0.02 | RK29: 0.02 | RL29: 0.02 | RM29: 0.02 | RN29: 0.02 | RO29: 0.02 | RP29: 0.02 | RQ29: 0.02 | RR29: 0.02 | RS29: 0.02 | RT29: 0.02 | RU29: 0.02 | RV29: 0.02 | RW29: 0.02 | RX29: 0.02 | RY29: 0.02 | RZ29: 0.02 | SA29: 0.02 | SB29: 0.02 | SC29: 0.02 | SD29: 0.02 | SE29: 0.02 | SF29: 0.02 | SG29: 0.02 | SH29: 0.02 | SI29: 0.02 | SJ29: 0.02 | SK29: 0.02 | SL29: 0.02 | SM29: 0.02 | SN29: 0.02 | SO29: 0.02 | SP29: 0.02 | SQ29: 0.02
D30: Revenue Inflation Index | J30: Index | K30: =One -> 1 | L30: =K30*(1+L29*L25) -> 1 | M30: 1 | N30: 1.022 | O30: 1.04244 | P30: 1.0632888 | Q30: 1.084554576 | R30: 1.106245668 | S30: 1.128370581 | T30: 1.150937992 | U30: 1.173956752 | V30: 1.197435887 | W30: 1.221384605 | X30: 1.245812297 | Y30: 1.270728543 | Z30: 1.296143114 | AA30: 1.322065976 | AB30: 1.348507296 | AC30: 1.375477442 | AD30: 1.402986991 | AE30: 1.43104673 | AF30: 1.459667665 | AG30: 1.488861018 | AH30: 1.518638239 | AI30: 1.549011003 | AJ30: 1.579991224 | AK30: 1.611591048 | AL30: 1.643822869 | AM30: 1.676699326 | AN30: 1.710233313 | AO30: 1.744437979 | AP30: 1.779326739 | AQ30: 1.814913273 | AR30: 1.851211539 | AS30: 1.88823577 | AT30: 1.926000485 | AU30: 1.964520495 | AV30: 2.003810905 | AW30: 2.043887123 | AX30: 2.084764865 | AY30: 2.126460163 | AZ30: 2.168989366 | BA30: 2.212369153 | BB30: 2.256616536 | BC30: 2.301748867 | BD30: 2.347783844 | BE30: 2.394739521 | BF30: 2.442634312 | BG30: 2.491486998 | BH30: 2.541316738 | BI30: 2.592143073 | BJ30: 2.643985934 | BK30: 2.696865653 | BL30: 2.750802966 | BM30: 2.805819025 | BN30: 2.861935406 | BO30: 2.919174114 | BP30: 2.977557596 | BQ30: 3.037108748 | BR30: 3.097850923 | BS30: 3.159807941 | BT30: 3.2230041 | BU30: 3.287464182 | BV30: 3.353213466 | BW30: 3.420277735 | BX30: =BW30*(1+BX29*BX25) -> 3.48868329 | BY30: 3.558456956 | BZ30: 3.629626095 | CA30: 3.702218617 | CB30: 3.776262989 | CC30: 3.851788249 | CD30: 3.928824014 | CE30: 4.007400494 | CF30: 4.087548504 | CG30: 4.169299474 | CH30: 4.252685463 | CI30: 4.337739173 | CJ30: 4.424493956 | CK30: 4.512983835 | CL30: 4.603243512 | CM30: 4.695308382 | CN30: 4.78921455 | CO30: 4.884998841 | CP30: 4.982698818 | CQ30: 5.082352794 | CR30: 5.18399985 | CS30: 5.287679847 | CT30: 5.393433444 | CU30: 5.501302113 | CV30: 5.611328155 | CW30: 5.723554718 | CX30: 5.838025812 | CY30: 5.954786329 | CZ30: 6.073882055 | DA30: 6.195359696 | DB30: 6.31926689 | DC30: 6.445652228 | DD30: 6.574565272 | DE30: 6.706056578 | DF30: 6.840177709 | DG30: 6.976981264 | DH30: 7.116520889 | DI30: 7.258851307 | DJ30: 7.404028333 | DK30: 7.5521089 | DL30: 7.703151078 | DM30: 7.857214099 | DN30: 8.014358381 | DO30: 8.174645549 | DP30: 8.33813846 | DQ30: 8.504901229 | DR30: 8.674999253 | DS30: 8.848499238 | DT30: 9.025469223 | DU30: 9.205978608 | DV30: 9.39009818 | DW30: 9.577900143 | DX30: 9.769458146 | DY30: 9.964847309 | DZ30: 10.16414426 | EA30: 10.36742714 | EB30: 10.57477568 | EC30: 10.7862712 | ED30: 11.00199662 | EE30: 11.22203655 | EF30: 11.44647728 | EG30: 11.67540683 | EH30: 11.90891497 | EI30: 12.14709327 | EJ30: =EI30*(1+EJ29*EJ25) -> 12.39003513 | EK30: 12.63783583 | EL30: 12.89059255 | EM30: 13.1484044 | EN30: 13.41137249 | EO30: 13.67959994 | EP30: 13.95319194 | EQ30: 14.23225578 | ER30: 14.51690089 | ES30: 14.80723891 | ET30: 15.10338369 | EU30: 15.40545136 | EV30: 15.71356039 | EW30: 16.0278316 | EX30: 16.34838823 | EY30: 16.67535599 | EZ30: 17.00886311 | FA30: 17.34904038 | FB30: 17.69602118 | FC30: 18.04994161 | FD30: 18.41094044 | FE30: 18.77915925 | FF30: 19.15474243 | FG30: 19.53783728 | FH30: 19.92859403 | FI30: 20.32716591 | FJ30: 20.73370923 | FK30: 21.14838341 | FL30: 21.57135108 | FM30: 22.0027781 | FN30: 22.44283366 | FO30: 22.89169034 | FP30: 23.34952414 | FQ30: 23.81651463 | FR30: 24.29284492 | FS30: 24.77870182 | FT30: 25.27427585 | FU30: 25.77976137 | FV30: 26.2953566 | FW30: 26.82126373 | FX30: 27.357689 | FY30: 27.90484278 | FZ30: 28.46293964 | GA30: 29.03219843 | GB30: 29.6128424 | GC30: 30.20509925 | GD30: 30.80920123 | GE30: 31.42538526 | GF30: 32.05389296 | GG30: 32.69497082 | GH30: 33.34887024 | GI30: 34.01584764 | GJ30: 34.6961646 | GK30: 35.39008789 | GL30: 36.09788965 | GM30: 36.81984744 | GN30: 37.55624439 | GO30: 38.30736928 | GP30: 39.07351666 | GQ30: 39.854987 | GR30: 40.65208674 | GS30: 41.46512847 | GT30: 42.29443104 | GU30: 43.14031966 | GV30: =GU30*(1+GV29*GV25) -> 44.00312605 | GW30: 44.88318857 | GX30: 45.78085235 | GY30: 46.69646939 | GZ30: 47.63039878 | HA30: 48.58300676 | HB30: 49.55466689 | HC30: 50.54576023 | HD30: 51.55667543 | HE30: 52.58780894 | HF30: 53.63956512 | HG30: 54.71235642 | HH30: 55.80660355 | HI30: 56.92273562 | HJ30: 58.06119034 | HK30: 59.22241414 | HL30: 60.40686242 | HM30: 61.61499967 | HN30: 62.84729967 | HO30: 64.10424566 | HP30: 65.38633057 | HQ30: 66.69405718 | HR30: 68.02793833 | HS30: 69.3884971 | HT30: 70.77626704 | HU30: 72.19179238 | HV30: 73.63562823 | HW30: 75.10834079 | HX30: 76.61050761 | HY30: 78.14271776 | HZ30: 79.70557211 | IA30: 81.29968356 | IB30: 82.92567723 | IC30: 84.58419077 | ID30: 86.27587459 | IE30: 88.00139208 | IF30: 89.76141992 | IG30: 91.55664832 | IH30: 93.38778128 | II30: 95.25553691 | IJ30: 97.16064765 | IK30: 99.1038606 | IL30: 101.0859378 | IM30: 103.1076566 | IN30: 105.1698097 | IO30: 107.2732059 | IP30: 109.41867 | IQ30: 111.6070434 | IR30: 113.8391843 | IS30: 116.115968 | IT30: 118.4382873 | IU30: 120.8070531 | IV30: 123.2231941 | IW30: 125.687658 | IX30: 128.2014112 | IY30: 130.7654394 | IZ30: 133.3807482 | JA30: 136.0483632 | JB30: 138.7693304 | JC30: 141.544717 | JD30: 144.3756114 | JE30: 147.2631236 | JF30: 150.2083861 | JG30: 153.2125538 | JH30: =JG30*(1+JH29*JH25) -> 156.2768049 | JI30: 159.402341 | JJ30: 162.5903878 | JK30: 165.8421955 | JL30: 169.1590394 | JM30: 172.5422202 | JN30: 175.9930646 | JO30: 179.5129259 | JP30: 183.1031844 | JQ30: 186.7652481 | JR30: 190.5005531 | JS30: 194.3105642 | JT30: 198.1967754 | JU30: 202.160711 | JV30: 206.2039252 | JW30: 210.3280037 | JX30: 214.5345637 | JY30: 218.825255 | JZ30: 223.2017601 | KA30: 227.6657953 | KB30: 232.2191112 | KC30: 236.8634935 | KD30: 241.6007633 | KE30: 246.4327786 | KF30: 251.3614342 | KG30: 256.3886629 | KH30: 261.5164361 | KI30: 266.7467648 | KJ30: 272.0817001 | KK30: 277.5233341 | KL30: 283.0738008 | KM30: 288.7352768 | KN30: 294.5099824 | KO30: 300.400182 | KP30: 306.4081857 | KQ30: 312.5363494 | KR30: 318.7870764 | KS30: 325.1628179 | KT30: 331.6660742 | KU30: 338.2993957 | KV30: 345.0653836 | KW30: 351.9666913 | KX30: 359.0060251 | KY30: 366.1861456 | KZ30: 373.5098685 | LA30: 380.9800659 | LB30: 388.5996672 | LC30: 396.3716606 | LD30: 404.2990938 | LE30: 412.3850757 | LF30: 420.6327772 | LG30: 429.0454327 | LH30: 437.6263414 | LI30: 446.3788682 | LJ30: 455.3064456 | LK30: 464.4125745 | LL30: 473.700826 | LM30: 483.1748425 | LN30: 492.8383393 | LO30: 502.6951061 | LP30: 512.7490083 | LQ30: 523.0039884 | LR30: 533.4640682 | LS30: 544.1333496 | LT30: =LS30*(1+LT29*LT25) -> 555.0160165 | LU30: 566.1163369 | LV30: 577.4386636 | LW30: 588.9874369 | LX30: 600.7671856 | LY30: 612.7825293 | LZ30: 625.0381799 | MA30: 637.5389435 | MB30: 650.2897224 | MC30: 663.2955168 | MD30: 676.5614272 | ME30: 690.0926557 | MF30: 703.8945088 | MG30: 717.972399 | MH30: 732.331847 | MI30: 746.9784839 | MJ30: 761.9180536 | MK30: 777.1564147 | ML30: 792.699543 | MM30: 808.5535338 | MN30: 824.7246045 | MO30: 841.2190966 | MP30: 858.0434785 | MQ30: 875.2043481 | MR30: 892.7084351 | MS30: 910.5626038 | MT30: 928.7738558 | MU30: 947.349333 | MV30: 966.2963196 | MW30: 985.622246 | MX30: 1005.334691 | MY30: 1025.441385 | MZ30: 1045.950212 | NA30: 1066.869217 | NB30: 1088.206601 | NC30: 1109.970733 | ND30: 1132.170148 | NE30: 1154.813551 | NF30: 1177.909822 | NG30: 1201.468018 | NH30: 1225.497378 | NI30: 1250.007326 | NJ30: 1275.007473 | NK30: 1300.507622 | NL30: 1326.517774 | NM30: 1353.04813 | NN30: 1380.109093 | NO30: 1407.711274 | NP30: 1435.8655 | NQ30: 1464.58281 | NR30: 1493.874466 | NS30: 1523.751955 | NT30: 1554.226995 | NU30: 1585.311534 | NV30: 1617.017765 | NW30: 1649.35812 | NX30: 1682.345283 | NY30: 1715.992188 | NZ30: 1750.312032 | OA30: 1785.318273 | OB30: 1821.024638 | OC30: 1857.445131 | OD30: 1894.594034 | OE30: 1932.485914 | OF30: =OE30*(1+OF29*OF25) -> 1971.135633 | OG30: 2010.558345 | OH30: 2050.769512 | OI30: 2091.784902 | OJ30: 2133.620601 | OK30: 2176.293013 | OL30: 2219.818873 | OM30: 2264.21525 | ON30: 2309.499555 | OO30: 2355.689546 | OP30: 2402.803337 | OQ30: 2450.859404 | OR30: 2499.876592 | OS30: 2549.874124 | OT30: 2600.871606 | OU30: 2652.889039 | OV30: 2705.946819 | OW30: 2760.065756 | OX30: 2815.267071 | OY30: 2871.572412 | OZ30: 2929.00386 | PA30: 2987.583938 | PB30: 3047.335616 | PC30: 3108.282329 | PD30: 3170.447975 | PE30: 3233.856935 | PF30: 3298.534074 | PG30: 3364.504755 | PH30: 3431.79485 | PI30: 3500.430747 | PJ30: 3570.439362 | PK30: 3641.848149 | PL30: 3714.685112 | PM30: 3788.978815 | PN30: 3864.758391 | PO30: 3942.053559 | PP30: 4020.89463 | PQ30: 4101.312522 | PR30: 4183.338773 | PS30: 4267.005548 | PT30: 4352.345659 | PU30: 4439.392572 | PV30: 4528.180424 | PW30: 4618.744032 | PX30: 4711.118913 | PY30: 4805.341291 | PZ30: 4901.448117 | QA30: 4999.477079 | QB30: 5099.466621 | QC30: 5201.455953 | QD30: 5305.485073 | QE30: 5411.594774 | QF30: 5519.826669 | QG30: 5630.223203 | QH30: 5742.827667 | QI30: 5857.68422 | QJ30: 5974.837905 | QK30: 6094.334663 | QL30: 6216.221356 | QM30: 6340.545783 | QN30: 6467.356699 | QO30: 6596.703833 | QP30: 6728.637909 | QQ30: 6863.210668 | QR30: =QQ30*(1+QR29*QR25) -> 7000.474881 | QS30: 7140.484379 | QT30: 7283.294066 | QU30: 7428.959948 | QV30: 7577.539146 | QW30: 7729.089929 | QX30: 7883.671728 | QY30: 8041.345163 | QZ30: 8202.172066 | RA30: 8366.215507 | RB30: 8533.539817 | RC30: 8704.210614 | RD30: 8878.294826 | RE30: 9055.860722 | RF30: 9236.977937 | RG30: 9421.717496 | RH30: 9610.151845 | RI30: 9802.354882 | RJ30: 9998.40198 | RK30: 10198.37002 | RL30: 10402.33742 | RM30: 10610.38417 | RN30: 10822.59185 | RO30: 11039.04369 | RP30: 11259.82456 | RQ30: 11485.02105 | RR30: 11714.72147 | RS30: 11949.0159 | RT30: 12187.99622 | RU30: 12431.75615 | RV30: 12680.39127 | RW30: 12933.9991 | RX30: 13192.67908 | RY30: 13456.53266 | RZ30: 13725.66331 | SA30: 14000.17658 | SB30: 14280.18011 | SC30: 14565.78371 | SD30: 14857.09939 | SE30: 15154.24137 | SF30: 15457.3262 | SG30: 15766.47273 | SH30: 16081.80218 | SI30: 16403.43822 | SJ30: 16731.50699 | SK30: 17066.13713 | SL30: 17407.45987 | SM30: 17755.60907 | SN30: 18110.72125 | SO30: 18472.93567 | SP30: 18842.39439 | SQ30: 19219.24228
C32: Operating Cost Inflation
D33: Annual Inflation Rate | G33: =InputC!G97 -> 2019-01-01 | J33: % p.a. | L33: =(L7>=$G$33)*1 -> 1 | M33: =(M7>=$G$33)*1 -> 1 | N33: 1 | O33: 1 | P33: 1 | Q33: 1 | R33: 1 | S33: 1 | T33: 1 | U33: 1 | V33: 1 | W33: 1 | X33: 1 | Y33: 1 | Z33: 1 | AA33: 1 | AB33: 1 | AC33: 1 | AD33: 1 | AE33: 1 | AF33: 1 | AG33: 1 | AH33: 1 | AI33: 1 | AJ33: 1 | AK33: 1 | AL33: 1 | AM33: 1 | AN33: 1 | AO33: 1 | AP33: 1 | AQ33: 1 | AR33: 1 | AS33: 1 | AT33: 1 | AU33: 1 | AV33: 1 | AW33: 1 | AX33: 1 | AY33: 1 | AZ33: 1 | BA33: 1 | BB33: 1 | BC33: 1 | BD33: 1 | BE33: 1 | BF33: 1 | BG33: 1 | BH33: 1 | BI33: 1 | BJ33: 1 | BK33: 1 | BL33: 1 | BM33: 1 | BN33: 1 | BO33: 1 | BP33: 1 | BQ33: 1 | BR33: 1 | BS33: 1 | BT33: 1 | BU33: 1 | BV33: 1 | BW33: 1 | BX33: 1 | BY33: =(BY7>=$G$33)*1 -> 1 | BZ33: 1 | CA33: 1 | CB33: 1 | CC33: 1 | CD33: 1 | CE33: 1 | CF33: 1 | CG33: 1 | CH33: 1 | CI33: 1 | CJ33: 1 | CK33: 1 | CL33: 1 | CM33: 1 | CN33: 1 | CO33: 1 | CP33: 1 | CQ33: 1 | CR33: 1 | CS33: 1 | CT33: 1 | CU33: 1 | CV33: 1 | CW33: 1 | CX33: 1 | CY33: 1 | CZ33: 1 | DA33: 1 | DB33: 1 | DC33: 1 | DD33: 1 | DE33: 1 | DF33: 1 | DG33: 1 | DH33: 1 | DI33: 1 | DJ33: 1 | DK33: 1 | DL33: 1 | DM33: 1 | DN33: 1 | DO33: 1 | DP33: 1 | DQ33: 1 | DR33: 1 | DS33: 1 | DT33: 1 | DU33: 1 | DV33: 1 | DW33: 1 | DX33: 1 | DY33: 1 | DZ33: 1 | EA33: 1 | EB33: 1 | EC33: 1 | ED33: 1 | EE33: 1 | EF33: 1 | EG33: 1 | EH33: 1 | EI33: 1 | EJ33: 1 | EK33: =(EK7>=$G$33)*1 -> 1 | EL33: 1 | EM33: 1 | EN33: 1 | EO33: 1 | EP33: 1 | EQ33: 1 | ER33: 1 | ES33: 1 | ET33: 1 | EU33: 1 | EV33: 1 | EW33: 1 | EX33: 1 | EY33: 1 | EZ33: 1 | FA33: 1 | FB33: 1 | FC33: 1 | FD33: 1 | FE33: 1 | FF33: 1 | FG33: 1 | FH33: 1 | FI33: 1 | FJ33: 1 | FK33: 1 | FL33: 1 | FM33: 1 | FN33: 1 | FO33: 1 | FP33: 1 | FQ33: 1 | FR33: 1 | FS33: 1 | FT33: 1 | FU33: 1 | FV33: 1 | FW33: 1 | FX33: 1 | FY33: 1 | FZ33: 1 | GA33: 1 | GB33: 1 | GC33: 1 | GD33: 1 | GE33: 1 | GF33: 1 | GG33: 1 | GH33: 1 | GI33: 1 | GJ33: 1 | GK33: 1 | GL33: 1 | GM33: 1 | GN33: 1 | GO33: 1 | GP33: 1 | GQ33: 1 | GR33: 1 | GS33: 1 | GT33: 1 | GU33: 1 | GV33: 1 | GW33: =(GW7>=$G$33)*1 -> 1 | GX33: 1 | GY33: 1 | GZ33: 1 | HA33: 1 | HB33: 1 | HC33: 1 | HD33: 1 | HE33: 1 | HF33: 1 | HG33: 1 | HH33: 1 | HI33: 1 | HJ33: 1 | HK33: 1 | HL33: 1 | HM33: 1 | HN33: 1 | HO33: 1 | HP33: 1 | HQ33: 1 | HR33: 1 | HS33: 1 | HT33: 1 | HU33: 1 | HV33: 1 | HW33: 1 | HX33: 1 | HY33: 1 | HZ33: 1 | IA33: 1 | IB33: 1 | IC33: 1 | ID33: 1 | IE33: 1 | IF33: 1 | IG33: 1 | IH33: 1 | II33: 1 | IJ33: 1 | IK33: 1 | IL33: 1 | IM33: 1 | IN33: 1 | IO33: 1 | IP33: 1 | IQ33: 1 | IR33: 1 | IS33: 1 | IT33: 1 | IU33: 1 | IV33: 1 | IW33: 1 | IX33: 1 | IY33: 1 | IZ33: 1 | JA33: 1 | JB33: 1 | JC33: 1 | JD33: 1 | JE33: 1 | JF33: 1 | JG33: 1 | JH33: 1 | JI33: =(JI7>=$G$33)*1 -> 1 | JJ33: 1 | JK33: 1 | JL33: 1 | JM33: 1 | JN33: 1 | JO33: 1 | JP33: 1 | JQ33: 1 | JR33: 1 | JS33: 1 | JT33: 1 | JU33: 1 | JV33: 1 | JW33: 1 | JX33: 1 | JY33: 1 | JZ33: 1 | KA33: 1 | KB33: 1 | KC33: 1 | KD33: 1 | KE33: 1 | KF33: 1 | KG33: 1 | KH33: 1 | KI33: 1 | KJ33: 1 | KK33: 1 | KL33: 1 | KM33: 1 | KN33: 1 | KO33: 1 | KP33: 1 | KQ33: 1 | KR33: 1 | KS33: 1 | KT33: 1 | KU33: 1 | KV33: 1 | KW33: 1 | KX33: 1 | KY33: 1 | KZ33: 1 | LA33: 1 | LB33: 1 | LC33: 1 | LD33: 1 | LE33: 1 | LF33: 1 | LG33: 1 | LH33: 1 | LI33: 1 | LJ33: 1 | LK33: 1 | LL33: 1 | LM33: 1 | LN33: 1 | LO33: 1 | LP33: 1 | LQ33: 1 | LR33: 1 | LS33: 1 | LT33: 1 | LU33: =(LU7>=$G$33)*1 -> 1 | LV33: 1 | LW33: 1 | LX33: 1 | LY33: 1 | LZ33: 1 | MA33: 1 | MB33: 1 | MC33: 1 | MD33: 1 | ME33: 1 | MF33: 1 | MG33: 1 | MH33: 1 | MI33: 1 | MJ33: 1 | MK33: 1 | ML33: 1 | MM33: 1 | MN33: 1 | MO33: 1 | MP33: 1 | MQ33: 1 | MR33: 1 | MS33: 1 | MT33: 1 | MU33: 1 | MV33: 1 | MW33: 1 | MX33: 1 | MY33: 1 | MZ33: 1 | NA33: 1 | NB33: 1 | NC33: 1 | ND33: 1 | NE33: 1 | NF33: 1 | NG33: 1 | NH33: 1 | NI33: 1 | NJ33: 1 | NK33: 1 | NL33: 1 | NM33: 1 | NN33: 1 | NO33: 1 | NP33: 1 | NQ33: 1 | NR33: 1 | NS33: 1 | NT33: 1 | NU33: 1 | NV33: 1 | NW33: 1 | NX33: 1 | NY33: 1 | NZ33: 1 | OA33: 1 | OB33: 1 | OC33: 1 | OD33: 1 | OE33: 1 | OF33: 1 | OG33: =(OG7>=$G$33)*1 -> 1 | OH33: 1 | OI33: 1 | OJ33: 1 | OK33: 1 | OL33: 1 | OM33: 1 | ON33: 1 | OO33: 1 | OP33: 1 | OQ33: 1 | OR33: 1 | OS33: 1 | OT33: 1 | OU33: 1 | OV33: 1 | OW33: 1 | OX33: 1 | OY33: 1 | OZ33: 1 | PA33: 1 | PB33: 1 | PC33: 1 | PD33: 1 | PE33: 1 | PF33: 1 | PG33: 1 | PH33: 1 | PI33: 1 | PJ33: 1 | PK33: 1 | PL33: 1 | PM33: 1 | PN33: 1 | PO33: 1 | PP33: 1 | PQ33: 1 | PR33: 1 | PS33: 1 | PT33: 1 | PU33: 1 | PV33: 1 | PW33: 1 | PX33: 1 | PY33: 1 | PZ33: 1 | QA33: 1 | QB33: 1 | QC33: 1 | QD33: 1 | QE33: 1 | QF33: 1 | QG33: 1 | QH33: 1 | QI33: 1 | QJ33: 1 | QK33: 1 | QL33: 1 | QM33: 1 | QN33: 1 | QO33: 1 | QP33: 1 | QQ33: 1 | QR33: 1 | QS33: =(QS7>=$G$33)*1 -> 1 | QT33: 1 | QU33: 1 | QV33: 1 | QW33: 1 | QX33: 1 | QY33: 1 | QZ33: 1 | RA33: 1 | RB33: 1 | RC33: 1 | RD33: 1 | RE33: 1 | RF33: 1 | RG33: 1 | RH33: 1 | RI33: 1 | RJ33: 1 | RK33: 1 | RL33: 1 | RM33: 1 | RN33: 1 | RO33: 1 | RP33: 1 | RQ33: 1 | RR33: 1 | RS33: 1 | RT33: 1 | RU33: 1 | RV33: 1 | RW33: 1 | RX33: 1 | RY33: 1 | RZ33: 1 | SA33: 1 | SB33: 1 | SC33: 1 | SD33: 1 | SE33: 1 | SF33: 1 | SG33: 1 | SH33: 1 | SI33: 1 | SJ33: 1 | SK33: 1 | SL33: 1 | SM33: 1 | SN33: 1 | SO33: 1 | SP33: 1 | SQ33: 1
D34: Period Inflation Rate | J34: % p.p. | L34: =L29 -> 0.02 | M34: =M29 -> 0.025 | N34: 0.022 | O34: 0.02 | P34: 0.02 | Q34: 0.02 | R34: 0.02 | S34: 0.02 | T34: 0.02 | U34: 0.02 | V34: 0.02 | W34: 0.02 | X34: 0.02 | Y34: 0.02 | Z34: 0.02 | AA34: 0.02 | AB34: 0.02 | AC34: 0.02 | AD34: 0.02 | AE34: 0.02 | AF34: 0.02 | AG34: 0.02 | AH34: 0.02 | AI34: 0.02 | AJ34: 0.02 | AK34: 0.02 | AL34: 0.02 | AM34: 0.02 | AN34: 0.02 | AO34: 0.02 | AP34: 0.02 | AQ34: 0.02 | AR34: 0.02 | AS34: 0.02 | AT34: 0.02 | AU34: 0.02 | AV34: 0.02 | AW34: 0.02 | AX34: 0.02 | AY34: 0.02 | AZ34: 0.02 | BA34: 0.02 | BB34: 0.02 | BC34: 0.02 | BD34: 0.02 | BE34: 0.02 | BF34: 0.02 | BG34: 0.02 | BH34: 0.02 | BI34: 0.02 | BJ34: 0.02 | BK34: 0.02 | BL34: 0.02 | BM34: 0.02 | BN34: 0.02 | BO34: 0.02 | BP34: 0.02 | BQ34: 0.02 | BR34: 0.02 | BS34: 0.02 | BT34: 0.02 | BU34: 0.02 | BV34: 0.02 | BW34: 0.02 | BX34: 0.02 | BY34: =BY29 -> 0.02 | BZ34: 0.02 | CA34: 0.02 | CB34: 0.02 | CC34: 0.02 | CD34: 0.02 | CE34: 0.02 | CF34: 0.02 | CG34: 0.02 | CH34: 0.02 | CI34: 0.02 | CJ34: 0.02 | CK34: 0.02 | CL34: 0.02 | CM34: 0.02 | CN34: 0.02 | CO34: 0.02 | CP34: 0.02 | CQ34: 0.02 | CR34: 0.02 | CS34: 0.02 | CT34: 0.02 | CU34: 0.02 | CV34: 0.02 | CW34: 0.02 | CX34: 0.02 | CY34: 0.02 | CZ34: 0.02 | DA34: 0.02 | DB34: 0.02 | DC34: 0.02 | DD34: 0.02 | DE34: 0.02 | DF34: 0.02 | DG34: 0.02 | DH34: 0.02 | DI34: 0.02 | DJ34: 0.02 | DK34: 0.02 | DL34: 0.02 | DM34: 0.02 | DN34: 0.02 | DO34: 0.02 | DP34: 0.02 | DQ34: 0.02 | DR34: 0.02 | DS34: 0.02 | DT34: 0.02 | DU34: 0.02 | DV34: 0.02 | DW34: 0.02 | DX34: 0.02 | DY34: 0.02 | DZ34: 0.02 | EA34: 0.02 | EB34: 0.02 | EC34: 0.02 | ED34: 0.02 | EE34: 0.02 | EF34: 0.02 | EG34: 0.02 | EH34: 0.02 | EI34: 0.02 | EJ34: 0.02 | EK34: =EK29 -> 0.02 | EL34: 0.02 | EM34: 0.02 | EN34: 0.02 | EO34: 0.02 | EP34: 0.02 | EQ34: 0.02 | ER34: 0.02 | ES34: 0.02 | ET34: 0.02 | EU34: 0.02 | EV34: 0.02 | EW34: 0.02 | EX34: 0.02 | EY34: 0.02 | EZ34: 0.02 | FA34: 0.02 | FB34: 0.02 | FC34: 0.02 | FD34: 0.02 | FE34: 0.02 | FF34: 0.02 | FG34: 0.02 | FH34: 0.02 | FI34: 0.02 | FJ34: 0.02 | FK34: 0.02 | FL34: 0.02 | FM34: 0.02 | FN34: 0.02 | FO34: 0.02 | FP34: 0.02 | FQ34: 0.02 | FR34: 0.02 | FS34: 0.02 | FT34: 0.02 | FU34: 0.02 | FV34: 0.02 | FW34: 0.02 | FX34: 0.02 | FY34: 0.02 | FZ34: 0.02 | GA34: 0.02 | GB34: 0.02 | GC34: 0.02 | GD34: 0.02 | GE34: 0.02 | GF34: 0.02 | GG34: 0.02 | GH34: 0.02 | GI34: 0.02 | GJ34: 0.02 | GK34: 0.02 | GL34: 0.02 | GM34: 0.02 | GN34: 0.02 | GO34: 0.02 | GP34: 0.02 | GQ34: 0.02 | GR34: 0.02 | GS34: 0.02 | GT34: 0.02 | GU34: 0.02 | GV34: 0.02 | GW34: =GW29 -> 0.02 | GX34: 0.02 | GY34: 0.02 | GZ34: 0.02 | HA34: 0.02 | HB34: 0.02 | HC34: 0.02 | HD34: 0.02 | HE34: 0.02 | HF34: 0.02 | HG34: 0.02 | HH34: 0.02 | HI34: 0.02 | HJ34: 0.02 | HK34: 0.02 | HL34: 0.02 | HM34: 0.02 | HN34: 0.02 | HO34: 0.02 | HP34: 0.02 | HQ34: 0.02 | HR34: 0.02 | HS34: 0.02 | HT34: 0.02 | HU34: 0.02 | HV34: 0.02 | HW34: 0.02 | HX34: 0.02 | HY34: 0.02 | HZ34: 0.02 | IA34: 0.02 | IB34: 0.02 | IC34: 0.02 | ID34: 0.02 | IE34: 0.02 | IF34: 0.02 | IG34: 0.02 | IH34: 0.02 | II34: 0.02 | IJ34: 0.02 | IK34: 0.02 | IL34: 0.02 | IM34: 0.02 | IN34: 0.02 | IO34: 0.02 | IP34: 0.02 | IQ34: 0.02 | IR34: 0.02 | IS34: 0.02 | IT34: 0.02 | IU34: 0.02 | IV34: 0.02 | IW34: 0.02 | IX34: 0.02 | IY34: 0.02 | IZ34: 0.02 | JA34: 0.02 | JB34: 0.02 | JC34: 0.02 | JD34: 0.02 | JE34: 0.02 | JF34: 0.02 | JG34: 0.02 | JH34: 0.02 | JI34: =JI29 -> 0.02 | JJ34: 0.02 | JK34: 0.02 | JL34: 0.02 | JM34: 0.02 | JN34: 0.02 | JO34: 0.02 | JP34: 0.02 | JQ34: 0.02 | JR34: 0.02 | JS34: 0.02 | JT34: 0.02 | JU34: 0.02 | JV34: 0.02 | JW34: 0.02 | JX34: 0.02 | JY34: 0.02 | JZ34: 0.02 | KA34: 0.02 | KB34: 0.02 | KC34: 0.02 | KD34: 0.02 | KE34: 0.02 | KF34: 0.02 | KG34: 0.02 | KH34: 0.02 | KI34: 0.02 | KJ34: 0.02 | KK34: 0.02 | KL34: 0.02 | KM34: 0.02 | KN34: 0.02 | KO34: 0.02 | KP34: 0.02 | KQ34: 0.02 | KR34: 0.02 | KS34: 0.02 | KT34: 0.02 | KU34: 0.02 | KV34: 0.02 | KW34: 0.02 | KX34: 0.02 | KY34: 0.02 | KZ34: 0.02 | LA34: 0.02 | LB34: 0.02 | LC34: 0.02 | LD34: 0.02 | LE34: 0.02 | LF34: 0.02 | LG34: 0.02 | LH34: 0.02 | LI34: 0.02 | LJ34: 0.02 | LK34: 0.02 | LL34: 0.02 | LM34: 0.02 | LN34: 0.02 | LO34: 0.02 | LP34: 0.02 | LQ34: 0.02 | LR34: 0.02 | LS34: 0.02 | LT34: 0.02 | LU34: =LU29 -> 0.02 | LV34: 0.02 | LW34: 0.02 | LX34: 0.02 | LY34: 0.02 | LZ34: 0.02 | MA34: 0.02 | MB34: 0.02 | MC34: 0.02 | MD34: 0.02 | ME34: 0.02 | MF34: 0.02 | MG34: 0.02 | MH34: 0.02 | MI34: 0.02 | MJ34: 0.02 | MK34: 0.02 | ML34: 0.02 | MM34: 0.02 | MN34: 0.02 | MO34: 0.02 | MP34: 0.02 | MQ34: 0.02 | MR34: 0.02 | MS34: 0.02 | MT34: 0.02 | MU34: 0.02 | MV34: 0.02 | MW34: 0.02 | MX34: 0.02 | MY34: 0.02 | MZ34: 0.02 | NA34: 0.02 | NB34: 0.02 | NC34: 0.02 | ND34: 0.02 | NE34: 0.02 | NF34: 0.02 | NG34: 0.02 | NH34: 0.02 | NI34: 0.02 | NJ34: 0.02 | NK34: 0.02 | NL34: 0.02 | NM34: 0.02 | NN34: 0.02 | NO34: 0.02 | NP34: 0.02 | NQ34: 0.02 | NR34: 0.02 | NS34: 0.02 | NT34: 0.02 | NU34: 0.02 | NV34: 0.02 | NW34: 0.02 | NX34: 0.02 | NY34: 0.02 | NZ34: 0.02 | OA34: 0.02 | OB34: 0.02 | OC34: 0.02 | OD34: 0.02 | OE34: 0.02 | OF34: 0.02 | OG34: =OG29 -> 0.02 | OH34: 0.02 | OI34: 0.02 | OJ34: 0.02 | OK34: 0.02 | OL34: 0.02 | OM34: 0.02 | ON34: 0.02 | OO34: 0.02 | OP34: 0.02 | OQ34: 0.02 | OR34: 0.02 | OS34: 0.02 | OT34: 0.02 | OU34: 0.02 | OV34: 0.02 | OW34: 0.02 | OX34: 0.02 | OY34: 0.02 | OZ34: 0.02 | PA34: 0.02 | PB34: 0.02 | PC34: 0.02 | PD34: 0.02 | PE34: 0.02 | PF34: 0.02 | PG34: 0.02 | PH34: 0.02 | PI34: 0.02 | PJ34: 0.02 | PK34: 0.02 | PL34: 0.02 | PM34: 0.02 | PN34: 0.02 | PO34: 0.02 | PP34: 0.02 | PQ34: 0.02 | PR34: 0.02 | PS34: 0.02 | PT34: 0.02 | PU34: 0.02 | PV34: 0.02 | PW34: 0.02 | PX34: 0.02 | PY34: 0.02 | PZ34: 0.02 | QA34: 0.02 | QB34: 0.02 | QC34: 0.02 | QD34: 0.02 | QE34: 0.02 | QF34: 0.02 | QG34: 0.02 | QH34: 0.02 | QI34: 0.02 | QJ34: 0.02 | QK34: 0.02 | QL34: 0.02 | QM34: 0.02 | QN34: 0.02 | QO34: 0.02 | QP34: 0.02 | QQ34: 0.02 | QR34: 0.02 | QS34: =QS29 -> 0.02 | QT34: 0.02 | QU34: 0.02 | QV34: 0.02 | QW34: 0.02 | QX34: 0.02 | QY34: 0.02 | QZ34: 0.02 | RA34: 0.02 | RB34: 0.02 | RC34: 0.02 | RD34: 0.02 | RE34: 0.02 | RF34: 0.02 | RG34: 0.02 | RH34: 0.02 | RI34: 0.02 | RJ34: 0.02 | RK34: 0.02 | RL34: 0.02 | RM34: 0.02 | RN34: 0.02 | RO34: 0.02 | RP34: 0.02 | RQ34: 0.02 | RR34: 0.02 | RS34: 0.02 | RT34: 0.02 | RU34: 0.02 | RV34: 0.02 | RW34: 0.02 | RX34: 0.02 | RY34: 0.02 | RZ34: 0.02 | SA34: 0.02 | SB34: 0.02 | SC34: 0.02 | SD34: 0.02 | SE34: 0.02 | SF34: 0.02 | SG34: 0.02 | SH34: 0.02 | SI34: 0.02 | SJ34: 0.02 | SK34: 0.02 | SL34: 0.02 | SM34: 0.02 | SN34: 0.02 | SO34: 0.02 | SP34: 0.02 | SQ34: 0.02
D35: Operating Expense Inflation Index | J35: Index | K35: =One -> 1 | L35: =K35*(1+L34*L33) -> 1.02 | M35: =L35*(1+M34*M33) -> 1.0455 | N35: 1.068501 | O35: 1.08987102 | P35: 1.11166844 | Q35: 1.133901809 | R35: 1.156579845 | S35: 1.179711442 | T35: 1.203305671 | U35: 1.227371785 | V35: 1.25191922 | W35: 1.276957605 | X35: 1.302496757 | Y35: 1.328546692 | Z35: 1.355117626 | AA35: 1.382219978 | AB35: 1.409864378 | AC35: 1.438061665 | AD35: 1.466822899 | AE35: 1.496159357 | AF35: 1.526082544 | AG35: 1.556604195 | AH35: 1.587736279 | AI35: 1.619491004 | AJ35: 1.651880824 | AK35: 1.684918441 | AL35: 1.71861681 | AM35: 1.752989146 | AN35: 1.788048929 | AO35: 1.823809907 | AP35: 1.860286105 | AQ35: 1.897491827 | AR35: 1.935441664 | AS35: 1.974150497 | AT35: 2.013633507 | AU35: 2.053906177 | AV35: 2.094984301 | AW35: 2.136883987 | AX35: 2.179621667 | AY35: 2.2232141 | AZ35: 2.267678382 | BA35: 2.31303195 | BB35: 2.359292589 | BC35: 2.40647844 | BD35: 2.454608009 | BE35: 2.503700169 | BF35: 2.553774173 | BG35: 2.604849656 | BH35: 2.656946649 | BI35: 2.710085582 | BJ35: 2.764287294 | BK35: 2.81957304 | BL35: 2.875964501 | BM35: 2.933483791 | BN35: 2.992153466 | BO35: 3.051996536 | BP35: 3.113036467 | BQ35: 3.175297196 | BR35: 3.23880314 | BS35: 3.303579203 | BT35: 3.369650787 | BU35: 3.437043802 | BV35: 3.505784678 | BW35: 3.575900372 | BX35: 3.647418379 | BY35: =BX35*(1+BY34*BY33) -> 3.720366747 | BZ35: 3.794774082 | CA35: 3.870669564 | CB35: 3.948082955 | CC35: 4.027044614 | CD35: 4.107585506 | CE35: 4.189737216 | CF35: 4.273531961 | CG35: 4.3590026 | CH35: 4.446182652 | CI35: 4.535106305 | CJ35: 4.625808431 | CK35: 4.7183246 | CL35: 4.812691092 | CM35: 4.908944913 | CN35: 5.007123812 | CO35: 5.107266288 | CP35: 5.209411614 | CQ35: 5.313599846 | CR35: 5.419871843 | CS35: 5.52826928 | CT35: 5.638834665 | CU35: 5.751611359 | CV35: 5.866643586 | CW35: 5.983976458 | CX35: 6.103655987 | CY35: 6.225729106 | CZ35: 6.350243689 | DA35: 6.477248562 | DB35: 6.606793534 | DC35: 6.738929404 | DD35: 6.873707992 | DE35: 7.011182152 | DF35: 7.151405795 | DG35: 7.294433911 | DH35: 7.440322589 | DI35: 7.589129041 | DJ35: 7.740911622 | DK35: 7.895729854 | DL35: 8.053644452 | DM35: 8.214717341 | DN35: 8.379011687 | DO35: 8.546591921 | DP35: 8.71752376 | DQ35: 8.891874235 | DR35: 9.069711719 | DS35: 9.251105954 | DT35: 9.436128073 | DU35: 9.624850634 | DV35: 9.817347647 | DW35: 10.0136946 | DX35: 10.21396849 | DY35: 10.41824786 | DZ35: 10.62661282 | EA35: 10.83914508 | EB35: 11.05592798 | EC35: 11.27704654 | ED35: 11.50258747 | EE35: 11.73263922 | EF35: 11.967292 | EG35: 12.20663784 | EH35: 12.4507706 | EI35: 12.69978601 | EJ35: 12.95378173 | EK35: =EJ35*(1+EK34*EK33) -> 13.21285736 | EL35: 13.47711451 | EM35: 13.7466568 | EN35: 14.02158994 | EO35: 14.30202174 | EP35: 14.58806217 | EQ35: 14.87982341 | ER35: 15.17741988 | ES35: 15.48096828 | ET35: 15.79058765 | EU35: 16.1063994 | EV35: 16.42852739 | EW35: 16.75709794 | EX35: 17.09223989 | EY35: 17.43408469 | EZ35: 17.78276639 | FA35: 18.13842171 | FB35: 18.50119015 | FC35: 18.87121395 | FD35: 19.24863823 | FE35: 19.63361099 | FF35: 20.02628321 | FG35: 20.42680888 | FH35: 20.83534506 | FI35: 21.25205196 | FJ35: 21.677093 | FK35: 22.11063486 | FL35: 22.55284755 | FM35: 23.0039045 | FN35: 23.46398259 | FO35: 23.93326225 | FP35: 24.41192749 | FQ35: 24.90016604 | FR35: 25.39816936 | FS35: 25.90613275 | FT35: 26.4242554 | FU35: 26.95274051 | FV35: 27.49179532 | FW35: 28.04163123 | FX35: 28.60246385 | FY35: 29.17451313 | FZ35: 29.75800339 | GA35: 30.35316346 | GB35: 30.96022673 | GC35: 31.57943126 | GD35: 32.21101989 | GE35: 32.85524029 | GF35: 33.51234509 | GG35: 34.182592 | GH35: 34.86624384 | GI35: 35.56356871 | GJ35: 36.27484009 | GK35: 37.00033689 | GL35: 37.74034363 | GM35: 38.4951505 | GN35: 39.26505351 | GO35: 40.05035458 | GP35: 40.85136167 | GQ35: 41.6683889 | GR35: 42.50175668 | GS35: 43.35179182 | GT35: 44.21882765 | GU35: 45.1032042 | GV35: 46.00526829 | GW35: =GV35*(1+GW34*GW33) -> 46.92537365 | GX35: 47.86388113 | GY35: 48.82115875 | GZ35: 49.79758192 | HA35: 50.79353356 | HB35: 51.80940423 | HC35: 52.84559232 | HD35: 53.90250417 | HE35: 54.98055425 | HF35: 56.08016533 | HG35: 57.20176864 | HH35: 58.34580401 | HI35: 59.51272009 | HJ35: 60.7029745 | HK35: 61.91703399 | HL35: 63.15537467 | HM35: 64.41848216 | HN35: 65.7068518 | HO35: 67.02098884 | HP35: 68.36140861 | HQ35: 69.72863679 | HR35: 71.12320952 | HS35: 72.54567371 | HT35: 73.99658719 | HU35: 75.47651893 | HV35: 76.98604931 | HW35: 78.5257703 | HX35: 80.0962857 | HY35: 81.69821142 | HZ35: 83.33217564 | IA35: 84.99881916 | IB35: 86.69879554 | IC35: 88.43277145 | ID35: 90.20142688 | IE35: 92.00545542 | IF35: 93.84556453 | IG35: 95.72247582 | IH35: 97.63692533 | II35: 99.58966384 | IJ35: 101.5814571 | IK35: 103.6130863 | IL35: 105.685348 | IM35: 107.7990549 | IN35: 109.955036 | IO35: 112.1541368 | IP35: 114.3972195 | IQ35: 116.6851639 | IR35: 119.0188672 | IS35: 121.3992445 | IT35: 123.8272294 | IU35: 126.303774 | IV35: 128.8298495 | IW35: 131.4064465 | IX35: 134.0345754 | IY35: 136.7152669 | IZ35: 139.4495722 | JA35: 142.2385637 | JB35: 145.0833349 | JC35: 147.9850016 | JD35: 150.9447017 | JE35: 153.9635957 | JF35: 157.0428676 | JG35: 160.183725 | JH35: 163.3873995 | JI35: =JH35*(1+JI34*JI33) -> 166.6551475 | JJ35: 169.9882504 | JK35: 173.3880154 | JL35: 176.8557757 | JM35: 180.3928913 | JN35: 184.0007491 | JO35: 187.6807641 | JP35: 191.4343793 | JQ35: 195.2630669 | JR35: 199.1683283 | JS35: 203.1516948 | JT35: 207.2147287 | JU35: 211.3590233 | JV35: 215.5862038 | JW35: 219.8979278 | JX35: 224.2958864 | JY35: 228.7818041 | JZ35: 233.3574402 | KA35: 238.024589 | KB35: 242.7850808 | KC35: 247.6407824 | KD35: 252.5935981 | KE35: 257.64547 | KF35: 262.7983794 | KG35: 268.054347 | KH35: 273.4154339 | KI35: 278.8837426 | KJ35: 284.4614175 | KK35: 290.1506458 | KL35: 295.9536587 | KM35: 301.8727319 | KN35: 307.9101866 | KO35: 314.0683903 | KP35: 320.3497581 | KQ35: 326.7567533 | KR35: 333.2918883 | KS35: 339.9577261 | KT35: 346.7568806 | KU35: 353.6920182 | KV35: 360.7658586 | KW35: 367.9811758 | KX35: 375.3407993 | KY35: 382.8476153 | KZ35: 390.5045676 | LA35: 398.3146589 | LB35: 406.2809521 | LC35: 414.4065711 | LD35: 422.6947026 | LE35: 431.1485966 | LF35: 439.7715685 | LG35: 448.5669999 | LH35: 457.5383399 | LI35: 466.6891067 | LJ35: 476.0228888 | LK35: 485.5433466 | LL35: 495.2542136 | LM35: 505.1592978 | LN35: 515.2624838 | LO35: 525.5677335 | LP35: 536.0790881 | LQ35: 546.8006699 | LR35: 557.7366833 | LS35: 568.891417 | LT35: 580.2692453 | LU35: =LT35*(1+LU34*LU33) -> 591.8746302 | LV35: 603.7121228 | LW35: 615.7863653 | LX35: 628.1020926 | LY35: 640.6641344 | LZ35: 653.4774171 | MA35: 666.5469654 | MB35: 679.8779048 | MC35: 693.4754629 | MD35: 707.3449721 | ME35: 721.4918716 | MF35: 735.921709 | MG35: 750.6401432 | MH35: 765.652946 | MI35: 780.9660049 | MJ35: 796.585325 | MK35: 812.5170315 | ML35: 828.7673722 | MM35: 845.3427196 | MN35: 862.249574 | MO35: 879.4945655 | MP35: 897.0844568 | MQ35: 915.0261459 | MR35: 933.3266689 | MS35: 951.9932022 | MT35: 971.0330663 | MU35: 990.4537276 | MV35: 1010.262802 | MW35: 1030.468058 | MX35: 1051.077419 | MY35: 1072.098968 | MZ35: 1093.540947 | NA35: 1115.411766 | NB35: 1137.720001 | NC35: 1160.474401 | ND35: 1183.683889 | NE35: 1207.357567 | NF35: 1231.504719 | NG35: 1256.134813 | NH35: 1281.257509 | NI35: 1306.882659 | NJ35: 1333.020313 | NK35: 1359.680719 | NL35: 1386.874333 | NM35: 1414.61182 | NN35: 1442.904056 | NO35: 1471.762137 | NP35: 1501.19738 | NQ35: 1531.221328 | NR35: 1561.845754 | NS35: 1593.082669 | NT35: 1624.944323 | NU35: 1657.443209 | NV35: 1690.592073 | NW35: 1724.403915 | NX35: 1758.891993 | NY35: 1794.069833 | NZ35: 1829.95123 | OA35: 1866.550254 | OB35: 1903.881259 | OC35: 1941.958885 | OD35: 1980.798062 | OE35: 2020.414023 | OF35: 2060.822304 | OG35: =OF35*(1+OG34*OG33) -> 2102.03875 | OH35: 2144.079525 | OI35: 2186.961116 | OJ35: 2230.700338 | OK35: 2275.314345 | OL35: 2320.820631 | OM35: 2367.237044 | ON35: 2414.581785 | OO35: 2462.873421 | OP35: 2512.130889 | OQ35: 2562.373507 | OR35: 2613.620977 | OS35: 2665.893397 | OT35: 2719.211265 | OU35: 2773.59549 | OV35: 2829.0674 | OW35: 2885.648748 | OX35: 2943.361723 | OY35: 3002.228957 | OZ35: 3062.273536 | PA35: 3123.519007 | PB35: 3185.989387 | PC35: 3249.709175 | PD35: 3314.703358 | PE35: 3380.997425 | PF35: 3448.617374 | PG35: 3517.589721 | PH35: 3587.941516 | PI35: 3659.700346 | PJ35: 3732.894353 | PK35: 3807.55224 | PL35: 3883.703285 | PM35: 3961.377351 | PN35: 4040.604898 | PO35: 4121.416996 | PP35: 4203.845335 | PQ35: 4287.922242 | PR35: 4373.680687 | PS35: 4461.154301 | PT35: 4550.377387 | PU35: 4641.384935 | PV35: 4734.212633 | PW35: 4828.896886 | PX35: 4925.474824 | PY35: 5023.98432 | PZ35: 5124.464006 | QA35: 5226.953287 | QB35: 5331.492352 | QC35: 5438.122199 | QD35: 5546.884643 | QE35: 5657.822336 | QF35: 5770.978783 | QG35: 5886.398359 | QH35: 6004.126326 | QI35: 6124.208852 | QJ35: 6246.693029 | QK35: 6371.62689 | QL35: 6499.059428 | QM35: 6629.040616 | QN35: 6761.621429 | QO35: 6896.853857 | QP35: 7034.790934 | QQ35: 7175.486753 | QR35: 7318.996488 | QS35: =QR35*(1+QS34*QS33) -> 7465.376418 | QT35: 7614.683946 | QU35: 7766.977625 | QV35: 7922.317178 | QW35: 8080.763521 | QX35: 8242.378792 | QY35: 8407.226367 | QZ35: 8575.370895 | RA35: 8746.878313 | RB35: 8921.815879 | RC35: 9100.252197 | RD35: 9282.25724 | RE35: 9467.902385 | RF35: 9657.260433 | RG35: 9850.405642 | RH35: 10047.41375 | RI35: 10248.36203 | RJ35: 10453.32927 | RK35: 10662.39586 | RL35: 10875.64377 | RM35: 11093.15665 | RN35: 11315.01978 | RO35: 11541.32018 | RP35: 11772.14658 | RQ35: 12007.58951 | RR35: 12247.7413 | RS35: 12492.69613 | RT35: 12742.55005 | RU35: 12997.40105 | RV35: 13257.34907 | RW35: 13522.49605 | RX35: 13792.94598 | RY35: 14068.80489 | RZ35: 14350.18099 | SA35: 14637.18461 | SB35: 14929.9283 | SC35: 15228.52687 | SD35: 15533.09741 | SE35: 15843.75936 | SF35: 16160.63454 | SG35: 16483.84723 | SH35: 16813.52418 | SI35: 17149.79466 | SJ35: 17492.79056 | SK35: 17842.64637 | SL35: 18199.49929 | SM35: 18563.48928 | SN35: 18934.75907 | SO35: 19313.45425 | SP35: 19699.72333 | SQ35: 20093.7178
B38: Operating Cash Flow
C40: Capital Expenditure
D41: Total Cost | F41: Euro | G41: =InputC!G49 -> 380000000 | J41: Euro | L41: =$G$41 -> 380000000 | M41: =$G$41 -> 380000000 | N41: 380000000 | O41: 380000000 | P41: 380000000 | Q41: 380000000 | R41: 380000000 | S41: 380000000 | T41: 380000000 | U41: 380000000 | V41: 380000000 | W41: 380000000 | X41: 380000000 | Y41: 380000000 | Z41: 380000000 | AA41: 380000000 | AB41: 380000000 | AC41: 380000000 | AD41: 380000000 | AE41: 380000000 | AF41: 380000000 | AG41: 380000000 | AH41: 380000000 | AI41: 380000000 | AJ41: 380000000 | AK41: 380000000 | AL41: 380000000 | AM41: 380000000 | AN41: 380000000 | AO41: 380000000 | AP41: 380000000 | AQ41: 380000000 | AR41: 380000000 | AS41: 380000000 | AT41: 380000000 | AU41: 380000000 | AV41: 380000000 | AW41: 380000000 | AX41: 380000000 | AY41: 380000000 | AZ41: 380000000 | BA41: 380000000 | BB41: 380000000 | BC41: 380000000 | BD41: 380000000 | BE41: 380000000 | BF41: 380000000 | BG41: 380000000 | BH41: 380000000 | BI41: 380000000 | BJ41: 380000000 | BK41: 380000000 | BL41: 380000000 | BM41: 380000000 | BN41: 380000000 | BO41: 380000000 | BP41: 380000000 | BQ41: 380000000 | BR41: 380000000 | BS41: 380000000 | BT41: 380000000 | BU41: 380000000 | BV41: 380000000 | BW41: 380000000 | BX41: 380000000 | BY41: =$G$41 -> 380000000 | BZ41: 380000000 | CA41: 380000000 | CB41: 380000000 | CC41: 380000000 | CD41: 380000000 | CE41: 380000000 | CF41: 380000000 | CG41: 380000000 | CH41: 380000000 | CI41: 380000000 | CJ41: 380000000 | CK41: 380000000 | CL41: 380000000 | CM41: 380000000 | CN41: 380000000 | CO41: 380000000 | CP41: 380000000 | CQ41: 380000000 | CR41: 380000000 | CS41: 380000000 | CT41: 380000000 | CU41: 380000000 | CV41: 380000000 | CW41: 380000000 | CX41: 380000000 | CY41: 380000000 | CZ41: 380000000 | DA41: 380000000 | DB41: 380000000 | DC41: 380000000 | DD41: 380000000 | DE41: 380000000 | DF41: 380000000 | DG41: 380000000 | DH41: 380000000 | DI41: 380000000 | DJ41: 380000000 | DK41: 380000000 | DL41: 380000000 | DM41: 380000000 | DN41: 380000000 | DO41: 380000000 | DP41: 380000000 | DQ41: 380000000 | DR41: 380000000 | DS41: 380000000 | DT41: 380000000 | DU41: 380000000 | DV41: 380000000 | DW41: 380000000 | DX41: 380000000 | DY41: 380000000 | DZ41: 380000000 | EA41: 380000000 | EB41: 380000000 | EC41: 380000000 | ED41: 380000000 | EE41: 380000000 | EF41: 380000000 | EG41: 380000000 | EH41: 380000000 | EI41: 380000000 | EJ41: 380000000 | EK41: =$G$41 -> 380000000 | EL41: 380000000 | EM41: 380000000 | EN41: 380000000 | EO41: 380000000 | EP41: 380000000 | EQ41: 380000000 | ER41: 380000000 | ES41: 380000000 | ET41: 380000000 | EU41: 380000000 | EV41: 380000000 | EW41: 380000000 | EX41: 380000000 | EY41: 380000000 | EZ41: 380000000 | FA41: 380000000 | FB41: 380000000 | FC41: 380000000 | FD41: 380000000 | FE41: 380000000 | FF41: 380000000 | FG41: 380000000 | FH41: 380000000 | FI41: 380000000 | FJ41: 380000000 | FK41: 380000000 | FL41: 380000000 | FM41: 380000000 | FN41: 380000000 | FO41: 380000000 | FP41: 380000000 | FQ41: 380000000 | FR41: 380000000 | FS41: 380000000 | FT41: 380000000 | FU41: 380000000 | FV41: 380000000 | FW41: 380000000 | FX41: 380000000 | FY41: 380000000 | FZ41: 380000000 | GA41: 380000000 | GB41: 380000000 | GC41: 380000000 | GD41: 380000000 | GE41: 380000000 | GF41: 380000000 | GG41: 380000000 | GH41: 380000000 | GI41: 380000000 | GJ41: 380000000 | GK41: 380000000 | GL41: 380000000 | GM41: 380000000 | GN41: 380000000 | GO41: 380000000 | GP41: 380000000 | GQ41: 380000000 | GR41: 380000000 | GS41: 380000000 | GT41: 380000000 | GU41: 380000000 | GV41: 380000000 | GW41: =$G$41 -> 380000000 | GX41: 380000000 | GY41: 380000000 | GZ41: 380000000 | HA41: 380000000 | HB41: 380000000 | HC41: 380000000 | HD41: 380000000 | HE41: 380000000 | HF41: 380000000 | HG41: 380000000 | HH41: 380000000 | HI41: 380000000 | HJ41: 380000000 | HK41: 380000000 | HL41: 380000000 | HM41: 380000000 | HN41: 380000000 | HO41: 380000000 | HP41: 380000000 | HQ41: 380000000 | HR41: 380000000 | HS41: 380000000 | HT41: 380000000 | HU41: 380000000 | HV41: 380000000 | HW41: 380000000 | HX41: 380000000 | HY41: 380000000 | HZ41: 380000000 | IA41: 380000000 | IB41: 380000000 | IC41: 380000000 | ID41: 380000000 | IE41: 380000000 | IF41: 380000000 | IG41: 380000000 | IH41: 380000000 | II41: 380000000 | IJ41: 380000000 | IK41: 380000000 | IL41: 380000000 | IM41: 380000000 | IN41: 380000000 | IO41: 380000000 | IP41: 380000000 | IQ41: 380000000 | IR41: 380000000 | IS41: 380000000 | IT41: 380000000 | IU41: 380000000 | IV41: 380000000 | IW41: 380000000 | IX41: 380000000 | IY41: 380000000 | IZ41: 380000000 | JA41: 380000000 | JB41: 380000000 | JC41: 380000000 | JD41: 380000000 | JE41: 380000000 | JF41: 380000000 | JG41: 380000000 | JH41: 380000000 | JI41: =$G$41 -> 380000000 | JJ41: 380000000 | JK41: 380000000 | JL41: 380000000 | JM41: 380000000 | JN41: 380000000 | JO41: 380000000 | JP41: 380000000 | JQ41: 380000000 | JR41: 380000000 | JS41: 380000000 | JT41: 380000000 | JU41: 380000000 | JV41: 380000000 | JW41: 380000000 | JX41: 380000000 | JY41: 380000000 | JZ41: 380000000 | KA41: 380000000 | KB41: 380000000 | KC41: 380000000 | KD41: 380000000 | KE41: 380000000 | KF41: 380000000 | KG41: 380000000 | KH41: 380000000 | KI41: 380000000 | KJ41: 380000000 | KK41: 380000000 | KL41: 380000000 | KM41: 380000000 | KN41: 380000000 | KO41: 380000000 | KP41: 380000000 | KQ41: 380000000 | KR41: 380000000 | KS41: 380000000 | KT41: 380000000 | KU41: 380000000 | KV41: 380000000 | KW41: 380000000 | KX41: 380000000 | KY41: 380000000 | KZ41: 380000000 | LA41: 380000000 | LB41: 380000000 | LC41: 380000000 | LD41: 380000000 | LE41: 380000000 | LF41: 380000000 | LG41: 380000000 | LH41: 380000000 | LI41: 380000000 | LJ41: 380000000 | LK41: 380000000 | LL41: 380000000 | LM41: 380000000 | LN41: 380000000 | LO41: 380000000 | LP41: 380000000 | LQ41: 380000000 | LR41: 380000000 | LS41: 380000000 | LT41: 380000000 | LU41: =$G$41 -> 380000000 | LV41: 380000000 | LW41: 380000000 | LX41: 380000000 | LY41: 380000000 | LZ41: 380000000 | MA41: 380000000 | MB41: 380000000 | MC41: 380000000 | MD41: 380000000 | ME41: 380000000 | MF41: 380000000 | MG41: 380000000 | MH41: 380000000 | MI41: 380000000 | MJ41: 380000000 | MK41: 380000000 | ML41: 380000000 | MM41: 380000000 | MN41: 380000000 | MO41: 380000000 | MP41: 380000000 | MQ41: 380000000 | MR41: 380000000 | MS41: 380000000 | MT41: 380000000 | MU41: 380000000 | MV41: 380000000 | MW41: 380000000 | MX41: 380000000 | MY41: 380000000 | MZ41: 380000000 | NA41: 380000000 | NB41: 380000000 | NC41: 380000000 | ND41: 380000000 | NE41: 380000000 | NF41: 380000000 | NG41: 380000000 | NH41: 380000000 | NI41: 380000000 | NJ41: 380000000 | NK41: 380000000 | NL41: 380000000 | NM41: 380000000 | NN41: 380000000 | NO41: 380000000 | NP41: 380000000 | NQ41: 380000000 | NR41: 380000000 | NS41: 380000000 | NT41: 380000000 | NU41: 380000000 | NV41: 380000000 | NW41: 380000000 | NX41: 380000000 | NY41: 380000000 | NZ41: 380000000 | OA41: 380000000 | OB41: 380000000 | OC41: 380000000 | OD41: 380000000 | OE41: 380000000 | OF41: 380000000 | OG41: =$G$41 -> 380000000 | OH41: 380000000 | OI41: 380000000 | OJ41: 380000000 | OK41: 380000000 | OL41: 380000000 | OM41: 380000000 | ON41: 380000000 | OO41: 380000000 | OP41: 380000000 | OQ41: 380000000 | OR41: 380000000 | OS41: 380000000 | OT41: 380000000 | OU41: 380000000 | OV41: 380000000 | OW41: 380000000 | OX41: 380000000 | OY41: 380000000 | OZ41: 380000000 | PA41: 380000000 | PB41: 380000000 | PC41: 380000000 | PD41: 380000000 | PE41: 380000000 | PF41: 380000000 | PG41: 380000000 | PH41: 380000000 | PI41: 380000000 | PJ41: 380000000 | PK41: 380000000 | PL41: 380000000 | PM41: 380000000 | PN41: 380000000 | PO41: 380000000 | PP41: 380000000 | PQ41: 380000000 | PR41: 380000000 | PS41: 380000000 | PT41: 380000000 | PU41: 380000000 | PV41: 380000000 | PW41: 380000000 | PX41: 380000000 | PY41: 380000000 | PZ41: 380000000 | QA41: 380000000 | QB41: 380000000 | QC41: 380000000 | QD41: 380000000 | QE41: 380000000 | QF41: 380000000 | QG41: 380000000 | QH41: 380000000 | QI41: 380000000 | QJ41: 380000000 | QK41: 380000000 | QL41: 380000000 | QM41: 380000000 | QN41: 380000000 | QO41: 380000000 | QP41: 380000000 | QQ41: 380000000 | QR41: 380000000 | QS41: =$G$41 -> 380000000 | QT41: 380000000 | QU41: 380000000 | QV41: 380000000 | QW41: 380000000 | QX41: 380000000 | QY41: 380000000 | QZ41: 380000000 | RA41: 380000000 | RB41: 380000000 | RC41: 380000000 | RD41: 380000000 | RE41: 380000000 | RF41: 380000000 | RG41: 380000000 | RH41: 380000000 | RI41: 380000000 | RJ41: 380000000 | RK41: 380000000 | RL41: 380000000 | RM41: 380000000 | RN41: 380000000 | RO41: 380000000 | RP41: 380000000 | RQ41: 380000000 | RR41: 380000000 | RS41: 380000000 | RT41: 380000000 | RU41: 380000000 | RV41: 380000000 | RW41: 380000000 | RX41: 380000000 | RY41: 380000000 | RZ41: 380000000 | SA41: 380000000 | SB41: 380000000 | SC41: 380000000 | SD41: 380000000 | SE41: 380000000 | SF41: 380000000 | SG41: 380000000 | SH41: 380000000 | SI41: 380000000 | SJ41: 380000000 | SK41: 380000000 | SL41: 380000000 | SM41: 380000000 | SN41: 380000000 | SO41: 380000000 | SP41: 380000000 | SQ41: 380000000
D42: S-curve | F42: % | I42: =SUM(L42:XFD42) -> 1 | J42: % | L42: =LOOKUP(L4,InputS!$5:$5,InputS!$13:$13) -> 0.5 | M42: =LOOKUP(M4,InputS!$5:$5,InputS!$13:$13) -> 0.5 | N42: =LOOKUP(N4,InputS!$5:$5,InputS!$13:$13) -> 0 | O42: =LOOKUP(O4,InputS!$5:$5,InputS!$13:$13) -> 0 | P42: =LOOKUP(P4,InputS!$5:$5,InputS!$13:$13) -> 0 | Q42: =LOOKUP(Q4,InputS!$5:$5,InputS!$13:$13) -> 0 | R42: =LOOKUP(R4,InputS!$5:$5,InputS!$13:$13) -> 0 | S42: =LOOKUP(S4,InputS!$5:$5,InputS!$13:$13) -> 0 | T42: =LOOKUP(T4,InputS!$5:$5,InputS!$13:$13) -> 0 | U42: =LOOKUP(U4,InputS!$5:$5,InputS!$13:$13) -> 0 | V42: =LOOKUP(V4,InputS!$5:$5,InputS!$13:$13) -> 0 | W42: =LOOKUP(W4,InputS!$5:$5,InputS!$13:$13) -> 0 | X42: =LOOKUP(X4,InputS!$5:$5,InputS!$13:$13) -> 0 | Y42: =LOOKUP(Y4,InputS!$5:$5,InputS!$13:$13) -> 0 | Z42: =LOOKUP(Z4,InputS!$5:$5,InputS!$13:$13) -> 0 | AA42: =LOOKUP(AA4,InputS!$5:$5,InputS!$13:$13) -> 0 | AB42: =LOOKUP(AB4,InputS!$5:$5,InputS!$13:$13) -> 0 | AC42: =LOOKUP(AC4,InputS!$5:$5,InputS!$13:$13) -> 0 | AD42: =LOOKUP(AD4,InputS!$5:$5,InputS!$13:$13) -> 0 | AE42: =LOOKUP(AE4,InputS!$5:$5,InputS!$13:$13) -> 0 | AF42: =LOOKUP(AF4,InputS!$5:$5,InputS!$13:$13) -> 0 | AG42: =LOOKUP(AG4,InputS!$5:$5,InputS!$13:$13) -> 0 | AH42: =LOOKUP(AH4,InputS!$5:$5,InputS!$13:$13) -> 0 | AI42: =LOOKUP(AI4,InputS!$5:$5,InputS!$13:$13) -> 0 | AJ42: =LOOKUP(AJ4,InputS!$5:$5,InputS!$13:$13) -> 0 | AK42: =LOOKUP(AK4,InputS!$5:$5,InputS!$13:$13) -> 0 | AL42: =LOOKUP(AL4,InputS!$5:$5,InputS!$13:$13) -> 0 | AM42: =LOOKUP(AM4,InputS!$5:$5,InputS!$13:$13) -> 0 | AN42: =LOOKUP(AN4,InputS!$5:$5,InputS!$13:$13) -> 0 | AO42: =LOOKUP(AO4,InputS!$5:$5,InputS!$13:$13) -> 0 | AP42: =LOOKUP(AP4,InputS!$5:$5,InputS!$13:$13) -> 0 | AQ42: =LOOKUP(AQ4,InputS!$5:$5,InputS!$13:$13) -> 0 | AR42: =LOOKUP(AR4,InputS!$5:$5,InputS!$13:$13) -> 0 | AS42: =LOOKUP(AS4,InputS!$5:$5,InputS!$13:$13) -> 0 | AT42: =LOOKUP(AT4,InputS!$5:$5,InputS!$13:$13) -> 0 | AU42: =LOOKUP(AU4,InputS!$5:$5,InputS!$13:$13) -> 0 | AV42: =LOOKUP(AV4,InputS!$5:$5,InputS!$13:$13) -> 0 | AW42: =LOOKUP(AW4,InputS!$5:$5,InputS!$13:$13) -> 0 | AX42: =LOOKUP(AX4,InputS!$5:$5,InputS!$13:$13) -> 0 | AY42: =LOOKUP(AY4,InputS!$5:$5,InputS!$13:$13) -> 0 | AZ42: =LOOKUP(AZ4,InputS!$5:$5,InputS!$13:$13) -> 0 | BA42: =LOOKUP(BA4,InputS!$5:$5,InputS!$13:$13) -> 0 | BB42: =LOOKUP(BB4,InputS!$5:$5,InputS!$13:$13) -> 0 | BC42: =LOOKUP(BC4,InputS!$5:$5,InputS!$13:$13) -> 0 | BD42: =LOOKUP(BD4,InputS!$5:$5,InputS!$13:$13) -> 0 | BE42: =LOOKUP(BE4,InputS!$5:$5,InputS!$13:$13) -> 0 | BF42: =LOOKUP(BF4,InputS!$5:$5,InputS!$13:$13) -> 0 | BG42: =LOOKUP(BG4,InputS!$5:$5,InputS!$13:$13) -> 0 | BH42: =LOOKUP(BH4,InputS!$5:$5,InputS!$13:$13) -> 0 | BI42: =LOOKUP(BI4,InputS!$5:$5,InputS!$13:$13) -> 0 | BJ42: =LOOKUP(BJ4,InputS!$5:$5,InputS!$13:$13) -> 0 | BK42: =LOOKUP(BK4,InputS!$5:$5,InputS!$13:$13) -> 0 | BL42: =LOOKUP(BL4,InputS!$5:$5,InputS!$13:$13) -> 0 | BM42: =LOOKUP(BM4,InputS!$5:$5,InputS!$13:$13) -> 0 | BN42: =LOOKUP(BN4,InputS!$5:$5,InputS!$13:$13) -> 0 | BO42: =LOOKUP(BO4,InputS!$5:$5,InputS!$13:$13) -> 0 | BP42: =LOOKUP(BP4,InputS!$5:$5,InputS!$13:$13) -> 0 | BQ42: =LOOKUP(BQ4,InputS!$5:$5,InputS!$13:$13) -> 0 | BR42: =LOOKUP(BR4,InputS!$5:$5,InputS!$13:$13) -> 0 | BS42: =LOOKUP(BS4,InputS!$5:$5,InputS!$13:$13) -> 0 | BT42: =LOOKUP(BT4,InputS!$5:$5,InputS!$13:$13) -> 0 | BU42: =LOOKUP(BU4,InputS!$5:$5,InputS!$13:$13) -> 0 | BV42: =LOOKUP(BV4,InputS!$5:$5,InputS!$13:$13) -> 0 | BW42: =LOOKUP(BW4,InputS!$5:$5,InputS!$13:$13) -> 0 | BX42: =LOOKUP(BX4,InputS!$5:$5,InputS!$13:$13) -> 0 | BY42: =LOOKUP(BY4,InputS!$5:$5,InputS!$13:$13) -> 0 | BZ42: =LOOKUP(BZ4,InputS!$5:$5,InputS!$13:$13) -> 0 | CA42: =LOOKUP(CA4,InputS!$5:$5,InputS!$13:$13) -> 0 | CB42: =LOOKUP(CB4,InputS!$5:$5,InputS!$13:$13) -> 0 | CC42: =LOOKUP(CC4,InputS!$5:$5,InputS!$13:$13) -> 0 | CD42: =LOOKUP(CD4,InputS!$5:$5,InputS!$13:$13) -> 0 | CE42: =LOOKUP(CE4,InputS!$5:$5,InputS!$13:$13) -> 0 | CF42: =LOOKUP(CF4,InputS!$5:$5,InputS!$13:$13) -> 0 | CG42: =LOOKUP(CG4,InputS!$5:$5,InputS!$13:$13) -> 0 | CH42: =LOOKUP(CH4,InputS!$5:$5,InputS!$13:$13) -> 0 | CI42: =LOOKUP(CI4,InputS!$5:$5,InputS!$13:$13) -> 0 | CJ42: =LOOKUP(CJ4,InputS!$5:$5,InputS!$13:$13) -> 0 | CK42: =LOOKUP(CK4,InputS!$5:$5,InputS!$13:$13) -> 0 | CL42: =LOOKUP(CL4,InputS!$5:$5,InputS!$13:$13) -> 0 | CM42: =LOOKUP(CM4,InputS!$5:$5,InputS!$13:$13) -> 0 | CN42: =LOOKUP(CN4,InputS!$5:$5,InputS!$13:$13) -> 0 | CO42: =LOOKUP(CO4,InputS!$5:$5,InputS!$13:$13) -> 0 | CP42: =LOOKUP(CP4,InputS!$5:$5,InputS!$13:$13) -> 0 | CQ42: =LOOKUP(CQ4,InputS!$5:$5,InputS!$13:$13) -> 0 | CR42: =LOOKUP(CR4,InputS!$5:$5,InputS!$13:$13) -> 0 | CS42: =LOOKUP(CS4,InputS!$5:$5,InputS!$13:$13) -> 0 | CT42: =LOOKUP(CT4,InputS!$5:$5,InputS!$13:$13) -> 0 | CU42: =LOOKUP(CU4,InputS!$5:$5,InputS!$13:$13) -> 0 | CV42: =LOOKUP(CV4,InputS!$5:$5,InputS!$13:$13) -> 0 | CW42: =LOOKUP(CW4,InputS!$5:$5,InputS!$13:$13) -> 0 | CX42: =LOOKUP(CX4,InputS!$5:$5,InputS!$13:$13) -> 0 | CY42: =LOOKUP(CY4,InputS!$5:$5,InputS!$13:$13) -> 0 | CZ42: =LOOKUP(CZ4,InputS!$5:$5,InputS!$13:$13) -> 0 | DA42: =LOOKUP(DA4,InputS!$5:$5,InputS!$13:$13) -> 0 | DB42: =LOOKUP(DB4,InputS!$5:$5,InputS!$13:$13) -> 0 | DC42: =LOOKUP(DC4,InputS!$5:$5,InputS!$13:$13) -> 0 | DD42: =LOOKUP(DD4,InputS!$5:$5,InputS!$13:$13) -> 0 | DE42: =LOOKUP(DE4,InputS!$5:$5,InputS!$13:$13) -> 0 | DF42: =LOOKUP(DF4,InputS!$5:$5,InputS!$13:$13) -> 0 | DG42: =LOOKUP(DG4,InputS!$5:$5,InputS!$13:$13) -> 0 | DH42: =LOOKUP(DH4,InputS!$5:$5,InputS!$13:$13) -> 0 | DI42: =LOOKUP(DI4,InputS!$5:$5,InputS!$13:$13) -> 0 | DJ42: =LOOKUP(DJ4,InputS!$5:$5,InputS!$13:$13) -> 0 | DK42: =LOOKUP(DK4,InputS!$5:$5,InputS!$13:$13) -> 0 | DL42: =LOOKUP(DL4,InputS!$5:$5,InputS!$13:$13) -> 0 | DM42: =LOOKUP(DM4,InputS!$5:$5,InputS!$13:$13) -> 0 | DN42: =LOOKUP(DN4,InputS!$5:$5,InputS!$13:$13) -> 0 | DO42: =LOOKUP(DO4,InputS!$5:$5,InputS!$13:$13) -> 0 | DP42: =LOOKUP(DP4,InputS!$5:$5,InputS!$13:$13) -> 0 | DQ42: =LOOKUP(DQ4,InputS!$5:$5,InputS!$13:$13) -> 0 | DR42: =LOOKUP(DR4,InputS!$5:$5,InputS!$13:$13) -> 0 | DS42: =LOOKUP(DS4,InputS!$5:$5,InputS!$13:$13) -> 0 | DT42: =LOOKUP(DT4,InputS!$5:$5,InputS!$13:$13) -> 0 | DU42: =LOOKUP(DU4,InputS!$5:$5,InputS!$13:$13) -> 0 | DV42: =LOOKUP(DV4,InputS!$5:$5,InputS!$13:$13) -> 0 | DW42: =LOOKUP(DW4,InputS!$5:$5,InputS!$13:$13) -> 0 | DX42: =LOOKUP(DX4,InputS!$5:$5,InputS!$13:$13) -> 0 | DY42: =LOOKUP(DY4,InputS!$5:$5,InputS!$13:$13) -> 0 | DZ42: =LOOKUP(DZ4,InputS!$5:$5,InputS!$13:$13) -> 0 | EA42: =LOOKUP(EA4,InputS!$5:$5,InputS!$13:$13) -> 0 | EB42: =LOOKUP(EB4,InputS!$5:$5,InputS!$13:$13) -> 0 | EC42: =LOOKUP(EC4,InputS!$5:$5,InputS!$13:$13) -> 0 | ED42: =LOOKUP(ED4,InputS!$5:$5,InputS!$13:$13) -> 0 | EE42: =LOOKUP(EE4,InputS!$5:$5,InputS!$13:$13) -> 0 | EF42: =LOOKUP(EF4,InputS!$5:$5,InputS!$13:$13) -> 0 | EG42: =LOOKUP(EG4,InputS!$5:$5,InputS!$13:$13) -> 0 | EH42: =LOOKUP(EH4,InputS!$5:$5,InputS!$13:$13) -> 0 | EI42: =LOOKUP(EI4,InputS!$5:$5,InputS!$13:$13) -> 0 | EJ42: =LOOKUP(EJ4,InputS!$5:$5,InputS!$13:$13) -> 0 | EK42: =LOOKUP(EK4,InputS!$5:$5,InputS!$13:$13) -> 0 | EL42: =LOOKUP(EL4,InputS!$5:$5,InputS!$13:$13) -> 0 | EM42: =LOOKUP(EM4,InputS!$5:$5,InputS!$13:$13) -> 0 | EN42: =LOOKUP(EN4,InputS!$5:$5,InputS!$13:$13) -> 0 | EO42: =LOOKUP(EO4,InputS!$5:$5,InputS!$13:$13) -> 0 | EP42: =LOOKUP(EP4,InputS!$5:$5,InputS!$13:$13) -> 0 | EQ42: =LOOKUP(EQ4,InputS!$5:$5,InputS!$13:$13) -> 0 | ER42: =LOOKUP(ER4,InputS!$5:$5,InputS!$13:$13) -> 0 | ES42: =LOOKUP(ES4,InputS!$5:$5,InputS!$13:$13) -> 0 | ET42: =LOOKUP(ET4,InputS!$5:$5,InputS!$13:$13) -> 0 | EU42: =LOOKUP(EU4,InputS!$5:$5,InputS!$13:$13) -> 0 | EV42: =LOOKUP(EV4,InputS!$5:$5,InputS!$13:$13) -> 0 | EW42: =LOOKUP(EW4,InputS!$5:$5,InputS!$13:$13) -> 0 | EX42: =LOOKUP(EX4,InputS!$5:$5,InputS!$13:$13) -> 0 | EY42: =LOOKUP(EY4,InputS!$5:$5,InputS!$13:$13) -> 0 | EZ42: =LOOKUP(EZ4,InputS!$5:$5,InputS!$13:$13) -> 0 | FA42: =LOOKUP(FA4,InputS!$5:$5,InputS!$13:$13) -> 0 | FB42: =LOOKUP(FB4,InputS!$5:$5,InputS!$13:$13) -> 0 | FC42: =LOOKUP(FC4,InputS!$5:$5,InputS!$13:$13) -> 0 | FD42: =LOOKUP(FD4,InputS!$5:$5,InputS!$13:$13) -> 0 | FE42: =LOOKUP(FE4,InputS!$5:$5,InputS!$13:$13) -> 0 | FF42: =LOOKUP(FF4,InputS!$5:$5,InputS!$13:$13) -> 0 | FG42: =LOOKUP(FG4,InputS!$5:$5,InputS!$13:$13) -> 0 | FH42: =LOOKUP(FH4,InputS!$5:$5,InputS!$13:$13) -> 0 | FI42: =LOOKUP(FI4,InputS!$5:$5,InputS!$13:$13) -> 0 | FJ42: =LOOKUP(FJ4,InputS!$5:$5,InputS!$13:$13) -> 0 | FK42: =LOOKUP(FK4,InputS!$5:$5,InputS!$13:$13) -> 0 | FL42: =LOOKUP(FL4,InputS!$5:$5,InputS!$13:$13) -> 0 | FM42: =LOOKUP(FM4,InputS!$5:$5,InputS!$13:$13) -> 0 | FN42: =LOOKUP(FN4,InputS!$5:$5,InputS!$13:$13) -> 0 | FO42: =LOOKUP(FO4,InputS!$5:$5,InputS!$13:$13) -> 0 | FP42: =LOOKUP(FP4,InputS!$5:$5,InputS!$13:$13) -> 0 | FQ42: =LOOKUP(FQ4,InputS!$5:$5,InputS!$13:$13) -> 0 | FR42: =LOOKUP(FR4,InputS!$5:$5,InputS!$13:$13) -> 0 | FS42: =LOOKUP(FS4,InputS!$5:$5,InputS!$13:$13) -> 0 | FT42: =LOOKUP(FT4,InputS!$5:$5,InputS!$13:$13) -> 0 | FU42: =LOOKUP(FU4,InputS!$5:$5,InputS!$13:$13) -> 0 | FV42: =LOOKUP(FV4,InputS!$5:$5,InputS!$13:$13) -> 0 | FW42: =LOOKUP(FW4,InputS!$5:$5,InputS!$13:$13) -> 0 | FX42: =LOOKUP(FX4,InputS!$5:$5,InputS!$13:$13) -> 0 | FY42: =LOOKUP(FY4,InputS!$5:$5,InputS!$13:$13) -> 0 | FZ42: =LOOKUP(FZ4,InputS!$5:$5,InputS!$13:$13) -> 0 | GA42: =LOOKUP(GA4,InputS!$5:$5,InputS!$13:$13) -> 0 | GB42: =LOOKUP(GB4,InputS!$5:$5,InputS!$13:$13) -> 0 | GC42: =LOOKUP(GC4,InputS!$5:$5,InputS!$13:$13) -> 0 | GD42: =LOOKUP(GD4,InputS!$5:$5,InputS!$13:$13) -> 0 | GE42: =LOOKUP(GE4,InputS!$5:$5,InputS!$13:$13) -> 0 | GF42: =LOOKUP(GF4,InputS!$5:$5,InputS!$13:$13) -> 0 | GG42: =LOOKUP(GG4,InputS!$5:$5,InputS!$13:$13) -> 0 | GH42: =LOOKUP(GH4,InputS!$5:$5,InputS!$13:$13) -> 0 | GI42: =LOOKUP(GI4,InputS!$5:$5,InputS!$13:$13) -> 0 | GJ42: =LOOKUP(GJ4,InputS!$5:$5,InputS!$13:$13) -> 0 | GK42: =LOOKUP(GK4,InputS!$5:$5,InputS!$13:$13) -> 0 | GL42: =LOOKUP(GL4,InputS!$5:$5,InputS!$13:$13) -> 0 | GM42: =LOOKUP(GM4,InputS!$5:$5,InputS!$13:$13) -> 0 | GN42: =LOOKUP(GN4,InputS!$5:$5,InputS!$13:$13) -> 0 | GO42: =LOOKUP(GO4,InputS!$5:$5,InputS!$13:$13) -> 0 | GP42: =LOOKUP(GP4,InputS!$5:$5,InputS!$13:$13) -> 0 | GQ42: =LOOKUP(GQ4,InputS!$5:$5,InputS!$13:$13) -> 0 | GR42: =LOOKUP(GR4,InputS!$5:$5,InputS!$13:$13) -> 0 | GS42: =LOOKUP(GS4,InputS!$5:$5,InputS!$13:$13) -> 0 | GT42: =LOOKUP(GT4,InputS!$5:$5,InputS!$13:$13) -> 0 | GU42: =LOOKUP(GU4,InputS!$5:$5,InputS!$13:$13) -> 0 | GV42: =LOOKUP(GV4,InputS!$5:$5,InputS!$13:$13) -> 0 | GW42: =LOOKUP(GW4,InputS!$5:$5,InputS!$13:$13) -> 0 | GX42: =LOOKUP(GX4,InputS!$5:$5,InputS!$13:$13) -> 0 | GY42: =LOOKUP(GY4,InputS!$5:$5,InputS!$13:$13) -> 0 | GZ42: =LOOKUP(GZ4,InputS!$5:$5,InputS!$13:$13) -> 0 | HA42: =LOOKUP(HA4,InputS!$5:$5,InputS!$13:$13) -> 0 | HB42: =LOOKUP(HB4,InputS!$5:$5,InputS!$13:$13) -> 0 | HC42: =LOOKUP(HC4,InputS!$5:$5,InputS!$13:$13) -> 0 | HD42: =LOOKUP(HD4,InputS!$5:$5,InputS!$13:$13) -> 0 | HE42: =LOOKUP(HE4,InputS!$5:$5,InputS!$13:$13) -> 0 | HF42: =LOOKUP(HF4,InputS!$5:$5,InputS!$13:$13) -> 0 | HG42: =LOOKUP(HG4,InputS!$5:$5,InputS!$13:$13) -> 0 | HH42: =LOOKUP(HH4,InputS!$5:$5,InputS!$13:$13) -> 0 | HI42: =LOOKUP(HI4,InputS!$5:$5,InputS!$13:$13) -> 0 | HJ42: =LOOKUP(HJ4,InputS!$5:$5,InputS!$13:$13) -> 0 | HK42: =LOOKUP(HK4,InputS!$5:$5,InputS!$13:$13) -> 0 | HL42: =LOOKUP(HL4,InputS!$5:$5,InputS!$13:$13) -> 0 | HM42: =LOOKUP(HM4,InputS!$5:$5,InputS!$13:$13) -> 0 | HN42: =LOOKUP(HN4,InputS!$5:$5,InputS!$13:$13) -> 0 | HO42: =LOOKUP(HO4,InputS!$5:$5,InputS!$13:$13) -> 0 | HP42: =LOOKUP(HP4,InputS!$5:$5,InputS!$13:$13) -> 0 | HQ42: =LOOKUP(HQ4,InputS!$5:$5,InputS!$13:$13) -> 0 | HR42: =LOOKUP(HR4,InputS!$5:$5,InputS!$13:$13) -> 0 | HS42: =LOOKUP(HS4,InputS!$5:$5,InputS!$13:$13) -> 0 | HT42: =LOOKUP(HT4,InputS!$5:$5,InputS!$13:$13) -> 0 | HU42: =LOOKUP(HU4,InputS!$5:$5,InputS!$13:$13) -> 0 | HV42: =LOOKUP(HV4,InputS!$5:$5,InputS!$13:$13) -> 0 | HW42: =LOOKUP(HW4,InputS!$5:$5,InputS!$13:$13) -> 0 | HX42: =LOOKUP(HX4,InputS!$5:$5,InputS!$13:$13) -> 0 | HY42: =LOOKUP(HY4,InputS!$5:$5,InputS!$13:$13) -> 0 | HZ42: =LOOKUP(HZ4,InputS!$5:$5,InputS!$13:$13) -> 0 | IA42: =LOOKUP(IA4,InputS!$5:$5,InputS!$13:$13) -> 0 | IB42: =LOOKUP(IB4,InputS!$5:$5,InputS!$13:$13) -> 0 | IC42: =LOOKUP(IC4,InputS!$5:$5,InputS!$13:$13) -> 0 | ID42: =LOOKUP(ID4,InputS!$5:$5,InputS!$13:$13) -> 0 | IE42: =LOOKUP(IE4,InputS!$5:$5,InputS!$13:$13) -> 0 | IF42: =LOOKUP(IF4,InputS!$5:$5,InputS!$13:$13) -> 0 | IG42: =LOOKUP(IG4,InputS!$5:$5,InputS!$13:$13) -> 0 | IH42: =LOOKUP(IH4,InputS!$5:$5,InputS!$13:$13) -> 0 | II42: =LOOKUP(II4,InputS!$5:$5,InputS!$13:$13) -> 0 | IJ42: =LOOKUP(IJ4,InputS!$5:$5,InputS!$13:$13) -> 0 | IK42: =LOOKUP(IK4,InputS!$5:$5,InputS!$13:$13) -> 0 | IL42: =LOOKUP(IL4,InputS!$5:$5,InputS!$13:$13) -> 0 | IM42: =LOOKUP(IM4,InputS!$5:$5,InputS!$13:$13) -> 0 | IN42: =LOOKUP(IN4,InputS!$5:$5,InputS!$13:$13) -> 0 | IO42: =LOOKUP(IO4,InputS!$5:$5,InputS!$13:$13) -> 0 | IP42: =LOOKUP(IP4,InputS!$5:$5,InputS!$13:$13) -> 0 | IQ42: =LOOKUP(IQ4,InputS!$5:$5,InputS!$13:$13) -> 0 | IR42: =LOOKUP(IR4,InputS!$5:$5,InputS!$13:$13) -> 0 | IS42: =LOOKUP(IS4,InputS!$5:$5,InputS!$13:$13) -> 0 | IT42: =LOOKUP(IT4,InputS!$5:$5,InputS!$13:$13) -> 0 | IU42: =LOOKUP(IU4,InputS!$5:$5,InputS!$13:$13) -> 0 | IV42: =LOOKUP(IV4,InputS!$5:$5,InputS!$13:$13) -> 0 | IW42: =LOOKUP(IW4,InputS!$5:$5,InputS!$13:$13) -> 0 | IX42: =LOOKUP(IX4,InputS!$5:$5,InputS!$13:$13) -> 0 | IY42: =LOOKUP(IY4,InputS!$5:$5,InputS!$13:$13) -> 0 | IZ42: =LOOKUP(IZ4,InputS!$5:$5,InputS!$13:$13) -> 0 | JA42: =LOOKUP(JA4,InputS!$5:$5,InputS!$13:$13) -> 0 | JB42: =LOOKUP(JB4,InputS!$5:$5,InputS!$13:$13) -> 0 | JC42: =LOOKUP(JC4,InputS!$5:$5,InputS!$13:$13) -> 0 | JD42: =LOOKUP(JD4,InputS!$5:$5,InputS!$13:$13) -> 0 | JE42: =LOOKUP(JE4,InputS!$5:$5,InputS!$13:$13) -> 0 | JF42: =LOOKUP(JF4,InputS!$5:$5,InputS!$13:$13) -> 0 | JG42: =LOOKUP(JG4,InputS!$5:$5,InputS!$13:$13) -> 0 | JH42: =LOOKUP(JH4,InputS!$5:$5,InputS!$13:$13) -> 0 | JI42: =LOOKUP(JI4,InputS!$5:$5,InputS!$13:$13) -> 0 | JJ42: =LOOKUP(JJ4,InputS!$5:$5,InputS!$13:$13) -> 0 | JK42: =LOOKUP(JK4,InputS!$5:$5,InputS!$13:$13) -> 0 | JL42: =LOOKUP(JL4,InputS!$5:$5,InputS!$13:$13) -> 0 | JM42: =LOOKUP(JM4,InputS!$5:$5,InputS!$13:$13) -> 0 | JN42: =LOOKUP(JN4,InputS!$5:$5,InputS!$13:$13) -> 0 | JO42: =LOOKUP(JO4,InputS!$5:$5,InputS!$13:$13) -> 0 | JP42: =LOOKUP(JP4,InputS!$5:$5,InputS!$13:$13) -> 0 | JQ42: =LOOKUP(JQ4,InputS!$5:$5,InputS!$13:$13) -> 0 | JR42: =LOOKUP(JR4,InputS!$5:$5,InputS!$13:$13) -> 0 | JS42: =LOOKUP(JS4,InputS!$5:$5,InputS!$13:$13) -> 0 | JT42: =LOOKUP(JT4,InputS!$5:$5,InputS!$13:$13) -> 0 | JU42: =LOOKUP(JU4,InputS!$5:$5,InputS!$13:$13) -> 0 | JV42: =LOOKUP(JV4,InputS!$5:$5,InputS!$13:$13) -> 0 | JW42: =LOOKUP(JW4,InputS!$5:$5,InputS!$13:$13) -> 0 | JX42: =LOOKUP(JX4,InputS!$5:$5,InputS!$13:$13) -> 0 | JY42: =LOOKUP(JY4,InputS!$5:$5,InputS!$13:$13) -> 0 | JZ42: =LOOKUP(JZ4,InputS!$5:$5,InputS!$13:$13) -> 0 | KA42: =LOOKUP(KA4,InputS!$5:$5,InputS!$13:$13) -> 0 | KB42: =LOOKUP(KB4,InputS!$5:$5,InputS!$13:$13) -> 0 | KC42: =LOOKUP(KC4,InputS!$5:$5,InputS!$13:$13) -> 0 | KD42: =LOOKUP(KD4,InputS!$5:$5,InputS!$13:$13) -> 0 | KE42: =LOOKUP(KE4,InputS!$5:$5,InputS!$13:$13) -> 0 | KF42: =LOOKUP(KF4,InputS!$5:$5,InputS!$13:$13) -> 0 | KG42: =LOOKUP(KG4,InputS!$5:$5,InputS!$13:$13) -> 0 | KH42: =LOOKUP(KH4,InputS!$5:$5,InputS!$13:$13) -> 0 | KI42: =LOOKUP(KI4,InputS!$5:$5,InputS!$13:$13) -> 0 | KJ42: =LOOKUP(KJ4,InputS!$5:$5,InputS!$13:$13) -> 0 | KK42: =LOOKUP(KK4,InputS!$5:$5,InputS!$13:$13) -> 0 | KL42: =LOOKUP(KL4,InputS!$5:$5,InputS!$13:$13) -> 0 | KM42: =LOOKUP(KM4,InputS!$5:$5,InputS!$13:$13) -> 0 | KN42: =LOOKUP(KN4,InputS!$5:$5,InputS!$13:$13) -> 0 | KO42: =LOOKUP(KO4,InputS!$5:$5,InputS!$13:$13) -> 0 | KP42: =LOOKUP(KP4,InputS!$5:$5,InputS!$13:$13) -> 0 | KQ42: =LOOKUP(KQ4,InputS!$5:$5,InputS!$13:$13) -> 0 | KR42: =LOOKUP(KR4,InputS!$5:$5,InputS!$13:$13) -> 0 | KS42: =LOOKUP(KS4,InputS!$5:$5,InputS!$13:$13) -> 0 | KT42: =LOOKUP(KT4,InputS!$5:$5,InputS!$13:$13) -> 0 | KU42: =LOOKUP(KU4,InputS!$5:$5,InputS!$13:$13) -> 0 | KV42: =LOOKUP(KV4,InputS!$5:$5,InputS!$13:$13) -> 0 | KW42: =LOOKUP(KW4,InputS!$5:$5,InputS!$13:$13) -> 0 | KX42: =LOOKUP(KX4,InputS!$5:$5,InputS!$13:$13) -> 0 | KY42: =LOOKUP(KY4,InputS!$5:$5,InputS!$13:$13) -> 0 | KZ42: =LOOKUP(KZ4,InputS!$5:$5,InputS!$13:$13) -> 0 | LA42: =LOOKUP(LA4,InputS!$5:$5,InputS!$13:$13) -> 0 | LB42: =LOOKUP(LB4,InputS!$5:$5,InputS!$13:$13) -> 0 | LC42: =LOOKUP(LC4,InputS!$5:$5,InputS!$13:$13) -> 0 | LD42: =LOOKUP(LD4,InputS!$5:$5,InputS!$13:$13) -> 0 | LE42: =LOOKUP(LE4,InputS!$5:$5,InputS!$13:$13) -> 0 | LF42: =LOOKUP(LF4,InputS!$5:$5,InputS!$13:$13) -> 0 | LG42: =LOOKUP(LG4,InputS!$5:$5,InputS!$13:$13) -> 0 | LH42: =LOOKUP(LH4,InputS!$5:$5,InputS!$13:$13) -> 0 | LI42: =LOOKUP(LI4,InputS!$5:$5,InputS!$13:$13) -> 0 | LJ42: =LOOKUP(LJ4,InputS!$5:$5,InputS!$13:$13) -> 0 | LK42: =LOOKUP(LK4,InputS!$5:$5,InputS!$13:$13) -> 0 | LL42: =LOOKUP(LL4,InputS!$5:$5,InputS!$13:$13) -> 0 | LM42: =LOOKUP(LM4,InputS!$5:$5,InputS!$13:$13) -> 0 | LN42: =LOOKUP(LN4,InputS!$5:$5,InputS!$13:$13) -> 0 | LO42: =LOOKUP(LO4,InputS!$5:$5,InputS!$13:$13) -> 0 | LP42: =LOOKUP(LP4,InputS!$5:$5,InputS!$13:$13) -> 0 | LQ42: =LOOKUP(LQ4,InputS!$5:$5,InputS!$13:$13) -> 0 | LR42: =LOOKUP(LR4,InputS!$5:$5,InputS!$13:$13) -> 0 | LS42: =LOOKUP(LS4,InputS!$5:$5,InputS!$13:$13) -> 0 | LT42: =LOOKUP(LT4,InputS!$5:$5,InputS!$13:$13) -> 0 | LU42: =LOOKUP(LU4,InputS!$5:$5,InputS!$13:$13) -> 0 | LV42: =LOOKUP(LV4,InputS!$5:$5,InputS!$13:$13) -> 0 | LW42: =LOOKUP(LW4,InputS!$5:$5,InputS!$13:$13) -> 0 | LX42: =LOOKUP(LX4,InputS!$5:$5,InputS!$13:$13) -> 0 | LY42: =LOOKUP(LY4,InputS!$5:$5,InputS!$13:$13) -> 0 | LZ42: =LOOKUP(LZ4,InputS!$5:$5,InputS!$13:$13) -> 0 | MA42: =LOOKUP(MA4,InputS!$5:$5,InputS!$13:$13) -> 0 | MB42: =LOOKUP(MB4,InputS!$5:$5,InputS!$13:$13) -> 0 | MC42: =LOOKUP(MC4,InputS!$5:$5,InputS!$13:$13) -> 0 | MD42: =LOOKUP(MD4,InputS!$5:$5,InputS!$13:$13) -> 0 | ME42: =LOOKUP(ME4,InputS!$5:$5,InputS!$13:$13) -> 0 | MF42: =LOOKUP(MF4,InputS!$5:$5,InputS!$13:$13) -> 0 | MG42: =LOOKUP(MG4,InputS!$5:$5,InputS!$13:$13) -> 0 | MH42: =LOOKUP(MH4,InputS!$5:$5,InputS!$13:$13) -> 0 | MI42: =LOOKUP(MI4,InputS!$5:$5,InputS!$13:$13) -> 0 | MJ42: =LOOKUP(MJ4,InputS!$5:$5,InputS!$13:$13) -> 0 | MK42: =LOOKUP(MK4,InputS!$5:$5,InputS!$13:$13) -> 0 | ML42: =LOOKUP(ML4,InputS!$5:$5,InputS!$13:$13) -> 0 | MM42: =LOOKUP(MM4,InputS!$5:$5,InputS!$13:$13) -> 0 | MN42: =LOOKUP(MN4,InputS!$5:$5,InputS!$13:$13) -> 0 | MO42: =LOOKUP(MO4,InputS!$5:$5,InputS!$13:$13) -> 0 | MP42: =LOOKUP(MP4,InputS!$5:$5,InputS!$13:$13) -> 0 | MQ42: =LOOKUP(MQ4,InputS!$5:$5,InputS!$13:$13) -> 0 | MR42: =LOOKUP(MR4,InputS!$5:$5,InputS!$13:$13) -> 0 | MS42: =LOOKUP(MS4,InputS!$5:$5,InputS!$13:$13) -> 0 | MT42: =LOOKUP(MT4,InputS!$5:$5,InputS!$13:$13) -> 0 | MU42: =LOOKUP(MU4,InputS!$5:$5,InputS!$13:$13) -> 0 | MV42: =LOOKUP(MV4,InputS!$5:$5,InputS!$13:$13) -> 0 | MW42: =LOOKUP(MW4,InputS!$5:$5,InputS!$13:$13) -> 0 | MX42: =LOOKUP(MX4,InputS!$5:$5,InputS!$13:$13) -> 0 | MY42: =LOOKUP(MY4,InputS!$5:$5,InputS!$13:$13) -> 0 | MZ42: =LOOKUP(MZ4,InputS!$5:$5,InputS!$13:$13) -> 0 | NA42: =LOOKUP(NA4,InputS!$5:$5,InputS!$13:$13) -> 0 | NB42: =LOOKUP(NB4,InputS!$5:$5,InputS!$13:$13) -> 0 | NC42: =LOOKUP(NC4,InputS!$5:$5,InputS!$13:$13) -> 0 | ND42: =LOOKUP(ND4,InputS!$5:$5,InputS!$13:$13) -> 0 | NE42: =LOOKUP(NE4,InputS!$5:$5,InputS!$13:$13) -> 0 | NF42: =LOOKUP(NF4,InputS!$5:$5,InputS!$13:$13) -> 0 | NG42: =LOOKUP(NG4,InputS!$5:$5,InputS!$13:$13) -> 0 | NH42: =LOOKUP(NH4,InputS!$5:$5,InputS!$13:$13) -> 0 | NI42: =LOOKUP(NI4,InputS!$5:$5,InputS!$13:$13) -> 0 | NJ42: =LOOKUP(NJ4,InputS!$5:$5,InputS!$13:$13) -> 0 | NK42: =LOOKUP(NK4,InputS!$5:$5,InputS!$13:$13) -> 0 | NL42: =LOOKUP(NL4,InputS!$5:$5,InputS!$13:$13) -> 0 | NM42: =LOOKUP(NM4,InputS!$5:$5,InputS!$13:$13) -> 0 | NN42: =LOOKUP(NN4,InputS!$5:$5,InputS!$13:$13) -> 0 | NO42: =LOOKUP(NO4,InputS!$5:$5,InputS!$13:$13) -> 0 | NP42: =LOOKUP(NP4,InputS!$5:$5,InputS!$13:$13) -> 0 | NQ42: =LOOKUP(NQ4,InputS!$5:$5,InputS!$13:$13) -> 0 | NR42: =LOOKUP(NR4,InputS!$5:$5,InputS!$13:$13) -> 0 | NS42: =LOOKUP(NS4,InputS!$5:$5,InputS!$13:$13) -> 0 | NT42: =LOOKUP(NT4,InputS!$5:$5,InputS!$13:$13) -> 0 | NU42: =LOOKUP(NU4,InputS!$5:$5,InputS!$13:$13) -> 0 | NV42: =LOOKUP(NV4,InputS!$5:$5,InputS!$13:$13) -> 0 | NW42: =LOOKUP(NW4,InputS!$5:$5,InputS!$13:$13) -> 0 | NX42: =LOOKUP(NX4,InputS!$5:$5,InputS!$13:$13) -> 0 | NY42: =LOOKUP(NY4,InputS!$5:$5,InputS!$13:$13) -> 0 | NZ42: =LOOKUP(NZ4,InputS!$5:$5,InputS!$13:$13) -> 0 | OA42: =LOOKUP(OA4,InputS!$5:$5,InputS!$13:$13) -> 0 | OB42: =LOOKUP(OB4,InputS!$5:$5,InputS!$13:$13) -> 0 | OC42: =LOOKUP(OC4,InputS!$5:$5,InputS!$13:$13) -> 0 | OD42: =LOOKUP(OD4,InputS!$5:$5,InputS!$13:$13) -> 0 | OE42: =LOOKUP(OE4,InputS!$5:$5,InputS!$13:$13) -> 0 | OF42: =LOOKUP(OF4,InputS!$5:$5,InputS!$13:$13) -> 0 | OG42: =LOOKUP(OG4,InputS!$5:$5,InputS!$13:$13) -> 0 | OH42: =LOOKUP(OH4,InputS!$5:$5,InputS!$13:$13) -> 0 | OI42: =LOOKUP(OI4,InputS!$5:$5,InputS!$13:$13) -> 0 | OJ42: =LOOKUP(OJ4,InputS!$5:$5,InputS!$13:$13) -> 0 | OK42: =LOOKUP(OK4,InputS!$5:$5,InputS!$13:$13) -> 0 | OL42: =LOOKUP(OL4,InputS!$5:$5,InputS!$13:$13) -> 0 | OM42: =LOOKUP(OM4,InputS!$5:$5,InputS!$13:$13) -> 0 | ON42: =LOOKUP(ON4,InputS!$5:$5,InputS!$13:$13) -> 0 | OO42: =LOOKUP(OO4,InputS!$5:$5,InputS!$13:$13) -> 0 | OP42: =LOOKUP(OP4,InputS!$5:$5,InputS!$13:$13) -> 0 | OQ42: =LOOKUP(OQ4,InputS!$5:$5,InputS!$13:$13) -> 0 | OR42: =LOOKUP(OR4,InputS!$5:$5,InputS!$13:$13) -> 0 | OS42: =LOOKUP(OS4,InputS!$5:$5,InputS!$13:$13) -> 0 | OT42: =LOOKUP(OT4,InputS!$5:$5,InputS!$13:$13) -> 0 | OU42: =LOOKUP(OU4,InputS!$5:$5,InputS!$13:$13) -> 0 | OV42: =LOOKUP(OV4,InputS!$5:$5,InputS!$13:$13) -> 0 | OW42: =LOOKUP(OW4,InputS!$5:$5,InputS!$13:$13) -> 0 | OX42: =LOOKUP(OX4,InputS!$5:$5,InputS!$13:$13) -> 0 | OY42: =LOOKUP(OY4,InputS!$5:$5,InputS!$13:$13) -> 0 | OZ42: =LOOKUP(OZ4,InputS!$5:$5,InputS!$13:$13) -> 0 | PA42: =LOOKUP(PA4,InputS!$5:$5,InputS!$13:$13) -> 0 | PB42: =LOOKUP(PB4,InputS!$5:$5,InputS!$13:$13) -> 0 | PC42: =LOOKUP(PC4,InputS!$5:$5,InputS!$13:$13) -> 0 | PD42: =LOOKUP(PD4,InputS!$5:$5,InputS!$13:$13) -> 0 | PE42: =LOOKUP(PE4,InputS!$5:$5,InputS!$13:$13) -> 0 | PF42: =LOOKUP(PF4,InputS!$5:$5,InputS!$13:$13) -> 0 | PG42: =LOOKUP(PG4,InputS!$5:$5,InputS!$13:$13) -> 0 | PH42: =LOOKUP(PH4,InputS!$5:$5,InputS!$13:$13) -> 0 | PI42: =LOOKUP(PI4,InputS!$5:$5,InputS!$13:$13) -> 0 | PJ42: =LOOKUP(PJ4,InputS!$5:$5,InputS!$13:$13) -> 0 | PK42: =LOOKUP(PK4,InputS!$5:$5,InputS!$13:$13) -> 0 | PL42: =LOOKUP(PL4,InputS!$5:$5,InputS!$13:$13) -> 0 | PM42: =LOOKUP(PM4,InputS!$5:$5,InputS!$13:$13) -> 0 | PN42: =LOOKUP(PN4,InputS!$5:$5,InputS!$13:$13) -> 0 | PO42: =LOOKUP(PO4,InputS!$5:$5,InputS!$13:$13) -> 0 | PP42: =LOOKUP(PP4,InputS!$5:$5,InputS!$13:$13) -> 0 | PQ42: =LOOKUP(PQ4,InputS!$5:$5,InputS!$13:$13) -> 0 | PR42: =LOOKUP(PR4,InputS!$5:$5,InputS!$13:$13) -> 0 | PS42: =LOOKUP(PS4,InputS!$5:$5,InputS!$13:$13) -> 0 | PT42: =LOOKUP(PT4,InputS!$5:$5,InputS!$13:$13) -> 0 | PU42: =LOOKUP(PU4,InputS!$5:$5,InputS!$13:$13) -> 0 | PV42: =LOOKUP(PV4,InputS!$5:$5,InputS!$13:$13) -> 0 | PW42: =LOOKUP(PW4,InputS!$5:$5,InputS!$13:$13) -> 0 | PX42: =LOOKUP(PX4,InputS!$5:$5,InputS!$13:$13) -> 0 | PY42: =LOOKUP(PY4,InputS!$5:$5,InputS!$13:$13) -> 0 | PZ42: =LOOKUP(PZ4,InputS!$5:$5,InputS!$13:$13) -> 0 | QA42: =LOOKUP(QA4,InputS!$5:$5,InputS!$13:$13) -> 0 | QB42: =LOOKUP(QB4,InputS!$5:$5,InputS!$13:$13) -> 0 | QC42: =LOOKUP(QC4,InputS!$5:$5,InputS!$13:$13) -> 0 | QD42: =LOOKUP(QD4,InputS!$5:$5,InputS!$13:$13) -> 0 | QE42: =LOOKUP(QE4,InputS!$5:$5,InputS!$13:$13) -> 0 | QF42: =LOOKUP(QF4,InputS!$5:$5,InputS!$13:$13) -> 0 | QG42: =LOOKUP(QG4,InputS!$5:$5,InputS!$13:$13) -> 0 | QH42: =LOOKUP(QH4,InputS!$5:$5,InputS!$13:$13) -> 0 | QI42: =LOOKUP(QI4,InputS!$5:$5,InputS!$13:$13) -> 0 | QJ42: =LOOKUP(QJ4,InputS!$5:$5,InputS!$13:$13) -> 0 | QK42: =LOOKUP(QK4,InputS!$5:$5,InputS!$13:$13) -> 0 | QL42: =LOOKUP(QL4,InputS!$5:$5,InputS!$13:$13) -> 0 | QM42: =LOOKUP(QM4,InputS!$5:$5,InputS!$13:$13) -> 0 | QN42: =LOOKUP(QN4,InputS!$5:$5,InputS!$13:$13) -> 0 | QO42: =LOOKUP(QO4,InputS!$5:$5,InputS!$13:$13) -> 0 | QP42: =LOOKUP(QP4,InputS!$5:$5,InputS!$13:$13) -> 0 | QQ42: =LOOKUP(QQ4,InputS!$5:$5,InputS!$13:$13) -> 0 | QR42: =LOOKUP(QR4,InputS!$5:$5,InputS!$13:$13) -> 0 | QS42: =LOOKUP(QS4,InputS!$5:$5,InputS!$13:$13) -> 0 | QT42: =LOOKUP(QT4,InputS!$5:$5,InputS!$13:$13) -> 0 | QU42: =LOOKUP(QU4,InputS!$5:$5,InputS!$13:$13) -> 0 | QV42: =LOOKUP(QV4,InputS!$5:$5,InputS!$13:$13) -> 0 | QW42: =LOOKUP(QW4,InputS!$5:$5,InputS!$13:$13) -> 0 | QX42: =LOOKUP(QX4,InputS!$5:$5,InputS!$13:$13) -> 0 | QY42: =LOOKUP(QY4,InputS!$5:$5,InputS!$13:$13) -> 0 | QZ42: =LOOKUP(QZ4,InputS!$5:$5,InputS!$13:$13) -> 0 | RA42: =LOOKUP(RA4,InputS!$5:$5,InputS!$13:$13) -> 0 | RB42: =LOOKUP(RB4,InputS!$5:$5,InputS!$13:$13) -> 0 | RC42: =LOOKUP(RC4,InputS!$5:$5,InputS!$13:$13) -> 0 | RD42: =LOOKUP(RD4,InputS!$5:$5,InputS!$13:$13) -> 0 | RE42: =LOOKUP(RE4,InputS!$5:$5,InputS!$13:$13) -> 0 | RF42: =LOOKUP(RF4,InputS!$5:$5,InputS!$13:$13) -> 0 | RG42: =LOOKUP(RG4,InputS!$5:$5,InputS!$13:$13) -> 0 | RH42: =LOOKUP(RH4,InputS!$5:$5,InputS!$13:$13) -> 0 | RI42: =LOOKUP(RI4,InputS!$5:$5,InputS!$13:$13) -> 0 | RJ42: =LOOKUP(RJ4,InputS!$5:$5,InputS!$13:$13) -> 0 | RK42: =LOOKUP(RK4,InputS!$5:$5,InputS!$13:$13) -> 0 | RL42: =LOOKUP(RL4,InputS!$5:$5,InputS!$13:$13) -> 0 | RM42: =LOOKUP(RM4,InputS!$5:$5,InputS!$13:$13) -> 0 | RN42: =LOOKUP(RN4,InputS!$5:$5,InputS!$13:$13) -> 0 | RO42: =LOOKUP(RO4,InputS!$5:$5,InputS!$13:$13) -> 0 | RP42: =LOOKUP(RP4,InputS!$5:$5,InputS!$13:$13) -> 0 | RQ42: =LOOKUP(RQ4,InputS!$5:$5,InputS!$13:$13) -> 0 | RR42: =LOOKUP(RR4,InputS!$5:$5,InputS!$13:$13) -> 0 | RS42: =LOOKUP(RS4,InputS!$5:$5,InputS!$13:$13) -> 0 | RT42: =LOOKUP(RT4,InputS!$5:$5,InputS!$13:$13) -> 0 | RU42: =LOOKUP(RU4,InputS!$5:$5,InputS!$13:$13) -> 0 | RV42: =LOOKUP(RV4,InputS!$5:$5,InputS!$13:$13) -> 0 | RW42: =LOOKUP(RW4,InputS!$5:$5,InputS!$13:$13) -> 0 | RX42: =LOOKUP(RX4,InputS!$5:$5,InputS!$13:$13) -> 0 | RY42: =LOOKUP(RY4,InputS!$5:$5,InputS!$13:$13) -> 0 | RZ42: =LOOKUP(RZ4,InputS!$5:$5,InputS!$13:$13) -> 0 | SA42: =LOOKUP(SA4,InputS!$5:$5,InputS!$13:$13) -> 0 | SB42: =LOOKUP(SB4,InputS!$5:$5,InputS!$13:$13) -> 0 | SC42: =LOOKUP(SC4,InputS!$5:$5,InputS!$13:$13) -> 0 | SD42: =LOOKUP(SD4,InputS!$5:$5,InputS!$13:$13) -> 0 | SE42: =LOOKUP(SE4,InputS!$5:$5,InputS!$13:$13) -> 0 | SF42: =LOOKUP(SF4,InputS!$5:$5,InputS!$13:$13) -> 0 | SG42: =LOOKUP(SG4,InputS!$5:$5,InputS!$13:$13) -> 0 | SH42: =LOOKUP(SH4,InputS!$5:$5,InputS!$13:$13) -> 0 | SI42: =LOOKUP(SI4,InputS!$5:$5,InputS!$13:$13) -> 0 | SJ42: =LOOKUP(SJ4,InputS!$5:$5,InputS!$13:$13) -> 0 | SK42: =LOOKUP(SK4,InputS!$5:$5,InputS!$13:$13) -> 0 | SL42: =LOOKUP(SL4,InputS!$5:$5,InputS!$13:$13) -> 0 | SM42: =LOOKUP(SM4,InputS!$5:$5,InputS!$13:$13) -> 0 | SN42: =LOOKUP(SN4,InputS!$5:$5,InputS!$13:$13) -> 0 | SO42: =LOOKUP(SO4,InputS!$5:$5,InputS!$13:$13) -> 0 | SP42: =LOOKUP(SP4,InputS!$5:$5,InputS!$13:$13) -> 0 | SQ42: =LOOKUP(SQ4,InputS!$5:$5,InputS!$13:$13) -> 0
D43: Capital Expenditure per Period | F43: Euro | I43: =SUM(L43:XFD43) -> 380000000 | J43: Euro | L43: =L42*L41 -> 190000000 | M43: =M42*M41 -> 190000000 | N43: 0 | O43: 0 | P43: 0 | Q43: 0 | R43: 0 | S43: 0 | T43: 0 | U43: 0 | V43: 0 | W43: 0 | X43: 0 | Y43: 0 | Z43: 0 | AA43: 0 | AB43: 0 | AC43: 0 | AD43: 0 | AE43: 0 | AF43: 0 | AG43: 0 | AH43: 0 | AI43: 0 | AJ43: 0 | AK43: 0 | AL43: 0 | AM43: 0 | AN43: 0 | AO43: 0 | AP43: 0 | AQ43: 0 | AR43: 0 | AS43: 0 | AT43: 0 | AU43: 0 | AV43: 0 | AW43: 0 | AX43: 0 | AY43: 0 | AZ43: 0 | BA43: 0 | BB43: 0 | BC43: 0 | BD43: 0 | BE43: 0 | BF43: 0 | BG43: 0 | BH43: 0 | BI43: 0 | BJ43: 0 | BK43: 0 | BL43: 0 | BM43: 0 | BN43: 0 | BO43: 0 | BP43: 0 | BQ43: 0 | BR43: 0 | BS43: 0 | BT43: 0 | BU43: 0 | BV43: 0 | BW43: 0 | BX43: 0 | BY43: =BY42*BY41 -> 0 | BZ43: 0 | CA43: 0 | CB43: 0 | CC43: 0 | CD43: 0 | CE43: 0 | CF43: 0 | CG43: 0 | CH43: 0 | CI43: 0 | CJ43: 0 | CK43: 0 | CL43: 0 | CM43: 0 | CN43: 0 | CO43: 0 | CP43: 0 | CQ43: 0 | CR43: 0 | CS43: 0 | CT43: 0 | CU43: 0 | CV43: 0 | CW43: 0 | CX43: 0 | CY43: 0 | CZ43: 0 | DA43: 0 | DB43: 0 | DC43: 0 | DD43: 0 | DE43: 0 | DF43: 0 | DG43: 0 | DH43: 0 | DI43: 0 | DJ43: 0 | DK43: 0 | DL43: 0 | DM43: 0 | DN43: 0 | DO43: 0 | DP43: 0 | DQ43: 0 | DR43: 0 | DS43: 0 | DT43: 0 | DU43: 0 | DV43: 0 | DW43: 0 | DX43: 0 | DY43: 0 | DZ43: 0 | EA43: 0 | EB43: 0 | EC43: 0 | ED43: 0 | EE43: 0 | EF43: 0 | EG43: 0 | EH43: 0 | EI43: 0 | EJ43: 0 | EK43: =EK42*EK41 -> 0 | EL43: 0 | EM43: 0 | EN43: 0 | EO43: 0 | EP43: 0 | EQ43: 0 | ER43: 0 | ES43: 0 | ET43: 0 | EU43: 0 | EV43: 0 | EW43: 0 | EX43: 0 | EY43: 0 | EZ43: 0 | FA43: 0 | FB43: 0 | FC43: 0 | FD43: 0 | FE43: 0 | FF43: 0 | FG43: 0 | FH43: 0 | FI43: 0 | FJ43: 0 | FK43: 0 | FL43: 0 | FM43: 0 | FN43: 0 | FO43: 0 | FP43: 0 | FQ43: 0 | FR43: 0 | FS43: 0 | FT43: 0 | FU43: 0 | FV43: 0 | FW43: 0 | FX43: 0 | FY43: 0 | FZ43: 0 | GA43: 0 | GB43: 0 | GC43: 0 | GD43: 0 | GE43: 0 | GF43: 0 | GG43: 0 | GH43: 0 | GI43: 0 | GJ43: 0 | GK43: 0 | GL43: 0 | GM43: 0 | GN43: 0 | GO43: 0 | GP43: 0 | GQ43: 0 | GR43: 0 | GS43: 0 | GT43: 0 | GU43: 0 | GV43: 0 | GW43: =GW42*GW41 -> 0 | GX43: 0 | GY43: 0 | GZ43: 0 | HA43: 0 | HB43: 0 | HC43: 0 | HD43: 0 | HE43: 0 | HF43: 0 | HG43: 0 | HH43: 0 | HI43: 0 | HJ43: 0 | HK43: 0 | HL43: 0 | HM43: 0 | HN43: 0 | HO43: 0 | HP43: 0 | HQ43: 0 | HR43: 0 | HS43: 0 | HT43: 0 | HU43: 0 | HV43: 0 | HW43: 0 | HX43: 0 | HY43: 0 | HZ43: 0 | IA43: 0 | IB43: 0 | IC43: 0 | ID43: 0 | IE43: 0 | IF43: 0 | IG43: 0 | IH43: 0 | II43: 0 | IJ43: 0 | IK43: 0 | IL43: 0 | IM43: 0 | IN43: 0 | IO43: 0 | IP43: 0 | IQ43: 0 | IR43: 0 | IS43: 0 | IT43: 0 | IU43: 0 | IV43: 0 | IW43: 0 | IX43: 0 | IY43: 0 | IZ43: 0 | JA43: 0 | JB43: 0 | JC43: 0 | JD43: 0 | JE43: 0 | JF43: 0 | JG43: 0 | JH43: 0 | JI43: =JI42*JI41 -> 0 | JJ43: 0 | JK43: 0 | JL43: 0 | JM43: 0 | JN43: 0 | JO43: 0 | JP43: 0 | JQ43: 0 | JR43: 0 | JS43: 0 | JT43: 0 | JU43: 0 | JV43: 0 | JW43: 0 | JX43: 0 | JY43: 0 | JZ43: 0 | KA43: 0 | KB43: 0 | KC43: 0 | KD43: 0 | KE43: 0 | KF43: 0 | KG43: 0 | KH43: 0 | KI43: 0 | KJ43: 0 | KK43: 0 | KL43: 0 | KM43: 0 | KN43: 0 | KO43: 0 | KP43: 0 | KQ43: 0 | KR43: 0 | KS43: 0 | KT43: 0 | KU43: 0 | KV43: 0 | KW43: 0 | KX43: 0 | KY43: 0 | KZ43: 0 | LA43: 0 | LB43: 0 | LC43: 0 | LD43: 0 | LE43: 0 | LF43: 0 | LG43: 0 | LH43: 0 | LI43: 0 | LJ43: 0 | LK43: 0 | LL43: 0 | LM43: 0 | LN43: 0 | LO43: 0 | LP43: 0 | LQ43: 0 | LR43: 0 | LS43: 0 | LT43: 0 | LU43: =LU42*LU41 -> 0 | LV43: 0 | LW43: 0 | LX43: 0 | LY43: 0 | LZ43: 0 | MA43: 0 | MB43: 0 | MC43: 0 | MD43: 0 | ME43: 0 | MF43: 0 | MG43: 0 | MH43: 0 | MI43: 0 | MJ43: 0 | MK43: 0 | ML43: 0 | MM43: 0 | MN43: 0 | MO43: 0 | MP43: 0 | MQ43: 0 | MR43: 0 | MS43: 0 | MT43: 0 | MU43: 0 | MV43: 0 | MW43: 0 | MX43: 0 | MY43: 0 | MZ43: 0 | NA43: 0 | NB43: 0 | NC43: 0 | ND43: 0 | NE43: 0 | NF43: 0 | NG43: 0 | NH43: 0 | NI43: 0 | NJ43: 0 | NK43: 0 | NL43: 0 | NM43: 0 | NN43: 0 | NO43: 0 | NP43: 0 | NQ43: 0 | NR43: 0 | NS43: 0 | NT43: 0 | NU43: 0 | NV43: 0 | NW43: 0 | NX43: 0 | NY43: 0 | NZ43: 0 | OA43: 0 | OB43: 0 | OC43: 0 | OD43: 0 | OE43: 0 | OF43: 0 | OG43: =OG42*OG41 -> 0 | OH43: 0 | OI43: 0 | OJ43: 0 | OK43: 0 | OL43: 0 | OM43: 0 | ON43: 0 | OO43: 0 | OP43: 0 | OQ43: 0 | OR43: 0 | OS43: 0 | OT43: 0 | OU43: 0 | OV43: 0 | OW43: 0 | OX43: 0 | OY43: 0 | OZ43: 0 | PA43: 0 | PB43: 0 | PC43: 0 | PD43: 0 | PE43: 0 | PF43: 0 | PG43: 0 | PH43: 0 | PI43: 0 | PJ43: 0 | PK43: 0 | PL43: 0 | PM43: 0 | PN43: 0 | PO43: 0 | PP43: 0 | PQ43: 0 | PR43: 0 | PS43: 0 | PT43: 0 | PU43: 0 | PV43: 0 | PW43: 0 | PX43: 0 | PY43: 0 | PZ43: 0 | QA43: 0 | QB43: 0 | QC43: 0 | QD43: 0 | QE43: 0 | QF43: 0 | QG43: 0 | QH43: 0 | QI43: 0 | QJ43: 0 | QK43: 0 | QL43: 0 | QM43: 0 | QN43: 0 | QO43: 0 | QP43: 0 | QQ43: 0 | QR43: 0 | QS43: =QS42*QS41 -> 0 | QT43: 0 | QU43: 0 | QV43: 0 | QW43: 0 | QX43: 0 | QY43: 0 | QZ43: 0 | RA43: 0 | RB43: 0 | RC43: 0 | RD43: 0 | RE43: 0 | RF43: 0 | RG43: 0 | RH43: 0 | RI43: 0 | RJ43: 0 | RK43: 0 | RL43: 0 | RM43: 0 | RN43: 0 | RO43: 0 | RP43: 0 | RQ43: 0 | RR43: 0 | RS43: 0 | RT43: 0 | RU43: 0 | RV43: 0 | RW43: 0 | RX43: 0 | RY43: 0 | RZ43: 0 | SA43: 0 | SB43: 0 | SC43: 0 | SD43: 0 | SE43: 0 | SF43: 0 | SG43: 0 | SH43: 0 | SI43: 0 | SJ43: 0 | SK43: 0 | SL43: 0 | SM43: 0 | SN43: 0 | SO43: 0 | SP43: 0 | SQ43: 0
C45: Operatation Expense
D46: Annual Expense | F46: Euro/year | G46: =InputC!G64 -> 3250000 | H46: =G46/12*H6 -> 3250000 | I46: =SUM(L46:XFD46) -> 97500000 | J46: Euro per Period | L46: =$H$46*L9 -> 0 | M46: =$H$46*M9 -> 0 | N46: 3250000 | O46: 3250000 | P46: 3250000 | Q46: 3250000 | R46: 3250000 | S46: 3250000 | T46: 3250000 | U46: 3250000 | V46: 3250000 | W46: 3250000 | X46: 3250000 | Y46: 3250000 | Z46: 3250000 | AA46: 3250000 | AB46: 3250000 | AC46: 3250000 | AD46: 3250000 | AE46: 3250000 | AF46: 3250000 | AG46: 3250000 | AH46: 3250000 | AI46: 3250000 | AJ46: 3250000 | AK46: 3250000 | AL46: 3250000 | AM46: 3250000 | AN46: 3250000 | AO46: 3250000 | AP46: 3250000 | AQ46: 3250000 | AR46: 0 | AS46: 0 | AT46: 0 | AU46: 0 | AV46: 0 | AW46: 0 | AX46: 0 | AY46: 0 | AZ46: 0 | BA46: 0 | BB46: 0 | BC46: 0 | BD46: 0 | BE46: 0 | BF46: 0 | BG46: 0 | BH46: 0 | BI46: 0 | BJ46: 0 | BK46: 0 | BL46: 0 | BM46: 0 | BN46: 0 | BO46: 0 | BP46: 0 | BQ46: 0 | BR46: 0 | BS46: 0 | BT46: 0 | BU46: 0 | BV46: 0 | BW46: 0 | BX46: 0 | BY46: =$H$46*BY9 -> 0 | BZ46: 0 | CA46: 0 | CB46: 0 | CC46: 0 | CD46: 0 | CE46: 0 | CF46: 0 | CG46: 0 | CH46: 0 | CI46: 0 | CJ46: 0 | CK46: 0 | CL46: 0 | CM46: 0 | CN46: 0 | CO46: 0 | CP46: 0 | CQ46: 0 | CR46: 0 | CS46: 0 | CT46: 0 | CU46: 0 | CV46: 0 | CW46: 0 | CX46: 0 | CY46: 0 | CZ46: 0 | DA46: 0 | DB46: 0 | DC46: 0 | DD46: 0 | DE46: 0 | DF46: 0 | DG46: 0 | DH46: 0 | DI46: 0 | DJ46: 0 | DK46: 0 | DL46: 0 | DM46: 0 | DN46: 0 | DO46: 0 | DP46: 0 | DQ46: 0 | DR46: 0 | DS46: 0 | DT46: 0 | DU46: 0 | DV46: 0 | DW46: 0 | DX46: 0 | DY46: 0 | DZ46: 0 | EA46: 0 | EB46: 0 | EC46: 0 | ED46: 0 | EE46: 0 | EF46: 0 | EG46: 0 | EH46: 0 | EI46: 0 | EJ46: 0 | EK46: =$H$46*EK9 -> 0 | EL46: 0 | EM46: 0 | EN46: 0 | EO46: 0 | EP46: 0 | EQ46: 0 | ER46: 0 | ES46: 0 | ET46: 0 | EU46: 0 | EV46: 0 | EW46: 0 | EX46: 0 | EY46: 0 | EZ46: 0 | FA46: 0 | FB46: 0 | FC46: 0 | FD46: 0 | FE46: 0 | FF46: 0 | FG46: 0 | FH46: 0 | FI46: 0 | FJ46: 0 | FK46: 0 | FL46: 0 | FM46: 0 | FN46: 0 | FO46: 0 | FP46: 0 | FQ46: 0 | FR46: 0 | FS46: 0 | FT46: 0 | FU46: 0 | FV46: 0 | FW46: 0 | FX46: 0 | FY46: 0 | FZ46: 0 | GA46: 0 | GB46: 0 | GC46: 0 | GD46: 0 | GE46: 0 | GF46: 0 | GG46: 0 | GH46: 0 | GI46: 0 | GJ46: 0 | GK46: 0 | GL46: 0 | GM46: 0 | GN46: 0 | GO46: 0 | GP46: 0 | GQ46: 0 | GR46: 0 | GS46: 0 | GT46: 0 | GU46: 0 | GV46: 0 | GW46: =$H$46*GW9 -> 0 | GX46: 0 | GY46: 0 | GZ46: 0 | HA46: 0 | HB46: 0 | HC46: 0 | HD46: 0 | HE46: 0 | HF46: 0 | HG46: 0 | HH46: 0 | HI46: 0 | HJ46: 0 | HK46: 0 | HL46: 0 | HM46: 0 | HN46: 0 | HO46: 0 | HP46: 0 | HQ46: 0 | HR46: 0 | HS46: 0 | HT46: 0 | HU46: 0 | HV46: 0 | HW46: 0 | HX46: 0 | HY46: 0 | HZ46: 0 | IA46: 0 | IB46: 0 | IC46: 0 | ID46: 0 | IE46: 0 | IF46: 0 | IG46: 0 | IH46: 0 | II46: 0 | IJ46: 0 | IK46: 0 | IL46: 0 | IM46: 0 | IN46: 0 | IO46: 0 | IP46: 0 | IQ46: 0 | IR46: 0 | IS46: 0 | IT46: 0 | IU46: 0 | IV46: 0 | IW46: 0 | IX46: 0 | IY46: 0 | IZ46: 0 | JA46: 0 | JB46: 0 | JC46: 0 | JD46: 0 | JE46: 0 | JF46: 0 | JG46: 0 | JH46: 0 | JI46: =$H$46*JI9 -> 0 | JJ46: 0 | JK46: 0 | JL46: 0 | JM46: 0 | JN46: 0 | JO46: 0 | JP46: 0 | JQ46: 0 | JR46: 0 | JS46: 0 | JT46: 0 | JU46: 0 | JV46: 0 | JW46: 0 | JX46: 0 | JY46: 0 | JZ46: 0 | KA46: 0 | KB46: 0 | KC46: 0 | KD46: 0 | KE46: 0 | KF46: 0 | KG46: 0 | KH46: 0 | KI46: 0 | KJ46: 0 | KK46: 0 | KL46: 0 | KM46: 0 | KN46: 0 | KO46: 0 | KP46: 0 | KQ46: 0 | KR46: 0 | KS46: 0 | KT46: 0 | KU46: 0 | KV46: 0 | KW46: 0 | KX46: 0 | KY46: 0 | KZ46: 0 | LA46: 0 | LB46: 0 | LC46: 0 | LD46: 0 | LE46: 0 | LF46: 0 | LG46: 0 | LH46: 0 | LI46: 0 | LJ46: 0 | LK46: 0 | LL46: 0 | LM46: 0 | LN46: 0 | LO46: 0 | LP46: 0 | LQ46: 0 | LR46: 0 | LS46: 0 | LT46: 0 | LU46: =$H$46*LU9 -> 0 | LV46: 0 | LW46: 0 | LX46: 0 | LY46: 0 | LZ46: 0 | MA46: 0 | MB46: 0 | MC46: 0 | MD46: 0 | ME46: 0 | MF46: 0 | MG46: 0 | MH46: 0 | MI46: 0 | MJ46: 0 | MK46: 0 | ML46: 0 | MM46: 0 | MN46: 0 | MO46: 0 | MP46: 0 | MQ46: 0 | MR46: 0 | MS46: 0 | MT46: 0 | MU46: 0 | MV46: 0 | MW46: 0 | MX46: 0 | MY46: 0 | MZ46: 0 | NA46: 0 | NB46: 0 | NC46: 0 | ND46: 0 | NE46: 0 | NF46: 0 | NG46: 0 | NH46: 0 | NI46: 0 | NJ46: 0 | NK46: 0 | NL46: 0 | NM46: 0 | NN46: 0 | NO46: 0 | NP46: 0 | NQ46: 0 | NR46: 0 | NS46: 0 | NT46: 0 | NU46: 0 | NV46: 0 | NW46: 0 | NX46: 0 | NY46: 0 | NZ46: 0 | OA46: 0 | OB46: 0 | OC46: 0 | OD46: 0 | OE46: 0 | OF46: 0 | OG46: =$H$46*OG9 -> 0 | OH46: 0 | OI46: 0 | OJ46: 0 | OK46: 0 | OL46: 0 | OM46: 0 | ON46: 0 | OO46: 0 | OP46: 0 | OQ46: 0 | OR46: 0 | OS46: 0 | OT46: 0 | OU46: 0 | OV46: 0 | OW46: 0 | OX46: 0 | OY46: 0 | OZ46: 0 | PA46: 0 | PB46: 0 | PC46: 0 | PD46: 0 | PE46: 0 | PF46: 0 | PG46: 0 | PH46: 0 | PI46: 0 | PJ46: 0 | PK46: 0 | PL46: 0 | PM46: 0 | PN46: 0 | PO46: 0 | PP46: 0 | PQ46: 0 | PR46: 0 | PS46: 0 | PT46: 0 | PU46: 0 | PV46: 0 | PW46: 0 | PX46: 0 | PY46: 0 | PZ46: 0 | QA46: 0 | QB46: 0 | QC46: 0 | QD46: 0 | QE46: 0 | QF46: 0 | QG46: 0 | QH46: 0 | QI46: 0 | QJ46: 0 | QK46: 0 | QL46: 0 | QM46: 0 | QN46: 0 | QO46: 0 | QP46: 0 | QQ46: 0 | QR46: 0 | QS46: =$H$46*QS9 -> 0 | QT46: 0 | QU46: 0 | QV46: 0 | QW46: 0 | QX46: 0 | QY46: 0 | QZ46: 0 | RA46: 0 | RB46: 0 | RC46: 0 | RD46: 0 | RE46: 0 | RF46: 0 | RG46: 0 | RH46: 0 | RI46: 0 | RJ46: 0 | RK46: 0 | RL46: 0 | RM46: 0 | RN46: 0 | RO46: 0 | RP46: 0 | RQ46: 0 | RR46: 0 | RS46: 0 | RT46: 0 | RU46: 0 | RV46: 0 | RW46: 0 | RX46: 0 | RY46: 0 | RZ46: 0 | SA46: 0 | SB46: 0 | SC46: 0 | SD46: 0 | SE46: 0 | SF46: 0 | SG46: 0 | SH46: 0 | SI46: 0 | SJ46: 0 | SK46: 0 | SL46: 0 | SM46: 0 | SN46: 0 | SO46: 0 | SP46: 0 | SQ46: 0
D47: Annual Maintenance | F47: Euro/year | G47: =InputC!G80 -> 3200000 | H47: =G47/Months_in_year*H6 -> 3200000 | I47: =SUM(L47:XFD47) -> 96000000 | J47: Euro per Period | L47: =$H$47*L9 -> 0 | M47: =$H$47*M9 -> 0 | N47: 3200000 | O47: 3200000 | P47: 3200000 | Q47: 3200000 | R47: 3200000 | S47: 3200000 | T47: 3200000 | U47: 3200000 | V47: 3200000 | W47: 3200000 | X47: 3200000 | Y47: 3200000 | Z47: 3200000 | AA47: 3200000 | AB47: 3200000 | AC47: 3200000 | AD47: 3200000 | AE47: 3200000 | AF47: 3200000 | AG47: 3200000 | AH47: 3200000 | AI47: 3200000 | AJ47: 3200000 | AK47: 3200000 | AL47: 3200000 | AM47: 3200000 | AN47: 3200000 | AO47: 3200000 | AP47: 3200000 | AQ47: 3200000 | AR47: 0 | AS47: 0 | AT47: 0 | AU47: 0 | AV47: 0 | AW47: 0 | AX47: 0 | AY47: 0 | AZ47: 0 | BA47: 0 | BB47: 0 | BC47: 0 | BD47: 0 | BE47: 0 | BF47: 0 | BG47: 0 | BH47: 0 | BI47: 0 | BJ47: 0 | BK47: 0 | BL47: 0 | BM47: 0 | BN47: 0 | BO47: 0 | BP47: 0 | BQ47: 0 | BR47: 0 | BS47: 0 | BT47: 0 | BU47: 0 | BV47: 0 | BW47: 0 | BX47: 0 | BY47: =$H$47*BY9 -> 0 | BZ47: 0 | CA47: 0 | CB47: 0 | CC47: 0 | CD47: 0 | CE47: 0 | CF47: 0 | CG47: 0 | CH47: 0 | CI47: 0 | CJ47: 0 | CK47: 0 | CL47: 0 | CM47: 0 | CN47: 0 | CO47: 0 | CP47: 0 | CQ47: 0 | CR47: 0 | CS47: 0 | CT47: 0 | CU47: 0 | CV47: 0 | CW47: 0 | CX47: 0 | CY47: 0 | CZ47: 0 | DA47: 0 | DB47: 0 | DC47: 0 | DD47: 0 | DE47: 0 | DF47: 0 | DG47: 0 | DH47: 0 | DI47: 0 | DJ47: 0 | DK47: 0 | DL47: 0 | DM47: 0 | DN47: 0 | DO47: 0 | DP47: 0 | DQ47: 0 | DR47: 0 | DS47: 0 | DT47: 0 | DU47: 0 | DV47: 0 | DW47: 0 | DX47: 0 | DY47: 0 | DZ47: 0 | EA47: 0 | EB47: 0 | EC47: 0 | ED47: 0 | EE47: 0 | EF47: 0 | EG47: 0 | EH47: 0 | EI47: 0 | EJ47: 0 | EK47: =$H$47*EK9 -> 0 | EL47: 0 | EM47: 0 | EN47: 0 | EO47: 0 | EP47: 0 | EQ47: 0 | ER47: 0 | ES47: 0 | ET47: 0 | EU47: 0 | EV47: 0 | EW47: 0 | EX47: 0 | EY47: 0 | EZ47: 0 | FA47: 0 | FB47: 0 | FC47: 0 | FD47: 0 | FE47: 0 | FF47: 0 | FG47: 0 | FH47: 0 | FI47: 0 | FJ47: 0 | FK47: 0 | FL47: 0 | FM47: 0 | FN47: 0 | FO47: 0 | FP47: 0 | FQ47: 0 | FR47: 0 | FS47: 0 | FT47: 0 | FU47: 0 | FV47: 0 | FW47: 0 | FX47: 0 | FY47: 0 | FZ47: 0 | GA47: 0 | GB47: 0 | GC47: 0 | GD47: 0 | GE47: 0 | GF47: 0 | GG47: 0 | GH47: 0 | GI47: 0 | GJ47: 0 | GK47: 0 | GL47: 0 | GM47: 0 | GN47: 0 | GO47: 0 | GP47: 0 | GQ47: 0 | GR47: 0 | GS47: 0 | GT47: 0 | GU47: 0 | GV47: 0 | GW47: =$H$47*GW9 -> 0 | GX47: 0 | GY47: 0 | GZ47: 0 | HA47: 0 | HB47: 0 | HC47: 0 | HD47: 0 | HE47: 0 | HF47: 0 | HG47: 0 | HH47: 0 | HI47: 0 | HJ47: 0 | HK47: 0 | HL47: 0 | HM47: 0 | HN47: 0 | HO47: 0 | HP47: 0 | HQ47: 0 | HR47: 0 | HS47: 0 | HT47: 0 | HU47: 0 | HV47: 0 | HW47: 0 | HX47: 0 | HY47: 0 | HZ47: 0 | IA47: 0 | IB47: 0 | IC47: 0 | ID47: 0 | IE47: 0 | IF47: 0 | IG47: 0 | IH47: 0 | II47: 0 | IJ47: 0 | IK47: 0 | IL47: 0 | IM47: 0 | IN47: 0 | IO47: 0 | IP47: 0 | IQ47: 0 | IR47: 0 | IS47: 0 | IT47: 0 | IU47: 0 | IV47: 0 | IW47: 0 | IX47: 0 | IY47: 0 | IZ47: 0 | JA47: 0 | JB47: 0 | JC47: 0 | JD47: 0 | JE47: 0 | JF47: 0 | JG47: 0 | JH47: 0 | JI47: =$H$47*JI9 -> 0 | JJ47: 0 | JK47: 0 | JL47: 0 | JM47: 0 | JN47: 0 | JO47: 0 | JP47: 0 | JQ47: 0 | JR47: 0 | JS47: 0 | JT47: 0 | JU47: 0 | JV47: 0 | JW47: 0 | JX47: 0 | JY47: 0 | JZ47: 0 | KA47: 0 | KB47: 0 | KC47: 0 | KD47: 0 | KE47: 0 | KF47: 0 | KG47: 0 | KH47: 0 | KI47: 0 | KJ47: 0 | KK47: 0 | KL47: 0 | KM47: 0 | KN47: 0 | KO47: 0 | KP47: 0 | KQ47: 0 | KR47: 0 | KS47: 0 | KT47: 0 | KU47: 0 | KV47: 0 | KW47: 0 | KX47: 0 | KY47: 0 | KZ47: 0 | LA47: 0 | LB47: 0 | LC47: 0 | LD47: 0 | LE47: 0 | LF47: 0 | LG47: 0 | LH47: 0 | LI47: 0 | LJ47: 0 | LK47: 0 | LL47: 0 | LM47: 0 | LN47: 0 | LO47: 0 | LP47: 0 | LQ47: 0 | LR47: 0 | LS47: 0 | LT47: 0 | LU47: =$H$47*LU9 -> 0 | LV47: 0 | LW47: 0 | LX47: 0 | LY47: 0 | LZ47: 0 | MA47: 0 | MB47: 0 | MC47: 0 | MD47: 0 | ME47: 0 | MF47: 0 | MG47: 0 | MH47: 0 | MI47: 0 | MJ47: 0 | MK47: 0 | ML47: 0 | MM47: 0 | MN47: 0 | MO47: 0 | MP47: 0 | MQ47: 0 | MR47: 0 | MS47: 0 | MT47: 0 | MU47: 0 | MV47: 0 | MW47: 0 | MX47: 0 | MY47: 0 | MZ47: 0 | NA47: 0 | NB47: 0 | NC47: 0 | ND47: 0 | NE47: 0 | NF47: 0 | NG47: 0 | NH47: 0 | NI47: 0 | NJ47: 0 | NK47: 0 | NL47: 0 | NM47: 0 | NN47: 0 | NO47: 0 | NP47: 0 | NQ47: 0 | NR47: 0 | NS47: 0 | NT47: 0 | NU47: 0 | NV47: 0 | NW47: 0 | NX47: 0 | NY47: 0 | NZ47: 0 | OA47: 0 | OB47: 0 | OC47: 0 | OD47: 0 | OE47: 0 | OF47: 0 | OG47: =$H$47*OG9 -> 0 | OH47: 0 | OI47: 0 | OJ47: 0 | OK47: 0 | OL47: 0 | OM47: 0 | ON47: 0 | OO47: 0 | OP47: 0 | OQ47: 0 | OR47: 0 | OS47: 0 | OT47: 0 | OU47: 0 | OV47: 0 | OW47: 0 | OX47: 0 | OY47: 0 | OZ47: 0 | PA47: 0 | PB47: 0 | PC47: 0 | PD47: 0 | PE47: 0 | PF47: 0 | PG47: 0 | PH47: 0 | PI47: 0 | PJ47: 0 | PK47: 0 | PL47: 0 | PM47: 0 | PN47: 0 | PO47: 0 | PP47: 0 | PQ47: 0 | PR47: 0 | PS47: 0 | PT47: 0 | PU47: 0 | PV47: 0 | PW47: 0 | PX47: 0 | PY47: 0 | PZ47: 0 | QA47: 0 | QB47: 0 | QC47: 0 | QD47: 0 | QE47: 0 | QF47: 0 | QG47: 0 | QH47: 0 | QI47: 0 | QJ47: 0 | QK47: 0 | QL47: 0 | QM47: 0 | QN47: 0 | QO47: 0 | QP47: 0 | QQ47: 0 | QR47: 0 | QS47: =$H$47*QS9 -> 0 | QT47: 0 | QU47: 0 | QV47: 0 | QW47: 0 | QX47: 0 | QY47: 0 | QZ47: 0 | RA47: 0 | RB47: 0 | RC47: 0 | RD47: 0 | RE47: 0 | RF47: 0 | RG47: 0 | RH47: 0 | RI47: 0 | RJ47: 0 | RK47: 0 | RL47: 0 | RM47: 0 | RN47: 0 | RO47: 0 | RP47: 0 | RQ47: 0 | RR47: 0 | RS47: 0 | RT47: 0 | RU47: 0 | RV47: 0 | RW47: 0 | RX47: 0 | RY47: 0 | RZ47: 0 | SA47: 0 | SB47: 0 | SC47: 0 | SD47: 0 | SE47: 0 | SF47: 0 | SG47: 0 | SH47: 0 | SI47: 0 | SJ47: 0 | SK47: 0 | SL47: 0 | SM47: 0 | SN47: 0 | SO47: 0 | SP47: 0 | SQ47: 0
D48: Total Annual Operating Expense before Inflation | I48: =SUM(L48:XFD48) -> 193500000 | J48: Euro per Period | L48: =SUM(L46:L47) -> 0 | M48: =SUM(M46:M47) -> 0 | N48: 6450000 | O48: 6450000 | P48: 6450000 | Q48: 6450000 | R48: 6450000 | S48: 6450000 | T48: 6450000 | U48: 6450000 | V48: 6450000 | W48: 6450000 | X48: 6450000 | Y48: 6450000 | Z48: 6450000 | AA48: 6450000 | AB48: 6450000 | AC48: 6450000 | AD48: 6450000 | AE48: 6450000 | AF48: 6450000 | AG48: 6450000 | AH48: 6450000 | AI48: 6450000 | AJ48: 6450000 | AK48: 6450000 | AL48: 6450000 | AM48: 6450000 | AN48: 6450000 | AO48: 6450000 | AP48: 6450000 | AQ48: 6450000 | AR48: 0 | AS48: 0 | AT48: 0 | AU48: 0 | AV48: 0 | AW48: 0 | AX48: 0 | AY48: 0 | AZ48: 0 | BA48: 0 | BB48: 0 | BC48: 0 | BD48: 0 | BE48: 0 | BF48: 0 | BG48: 0 | BH48: 0 | BI48: 0 | BJ48: 0 | BK48: 0 | BL48: 0 | BM48: 0 | BN48: 0 | BO48: 0 | BP48: 0 | BQ48: 0 | BR48: 0 | BS48: 0 | BT48: 0 | BU48: 0 | BV48: 0 | BW48: 0 | BX48: 0 | BY48: =SUM(BY46:BY47) -> 0 | BZ48: 0 | CA48: 0 | CB48: 0 | CC48: 0 | CD48: 0 | CE48: 0 | CF48: 0 | CG48: 0 | CH48: 0 | CI48: 0 | CJ48: 0 | CK48: 0 | CL48: 0 | CM48: 0 | CN48: 0 | CO48: 0 | CP48: 0 | CQ48: 0 | CR48: 0 | CS48: 0 | CT48: 0 | CU48: 0 | CV48: 0 | CW48: 0 | CX48: 0 | CY48: 0 | CZ48: 0 | DA48: 0 | DB48: 0 | DC48: 0 | DD48: 0 | DE48: 0 | DF48: 0 | DG48: 0 | DH48: 0 | DI48: 0 | DJ48: 0 | DK48: 0 | DL48: 0 | DM48: 0 | DN48: 0 | DO48: 0 | DP48: 0 | DQ48: 0 | DR48: 0 | DS48: 0 | DT48: 0 | DU48: 0 | DV48: 0 | DW48: 0 | DX48: 0 | DY48: 0 | DZ48: 0 | EA48: 0 | EB48: 0 | EC48: 0 | ED48: 0 | EE48: 0 | EF48: 0 | EG48: 0 | EH48: 0 | EI48: 0 | EJ48: 0 | EK48: =SUM(EK46:EK47) -> 0 | EL48: 0 | EM48: 0 | EN48: 0 | EO48: 0 | EP48: 0 | EQ48: 0 | ER48: 0 | ES48: 0 | ET48: 0 | EU48: 0 | EV48: 0 | EW48: 0 | EX48: 0 | EY48: 0 | EZ48: 0 | FA48: 0 | FB48: 0 | FC48: 0 | FD48: 0 | FE48: 0 | FF48: 0 | FG48: 0 | FH48: 0 | FI48: 0 | FJ48: 0 | FK48: 0 | FL48: 0 | FM48: 0 | FN48: 0 | FO48: 0 | FP48: 0 | FQ48: 0 | FR48: 0 | FS48: 0 | FT48: 0 | FU48: 0 | FV48: 0 | FW48: 0 | FX48: 0 | FY48: 0 | FZ48: 0 | GA48: 0 | GB48: 0 | GC48: 0 | GD48: 0 | GE48: 0 | GF48: 0 | GG48: 0 | GH48: 0 | GI48: 0 | GJ48: 0 | GK48: 0 | GL48: 0 | GM48: 0 | GN48: 0 | GO48: 0 | GP48: 0 | GQ48: 0 | GR48: 0 | GS48: 0 | GT48: 0 | GU48: 0 | GV48: 0 | GW48: =SUM(GW46:GW47) -> 0 | GX48: 0 | GY48: 0 | GZ48: 0 | HA48: 0 | HB48: 0 | HC48: 0 | HD48: 0 | HE48: 0 | HF48: 0 | HG48: 0 | HH48: 0 | HI48: 0 | HJ48: 0 | HK48: 0 | HL48: 0 | HM48: 0 | HN48: 0 | HO48: 0 | HP48: 0 | HQ48: 0 | HR48: 0 | HS48: 0 | HT48: 0 | HU48: 0 | HV48: 0 | HW48: 0 | HX48: 0 | HY48: 0 | HZ48: 0 | IA48: 0 | IB48: 0 | IC48: 0 | ID48: 0 | IE48: 0 | IF48: 0 | IG48: 0 | IH48: 0 | II48: 0 | IJ48: 0 | IK48: 0 | IL48: 0 | IM48: 0 | IN48: 0 | IO48: 0 | IP48: 0 | IQ48: 0 | IR48: 0 | IS48: 0 | IT48: 0 | IU48: 0 | IV48: 0 | IW48: 0 | IX48: 0 | IY48: 0 | IZ48: 0 | JA48: 0 | JB48: 0 | JC48: 0 | JD48: 0 | JE48: 0 | JF48: 0 | JG48: 0 | JH48: 0 | JI48: =SUM(JI46:JI47) -> 0 | JJ48: 0 | JK48: 0 | JL48: 0 | JM48: 0 | JN48: 0 | JO48: 0 | JP48: 0 | JQ48: 0 | JR48: 0 | JS48: 0 | JT48: 0 | JU48: 0 | JV48: 0 | JW48: 0 | JX48: 0 | JY48: 0 | JZ48: 0 | KA48: 0 | KB48: 0 | KC48: 0 | KD48: 0 | KE48: 0 | KF48: 0 | KG48: 0 | KH48: 0 | KI48: 0 | KJ48: 0 | KK48: 0 | KL48: 0 | KM48: 0 | KN48: 0 | KO48: 0 | KP48: 0 | KQ48: 0 | KR48: 0 | KS48: 0 | KT48: 0 | KU48: 0 | KV48: 0 | KW48: 0 | KX48: 0 | KY48: 0 | KZ48: 0 | LA48: 0 | LB48: 0 | LC48: 0 | LD48: 0 | LE48: 0 | LF48: 0 | LG48: 0 | LH48: 0 | LI48: 0 | LJ48: 0 | LK48: 0 | LL48: 0 | LM48: 0 | LN48: 0 | LO48: 0 | LP48: 0 | LQ48: 0 | LR48: 0 | LS48: 0 | LT48: 0 | LU48: =SUM(LU46:LU47) -> 0 | LV48: 0 | LW48: 0 | LX48: 0 | LY48: 0 | LZ48: 0 | MA48: 0 | MB48: 0 | MC48: 0 | MD48: 0 | ME48: 0 | MF48: 0 | MG48: 0 | MH48: 0 | MI48: 0 | MJ48: 0 | MK48: 0 | ML48: 0 | MM48: 0 | MN48: 0 | MO48: 0 | MP48: 0 | MQ48: 0 | MR48: 0 | MS48: 0 | MT48: 0 | MU48: 0 | MV48: 0 | MW48: 0 | MX48: 0 | MY48: 0 | MZ48: 0 | NA48: 0 | NB48: 0 | NC48: 0 | ND48: 0 | NE48: 0 | NF48: 0 | NG48: 0 | NH48: 0 | NI48: 0 | NJ48: 0 | NK48: 0 | NL48: 0 | NM48: 0 | NN48: 0 | NO48: 0 | NP48: 0 | NQ48: 0 | NR48: 0 | NS48: 0 | NT48: 0 | NU48: 0 | NV48: 0 | NW48: 0 | NX48: 0 | NY48: 0 | NZ48: 0 | OA48: 0 | OB48: 0 | OC48: 0 | OD48: 0 | OE48: 0 | OF48: 0 | OG48: =SUM(OG46:OG47) -> 0 | OH48: 0 | OI48: 0 | OJ48: 0 | OK48: 0 | OL48: 0 | OM48: 0 | ON48: 0 | OO48: 0 | OP48: 0 | OQ48: 0 | OR48: 0 | OS48: 0 | OT48: 0 | OU48: 0 | OV48: 0 | OW48: 0 | OX48: 0 | OY48: 0 | OZ48: 0 | PA48: 0 | PB48: 0 | PC48: 0 | PD48: 0 | PE48: 0 | PF48: 0 | PG48: 0 | PH48: 0 | PI48: 0 | PJ48: 0 | PK48: 0 | PL48: 0 | PM48: 0 | PN48: 0 | PO48: 0 | PP48: 0 | PQ48: 0 | PR48: 0 | PS48: 0 | PT48: 0 | PU48: 0 | PV48: 0 | PW48: 0 | PX48: 0 | PY48: 0 | PZ48: 0 | QA48: 0 | QB48: 0 | QC48: 0 | QD48: 0 | QE48: 0 | QF48: 0 | QG48: 0 | QH48: 0 | QI48: 0 | QJ48: 0 | QK48: 0 | QL48: 0 | QM48: 0 | QN48: 0 | QO48: 0 | QP48: 0 | QQ48: 0 | QR48: 0 | QS48: =SUM(QS46:QS47) -> 0 | QT48: 0 | QU48: 0 | QV48: 0 | QW48: 0 | QX48: 0 | QY48: 0 | QZ48: 0 | RA48: 0 | RB48: 0 | RC48: 0 | RD48: 0 | RE48: 0 | RF48: 0 | RG48: 0 | RH48: 0 | RI48: 0 | RJ48: 0 | RK48: 0 | RL48: 0 | RM48: 0 | RN48: 0 | RO48: 0 | RP48: 0 | RQ48: 0 | RR48: 0 | RS48: 0 | RT48: 0 | RU48: 0 | RV48: 0 | RW48: 0 | RX48: 0 | RY48: 0 | RZ48: 0 | SA48: 0 | SB48: 0 | SC48: 0 | SD48: 0 | SE48: 0 | SF48: 0 | SG48: 0 | SH48: 0 | SI48: 0 | SJ48: 0 | SK48: 0 | SL48: 0 | SM48: 0 | SN48: 0 | SO48: 0 | SP48: 0 | SQ48: 0
D49: O&M Cost with Inflation | I49: =SUM(L49:XFD49) -> 279588364.1 | J49: Euro per Period | L49: =L48*L35 -> 0 | M49: =M48*M35 -> 0 | N49: 6891831.45 | O49: 7029668.079 | P49: 7170261.441 | Q49: 7313666.669 | R49: 7459940.003 | S49: 7609138.803 | T49: 7761321.579 | U49: 7916548.01 | V49: 8074878.971 | W49: 8236376.55 | X49: 8401104.081 | Y49: 8569126.163 | Z49: 8740508.686 | AA49: 8915318.86 | AB49: 9093625.237 | AC49: 9275497.742 | AD49: 9461007.696 | AE49: 9650227.85 | AF49: 9843232.407 | AG49: 10040097.06 | AH49: 10240899 | AI49: 10445716.98 | AJ49: 10654631.32 | AK49: 10867723.94 | AL49: 11085078.42 | AM49: 11306779.99 | AN49: 11532915.59 | AO49: 11763573.9 | AP49: 11998845.38 | AQ49: 12238822.29 | AR49: 0 | AS49: 0 | AT49: 0 | AU49: 0 | AV49: 0 | AW49: 0 | AX49: 0 | AY49: 0 | AZ49: 0 | BA49: 0 | BB49: 0 | BC49: 0 | BD49: 0 | BE49: 0 | BF49: 0 | BG49: 0 | BH49: 0 | BI49: 0 | BJ49: 0 | BK49: 0 | BL49: 0 | BM49: 0 | BN49: 0 | BO49: 0 | BP49: 0 | BQ49: 0 | BR49: 0 | BS49: 0 | BT49: 0 | BU49: 0 | BV49: 0 | BW49: 0 | BX49: 0 | BY49: =BY48*BY35 -> 0 | BZ49: 0 | CA49: 0 | CB49: 0 | CC49: 0 | CD49: 0 | CE49: 0 | CF49: 0 | CG49: 0 | CH49: 0 | CI49: 0 | CJ49: 0 | CK49: 0 | CL49: 0 | CM49: 0 | CN49: 0 | CO49: 0 | CP49: 0 | CQ49: 0 | CR49: 0 | CS49: 0 | CT49: 0 | CU49: 0 | CV49: 0 | CW49: 0 | CX49: 0 | CY49: 0 | CZ49: 0 | DA49: 0 | DB49: 0 | DC49: 0 | DD49: 0 | DE49: 0 | DF49: 0 | DG49: 0 | DH49: 0 | DI49: 0 | DJ49: 0 | DK49: 0 | DL49: 0 | DM49: 0 | DN49: 0 | DO49: 0 | DP49: 0 | DQ49: 0 | DR49: 0 | DS49: 0 | DT49: 0 | DU49: 0 | DV49: 0 | DW49: 0 | DX49: 0 | DY49: 0 | DZ49: 0 | EA49: 0 | EB49: 0 | EC49: 0 | ED49: 0 | EE49: 0 | EF49: 0 | EG49: 0 | EH49: 0 | EI49: 0 | EJ49: 0 | EK49: =EK48*EK35 -> 0 | EL49: 0 | EM49: 0 | EN49: 0 | EO49: 0 | EP49: 0 | EQ49: 0 | ER49: 0 | ES49: 0 | ET49: 0 | EU49: 0 | EV49: 0 | EW49: 0 | EX49: 0 | EY49: 0 | EZ49: 0 | FA49: 0 | FB49: 0 | FC49: 0 | FD49: 0 | FE49: 0 | FF49: 0 | FG49: 0 | FH49: 0 | FI49: 0 | FJ49: 0 | FK49: 0 | FL49: 0 | FM49: 0 | FN49: 0 | FO49: 0 | FP49: 0 | FQ49: 0 | FR49: 0 | FS49: 0 | FT49: 0 | FU49: 0 | FV49: 0 | FW49: 0 | FX49: 0 | FY49: 0 | FZ49: 0 | GA49: 0 | GB49: 0 | GC49: 0 | GD49: 0 | GE49: 0 | GF49: 0 | GG49: 0 | GH49: 0 | GI49: 0 | GJ49: 0 | GK49: 0 | GL49: 0 | GM49: 0 | GN49: 0 | GO49: 0 | GP49: 0 | GQ49: 0 | GR49: 0 | GS49: 0 | GT49: 0 | GU49: 0 | GV49: 0 | GW49: =GW48*GW35 -> 0 | GX49: 0 | GY49: 0 | GZ49: 0 | HA49: 0 | HB49: 0 | HC49: 0 | HD49: 0 | HE49: 0 | HF49: 0 | HG49: 0 | HH49: 0 | HI49: 0 | HJ49: 0 | HK49: 0 | HL49: 0 | HM49: 0 | HN49: 0 | HO49: 0 | HP49: 0 | HQ49: 0 | HR49: 0 | HS49: 0 | HT49: 0 | HU49: 0 | HV49: 0 | HW49: 0 | HX49: 0 | HY49: 0 | HZ49: 0 | IA49: 0 | IB49: 0 | IC49: 0 | ID49: 0 | IE49: 0 | IF49: 0 | IG49: 0 | IH49: 0 | II49: 0 | IJ49: 0 | IK49: 0 | IL49: 0 | IM49: 0 | IN49: 0 | IO49: 0 | IP49: 0 | IQ49: 0 | IR49: 0 | IS49: 0 | IT49: 0 | IU49: 0 | IV49: 0 | IW49: 0 | IX49: 0 | IY49: 0 | IZ49: 0 | JA49: 0 | JB49: 0 | JC49: 0 | JD49: 0 | JE49: 0 | JF49: 0 | JG49: 0 | JH49: 0 | JI49: =JI48*JI35 -> 0 | JJ49: 0 | JK49: 0 | JL49: 0 | JM49: 0 | JN49: 0 | JO49: 0 | JP49: 0 | JQ49: 0 | JR49: 0 | JS49: 0 | JT49: 0 | JU49: 0 | JV49: 0 | JW49: 0 | JX49: 0 | JY49: 0 | JZ49: 0 | KA49: 0 | KB49: 0 | KC49: 0 | KD49: 0 | KE49: 0 | KF49: 0 | KG49: 0 | KH49: 0 | KI49: 0 | KJ49: 0 | KK49: 0 | KL49: 0 | KM49: 0 | KN49: 0 | KO49: 0 | KP49: 0 | KQ49: 0 | KR49: 0 | KS49: 0 | KT49: 0 | KU49: 0 | KV49: 0 | KW49: 0 | KX49: 0 | KY49: 0 | KZ49: 0 | LA49: 0 | LB49: 0 | LC49: 0 | LD49: 0 | LE49: 0 | LF49: 0 | LG49: 0 | LH49: 0 | LI49: 0 | LJ49: 0 | LK49: 0 | LL49: 0 | LM49: 0 | LN49: 0 | LO49: 0 | LP49: 0 | LQ49: 0 | LR49: 0 | LS49: 0 | LT49: 0 | LU49: =LU48*LU35 -> 0 | LV49: 0 | LW49: 0 | LX49: 0 | LY49: 0 | LZ49: 0 | MA49: 0 | MB49: 0 | MC49: 0 | MD49: 0 | ME49: 0 | MF49: 0 | MG49: 0 | MH49: 0 | MI49: 0 | MJ49: 0 | MK49: 0 | ML49: 0 | MM49: 0 | MN49: 0 | MO49: 0 | MP49: 0 | MQ49: 0 | MR49: 0 | MS49: 0 | MT49: 0 | MU49: 0 | MV49: 0 | MW49: 0 | MX49: 0 | MY49: 0 | MZ49: 0 | NA49: 0 | NB49: 0 | NC49: 0 | ND49: 0 | NE49: 0 | NF49: 0 | NG49: 0 | NH49: 0 | NI49: 0 | NJ49: 0 | NK49: 0 | NL49: 0 | NM49: 0 | NN49: 0 | NO49: 0 | NP49: 0 | NQ49: 0 | NR49: 0 | NS49: 0 | NT49: 0 | NU49: 0 | NV49: 0 | NW49: 0 | NX49: 0 | NY49: 0 | NZ49: 0 | OA49: 0 | OB49: 0 | OC49: 0 | OD49: 0 | OE49: 0 | OF49: 0 | OG49: =OG48*OG35 -> 0 | OH49: 0 | OI49: 0 | OJ49: 0 | OK49: 0 | OL49: 0 | OM49: 0 | ON49: 0 | OO49: 0 | OP49: 0 | OQ49: 0 | OR49: 0 | OS49: 0 | OT49: 0 | OU49: 0 | OV49: 0 | OW49: 0 | OX49: 0 | OY49: 0 | OZ49: 0 | PA49: 0 | PB49: 0 | PC49: 0 | PD49: 0 | PE49: 0 | PF49: 0 | PG49: 0 | PH49: 0 | PI49: 0 | PJ49: 0 | PK49: 0 | PL49: 0 | PM49: 0 | PN49: 0 | PO49: 0 | PP49: 0 | PQ49: 0 | PR49: 0 | PS49: 0 | PT49: 0 | PU49: 0 | PV49: 0 | PW49: 0 | PX49: 0 | PY49: 0 | PZ49: 0 | QA49: 0 | QB49: 0 | QC49: 0 | QD49: 0 | QE49: 0 | QF49: 0 | QG49: 0 | QH49: 0 | QI49: 0 | QJ49: 0 | QK49: 0 | QL49: 0 | QM49: 0 | QN49: 0 | QO49: 0 | QP49: 0 | QQ49: 0 | QR49: 0 | QS49: =QS48*QS35 -> 0 | QT49: 0 | QU49: 0 | QV49: 0 | QW49: 0 | QX49: 0 | QY49: 0 | QZ49: 0 | RA49: 0 | RB49: 0 | RC49: 0 | RD49: 0 | RE49: 0 | RF49: 0 | RG49: 0 | RH49: 0 | RI49: 0 | RJ49: 0 | RK49: 0 | RL49: 0 | RM49: 0 | RN49: 0 | RO49: 0 | RP49: 0 | RQ49: 0 | RR49: 0 | RS49: 0 | RT49: 0 | RU49: 0 | RV49: 0 | RW49: 0 | RX49: 0 | RY49: 0 | RZ49: 0 | SA49: 0 | SB49: 0 | SC49: 0 | SD49: 0 | SE49: 0 | SF49: 0 | SG49: 0 | SH49: 0 | SI49: 0 | SJ49: 0 | SK49: 0 | SL49: 0 | SM49: 0 | SN49: 0 | SO49: 0 | SP49: 0 | SQ49: 0
D51: Age in Periods | J51: Periods | L51: =K51+L9 -> 0 | M51: =L51+M9 -> 0 | N51: 1 | O51: 2 | P51: 3 | Q51: 4 | R51: 5 | S51: 6 | T51: 7 | U51: 8 | V51: 9 | W51: 10 | X51: 11 | Y51: 12 | Z51: 13 | AA51: 14 | AB51: 15 | AC51: 16 | AD51: 17 | AE51: 18 | AF51: 19 | AG51: 20 | AH51: 21 | AI51: 22 | AJ51: 23 | AK51: 24 | AL51: 25 | AM51: 26 | AN51: 27 | AO51: 28 | AP51: 29 | AQ51: 30 | AR51: 30 | AS51: 30 | AT51: 30 | AU51: 30 | AV51: 30 | AW51: 30 | AX51: 30 | AY51: 30 | AZ51: 30 | BA51: 30 | BB51: 30 | BC51: 30 | BD51: 30 | BE51: 30 | BF51: 30 | BG51: 30 | BH51: 30 | BI51: 30 | BJ51: 30 | BK51: 30 | BL51: 30 | BM51: 30 | BN51: 30 | BO51: 30 | BP51: 30 | BQ51: 30 | BR51: 30 | BS51: 30 | BT51: 30 | BU51: 30 | BV51: 30 | BW51: 30 | BX51: 30 | BY51: =BX51+BY9 -> 30 | BZ51: 30 | CA51: 30 | CB51: 30 | CC51: 30 | CD51: 30 | CE51: 30 | CF51: 30 | CG51: 30 | CH51: 30 | CI51: 30 | CJ51: 30 | CK51: 30 | CL51: 30 | CM51: 30 | CN51: 30 | CO51: 30 | CP51: 30 | CQ51: 30 | CR51: 30 | CS51: 30 | CT51: 30 | CU51: 30 | CV51: 30 | CW51: 30 | CX51: 30 | CY51: 30 | CZ51: 30 | DA51: 30 | DB51: 30 | DC51: 30 | DD51: 30 | DE51: 30 | DF51: 30 | DG51: 30 | DH51: 30 | DI51: 30 | DJ51: 30 | DK51: 30 | DL51: 30 | DM51: 30 | DN51: 30 | DO51: 30 | DP51: 30 | DQ51: 30 | DR51: 30 | DS51: 30 | DT51: 30 | DU51: 30 | DV51: 30 | DW51: 30 | DX51: 30 | DY51: 30 | DZ51: 30 | EA51: 30 | EB51: 30 | EC51: 30 | ED51: 30 | EE51: 30 | EF51: 30 | EG51: 30 | EH51: 30 | EI51: 30 | EJ51: 30 | EK51: =EJ51+EK9 -> 30 | EL51: 30 | EM51: 30 | EN51: 30 | EO51: 30 | EP51: 30 | EQ51: 30 | ER51: 30 | ES51: 30 | ET51: 30 | EU51: 30 | EV51: 30 | EW51: 30 | EX51: 30 | EY51: 30 | EZ51: 30 | FA51: 30 | FB51: 30 | FC51: 30 | FD51: 30 | FE51: 30 | FF51: 30 | FG51: 30 | FH51: 30 | FI51: 30 | FJ51: 30 | FK51: 30 | FL51: 30 | FM51: 30 | FN51: 30 | FO51: 30 | FP51: 30 | FQ51: 30 | FR51: 30 | FS51: 30 | FT51: 30 | FU51: 30 | FV51: 30 | FW51: 30 | FX51: 30 | FY51: 30 | FZ51: 30 | GA51: 30 | GB51: 30 | GC51: 30 | GD51: 30 | GE51: 30 | GF51: 30 | GG51: 30 | GH51: 30 | GI51: 30 | GJ51: 30 | GK51: 30 | GL51: 30 | GM51: 30 | GN51: 30 | GO51: 30 | GP51: 30 | GQ51: 30 | GR51: 30 | GS51: 30 | GT51: 30 | GU51: 30 | GV51: 30 | GW51: =GV51+GW9 -> 30 | GX51: 30 | GY51: 30 | GZ51: 30 | HA51: 30 | HB51: 30 | HC51: 30 | HD51: 30 | HE51: 30 | HF51: 30 | HG51: 30 | HH51: 30 | HI51: 30 | HJ51: 30 | HK51: 30 | HL51: 30 | HM51: 30 | HN51: 30 | HO51: 30 | HP51: 30 | HQ51: 30 | HR51: 30 | HS51: 30 | HT51: 30 | HU51: 30 | HV51: 30 | HW51: 30 | HX51: 30 | HY51: 30 | HZ51: 30 | IA51: 30 | IB51: 30 | IC51: 30 | ID51: 30 | IE51: 30 | IF51: 30 | IG51: 30 | IH51: 30 | II51: 30 | IJ51: 30 | IK51: 30 | IL51: 30 | IM51: 30 | IN51: 30 | IO51: 30 | IP51: 30 | IQ51: 30 | IR51: 30 | IS51: 30 | IT51: 30 | IU51: 30 | IV51: 30 | IW51: 30 | IX51: 30 | IY51: 30 | IZ51: 30 | JA51: 30 | JB51: 30 | JC51: 30 | JD51: 30 | JE51: 30 | JF51: 30 | JG51: 30 | JH51: 30 | JI51: =JH51+JI9 -> 30 | JJ51: 30 | JK51: 30 | JL51: 30 | JM51: 30 | JN51: 30 | JO51: 30 | JP51: 30 | JQ51: 30 | JR51: 30 | JS51: 30 | JT51: 30 | JU51: 30 | JV51: 30 | JW51: 30 | JX51: 30 | JY51: 30 | JZ51: 30 | KA51: 30 | KB51: 30 | KC51: 30 | KD51: 30 | KE51: 30 | KF51: 30 | KG51: 30 | KH51: 30 | KI51: 30 | KJ51: 30 | KK51: 30 | KL51: 30 | KM51: 30 | KN51: 30 | KO51: 30 | KP51: 30 | KQ51: 30 | KR51: 30 | KS51: 30 | KT51: 30 | KU51: 30 | KV51: 30 | KW51: 30 | KX51: 30 | KY51: 30 | KZ51: 30 | LA51: 30 | LB51: 30 | LC51: 30 | LD51: 30 | LE51: 30 | LF51: 30 | LG51: 30 | LH51: 30 | LI51: 30 | LJ51: 30 | LK51: 30 | LL51: 30 | LM51: 30 | LN51: 30 | LO51: 30 | LP51: 30 | LQ51: 30 | LR51: 30 | LS51: 30 | LT51: 30 | LU51: =LT51+LU9 -> 30 | LV51: 30 | LW51: 30 | LX51: 30 | LY51: 30 | LZ51: 30 | MA51: 30 | MB51: 30 | MC51: 30 | MD51: 30 | ME51: 30 | MF51: 30 | MG51: 30 | MH51: 30 | MI51: 30 | MJ51: 30 | MK51: 30 | ML51: 30 | MM51: 30 | MN51: 30 | MO51: 30 | MP51: 30 | MQ51: 30 | MR51: 30 | MS51: 30 | MT51: 30 | MU51: 30 | MV51: 30 | MW51: 30 | MX51: 30 | MY51: 30 | MZ51: 30 | NA51: 30 | NB51: 30 | NC51: 30 | ND51: 30 | NE51: 30 | NF51: 30 | NG51: 30 | NH51: 30 | NI51: 30 | NJ51: 30 | NK51: 30 | NL51: 30 | NM51: 30 | NN51: 30 | NO51: 30 | NP51: 30 | NQ51: 30 | NR51: 30 | NS51: 30 | NT51: 30 | NU51: 30 | NV51: 30 | NW51: 30 | NX51: 30 | NY51: 30 | NZ51: 30 | OA51: 30 | OB51: 30 | OC51: 30 | OD51: 30 | OE51: 30 | OF51: 30 | OG51: =OF51+OG9 -> 30 | OH51: 30 | OI51: 30 | OJ51: 30 | OK51: 30 | OL51: 30 | OM51: 30 | ON51: 30 | OO51: 30 | OP51: 30 | OQ51: 30 | OR51: 30 | OS51: 30 | OT51: 30 | OU51: 30 | OV51: 30 | OW51: 30 | OX51: 30 | OY51: 30 | OZ51: 30 | PA51: 30 | PB51: 30 | PC51: 30 | PD51: 30 | PE51: 30 | PF51: 30 | PG51: 30 | PH51: 30 | PI51: 30 | PJ51: 30 | PK51: 30 | PL51: 30 | PM51: 30 | PN51: 30 | PO51: 30 | PP51: 30 | PQ51: 30 | PR51: 30 | PS51: 30 | PT51: 30 | PU51: 30 | PV51: 30 | PW51: 30 | PX51: 30 | PY51: 30 | PZ51: 30 | QA51: 30 | QB51: 30 | QC51: 30 | QD51: 30 | QE51: 30 | QF51: 30 | QG51: 30 | QH51: 30 | QI51: 30 | QJ51: 30 | QK51: 30 | QL51: 30 | QM51: 30 | QN51: 30 | QO51: 30 | QP51: 30 | QQ51: 30 | QR51: 30 | QS51: =QR51+QS9 -> 30 | QT51: 30 | QU51: 30 | QV51: 30 | QW51: 30 | QX51: 30 | QY51: 30 | QZ51: 30 | RA51: 30 | RB51: 30 | RC51: 30 | RD51: 30 | RE51: 30 | RF51: 30 | RG51: 30 | RH51: 30 | RI51: 30 | RJ51: 30 | RK51: 30 | RL51: 30 | RM51: 30 | RN51: 30 | RO51: 30 | RP51: 30 | RQ51: 30 | RR51: 30 | RS51: 30 | RT51: 30 | RU51: 30 | RV51: 30 | RW51: 30 | RX51: 30 | RY51: 30 | RZ51: 30 | SA51: 30 | SB51: 30 | SC51: 30 | SD51: 30 | SE51: 30 | SF51: 30 | SG51: 30 | SH51: 30 | SI51: 30 | SJ51: 30 | SK51: 30 | SL51: 30 | SM51: 30 | SN51: 30 | SO51: 30 | SP51: 30 | SQ51: 30
D52: Age in Years | F52: Periods in Year | G52: =InputC!G15 -> 1 | J52: Years | L52: =ROUNDUP(L51/$G$52,0) -> 0 | M52: =ROUNDUP(M51/$G$52,0) -> 0 | N52: 1 | O52: 2 | P52: 3 | Q52: 4 | R52: 5 | S52: 6 | T52: 7 | U52: 8 | V52: 9 | W52: 10 | X52: 11 | Y52: 12 | Z52: 13 | AA52: 14 | AB52: 15 | AC52: 16 | AD52: 17 | AE52: 18 | AF52: 19 | AG52: 20 | AH52: 21 | AI52: 22 | AJ52: 23 | AK52: 24 | AL52: 25 | AM52: 26 | AN52: 27 | AO52: 28 | AP52: 29 | AQ52: 30 | AR52: 30 | AS52: 30 | AT52: 30 | AU52: 30 | AV52: 30 | AW52: 30 | AX52: 30 | AY52: 30 | AZ52: 30 | BA52: 30 | BB52: 30 | BC52: 30 | BD52: 30 | BE52: 30 | BF52: 30 | BG52: 30 | BH52: 30 | BI52: 30 | BJ52: 30 | BK52: 30 | BL52: 30 | BM52: 30 | BN52: 30 | BO52: 30 | BP52: 30 | BQ52: 30 | BR52: 30 | BS52: 30 | BT52: 30 | BU52: 30 | BV52: 30 | BW52: 30 | BX52: 30 | BY52: =ROUNDUP(BY51/$G$52,0) -> 30 | BZ52: 30 | CA52: 30 | CB52: 30 | CC52: 30 | CD52: 30 | CE52: 30 | CF52: 30 | CG52: 30 | CH52: 30 | CI52: 30 | CJ52: 30 | CK52: 30 | CL52: 30 | CM52: 30 | CN52: 30 | CO52: 30 | CP52: 30 | CQ52: 30 | CR52: 30 | CS52: 30 | CT52: 30 | CU52: 30 | CV52: 30 | CW52: 30 | CX52: 30 | CY52: 30 | CZ52: 30 | DA52: 30 | DB52: 30 | DC52: 30 | DD52: 30 | DE52: 30 | DF52: 30 | DG52: 30 | DH52: 30 | DI52: 30 | DJ52: 30 | DK52: 30 | DL52: 30 | DM52: 30 | DN52: 30 | DO52: 30 | DP52: 30 | DQ52: 30 | DR52: 30 | DS52: 30 | DT52: 30 | DU52: 30 | DV52: 30 | DW52: 30 | DX52: 30 | DY52: 30 | DZ52: 30 | EA52: 30 | EB52: 30 | EC52: 30 | ED52: 30 | EE52: 30 | EF52: 30 | EG52: 30 | EH52: 30 | EI52: 30 | EJ52: 30 | EK52: =ROUNDUP(EK51/$G$52,0) -> 30 | EL52: 30 | EM52: 30 | EN52: 30 | EO52: 30 | EP52: 30 | EQ52: 30 | ER52: 30 | ES52: 30 | ET52: 30 | EU52: 30 | EV52: 30 | EW52: 30 | EX52: 30 | EY52: 30 | EZ52: 30 | FA52: 30 | FB52: 30 | FC52: 30 | FD52: 30 | FE52: 30 | FF52: 30 | FG52: 30 | FH52: 30 | FI52: 30 | FJ52: 30 | FK52: 30 | FL52: 30 | FM52: 30 | FN52: 30 | FO52: 30 | FP52: 30 | FQ52: 30 | FR52: 30 | FS52: 30 | FT52: 30 | FU52: 30 | FV52: 30 | FW52: 30 | FX52: 30 | FY52: 30 | FZ52: 30 | GA52: 30 | GB52: 30 | GC52: 30 | GD52: 30 | GE52: 30 | GF52: 30 | GG52: 30 | GH52: 30 | GI52: 30 | GJ52: 30 | GK52: 30 | GL52: 30 | GM52: 30 | GN52: 30 | GO52: 30 | GP52: 30 | GQ52: 30 | GR52: 30 | GS52: 30 | GT52: 30 | GU52: 30 | GV52: 30 | GW52: =ROUNDUP(GW51/$G$52,0) -> 30 | GX52: 30 | GY52: 30 | GZ52: 30 | HA52: 30 | HB52: 30 | HC52: 30 | HD52: 30 | HE52: 30 | HF52: 30 | HG52: 30 | HH52: 30 | HI52: 30 | HJ52: 30 | HK52: 30 | HL52: 30 | HM52: 30 | HN52: 30 | HO52: 30 | HP52: 30 | HQ52: 30 | HR52: 30 | HS52: 30 | HT52: 30 | HU52: 30 | HV52: 30 | HW52: 30 | HX52: 30 | HY52: 30 | HZ52: 30 | IA52: 30 | IB52: 30 | IC52: 30 | ID52: 30 | IE52: 30 | IF52: 30 | IG52: 30 | IH52: 30 | II52: 30 | IJ52: 30 | IK52: 30 | IL52: 30 | IM52: 30 | IN52: 30 | IO52: 30 | IP52: 30 | IQ52: 30 | IR52: 30 | IS52: 30 | IT52: 30 | IU52: 30 | IV52: 30 | IW52: 30 | IX52: 30 | IY52: 30 | IZ52: 30 | JA52: 30 | JB52: 30 | JC52: 30 | JD52: 30 | JE52: 30 | JF52: 30 | JG52: 30 | JH52: 30 | JI52: =ROUNDUP(JI51/$G$52,0) -> 30 | JJ52: 30 | JK52: 30 | JL52: 30 | JM52: 30 | JN52: 30 | JO52: 30 | JP52: 30 | JQ52: 30 | JR52: 30 | JS52: 30 | JT52: 30 | JU52: 30 | JV52: 30 | JW52: 30 | JX52: 30 | JY52: 30 | JZ52: 30 | KA52: 30 | KB52: 30 | KC52: 30 | KD52: 30 | KE52: 30 | KF52: 30 | KG52: 30 | KH52: 30 | KI52: 30 | KJ52: 30 | KK52: 30 | KL52: 30 | KM52: 30 | KN52: 30 | KO52: 30 | KP52: 30 | KQ52: 30 | KR52: 30 | KS52: 30 | KT52: 30 | KU52: 30 | KV52: 30 | KW52: 30 | KX52: 30 | KY52: 30 | KZ52: 30 | LA52: 30 | LB52: 30 | LC52: 30 | LD52: 30 | LE52: 30 | LF52: 30 | LG52: 30 | LH52: 30 | LI52: 30 | LJ52: 30 | LK52: 30 | LL52: 30 | LM52: 30 | LN52: 30 | LO52: 30 | LP52: 30 | LQ52: 30 | LR52: 30 | LS52: 30 | LT52: 30 | LU52: =ROUNDUP(LU51/$G$52,0) -> 30 | LV52: 30 | LW52: 30 | LX52: 30 | LY52: 30 | LZ52: 30 | MA52: 30 | MB52: 30 | MC52: 30 | MD52: 30 | ME52: 30 | MF52: 30 | MG52: 30 | MH52: 30 | MI52: 30 | MJ52: 30 | MK52: 30 | ML52: 30 | MM52: 30 | MN52: 30 | MO52: 30 | MP52: 30 | MQ52: 30 | MR52: 30 | MS52: 30 | MT52: 30 | MU52: 30 | MV52: 30 | MW52: 30 | MX52: 30 | MY52: 30 | MZ52: 30 | NA52: 30 | NB52: 30 | NC52: 30 | ND52: 30 | NE52: 30 | NF52: 30 | NG52: 30 | NH52: 30 | NI52: 30 | NJ52: 30 | NK52: 30 | NL52: 30 | NM52: 30 | NN52: 30 | NO52: 30 | NP52: 30 | NQ52: 30 | NR52: 30 | NS52: 30 | NT52: 30 | NU52: 30 | NV52: 30 | NW52: 30 | NX52: 30 | NY52: 30 | NZ52: 30 | OA52: 30 | OB52: 30 | OC52: 30 | OD52: 30 | OE52: 30 | OF52: 30 | OG52: =ROUNDUP(OG51/$G$52,0) -> 30 | OH52: 30 | OI52: 30 | OJ52: 30 | OK52: 30 | OL52: 30 | OM52: 30 | ON52: 30 | OO52: 30 | OP52: 30 | OQ52: 30 | OR52: 30 | OS52: 30 | OT52: 30 | OU52: 30 | OV52: 30 | OW52: 30 | OX52: 30 | OY52: 30 | OZ52: 30 | PA52: 30 | PB52: 30 | PC52: 30 | PD52: 30 | PE52: 30 | PF52: 30 | PG52: 30 | PH52: 30 | PI52: 30 | PJ52: 30 | PK52: 30 | PL52: 30 | PM52: 30 | PN52: 30 | PO52: 30 | PP52: 30 | PQ52: 30 | PR52: 30 | PS52: 30 | PT52: 30 | PU52: 30 | PV52: 30 | PW52: 30 | PX52: 30 | PY52: 30 | PZ52: 30 | QA52: 30 | QB52: 30 | QC52: 30 | QD52: 30 | QE52: 30 | QF52: 30 | QG52: 30 | QH52: 30 | QI52: 30 | QJ52: 30 | QK52: 30 | QL52: 30 | QM52: 30 | QN52: 30 | QO52: 30 | QP52: 30 | QQ52: 30 | QR52: 30 | QS52: =ROUNDUP(QS51/$G$52,0) -> 30 | QT52: 30 | QU52: 30 | QV52: 30 | QW52: 30 | QX52: 30 | QY52: 30 | QZ52: 30 | RA52: 30 | RB52: 30 | RC52: 30 | RD52: 30 | RE52: 30 | RF52: 30 | RG52: 30 | RH52: 30 | RI52: 30 | RJ52: 30 | RK52: 30 | RL52: 30 | RM52: 30 | RN52: 30 | RO52: 30 | RP52: 30 | RQ52: 30 | RR52: 30 | RS52: 30 | RT52: 30 | RU52: 30 | RV52: 30 | RW52: 30 | RX52: 30 | RY52: 30 | RZ52: 30 | SA52: 30 | SB52: 30 | SC52: 30 | SD52: 30 | SE52: 30 | SF52: 30 | SG52: 30 | SH52: 30 | SI52: 30 | SJ52: 30 | SK52: 30 | SL52: 30 | SM52: 30 | SN52: 30 | SO52: 30 | SP52: 30 | SQ52: 30
C54: Turbine Maintenance
D55: Period of Major Turbine Maintenance | F55: Frequency Post COD | G55: =InputC!$G$87 -> 5 | J55: Euro | L55: =(MOD(L52,$G$55)=0)*L9*L27 -> 0 | M55: =(MOD(M52,$G$55)=0)*M9*M27 -> 0 | N55: 0 | O55: 0 | P55: 0 | Q55: 0 | R55: 1 | S55: 0 | T55: 0 | U55: 0 | V55: 0 | W55: 1 | X55: 0 | Y55: 0 | Z55: 0 | AA55: 0 | AB55: 1 | AC55: 0 | AD55: 0 | AE55: 0 | AF55: 0 | AG55: 1 | AH55: 0 | AI55: 0 | AJ55: 0 | AK55: 0 | AL55: 1 | AM55: 0 | AN55: 0 | AO55: 0 | AP55: 0 | AQ55: 1 | AR55: 0 | AS55: 0 | AT55: 0 | AU55: 0 | AV55: 0 | AW55: 0 | AX55: 0 | AY55: 0 | AZ55: 0 | BA55: 0 | BB55: 0 | BC55: 0 | BD55: 0 | BE55: 0 | BF55: 0 | BG55: 0 | BH55: 0 | BI55: 0 | BJ55: 0 | BK55: 0 | BL55: 0 | BM55: 0 | BN55: 0 | BO55: 0 | BP55: 0 | BQ55: 0 | BR55: 0 | BS55: 0 | BT55: 0 | BU55: 0 | BV55: 0 | BW55: 0 | BX55: 0 | BY55: =(MOD(BY52,$G$55)=0)*BY9*BY27 -> 0 | BZ55: 0 | CA55: 0 | CB55: 0 | CC55: 0 | CD55: 0 | CE55: 0 | CF55: 0 | CG55: 0 | CH55: 0 | CI55: 0 | CJ55: 0 | CK55: 0 | CL55: 0 | CM55: 0 | CN55: 0 | CO55: 0 | CP55: 0 | CQ55: 0 | CR55: 0 | CS55: 0 | CT55: 0 | CU55: 0 | CV55: 0 | CW55: 0 | CX55: 0 | CY55: 0 | CZ55: 0 | DA55: 0 | DB55: 0 | DC55: 0 | DD55: 0 | DE55: 0 | DF55: 0 | DG55: 0 | DH55: 0 | DI55: 0 | DJ55: 0 | DK55: 0 | DL55: 0 | DM55: 0 | DN55: 0 | DO55: 0 | DP55: 0 | DQ55: 0 | DR55: 0 | DS55: 0 | DT55: 0 | DU55: 0 | DV55: 0 | DW55: 0 | DX55: 0 | DY55: 0 | DZ55: 0 | EA55: 0 | EB55: 0 | EC55: 0 | ED55: 0 | EE55: 0 | EF55: 0 | EG55: 0 | EH55: 0 | EI55: 0 | EJ55: 0 | EK55: =(MOD(EK52,$G$55)=0)*EK9*EK27 -> 0 | EL55: 0 | EM55: 0 | EN55: 0 | EO55: 0 | EP55: 0 | EQ55: 0 | ER55: 0 | ES55: 0 | ET55: 0 | EU55: 0 | EV55: 0 | EW55: 0 | EX55: 0 | EY55: 0 | EZ55: 0 | FA55: 0 | FB55: 0 | FC55: 0 | FD55: 0 | FE55: 0 | FF55: 0 | FG55: 0 | FH55: 0 | FI55: 0 | FJ55: 0 | FK55: 0 | FL55: 0 | FM55: 0 | FN55: 0 | FO55: 0 | FP55: 0 | FQ55: 0 | FR55: 0 | FS55: 0 | FT55: 0 | FU55: 0 | FV55: 0 | FW55: 0 | FX55: 0 | FY55: 0 | FZ55: 0 | GA55: 0 | GB55: 0 | GC55: 0 | GD55: 0 | GE55: 0 | GF55: 0 | GG55: 0 | GH55: 0 | GI55: 0 | GJ55: 0 | GK55: 0 | GL55: 0 | GM55: 0 | GN55: 0 | GO55: 0 | GP55: 0 | GQ55: 0 | GR55: 0 | GS55: 0 | GT55: 0 | GU55: 0 | GV55: 0 | GW55: =(MOD(GW52,$G$55)=0)*GW9*GW27 -> 0 | GX55: 0 | GY55: 0 | GZ55: 0 | HA55: 0 | HB55: 0 | HC55: 0 | HD55: 0 | HE55: 0 | HF55: 0 | HG55: 0 | HH55: 0 | HI55: 0 | HJ55: 0 | HK55: 0 | HL55: 0 | HM55: 0 | HN55: 0 | HO55: 0 | HP55: 0 | HQ55: 0 | HR55: 0 | HS55: 0 | HT55: 0 | HU55: 0 | HV55: 0 | HW55: 0 | HX55: 0 | HY55: 0 | HZ55: 0 | IA55: 0 | IB55: 0 | IC55: 0 | ID55: 0 | IE55: 0 | IF55: 0 | IG55: 0 | IH55: 0 | II55: 0 | IJ55: 0 | IK55: 0 | IL55: 0 | IM55: 0 | IN55: 0 | IO55: 0 | IP55: 0 | IQ55: 0 | IR55: 0 | IS55: 0 | IT55: 0 | IU55: 0 | IV55: 0 | IW55: 0 | IX55: 0 | IY55: 0 | IZ55: 0 | JA55: 0 | JB55: 0 | JC55: 0 | JD55: 0 | JE55: 0 | JF55: 0 | JG55: 0 | JH55: 0 | JI55: =(MOD(JI52,$G$55)=0)*JI9*JI27 -> 0 | JJ55: 0 | JK55: 0 | JL55: 0 | JM55: 0 | JN55: 0 | JO55: 0 | JP55: 0 | JQ55: 0 | JR55: 0 | JS55: 0 | JT55: 0 | JU55: 0 | JV55: 0 | JW55: 0 | JX55: 0 | JY55: 0 | JZ55: 0 | KA55: 0 | KB55: 0 | KC55: 0 | KD55: 0 | KE55: 0 | KF55: 0 | KG55: 0 | KH55: 0 | KI55: 0 | KJ55: 0 | KK55: 0 | KL55: 0 | KM55: 0 | KN55: 0 | KO55: 0 | KP55: 0 | KQ55: 0 | KR55: 0 | KS55: 0 | KT55: 0 | KU55: 0 | KV55: 0 | KW55: 0 | KX55: 0 | KY55: 0 | KZ55: 0 | LA55: 0 | LB55: 0 | LC55: 0 | LD55: 0 | LE55: 0 | LF55: 0 | LG55: 0 | LH55: 0 | LI55: 0 | LJ55: 0 | LK55: 0 | LL55: 0 | LM55: 0 | LN55: 0 | LO55: 0 | LP55: 0 | LQ55: 0 | LR55: 0 | LS55: 0 | LT55: 0 | LU55: =(MOD(LU52,$G$55)=0)*LU9*LU27 -> 0 | LV55: 0 | LW55: 0 | LX55: 0 | LY55: 0 | LZ55: 0 | MA55: 0 | MB55: 0 | MC55: 0 | MD55: 0 | ME55: 0 | MF55: 0 | MG55: 0 | MH55: 0 | MI55: 0 | MJ55: 0 | MK55: 0 | ML55: 0 | MM55: 0 | MN55: 0 | MO55: 0 | MP55: 0 | MQ55: 0 | MR55: 0 | MS55: 0 | MT55: 0 | MU55: 0 | MV55: 0 | MW55: 0 | MX55: 0 | MY55: 0 | MZ55: 0 | NA55: 0 | NB55: 0 | NC55: 0 | ND55: 0 | NE55: 0 | NF55: 0 | NG55: 0 | NH55: 0 | NI55: 0 | NJ55: 0 | NK55: 0 | NL55: 0 | NM55: 0 | NN55: 0 | NO55: 0 | NP55: 0 | NQ55: 0 | NR55: 0 | NS55: 0 | NT55: 0 | NU55: 0 | NV55: 0 | NW55: 0 | NX55: 0 | NY55: 0 | NZ55: 0 | OA55: 0 | OB55: 0 | OC55: 0 | OD55: 0 | OE55: 0 | OF55: 0 | OG55: =(MOD(OG52,$G$55)=0)*OG9*OG27 -> 0 | OH55: 0 | OI55: 0 | OJ55: 0 | OK55: 0 | OL55: 0 | OM55: 0 | ON55: 0 | OO55: 0 | OP55: 0 | OQ55: 0 | OR55: 0 | OS55: 0 | OT55: 0 | OU55: 0 | OV55: 0 | OW55: 0 | OX55: 0 | OY55: 0 | OZ55: 0 | PA55: 0 | PB55: 0 | PC55: 0 | PD55: 0 | PE55: 0 | PF55: 0 | PG55: 0 | PH55: 0 | PI55: 0 | PJ55: 0 | PK55: 0 | PL55: 0 | PM55: 0 | PN55: 0 | PO55: 0 | PP55: 0 | PQ55: 0 | PR55: 0 | PS55: 0 | PT55: 0 | PU55: 0 | PV55: 0 | PW55: 0 | PX55: 0 | PY55: 0 | PZ55: 0 | QA55: 0 | QB55: 0 | QC55: 0 | QD55: 0 | QE55: 0 | QF55: 0 | QG55: 0 | QH55: 0 | QI55: 0 | QJ55: 0 | QK55: 0 | QL55: 0 | QM55: 0 | QN55: 0 | QO55: 0 | QP55: 0 | QQ55: 0 | QR55: 0 | QS55: =(MOD(QS52,$G$55)=0)*QS9*QS27 -> 0 | QT55: 0 | QU55: 0 | QV55: 0 | QW55: 0 | QX55: 0 | QY55: 0 | QZ55: 0 | RA55: 0 | RB55: 0 | RC55: 0 | RD55: 0 | RE55: 0 | RF55: 0 | RG55: 0 | RH55: 0 | RI55: 0 | RJ55: 0 | RK55: 0 | RL55: 0 | RM55: 0 | RN55: 0 | RO55: 0 | RP55: 0 | RQ55: 0 | RR55: 0 | RS55: 0 | RT55: 0 | RU55: 0 | RV55: 0 | RW55: 0 | RX55: 0 | RY55: 0 | RZ55: 0 | SA55: 0 | SB55: 0 | SC55: 0 | SD55: 0 | SE55: 0 | SF55: 0 | SG55: 0 | SH55: 0 | SI55: 0 | SJ55: 0 | SK55: 0 | SL55: 0 | SM55: 0 | SN55: 0 | SO55: 0 | SP55: 0 | SQ55: 0
D56: Nominal Major Maintenance Including Inflation | G56: =InputC!G81 -> 4000000 | J56: Euro | L56: =$G$56*L35*L9 -> 0 | M56: =$G$56*M35*M9 -> 0 | N56: 4274004 | O56: 4359484.08 | P56: 4446673.762 | Q56: 4535607.237 | R56: 4626319.382 | S56: 4718845.769 | T56: 4813222.685 | U56: 4909487.138 | V56: 5007676.881 | W56: 5107830.419 | X56: 5209987.027 | Y56: 5314186.768 | Z56: 5420470.503 | AA56: 5528879.913 | AB56: 5639457.511 | AC56: 5752246.661 | AD56: 5867291.595 | AE56: 5984637.427 | AF56: 6104330.175 | AG56: 6226416.779 | AH56: 6350945.114 | AI56: 6477964.016 | AJ56: 6607523.297 | AK56: 6739673.763 | AL56: 6874467.238 | AM56: 7011956.583 | AN56: 7152195.714 | AO56: 7295239.629 | AP56: 7441144.421 | AQ56: 7589967.31 | AR56: 0 | AS56: 0 | AT56: 0 | AU56: 0 | AV56: 0 | AW56: 0 | AX56: 0 | AY56: 0 | AZ56: 0 | BA56: 0 | BB56: 0 | BC56: 0 | BD56: 0 | BE56: 0 | BF56: 0 | BG56: 0 | BH56: 0 | BI56: 0 | BJ56: 0 | BK56: 0 | BL56: 0 | BM56: 0 | BN56: 0 | BO56: 0 | BP56: 0 | BQ56: 0 | BR56: 0 | BS56: 0 | BT56: 0 | BU56: 0 | BV56: 0 | BW56: 0 | BX56: 0 | BY56: =$G$56*BY35*BY9 -> 0 | BZ56: 0 | CA56: 0 | CB56: 0 | CC56: 0 | CD56: 0 | CE56: 0 | CF56: 0 | CG56: 0 | CH56: 0 | CI56: 0 | CJ56: 0 | CK56: 0 | CL56: 0 | CM56: 0 | CN56: 0 | CO56: 0 | CP56: 0 | CQ56: 0 | CR56: 0 | CS56: 0 | CT56: 0 | CU56: 0 | CV56: 0 | CW56: 0 | CX56: 0 | CY56: 0 | CZ56: 0 | DA56: 0 | DB56: 0 | DC56: 0 | DD56: 0 | DE56: 0 | DF56: 0 | DG56: 0 | DH56: 0 | DI56: 0 | DJ56: 0 | DK56: 0 | DL56: 0 | DM56: 0 | DN56: 0 | DO56: 0 | DP56: 0 | DQ56: 0 | DR56: 0 | DS56: 0 | DT56: 0 | DU56: 0 | DV56: 0 | DW56: 0 | DX56: 0 | DY56: 0 | DZ56: 0 | EA56: 0 | EB56: 0 | EC56: 0 | ED56: 0 | EE56: 0 | EF56: 0 | EG56: 0 | EH56: 0 | EI56: 0 | EJ56: 0 | EK56: =$G$56*EK35*EK9 -> 0 | EL56: 0 | EM56: 0 | EN56: 0 | EO56: 0 | EP56: 0 | EQ56: 0 | ER56: 0 | ES56: 0 | ET56: 0 | EU56: 0 | EV56: 0 | EW56: 0 | EX56: 0 | EY56: 0 | EZ56: 0 | FA56: 0 | FB56: 0 | FC56: 0 | FD56: 0 | FE56: 0 | FF56: 0 | FG56: 0 | FH56: 0 | FI56: 0 | FJ56: 0 | FK56: 0 | FL56: 0 | FM56: 0 | FN56: 0 | FO56: 0 | FP56: 0 | FQ56: 0 | FR56: 0 | FS56: 0 | FT56: 0 | FU56: 0 | FV56: 0 | FW56: 0 | FX56: 0 | FY56: 0 | FZ56: 0 | GA56: 0 | GB56: 0 | GC56: 0 | GD56: 0 | GE56: 0 | GF56: 0 | GG56: 0 | GH56: 0 | GI56: 0 | GJ56: 0 | GK56: 0 | GL56: 0 | GM56: 0 | GN56: 0 | GO56: 0 | GP56: 0 | GQ56: 0 | GR56: 0 | GS56: 0 | GT56: 0 | GU56: 0 | GV56: 0 | GW56: =$G$56*GW35*GW9 -> 0 | GX56: 0 | GY56: 0 | GZ56: 0 | HA56: 0 | HB56: 0 | HC56: 0 | HD56: 0 | HE56: 0 | HF56: 0 | HG56: 0 | HH56: 0 | HI56: 0 | HJ56: 0 | HK56: 0 | HL56: 0 | HM56: 0 | HN56: 0 | HO56: 0 | HP56: 0 | HQ56: 0 | HR56: 0 | HS56: 0 | HT56: 0 | HU56: 0 | HV56: 0 | HW56: 0 | HX56: 0 | HY56: 0 | HZ56: 0 | IA56: 0 | IB56: 0 | IC56: 0 | ID56: 0 | IE56: 0 | IF56: 0 | IG56: 0 | IH56: 0 | II56: 0 | IJ56: 0 | IK56: 0 | IL56: 0 | IM56: 0 | IN56: 0 | IO56: 0 | IP56: 0 | IQ56: 0 | IR56: 0 | IS56: 0 | IT56: 0 | IU56: 0 | IV56: 0 | IW56: 0 | IX56: 0 | IY56: 0 | IZ56: 0 | JA56: 0 | JB56: 0 | JC56: 0 | JD56: 0 | JE56: 0 | JF56: 0 | JG56: 0 | JH56: 0 | JI56: =$G$56*JI35*JI9 -> 0 | JJ56: 0 | JK56: 0 | JL56: 0 | JM56: 0 | JN56: 0 | JO56: 0 | JP56: 0 | JQ56: 0 | JR56: 0 | JS56: 0 | JT56: 0 | JU56: 0 | JV56: 0 | JW56: 0 | JX56: 0 | JY56: 0 | JZ56: 0 | KA56: 0 | KB56: 0 | KC56: 0 | KD56: 0 | KE56: 0 | KF56: 0 | KG56: 0 | KH56: 0 | KI56: 0 | KJ56: 0 | KK56: 0 | KL56: 0 | KM56: 0 | KN56: 0 | KO56: 0 | KP56: 0 | KQ56: 0 | KR56: 0 | KS56: 0 | KT56: 0 | KU56: 0 | KV56: 0 | KW56: 0 | KX56: 0 | KY56: 0 | KZ56: 0 | LA56: 0 | LB56: 0 | LC56: 0 | LD56: 0 | LE56: 0 | LF56: 0 | LG56: 0 | LH56: 0 | LI56: 0 | LJ56: 0 | LK56: 0 | LL56: 0 | LM56: 0 | LN56: 0 | LO56: 0 | LP56: 0 | LQ56: 0 | LR56: 0 | LS56: 0 | LT56: 0 | LU56: =$G$56*LU35*LU9 -> 0 | LV56: 0 | LW56: 0 | LX56: 0 | LY56: 0 | LZ56: 0 | MA56: 0 | MB56: 0 | MC56: 0 | MD56: 0 | ME56: 0 | MF56: 0 | MG56: 0 | MH56: 0 | MI56: 0 | MJ56: 0 | MK56: 0 | ML56: 0 | MM56: 0 | MN56: 0 | MO56: 0 | MP56: 0 | MQ56: 0 | MR56: 0 | MS56: 0 | MT56: 0 | MU56: 0 | MV56: 0 | MW56: 0 | MX56: 0 | MY56: 0 | MZ56: 0 | NA56: 0 | NB56: 0 | NC56: 0 | ND56: 0 | NE56: 0 | NF56: 0 | NG56: 0 | NH56: 0 | NI56: 0 | NJ56: 0 | NK56: 0 | NL56: 0 | NM56: 0 | NN56: 0 | NO56: 0 | NP56: 0 | NQ56: 0 | NR56: 0 | NS56: 0 | NT56: 0 | NU56: 0 | NV56: 0 | NW56: 0 | NX56: 0 | NY56: 0 | NZ56: 0 | OA56: 0 | OB56: 0 | OC56: 0 | OD56: 0 | OE56: 0 | OF56: 0 | OG56: =$G$56*OG35*OG9 -> 0 | OH56: 0 | OI56: 0 | OJ56: 0 | OK56: 0 | OL56: 0 | OM56: 0 | ON56: 0 | OO56: 0 | OP56: 0 | OQ56: 0 | OR56: 0 | OS56: 0 | OT56: 0 | OU56: 0 | OV56: 0 | OW56: 0 | OX56: 0 | OY56: 0 | OZ56: 0 | PA56: 0 | PB56: 0 | PC56: 0 | PD56: 0 | PE56: 0 | PF56: 0 | PG56: 0 | PH56: 0 | PI56: 0 | PJ56: 0 | PK56: 0 | PL56: 0 | PM56: 0 | PN56: 0 | PO56: 0 | PP56: 0 | PQ56: 0 | PR56: 0 | PS56: 0 | PT56: 0 | PU56: 0 | PV56: 0 | PW56: 0 | PX56: 0 | PY56: 0 | PZ56: 0 | QA56: 0 | QB56: 0 | QC56: 0 | QD56: 0 | QE56: 0 | QF56: 0 | QG56: 0 | QH56: 0 | QI56: 0 | QJ56: 0 | QK56: 0 | QL56: 0 | QM56: 0 | QN56: 0 | QO56: 0 | QP56: 0 | QQ56: 0 | QR56: 0 | QS56: =$G$56*QS35*QS9 -> 0 | QT56: 0 | QU56: 0 | QV56: 0 | QW56: 0 | QX56: 0 | QY56: 0 | QZ56: 0 | RA56: 0 | RB56: 0 | RC56: 0 | RD56: 0 | RE56: 0 | RF56: 0 | RG56: 0 | RH56: 0 | RI56: 0 | RJ56: 0 | RK56: 0 | RL56: 0 | RM56: 0 | RN56: 0 | RO56: 0 | RP56: 0 | RQ56: 0 | RR56: 0 | RS56: 0 | RT56: 0 | RU56: 0 | RV56: 0 | RW56: 0 | RX56: 0 | RY56: 0 | RZ56: 0 | SA56: 0 | SB56: 0 | SC56: 0 | SD56: 0 | SE56: 0 | SF56: 0 | SG56: 0 | SH56: 0 | SI56: 0 | SJ56: 0 | SK56: 0 | SL56: 0 | SM56: 0 | SN56: 0 | SO56: 0 | SP56: 0 | SQ56: 0
D57: Maintenance Cost Incurred | I57: =SUM(L57:XFD57) -> 36064458.64 | J57: Euro | L57: =L56*L55 -> 0 | M57: =M56*M55 -> 0 | N57: 0 | O57: 0 | P57: 0 | Q57: 0 | R57: 4626319.382 | S57: 0 | T57: 0 | U57: 0 | V57: 0 | W57: 5107830.419 | X57: 0 | Y57: 0 | Z57: 0 | AA57: 0 | AB57: 5639457.511 | AC57: 0 | AD57: 0 | AE57: 0 | AF57: 0 | AG57: 6226416.779 | AH57: 0 | AI57: 0 | AJ57: 0 | AK57: 0 | AL57: 6874467.238 | AM57: 0 | AN57: 0 | AO57: 0 | AP57: 0 | AQ57: 7589967.31 | AR57: 0 | AS57: 0 | AT57: 0 | AU57: 0 | AV57: 0 | AW57: 0 | AX57: 0 | AY57: 0 | AZ57: 0 | BA57: 0 | BB57: 0 | BC57: 0 | BD57: 0 | BE57: 0 | BF57: 0 | BG57: 0 | BH57: 0 | BI57: 0 | BJ57: 0 | BK57: 0 | BL57: 0 | BM57: 0 | BN57: 0 | BO57: 0 | BP57: 0 | BQ57: 0 | BR57: 0 | BS57: 0 | BT57: 0 | BU57: 0 | BV57: 0 | BW57: 0 | BX57: 0 | BY57: =BY56*BY55 -> 0 | BZ57: 0 | CA57: 0 | CB57: 0 | CC57: 0 | CD57: 0 | CE57: 0 | CF57: 0 | CG57: 0 | CH57: 0 | CI57: 0 | CJ57: 0 | CK57: 0 | CL57: 0 | CM57: 0 | CN57: 0 | CO57: 0 | CP57: 0 | CQ57: 0 | CR57: 0 | CS57: 0 | CT57: 0 | CU57: 0 | CV57: 0 | CW57: 0 | CX57: 0 | CY57: 0 | CZ57: 0 | DA57: 0 | DB57: 0 | DC57: 0 | DD57: 0 | DE57: 0 | DF57: 0 | DG57: 0 | DH57: 0 | DI57: 0 | DJ57: 0 | DK57: 0 | DL57: 0 | DM57: 0 | DN57: 0 | DO57: 0 | DP57: 0 | DQ57: 0 | DR57: 0 | DS57: 0 | DT57: 0 | DU57: 0 | DV57: 0 | DW57: 0 | DX57: 0 | DY57: 0 | DZ57: 0 | EA57: 0 | EB57: 0 | EC57: 0 | ED57: 0 | EE57: 0 | EF57: 0 | EG57: 0 | EH57: 0 | EI57: 0 | EJ57: 0 | EK57: =EK56*EK55 -> 0 | EL57: 0 | EM57: 0 | EN57: 0 | EO57: 0 | EP57: 0 | EQ57: 0 | ER57: 0 | ES57: 0 | ET57: 0 | EU57: 0 | EV57: 0 | EW57: 0 | EX57: 0 | EY57: 0 | EZ57: 0 | FA57: 0 | FB57: 0 | FC57: 0 | FD57: 0 | FE57: 0 | FF57: 0 | FG57: 0 | FH57: 0 | FI57: 0 | FJ57: 0 | FK57: 0 | FL57: 0 | FM57: 0 | FN57: 0 | FO57: 0 | FP57: 0 | FQ57: 0 | FR57: 0 | FS57: 0 | FT57: 0 | FU57: 0 | FV57: 0 | FW57: 0 | FX57: 0 | FY57: 0 | FZ57: 0 | GA57: 0 | GB57: 0 | GC57: 0 | GD57: 0 | GE57: 0 | GF57: 0 | GG57: 0 | GH57: 0 | GI57: 0 | GJ57: 0 | GK57: 0 | GL57: 0 | GM57: 0 | GN57: 0 | GO57: 0 | GP57: 0 | GQ57: 0 | GR57: 0 | GS57: 0 | GT57: 0 | GU57: 0 | GV57: 0 | GW57: =GW56*GW55 -> 0 | GX57: 0 | GY57: 0 | GZ57: 0 | HA57: 0 | HB57: 0 | HC57: 0 | HD57: 0 | HE57: 0 | HF57: 0 | HG57: 0 | HH57: 0 | HI57: 0 | HJ57: 0 | HK57: 0 | HL57: 0 | HM57: 0 | HN57: 0 | HO57: 0 | HP57: 0 | HQ57: 0 | HR57: 0 | HS57: 0 | HT57: 0 | HU57: 0 | HV57: 0 | HW57: 0 | HX57: 0 | HY57: 0 | HZ57: 0 | IA57: 0 | IB57: 0 | IC57: 0 | ID57: 0 | IE57: 0 | IF57: 0 | IG57: 0 | IH57: 0 | II57: 0 | IJ57: 0 | IK57: 0 | IL57: 0 | IM57: 0 | IN57: 0 | IO57: 0 | IP57: 0 | IQ57: 0 | IR57: 0 | IS57: 0 | IT57: 0 | IU57: 0 | IV57: 0 | IW57: 0 | IX57: 0 | IY57: 0 | IZ57: 0 | JA57: 0 | JB57: 0 | JC57: 0 | JD57: 0 | JE57: 0 | JF57: 0 | JG57: 0 | JH57: 0 | JI57: =JI56*JI55 -> 0 | JJ57: 0 | JK57: 0 | JL57: 0 | JM57: 0 | JN57: 0 | JO57: 0 | JP57: 0 | JQ57: 0 | JR57: 0 | JS57: 0 | JT57: 0 | JU57: 0 | JV57: 0 | JW57: 0 | JX57: 0 | JY57: 0 | JZ57: 0 | KA57: 0 | KB57: 0 | KC57: 0 | KD57: 0 | KE57: 0 | KF57: 0 | KG57: 0 | KH57: 0 | KI57: 0 | KJ57: 0 | KK57: 0 | KL57: 0 | KM57: 0 | KN57: 0 | KO57: 0 | KP57: 0 | KQ57: 0 | KR57: 0 | KS57: 0 | KT57: 0 | KU57: 0 | KV57: 0 | KW57: 0 | KX57: 0 | KY57: 0 | KZ57: 0 | LA57: 0 | LB57: 0 | LC57: 0 | LD57: 0 | LE57: 0 | LF57: 0 | LG57: 0 | LH57: 0 | LI57: 0 | LJ57: 0 | LK57: 0 | LL57: 0 | LM57: 0 | LN57: 0 | LO57: 0 | LP57: 0 | LQ57: 0 | LR57: 0 | LS57: 0 | LT57: 0 | LU57: =LU56*LU55 -> 0 | LV57: 0 | LW57: 0 | LX57: 0 | LY57: 0 | LZ57: 0 | MA57: 0 | MB57: 0 | MC57: 0 | MD57: 0 | ME57: 0 | MF57: 0 | MG57: 0 | MH57: 0 | MI57: 0 | MJ57: 0 | MK57: 0 | ML57: 0 | MM57: 0 | MN57: 0 | MO57: 0 | MP57: 0 | MQ57: 0 | MR57: 0 | MS57: 0 | MT57: 0 | MU57: 0 | MV57: 0 | MW57: 0 | MX57: 0 | MY57: 0 | MZ57: 0 | NA57: 0 | NB57: 0 | NC57: 0 | ND57: 0 | NE57: 0 | NF57: 0 | NG57: 0 | NH57: 0 | NI57: 0 | NJ57: 0 | NK57: 0 | NL57: 0 | NM57: 0 | NN57: 0 | NO57: 0 | NP57: 0 | NQ57: 0 | NR57: 0 | NS57: 0 | NT57: 0 | NU57: 0 | NV57: 0 | NW57: 0 | NX57: 0 | NY57: 0 | NZ57: 0 | OA57: 0 | OB57: 0 | OC57: 0 | OD57: 0 | OE57: 0 | OF57: 0 | OG57: =OG56*OG55 -> 0 | OH57: 0 | OI57: 0 | OJ57: 0 | OK57: 0 | OL57: 0 | OM57: 0 | ON57: 0 | OO57: 0 | OP57: 0 | OQ57: 0 | OR57: 0 | OS57: 0 | OT57: 0 | OU57: 0 | OV57: 0 | OW57: 0 | OX57: 0 | OY57: 0 | OZ57: 0 | PA57: 0 | PB57: 0 | PC57: 0 | PD57: 0 | PE57: 0 | PF57: 0 | PG57: 0 | PH57: 0 | PI57: 0 | PJ57: 0 | PK57: 0 | PL57: 0 | PM57: 0 | PN57: 0 | PO57: 0 | PP57: 0 | PQ57: 0 | PR57: 0 | PS57: 0 | PT57: 0 | PU57: 0 | PV57: 0 | PW57: 0 | PX57: 0 | PY57: 0 | PZ57: 0 | QA57: 0 | QB57: 0 | QC57: 0 | QD57: 0 | QE57: 0 | QF57: 0 | QG57: 0 | QH57: 0 | QI57: 0 | QJ57: 0 | QK57: 0 | QL57: 0 | QM57: 0 | QN57: 0 | QO57: 0 | QP57: 0 | QQ57: 0 | QR57: 0 | QS57: =QS56*QS55 -> 0 | QT57: 0 | QU57: 0 | QV57: 0 | QW57: 0 | QX57: 0 | QY57: 0 | QZ57: 0 | RA57: 0 | RB57: 0 | RC57: 0 | RD57: 0 | RE57: 0 | RF57: 0 | RG57: 0 | RH57: 0 | RI57: 0 | RJ57: 0 | RK57: 0 | RL57: 0 | RM57: 0 | RN57: 0 | RO57: 0 | RP57: 0 | RQ57: 0 | RR57: 0 | RS57: 0 | RT57: 0 | RU57: 0 | RV57: 0 | RW57: 0 | RX57: 0 | RY57: 0 | RZ57: 0 | SA57: 0 | SB57: 0 | SC57: 0 | SD57: 0 | SE57: 0 | SF57: 0 | SG57: 0 | SH57: 0 | SI57: 0 | SJ57: 0 | SK57: 0 | SL57: 0 | SM57: 0 | SN57: 0 | SO57: 0 | SP57: 0 | SQ57: 0
D59: Maintenance Cost x Debt Repayment Flag | J59: Flag | L59: =L57 -> 0 | M59: =M57 -> 0 | N59: 0 | O59: 0 | P59: 0 | Q59: 0 | R59: 4626319.382 | S59: 0 | T59: 0 | U59: 0 | V59: 0 | W59: 5107830.419 | X59: 0 | Y59: 0 | Z59: 0 | AA59: 0 | AB59: 5639457.511 | AC59: 0 | AD59: 0 | AE59: 0 | AF59: 0 | AG59: 6226416.779 | AH59: 0 | AI59: 0 | AJ59: 0 | AK59: 0 | AL59: 6874467.238 | AM59: 0 | AN59: 0 | AO59: 0 | AP59: 0 | AQ59: 7589967.31 | AR59: 0 | AS59: 0 | AT59: 0 | AU59: 0 | AV59: 0 | AW59: 0 | AX59: 0 | AY59: 0 | AZ59: 0 | BA59: 0 | BB59: 0 | BC59: 0 | BD59: 0 | BE59: 0 | BF59: 0 | BG59: 0 | BH59: 0 | BI59: 0 | BJ59: 0 | BK59: 0 | BL59: 0 | BM59: 0 | BN59: 0 | BO59: 0 | BP59: 0 | BQ59: 0 | BR59: 0 | BS59: 0 | BT59: 0 | BU59: 0 | BV59: 0 | BW59: 0 | BX59: 0 | BY59: =BY57 -> 0 | BZ59: 0 | CA59: 0 | CB59: 0 | CC59: 0 | CD59: 0 | CE59: 0 | CF59: 0 | CG59: 0 | CH59: 0 | CI59: 0 | CJ59: 0 | CK59: 0 | CL59: 0 | CM59: 0 | CN59: 0 | CO59: 0 | CP59: 0 | CQ59: 0 | CR59: 0 | CS59: 0 | CT59: 0 | CU59: 0 | CV59: 0 | CW59: 0 | CX59: 0 | CY59: 0 | CZ59: 0 | DA59: 0 | DB59: 0 | DC59: 0 | DD59: 0 | DE59: 0 | DF59: 0 | DG59: 0 | DH59: 0 | DI59: 0 | DJ59: 0 | DK59: 0 | DL59: 0 | DM59: 0 | DN59: 0 | DO59: 0 | DP59: 0 | DQ59: 0 | DR59: 0 | DS59: 0 | DT59: 0 | DU59: 0 | DV59: 0 | DW59: 0 | DX59: 0 | DY59: 0 | DZ59: 0 | EA59: 0 | EB59: 0 | EC59: 0 | ED59: 0 | EE59: 0 | EF59: 0 | EG59: 0 | EH59: 0 | EI59: 0 | EJ59: 0 | EK59: =EK57 -> 0 | EL59: 0 | EM59: 0 | EN59: 0 | EO59: 0 | EP59: 0 | EQ59: 0 | ER59: 0 | ES59: 0 | ET59: 0 | EU59: 0 | EV59: 0 | EW59: 0 | EX59: 0 | EY59: 0 | EZ59: 0 | FA59: 0 | FB59: 0 | FC59: 0 | FD59: 0 | FE59: 0 | FF59: 0 | FG59: 0 | FH59: 0 | FI59: 0 | FJ59: 0 | FK59: 0 | FL59: 0 | FM59: 0 | FN59: 0 | FO59: 0 | FP59: 0 | FQ59: 0 | FR59: 0 | FS59: 0 | FT59: 0 | FU59: 0 | FV59: 0 | FW59: 0 | FX59: 0 | FY59: 0 | FZ59: 0 | GA59: 0 | GB59: 0 | GC59: 0 | GD59: 0 | GE59: 0 | GF59: 0 | GG59: 0 | GH59: 0 | GI59: 0 | GJ59: 0 | GK59: 0 | GL59: 0 | GM59: 0 | GN59: 0 | GO59: 0 | GP59: 0 | GQ59: 0 | GR59: 0 | GS59: 0 | GT59: 0 | GU59: 0 | GV59: 0 | GW59: =GW57 -> 0 | GX59: 0 | GY59: 0 | GZ59: 0 | HA59: 0 | HB59: 0 | HC59: 0 | HD59: 0 | HE59: 0 | HF59: 0 | HG59: 0 | HH59: 0 | HI59: 0 | HJ59: 0 | HK59: 0 | HL59: 0 | HM59: 0 | HN59: 0 | HO59: 0 | HP59: 0 | HQ59: 0 | HR59: 0 | HS59: 0 | HT59: 0 | HU59: 0 | HV59: 0 | HW59: 0 | HX59: 0 | HY59: 0 | HZ59: 0 | IA59: 0 | IB59: 0 | IC59: 0 | ID59: 0 | IE59: 0 | IF59: 0 | IG59: 0 | IH59: 0 | II59: 0 | IJ59: 0 | IK59: 0 | IL59: 0 | IM59: 0 | IN59: 0 | IO59: 0 | IP59: 0 | IQ59: 0 | IR59: 0 | IS59: 0 | IT59: 0 | IU59: 0 | IV59: 0 | IW59: 0 | IX59: 0 | IY59: 0 | IZ59: 0 | JA59: 0 | JB59: 0 | JC59: 0 | JD59: 0 | JE59: 0 | JF59: 0 | JG59: 0 | JH59: 0 | JI59: =JI57 -> 0 | JJ59: 0 | JK59: 0 | JL59: 0 | JM59: 0 | JN59: 0 | JO59: 0 | JP59: 0 | JQ59: 0 | JR59: 0 | JS59: 0 | JT59: 0 | JU59: 0 | JV59: 0 | JW59: 0 | JX59: 0 | JY59: 0 | JZ59: 0 | KA59: 0 | KB59: 0 | KC59: 0 | KD59: 0 | KE59: 0 | KF59: 0 | KG59: 0 | KH59: 0 | KI59: 0 | KJ59: 0 | KK59: 0 | KL59: 0 | KM59: 0 | KN59: 0 | KO59: 0 | KP59: 0 | KQ59: 0 | KR59: 0 | KS59: 0 | KT59: 0 | KU59: 0 | KV59: 0 | KW59: 0 | KX59: 0 | KY59: 0 | KZ59: 0 | LA59: 0 | LB59: 0 | LC59: 0 | LD59: 0 | LE59: 0 | LF59: 0 | LG59: 0 | LH59: 0 | LI59: 0 | LJ59: 0 | LK59: 0 | LL59: 0 | LM59: 0 | LN59: 0 | LO59: 0 | LP59: 0 | LQ59: 0 | LR59: 0 | LS59: 0 | LT59: 0 | LU59: =LU57 -> 0 | LV59: 0 | LW59: 0 | LX59: 0 | LY59: 0 | LZ59: 0 | MA59: 0 | MB59: 0 | MC59: 0 | MD59: 0 | ME59: 0 | MF59: 0 | MG59: 0 | MH59: 0 | MI59: 0 | MJ59: 0 | MK59: 0 | ML59: 0 | MM59: 0 | MN59: 0 | MO59: 0 | MP59: 0 | MQ59: 0 | MR59: 0 | MS59: 0 | MT59: 0 | MU59: 0 | MV59: 0 | MW59: 0 | MX59: 0 | MY59: 0 | MZ59: 0 | NA59: 0 | NB59: 0 | NC59: 0 | ND59: 0 | NE59: 0 | NF59: 0 | NG59: 0 | NH59: 0 | NI59: 0 | NJ59: 0 | NK59: 0 | NL59: 0 | NM59: 0 | NN59: 0 | NO59: 0 | NP59: 0 | NQ59: 0 | NR59: 0 | NS59: 0 | NT59: 0 | NU59: 0 | NV59: 0 | NW59: 0 | NX59: 0 | NY59: 0 | NZ59: 0 | OA59: 0 | OB59: 0 | OC59: 0 | OD59: 0 | OE59: 0 | OF59: 0 | OG59: =OG57 -> 0 | OH59: 0 | OI59: 0 | OJ59: 0 | OK59: 0 | OL59: 0 | OM59: 0 | ON59: 0 | OO59: 0 | OP59: 0 | OQ59: 0 | OR59: 0 | OS59: 0 | OT59: 0 | OU59: 0 | OV59: 0 | OW59: 0 | OX59: 0 | OY59: 0 | OZ59: 0 | PA59: 0 | PB59: 0 | PC59: 0 | PD59: 0 | PE59: 0 | PF59: 0 | PG59: 0 | PH59: 0 | PI59: 0 | PJ59: 0 | PK59: 0 | PL59: 0 | PM59: 0 | PN59: 0 | PO59: 0 | PP59: 0 | PQ59: 0 | PR59: 0 | PS59: 0 | PT59: 0 | PU59: 0 | PV59: 0 | PW59: 0 | PX59: 0 | PY59: 0 | PZ59: 0 | QA59: 0 | QB59: 0 | QC59: 0 | QD59: 0 | QE59: 0 | QF59: 0 | QG59: 0 | QH59: 0 | QI59: 0 | QJ59: 0 | QK59: 0 | QL59: 0 | QM59: 0 | QN59: 0 | QO59: 0 | QP59: 0 | QQ59: 0 | QR59: 0 | QS59: =QS57 -> 0 | QT59: 0 | QU59: 0 | QV59: 0 | QW59: 0 | QX59: 0 | QY59: 0 | QZ59: 0 | RA59: 0 | RB59: 0 | RC59: 0 | RD59: 0 | RE59: 0 | RF59: 0 | RG59: 0 | RH59: 0 | RI59: 0 | RJ59: 0 | RK59: 0 | RL59: 0 | RM59: 0 | RN59: 0 | RO59: 0 | RP59: 0 | RQ59: 0 | RR59: 0 | RS59: 0 | RT59: 0 | RU59: 0 | RV59: 0 | RW59: 0 | RX59: 0 | RY59: 0 | RZ59: 0 | SA59: 0 | SB59: 0 | SC59: 0 | SD59: 0 | SE59: 0 | SF59: 0 | SG59: 0 | SH59: 0 | SI59: 0 | SJ59: 0 | SK59: 0 | SL59: 0 | SM59: 0 | SN59: 0 | SO59: 0 | SP59: 0 | SQ59: 0
D60: COD Period Flag | F60: Date | G60: =EDATE(G9,-G6) -> 2020-01-01 | I60: =SUM(L60:XFD60) -> 1 | J60: Flag | L60: =(L7=$G$60)*1 -> 0 | M60: 1 | N60: 0 | O60: 0 | P60: 0 | Q60: 0 | R60: 0 | S60: 0 | T60: 0 | U60: 0 | V60: 0 | W60: 0 | X60: 0 | Y60: 0 | Z60: 0 | AA60: 0 | AB60: 0 | AC60: 0 | AD60: 0 | AE60: 0 | AF60: 0 | AG60: 0 | AH60: 0 | AI60: 0 | AJ60: 0 | AK60: 0 | AL60: 0 | AM60: 0 | AN60: 0 | AO60: 0 | AP60: 0 | AQ60: 0 | AR60: 0 | AS60: 0 | AT60: 0 | AU60: 0 | AV60: 0 | AW60: 0 | AX60: 0 | AY60: 0 | AZ60: 0 | BA60: 0 | BB60: 0 | BC60: 0 | BD60: 0 | BE60: 0 | BF60: 0 | BG60: 0 | BH60: 0 | BI60: 0 | BJ60: 0 | BK60: 0 | BL60: 0 | BM60: 0 | BN60: 0 | BO60: 0 | BP60: 0 | BQ60: 0 | BR60: 0 | BS60: 0 | BT60: 0 | BU60: 0 | BV60: 0 | BW60: 0 | BX60: =(BX7=$G$60)*1 -> 0 | BY60: 0 | BZ60: 0 | CA60: 0 | CB60: 0 | CC60: 0 | CD60: 0 | CE60: 0 | CF60: 0 | CG60: 0 | CH60: 0 | CI60: 0 | CJ60: 0 | CK60: 0 | CL60: 0 | CM60: 0 | CN60: 0 | CO60: 0 | CP60: 0 | CQ60: 0 | CR60: 0 | CS60: 0 | CT60: 0 | CU60: 0 | CV60: 0 | CW60: 0 | CX60: 0 | CY60: 0 | CZ60: 0 | DA60: 0 | DB60: 0 | DC60: 0 | DD60: 0 | DE60: 0 | DF60: 0 | DG60: 0 | DH60: 0 | DI60: 0 | DJ60: 0 | DK60: 0 | DL60: 0 | DM60: 0 | DN60: 0 | DO60: 0 | DP60: 0 | DQ60: 0 | DR60: 0 | DS60: 0 | DT60: 0 | DU60: 0 | DV60: 0 | DW60: 0 | DX60: 0 | DY60: 0 | DZ60: 0 | EA60: 0 | EB60: 0 | EC60: 0 | ED60: 0 | EE60: 0 | EF60: 0 | EG60: 0 | EH60: 0 | EI60: 0 | EJ60: =(EJ7=$G$60)*1 -> 0 | EK60: 0 | EL60: 0 | EM60: 0 | EN60: 0 | EO60: 0 | EP60: 0 | EQ60: 0 | ER60: 0 | ES60: 0 | ET60: 0 | EU60: 0 | EV60: 0 | EW60: 0 | EX60: 0 | EY60: 0 | EZ60: 0 | FA60: 0 | FB60: 0 | FC60: 0 | FD60: 0 | FE60: 0 | FF60: 0 | FG60: 0 | FH60: 0 | FI60: 0 | FJ60: 0 | FK60: 0 | FL60: 0 | FM60: 0 | FN60: 0 | FO60: 0 | FP60: 0 | FQ60: 0 | FR60: 0 | FS60: 0 | FT60: 0 | FU60: 0 | FV60: 0 | FW60: 0 | FX60: 0 | FY60: 0 | FZ60: 0 | GA60: 0 | GB60: 0 | GC60: 0 | GD60: 0 | GE60: 0 | GF60: 0 | GG60: 0 | GH60: 0 | GI60: 0 | GJ60: 0 | GK60: 0 | GL60: 0 | GM60: 0 | GN60: 0 | GO60: 0 | GP60: 0 | GQ60: 0 | GR60: 0 | GS60: 0 | GT60: 0 | GU60: 0 | GV60: =(GV7=$G$60)*1 -> 0 | GW60: 0 | GX60: 0 | GY60: 0 | GZ60: 0 | HA60: 0 | HB60: 0 | HC60: 0 | HD60: 0 | HE60: 0 | HF60: 0 | HG60: 0 | HH60: 0 | HI60: 0 | HJ60: 0 | HK60: 0 | HL60: 0 | HM60: 0 | HN60: 0 | HO60: 0 | HP60: 0 | HQ60: 0 | HR60: 0 | HS60: 0 | HT60: 0 | HU60: 0 | HV60: 0 | HW60: 0 | HX60: 0 | HY60: 0 | HZ60: 0 | IA60: 0 | IB60: 0 | IC60: 0 | ID60: 0 | IE60: 0 | IF60: 0 | IG60: 0 | IH60: 0 | II60: 0 | IJ60: 0 | IK60: 0 | IL60: 0 | IM60: 0 | IN60: 0 | IO60: 0 | IP60: 0 | IQ60: 0 | IR60: 0 | IS60: 0 | IT60: 0 | IU60: 0 | IV60: 0 | IW60: 0 | IX60: 0 | IY60: 0 | IZ60: 0 | JA60: 0 | JB60: 0 | JC60: 0 | JD60: 0 | JE60: 0 | JF60: 0 | JG60: 0 | JH60: =(JH7=$G$60)*1 -> 0 | JI60: 0 | JJ60: 0 | JK60: 0 | JL60: 0 | JM60: 0 | JN60: 0 | JO60: 0 | JP60: 0 | JQ60: 0 | JR60: 0 | JS60: 0 | JT60: 0 | JU60: 0 | JV60: 0 | JW60: 0 | JX60: 0 | JY60: 0 | JZ60: 0 | KA60: 0 | KB60: 0 | KC60: 0 | KD60: 0 | KE60: 0 | KF60: 0 | KG60: 0 | KH60: 0 | KI60: 0 | KJ60: 0 | KK60: 0 | KL60: 0 | KM60: 0 | KN60: 0 | KO60: 0 | KP60: 0 | KQ60: 0 | KR60: 0 | KS60: 0 | KT60: 0 | KU60: 0 | KV60: 0 | KW60: 0 | KX60: 0 | KY60: 0 | KZ60: 0 | LA60: 0 | LB60: 0 | LC60: 0 | LD60: 0 | LE60: 0 | LF60: 0 | LG60: 0 | LH60: 0 | LI60: 0 | LJ60: 0 | LK60: 0 | LL60: 0 | LM60: 0 | LN60: 0 | LO60: 0 | LP60: 0 | LQ60: 0 | LR60: 0 | LS60: 0 | LT60: =(LT7=$G$60)*1 -> 0 | LU60: 0 | LV60: 0 | LW60: 0 | LX60: 0 | LY60: 0 | LZ60: 0 | MA60: 0 | MB60: 0 | MC60: 0 | MD60: 0 | ME60: 0 | MF60: 0 | MG60: 0 | MH60: 0 | MI60: 0 | MJ60: 0 | MK60: 0 | ML60: 0 | MM60: 0 | MN60: 0 | MO60: 0 | MP60: 0 | MQ60: 0 | MR60: 0 | MS60: 0 | MT60: 0 | MU60: 0 | MV60: 0 | MW60: 0 | MX60: 0 | MY60: 0 | MZ60: 0 | NA60: 0 | NB60: 0 | NC60: 0 | ND60: 0 | NE60: 0 | NF60: 0 | NG60: 0 | NH60: 0 | NI60: 0 | NJ60: 0 | NK60: 0 | NL60: 0 | NM60: 0 | NN60: 0 | NO60: 0 | NP60: 0 | NQ60: 0 | NR60: 0 | NS60: 0 | NT60: 0 | NU60: 0 | NV60: 0 | NW60: 0 | NX60: 0 | NY60: 0 | NZ60: 0 | OA60: 0 | OB60: 0 | OC60: 0 | OD60: 0 | OE60: 0 | OF60: =(OF7=$G$60)*1 -> 0 | OG60: 0 | OH60: 0 | OI60: 0 | OJ60: 0 | OK60: 0 | OL60: 0 | OM60: 0 | ON60: 0 | OO60: 0 | OP60: 0 | OQ60: 0 | OR60: 0 | OS60: 0 | OT60: 0 | OU60: 0 | OV60: 0 | OW60: 0 | OX60: 0 | OY60: 0 | OZ60: 0 | PA60: 0 | PB60: 0 | PC60: 0 | PD60: 0 | PE60: 0 | PF60: 0 | PG60: 0 | PH60: 0 | PI60: 0 | PJ60: 0 | PK60: 0 | PL60: 0 | PM60: 0 | PN60: 0 | PO60: 0 | PP60: 0 | PQ60: 0 | PR60: 0 | PS60: 0 | PT60: 0 | PU60: 0 | PV60: 0 | PW60: 0 | PX60: 0 | PY60: 0 | PZ60: 0 | QA60: 0 | QB60: 0 | QC60: 0 | QD60: 0 | QE60: 0 | QF60: 0 | QG60: 0 | QH60: 0 | QI60: 0 | QJ60: 0 | QK60: 0 | QL60: 0 | QM60: 0 | QN60: 0 | QO60: 0 | QP60: 0 | QQ60: 0 | QR60: =(QR7=$G$60)*1 -> 0 | QS60: 0 | QT60: 0 | QU60: 0 | QV60: 0 | QW60: 0 | QX60: 0 | QY60: 0 | QZ60: 0 | RA60: 0 | RB60: 0 | RC60: 0 | RD60: 0 | RE60: 0 | RF60: 0 | RG60: 0 | RH60: 0 | RI60: 0 | RJ60: 0 | RK60: 0 | RL60: 0 | RM60: 0 | RN60: 0 | RO60: 0 | RP60: 0 | RQ60: 0 | RR60: 0 | RS60: 0 | RT60: 0 | RU60: 0 | RV60: 0 | RW60: 0 | RX60: 0 | RY60: 0 | RZ60: 0 | SA60: 0 | SB60: 0 | SC60: 0 | SD60: 0 | SE60: 0 | SF60: 0 | SG60: 0 | SH60: 0 | SI60: 0 | SJ60: 0 | SK60: 0 | SL60: 0 | SM60: 0 | SN60: 0 | SO60: 0 | SP60: 0 | SQ60: 0
D61: Counter for using SUMIF | J61: Counter | L61: =K61+K60+K55 -> 0 | M61: 0 | N61: 1 | O61: 1 | P61: 1 | Q61: 1 | R61: 1 | S61: 2 | T61: 2 | U61: 2 | V61: 2 | W61: 2 | X61: 3 | Y61: 3 | Z61: 3 | AA61: 3 | AB61: 3 | AC61: 4 | AD61: 4 | AE61: 4 | AF61: 4 | AG61: 4 | AH61: 5 | AI61: 5 | AJ61: 5 | AK61: 5 | AL61: 5 | AM61: 6 | AN61: 6 | AO61: 6 | AP61: 6 | AQ61: 6 | AR61: 7 | AS61: 7 | AT61: 7 | AU61: 7 | AV61: 7 | AW61: 7 | AX61: 7 | AY61: 7 | AZ61: 7 | BA61: 7 | BB61: 7 | BC61: 7 | BD61: 7 | BE61: 7 | BF61: 7 | BG61: 7 | BH61: 7 | BI61: 7 | BJ61: 7 | BK61: 7 | BL61: 7 | BM61: 7 | BN61: 7 | BO61: 7 | BP61: 7 | BQ61: 7 | BR61: 7 | BS61: 7 | BT61: 7 | BU61: 7 | BV61: 7 | BW61: 7 | BX61: =BW61+BW60+BW55 -> 7 | BY61: 7 | BZ61: 7 | CA61: 7 | CB61: 7 | CC61: 7 | CD61: 7 | CE61: 7 | CF61: 7 | CG61: 7 | CH61: 7 | CI61: 7 | CJ61: 7 | CK61: 7 | CL61: 7 | CM61: 7 | CN61: 7 | CO61: 7 | CP61: 7 | CQ61: 7 | CR61: 7 | CS61: 7 | CT61: 7 | CU61: 7 | CV61: 7 | CW61: 7 | CX61: 7 | CY61: 7 | CZ61: 7 | DA61: 7 | DB61: 7 | DC61: 7 | DD61: 7 | DE61: 7 | DF61: 7 | DG61: 7 | DH61: 7 | DI61: 7 | DJ61: 7 | DK61: 7 | DL61: 7 | DM61: 7 | DN61: 7 | DO61: 7 | DP61: 7 | DQ61: 7 | DR61: 7 | DS61: 7 | DT61: 7 | DU61: 7 | DV61: 7 | DW61: 7 | DX61: 7 | DY61: 7 | DZ61: 7 | EA61: 7 | EB61: 7 | EC61: 7 | ED61: 7 | EE61: 7 | EF61: 7 | EG61: 7 | EH61: 7 | EI61: 7 | EJ61: =EI61+EI60+EI55 -> 7 | EK61: 7 | EL61: 7 | EM61: 7 | EN61: 7 | EO61: 7 | EP61: 7 | EQ61: 7 | ER61: 7 | ES61: 7 | ET61: 7 | EU61: 7 | EV61: 7 | EW61: 7 | EX61: 7 | EY61: 7 | EZ61: 7 | FA61: 7 | FB61: 7 | FC61: 7 | FD61: 7 | FE61: 7 | FF61: 7 | FG61: 7 | FH61: 7 | FI61: 7 | FJ61: 7 | FK61: 7 | FL61: 7 | FM61: 7 | FN61: 7 | FO61: 7 | FP61: 7 | FQ61: 7 | FR61: 7 | FS61: 7 | FT61: 7 | FU61: 7 | FV61: 7 | FW61: 7 | FX61: 7 | FY61: 7 | FZ61: 7 | GA61: 7 | GB61: 7 | GC61: 7 | GD61: 7 | GE61: 7 | GF61: 7 | GG61: 7 | GH61: 7 | GI61: 7 | GJ61: 7 | GK61: 7 | GL61: 7 | GM61: 7 | GN61: 7 | GO61: 7 | GP61: 7 | GQ61: 7 | GR61: 7 | GS61: 7 | GT61: 7 | GU61: 7 | GV61: =GU61+GU60+GU55 -> 7 | GW61: 7 | GX61: 7 | GY61: 7 | GZ61: 7 | HA61: 7 | HB61: 7 | HC61: 7 | HD61: 7 | HE61: 7 | HF61: 7 | HG61: 7 | HH61: 7 | HI61: 7 | HJ61: 7 | HK61: 7 | HL61: 7 | HM61: 7 | HN61: 7 | HO61: 7 | HP61: 7 | HQ61: 7 | HR61: 7 | HS61: 7 | HT61: 7 | HU61: 7 | HV61: 7 | HW61: 7 | HX61: 7 | HY61: 7 | HZ61: 7 | IA61: 7 | IB61: 7 | IC61: 7 | ID61: 7 | IE61: 7 | IF61: 7 | IG61: 7 | IH61: 7 | II61: 7 | IJ61: 7 | IK61: 7 | IL61: 7 | IM61: 7 | IN61: 7 | IO61: 7 | IP61: 7 | IQ61: 7 | IR61: 7 | IS61: 7 | IT61: 7 | IU61: 7 | IV61: 7 | IW61: 7 | IX61: 7 | IY61: 7 | IZ61: 7 | JA61: 7 | JB61: 7 | JC61: 7 | JD61: 7 | JE61: 7 | JF61: 7 | JG61: 7 | JH61: =JG61+JG60+JG55 -> 7 | JI61: 7 | JJ61: 7 | JK61: 7 | JL61: 7 | JM61: 7 | JN61: 7 | JO61: 7 | JP61: 7 | JQ61: 7 | JR61: 7 | JS61: 7 | JT61: 7 | JU61: 7 | JV61: 7 | JW61: 7 | JX61: 7 | JY61: 7 | JZ61: 7 | KA61: 7 | KB61: 7 | KC61: 7 | KD61: 7 | KE61: 7 | KF61: 7 | KG61: 7 | KH61: 7 | KI61: 7 | KJ61: 7 | KK61: 7 | KL61: 7 | KM61: 7 | KN61: 7 | KO61: 7 | KP61: 7 | KQ61: 7 | KR61: 7 | KS61: 7 | KT61: 7 | KU61: 7 | KV61: 7 | KW61: 7 | KX61: 7 | KY61: 7 | KZ61: 7 | LA61: 7 | LB61: 7 | LC61: 7 | LD61: 7 | LE61: 7 | LF61: 7 | LG61: 7 | LH61: 7 | LI61: 7 | LJ61: 7 | LK61: 7 | LL61: 7 | LM61: 7 | LN61: 7 | LO61: 7 | LP61: 7 | LQ61: 7 | LR61: 7 | LS61: 7 | LT61: =LS61+LS60+LS55 -> 7 | LU61: 7 | LV61: 7 | LW61: 7 | LX61: 7 | LY61: 7 | LZ61: 7 | MA61: 7 | MB61: 7 | MC61: 7 | MD61: 7 | ME61: 7 | MF61: 7 | MG61: 7 | MH61: 7 | MI61: 7 | MJ61: 7 | MK61: 7 | ML61: 7 | MM61: 7 | MN61: 7 | MO61: 7 | MP61: 7 | MQ61: 7 | MR61: 7 | MS61: 7 | MT61: 7 | MU61: 7 | MV61: 7 | MW61: 7 | MX61: 7 | MY61: 7 | MZ61: 7 | NA61: 7 | NB61: 7 | NC61: 7 | ND61: 7 | NE61: 7 | NF61: 7 | NG61: 7 | NH61: 7 | NI61: 7 | NJ61: 7 | NK61: 7 | NL61: 7 | NM61: 7 | NN61: 7 | NO61: 7 | NP61: 7 | NQ61: 7 | NR61: 7 | NS61: 7 | NT61: 7 | NU61: 7 | NV61: 7 | NW61: 7 | NX61: 7 | NY61: 7 | NZ61: 7 | OA61: 7 | OB61: 7 | OC61: 7 | OD61: 7 | OE61: 7 | OF61: =OE61+OE60+OE55 -> 7 | OG61: 7 | OH61: 7 | OI61: 7 | OJ61: 7 | OK61: 7 | OL61: 7 | OM61: 7 | ON61: 7 | OO61: 7 | OP61: 7 | OQ61: 7 | OR61: 7 | OS61: 7 | OT61: 7 | OU61: 7 | OV61: 7 | OW61: 7 | OX61: 7 | OY61: 7 | OZ61: 7 | PA61: 7 | PB61: 7 | PC61: 7 | PD61: 7 | PE61: 7 | PF61: 7 | PG61: 7 | PH61: 7 | PI61: 7 | PJ61: 7 | PK61: 7 | PL61: 7 | PM61: 7 | PN61: 7 | PO61: 7 | PP61: 7 | PQ61: 7 | PR61: 7 | PS61: 7 | PT61: 7 | PU61: 7 | PV61: 7 | PW61: 7 | PX61: 7 | PY61: 7 | PZ61: 7 | QA61: 7 | QB61: 7 | QC61: 7 | QD61: 7 | QE61: 7 | QF61: 7 | QG61: 7 | QH61: 7 | QI61: 7 | QJ61: 7 | QK61: 7 | QL61: 7 | QM61: 7 | QN61: 7 | QO61: 7 | QP61: 7 | QQ61: 7 | QR61: =QQ61+QQ60+QQ55 -> 7 | QS61: 7 | QT61: 7 | QU61: 7 | QV61: 7 | QW61: 7 | QX61: 7 | QY61: 7 | QZ61: 7 | RA61: 7 | RB61: 7 | RC61: 7 | RD61: 7 | RE61: 7 | RF61: 7 | RG61: 7 | RH61: 7 | RI61: 7 | RJ61: 7 | RK61: 7 | RL61: 7 | RM61: 7 | RN61: 7 | RO61: 7 | RP61: 7 | RQ61: 7 | RR61: 7 | RS61: 7 | RT61: 7 | RU61: 7 | RV61: 7 | RW61: 7 | RX61: 7 | RY61: 7 | RZ61: 7 | SA61: 7 | SB61: 7 | SC61: 7 | SD61: 7 | SE61: 7 | SF61: 7 | SG61: 7 | SH61: 7 | SI61: 7 | SJ61: 7 | SK61: 7 | SL61: 7 | SM61: 7 | SN61: 7 | SO61: 7 | SP61: 7 | SQ61: 7
